Workbook

Sheet Unique Data Times
G4: INDEX/MATCH (Helper Column) | I4: SUMIFS | K4: INDEX/MATCH (Array) - Method 1 | M4: INDEX/MATCH (Array) - Method 2 | O4: SUMPRODUCT | Q4: VLOOKUP/CHOOSE (Array) | S4: SUM (Array)
A5: Year | B5: Period | C5: Sales Person | D5: Product | E5: Customer | F5: Forecast/Actual | G5: Unsorted List | I5: Unsorted List | K5: Unsorted List | M5: Unsorted List | O5: Unsorted List | Q5: Unsorted List | S5: Unsorted List
A6: 2014 | B6: 8 | C6: B. Paisley | D6: DFG001 | E6: CA01 | F6: Actual | G6: =INDEX('List Unsorted Data - Unique'!$H$2:$H$42942,MATCH(A6&"-"&B6&"-"&C6&"-"&D6&"-"&E6&"-"&F6,'List Unsorted Data - Unique'!$G$2:$G$42942,0)) -> 172 | I6: =SUMIFS('List Unsorted Data - Unique'!$H$2:$H$42942,'List Unsorted Data - Unique'!$A$2:$A$42942,A6,'List Unsorted Data - Unique'!$B$2:$B$42942,B6,'List Unsorted Data - Unique'!$C$2:$C$42942,C6,'List Unsorted Data - Unique'!$D$2:$D$42942,D6,'List Unsorted Data - Unique'!$E$2:$E$42942,E6,'List Unsorted Data - Unique'!$F$2:$F$42942,F6) -> 172 | K6: =INDEX('List Unsorted Data - Unique'!$H$2:$H$42942,MATCH(A6&B6&C6&D6&E6&F6,'List Unsorted Data - Unique'!$A$2:$A$42942&'List Unsorted Data - Unique'!$B$2:$B$42942&'List Unsorted Data - Unique'!$C$2:$C$42942&'List Unsorted Data - Unique'!$D$2:$D$42942&'List Unsorted Data - Unique'!$E$2:$E$42942&'List Unsorted Data - Unique'!$F$2:$F$42942,0)) -> 172 | M6: =INDEX('List Unsorted Data - Unique'!$H$2:$H$42942,MATCH(1,('List Unsorted Data - Unique'!$A$2:$A$42942=A6)*('List Unsorted Data - Unique'!$B$2:$B$42942=B6)*('List Unsorted Data - Unique'!$C$2:$C$42942=C6)*('List Unsorted Data - Unique'!$D$2:$D$42942=D6)*('List Unsorted Data - Unique'!$E$2:$E$42942=E6)*('List Unsorted Data - Unique'!$F$2:$F$42942=F6),0)) -> 172 | O6: =SUMPRODUCT(('List Unsorted Data - Unique'!$A$2:$A$42942=A6)*('List Unsorted Data - Unique'!$B$2:$B$42942=B6)*('List Unsorted Data - Unique'!$C$2:$C$42942=C6)*('List Unsorted Data - Unique'!$D$2:$D$42942=D6)*('List Unsorted Data - Unique'!$E$2:$E$42942=E6)*('List Unsorted Data - Unique'!$F$2:$F$42942=F6)*('List Unsorted Data - Unique'!$H$2:$H$42942)) -> 172 | Q6: =VLOOKUP(A6&B6&C6&D6&E6&F6,CHOOSE({1,2,3,4,5,6},'List Unsorted Data - Unique'!$A$2:$A$42942&'List Unsorted Data - Unique'!$B$2:$B$42942&'List Unsorted Data - Unique'!$C$2:$C$42942&'List Unsorted Data - Unique'!$D$2:$D$42942&'List Unsorted Data - Unique'!$E$2:$E$42942&'List Unsorted Data - Unique'!$F$2:$F$42942,'List Unsorted Data - Unique'!$H$2:$H$42942),2,0) -> 172 | S6: =SUM(('List Unsorted Data - Unique'!$A$2:$A$42942=A6)*('List Unsorted Data - Unique'!$B$2:$B$42942=B6)*('List Unsorted Data - Unique'!$C$2:$C$42942=C6)*('List Unsorted Data - Unique'!$D$2:$D$42942=D6)*('List Unsorted Data - Unique'!$E$2:$E$42942=E6)*('List Unsorted Data - Unique'!$F$2:$F$42942=F6)*('List Unsorted Data - Unique'!$H$2:$H$42942)) -> 172
A7: 2015 | B7: 6 | C7: J. Lennon | D7: POT002 | E7: NC01 | F7: Actual | G7: =INDEX('List Unsorted Data - Unique'!$H$2:$H$42942,MATCH(A7&"-"&B7&"-"&C7&"-"&D7&"-"&E7&"-"&F7,'List Unsorted Data - Unique'!$G$2:$G$42942,0)) -> 438 | I7: =SUMIFS('List Unsorted Data - Unique'!$H$2:$H$42942,'List Unsorted Data - Unique'!$A$2:$A$42942,A7,'List Unsorted Data - Unique'!$B$2:$B$42942,B7,'List Unsorted Data - Unique'!$C$2:$C$42942,C7,'List Unsorted Data - Unique'!$D$2:$D$42942,D7,'List Unsorted Data - Unique'!$E$2:$E$42942,E7,'List Unsorted Data - Unique'!$F$2:$F$42942,F7) -> 438 | K7: =INDEX('List Unsorted Data - Unique'!$H$2:$H$42942,MATCH(A7&B7&C7&D7&E7&F7,'List Unsorted Data - Unique'!$A$2:$A$42942&'List Unsorted Data - Unique'!$B$2:$B$42942&'List Unsorted Data - Unique'!$C$2:$C$42942&'List Unsorted Data - Unique'!$D$2:$D$42942&'List Unsorted Data - Unique'!$E$2:$E$42942&'List Unsorted Data - Unique'!$F$2:$F$42942,0)) -> 438 | M7: =INDEX('List Unsorted Data - Unique'!$H$2:$H$42942,MATCH(1,('List Unsorted Data - Unique'!$A$2:$A$42942=A7)*('List Unsorted Data - Unique'!$B$2:$B$42942=B7)*('List Unsorted Data - Unique'!$C$2:$C$42942=C7)*('List Unsorted Data - Unique'!$D$2:$D$42942=D7)*('List Unsorted Data - Unique'!$E$2:$E$42942=E7)*('List Unsorted Data - Unique'!$F$2:$F$42942=F7),0)) -> 438 | O7: =SUMPRODUCT(('List Unsorted Data - Unique'!$A$2:$A$42942=A7)*('List Unsorted Data - Unique'!$B$2:$B$42942=B7)*('List Unsorted Data - Unique'!$C$2:$C$42942=C7)*('List Unsorted Data - Unique'!$D$2:$D$42942=D7)*('List Unsorted Data - Unique'!$E$2:$E$42942=E7)*('List Unsorted Data - Unique'!$F$2:$F$42942=F7)*('List Unsorted Data - Unique'!$H$2:$H$42942)) -> 438 | Q7: =VLOOKUP(A7&B7&C7&D7&E7&F7,CHOOSE({1,2,3,4,5,6},'List Unsorted Data - Unique'!$A$2:$A$42942&'List Unsorted Data - Unique'!$B$2:$B$42942&'List Unsorted Data - Unique'!$C$2:$C$42942&'List Unsorted Data - Unique'!$D$2:$D$42942&'List Unsorted Data - Unique'!$E$2:$E$42942&'List Unsorted Data - Unique'!$F$2:$F$42942,'List Unsorted Data - Unique'!$H$2:$H$42942),2,0) -> 438 | S7: =SUM(('List Unsorted Data - Unique'!$A$2:$A$42942=A7)*('List Unsorted Data - Unique'!$B$2:$B$42942=B7)*('List Unsorted Data - Unique'!$C$2:$C$42942=C7)*('List Unsorted Data - Unique'!$D$2:$D$42942=D7)*('List Unsorted Data - Unique'!$E$2:$E$42942=E7)*('List Unsorted Data - Unique'!$F$2:$F$42942=F7)*('List Unsorted Data - Unique'!$H$2:$H$42942)) -> 438
A8: 2014 | B8: 10 | C8: P. Buck | D8: ASL002 | E8: MN01 | F8: Forecast | G8: =INDEX('List Unsorted Data - Unique'!$H$2:$H$42942,MATCH(A8&"-"&B8&"-"&C8&"-"&D8&"-"&E8&"-"&F8,'List Unsorted Data - Unique'!$G$2:$G$42942,0)) -> 160 | I8: =SUMIFS('List Unsorted Data - Unique'!$H$2:$H$42942,'List Unsorted Data - Unique'!$A$2:$A$42942,A8,'List Unsorted Data - Unique'!$B$2:$B$42942,B8,'List Unsorted Data - Unique'!$C$2:$C$42942,C8,'List Unsorted Data - Unique'!$D$2:$D$42942,D8,'List Unsorted Data - Unique'!$E$2:$E$42942,E8,'List Unsorted Data - Unique'!$F$2:$F$42942,F8) -> 160 | K8: =INDEX('List Unsorted Data - Unique'!$H$2:$H$42942,MATCH(A8&B8&C8&D8&E8&F8,'List Unsorted Data - Unique'!$A$2:$A$42942&'List Unsorted Data - Unique'!$B$2:$B$42942&'List Unsorted Data - Unique'!$C$2:$C$42942&'List Unsorted Data - Unique'!$D$2:$D$42942&'List Unsorted Data - Unique'!$E$2:$E$42942&'List Unsorted Data - Unique'!$F$2:$F$42942,0)) -> 160 | M8: =INDEX('List Unsorted Data - Unique'!$H$2:$H$42942,MATCH(1,('List Unsorted Data - Unique'!$A$2:$A$42942=A8)*('List Unsorted Data - Unique'!$B$2:$B$42942=B8)*('List Unsorted Data - Unique'!$C$2:$C$42942=C8)*('List Unsorted Data - Unique'!$D$2:$D$42942=D8)*('List Unsorted Data - Unique'!$E$2:$E$42942=E8)*('List Unsorted Data - Unique'!$F$2:$F$42942=F8),0)) -> 160 | O8: =SUMPRODUCT(('List Unsorted Data - Unique'!$A$2:$A$42942=A8)*('List Unsorted Data - Unique'!$B$2:$B$42942=B8)*('List Unsorted Data - Unique'!$C$2:$C$42942=C8)*('List Unsorted Data - Unique'!$D$2:$D$42942=D8)*('List Unsorted Data - Unique'!$E$2:$E$42942=E8)*('List Unsorted Data - Unique'!$F$2:$F$42942=F8)*('List Unsorted Data - Unique'!$H$2:$H$42942)) -> 160 | Q8: =VLOOKUP(A8&B8&C8&D8&E8&F8,CHOOSE({1,2,3,4,5,6},'List Unsorted Data - Unique'!$A$2:$A$42942&'List Unsorted Data - Unique'!$B$2:$B$42942&'List Unsorted Data - Unique'!$C$2:$C$42942&'List Unsorted Data - Unique'!$D$2:$D$42942&'List Unsorted Data - Unique'!$E$2:$E$42942&'List Unsorted Data - Unique'!$F$2:$F$42942,'List Unsorted Data - Unique'!$H$2:$H$42942),2,0) -> 160 | S8: =SUM(('List Unsorted Data - Unique'!$A$2:$A$42942=A8)*('List Unsorted Data - Unique'!$B$2:$B$42942=B8)*('List Unsorted Data - Unique'!$C$2:$C$42942=C8)*('List Unsorted Data - Unique'!$D$2:$D$42942=D8)*('List Unsorted Data - Unique'!$E$2:$E$42942=E8)*('List Unsorted Data - Unique'!$F$2:$F$42942=F8)*('List Unsorted Data - Unique'!$H$2:$H$42942)) -> 160
A9: 2014 | B9: 10 | C9: C. Underwood | D9: PRD002 | E9: VA01 | F9: Actual | G9: =INDEX('List Unsorted Data - Unique'!$H$2:$H$42942,MATCH(A9&"-"&B9&"-"&C9&"-"&D9&"-"&E9&"-"&F9,'List Unsorted Data - Unique'!$G$2:$G$42942,0)) -> 158 | I9: =SUMIFS('List Unsorted Data - Unique'!$H$2:$H$42942,'List Unsorted Data - Unique'!$A$2:$A$42942,A9,'List Unsorted Data - Unique'!$B$2:$B$42942,B9,'List Unsorted Data - Unique'!$C$2:$C$42942,C9,'List Unsorted Data - Unique'!$D$2:$D$42942,D9,'List Unsorted Data - Unique'!$E$2:$E$42942,E9,'List Unsorted Data - Unique'!$F$2:$F$42942,F9) -> 158 | K9: =INDEX('List Unsorted Data - Unique'!$H$2:$H$42942,MATCH(A9&B9&C9&D9&E9&F9,'List Unsorted Data - Unique'!$A$2:$A$42942&'List Unsorted Data - Unique'!$B$2:$B$42942&'List Unsorted Data - Unique'!$C$2:$C$42942&'List Unsorted Data - Unique'!$D$2:$D$42942&'List Unsorted Data - Unique'!$E$2:$E$42942&'List Unsorted Data - Unique'!$F$2:$F$42942,0)) -> 158 | M9: =INDEX('List Unsorted Data - Unique'!$H$2:$H$42942,MATCH(1,('List Unsorted Data - Unique'!$A$2:$A$42942=A9)*('List Unsorted Data - Unique'!$B$2:$B$42942=B9)*('List Unsorted Data - Unique'!$C$2:$C$42942=C9)*('List Unsorted Data - Unique'!$D$2:$D$42942=D9)*('List Unsorted Data - Unique'!$E$2:$E$42942=E9)*('List Unsorted Data - Unique'!$F$2:$F$42942=F9),0)) -> 158 | O9: =SUMPRODUCT(('List Unsorted Data - Unique'!$A$2:$A$42942=A9)*('List Unsorted Data - Unique'!$B$2:$B$42942=B9)*('List Unsorted Data - Unique'!$C$2:$C$42942=C9)*('List Unsorted Data - Unique'!$D$2:$D$42942=D9)*('List Unsorted Data - Unique'!$E$2:$E$42942=E9)*('List Unsorted Data - Unique'!$F$2:$F$42942=F9)*('List Unsorted Data - Unique'!$H$2:$H$42942)) -> 158 | Q9: =VLOOKUP(A9&B9&C9&D9&E9&F9,CHOOSE({1,2,3,4,5,6},'List Unsorted Data - Unique'!$A$2:$A$42942&'List Unsorted Data - Unique'!$B$2:$B$42942&'List Unsorted Data - Unique'!$C$2:$C$42942&'List Unsorted Data - Unique'!$D$2:$D$42942&'List Unsorted Data - Unique'!$E$2:$E$42942&'List Unsorted Data - Unique'!$F$2:$F$42942,'List Unsorted Data - Unique'!$H$2:$H$42942),2,0) -> 158 | S9: =SUM(('List Unsorted Data - Unique'!$A$2:$A$42942=A9)*('List Unsorted Data - Unique'!$B$2:$B$42942=B9)*('List Unsorted Data - Unique'!$C$2:$C$42942=C9)*('List Unsorted Data - Unique'!$D$2:$D$42942=D9)*('List Unsorted Data - Unique'!$E$2:$E$42942=E9)*('List Unsorted Data - Unique'!$F$2:$F$42942=F9)*('List Unsorted Data - Unique'!$H$2:$H$42942)) -> 158
A10: 2016 | B10: 6 | C10: M.Mills | D10: DFG001 | E10: PA01 | F10: Forecast | G10: =INDEX('List Unsorted Data - Unique'!$H$2:$H$42942,MATCH(A10&"-"&B10&"-"&C10&"-"&D10&"-"&E10&"-"&F10,'List Unsorted Data - Unique'!$G$2:$G$42942,0)) -> 58 | I10: =SUMIFS('List Unsorted Data - Unique'!$H$2:$H$42942,'List Unsorted Data - Unique'!$A$2:$A$42942,A10,'List Unsorted Data - Unique'!$B$2:$B$42942,B10,'List Unsorted Data - Unique'!$C$2:$C$42942,C10,'List Unsorted Data - Unique'!$D$2:$D$42942,D10,'List Unsorted Data - Unique'!$E$2:$E$42942,E10,'List Unsorted Data - Unique'!$F$2:$F$42942,F10) -> 58 | K10: =INDEX('List Unsorted Data - Unique'!$H$2:$H$42942,MATCH(A10&B10&C10&D10&E10&F10,'List Unsorted Data - Unique'!$A$2:$A$42942&'List Unsorted Data - Unique'!$B$2:$B$42942&'List Unsorted Data - Unique'!$C$2:$C$42942&'List Unsorted Data - Unique'!$D$2:$D$42942&'List Unsorted Data - Unique'!$E$2:$E$42942&'List Unsorted Data - Unique'!$F$2:$F$42942,0)) -> 58 | M10: =INDEX('List Unsorted Data - Unique'!$H$2:$H$42942,MATCH(1,('List Unsorted Data - Unique'!$A$2:$A$42942=A10)*('List Unsorted Data - Unique'!$B$2:$B$42942=B10)*('List Unsorted Data - Unique'!$C$2:$C$42942=C10)*('List Unsorted Data - Unique'!$D$2:$D$42942=D10)*('List Unsorted Data - Unique'!$E$2:$E$42942=E10)*('List Unsorted Data - Unique'!$F$2:$F$42942=F10),0)) -> 58 | O10: =SUMPRODUCT(('List Unsorted Data - Unique'!$A$2:$A$42942=A10)*('List Unsorted Data - Unique'!$B$2:$B$42942=B10)*('List Unsorted Data - Unique'!$C$2:$C$42942=C10)*('List Unsorted Data - Unique'!$D$2:$D$42942=D10)*('List Unsorted Data - Unique'!$E$2:$E$42942=E10)*('List Unsorted Data - Unique'!$F$2:$F$42942=F10)*('List Unsorted Data - Unique'!$H$2:$H$42942)) -> 58 | Q10: =VLOOKUP(A10&B10&C10&D10&E10&F10,CHOOSE({1,2,3,4,5,6},'List Unsorted Data - Unique'!$A$2:$A$42942&'List Unsorted Data - Unique'!$B$2:$B$42942&'List Unsorted Data - Unique'!$C$2:$C$42942&'List Unsorted Data - Unique'!$D$2:$D$42942&'List Unsorted Data - Unique'!$E$2:$E$42942&'List Unsorted Data - Unique'!$F$2:$F$42942,'List Unsorted Data - Unique'!$H$2:$H$42942),2,0) -> 58 | S10: =SUM(('List Unsorted Data - Unique'!$A$2:$A$42942=A10)*('List Unsorted Data - Unique'!$B$2:$B$42942=B10)*('List Unsorted Data - Unique'!$C$2:$C$42942=C10)*('List Unsorted Data - Unique'!$D$2:$D$42942=D10)*('List Unsorted Data - Unique'!$E$2:$E$42942=E10)*('List Unsorted Data - Unique'!$F$2:$F$42942=F10)*('List Unsorted Data - Unique'!$H$2:$H$42942)) -> 58
A11: 2016 | B11: 2 | C11: B. Paisley | D11: JKL001 | E11: AK01 | F11: Actual | G11: =INDEX('List Unsorted Data - Unique'!$H$2:$H$42942,MATCH(A11&"-"&B11&"-"&C11&"-"&D11&"-"&E11&"-"&F11,'List Unsorted Data - Unique'!$G$2:$G$42942,0)) -> 35 | I11: =SUMIFS('List Unsorted Data - Unique'!$H$2:$H$42942,'List Unsorted Data - Unique'!$A$2:$A$42942,A11,'List Unsorted Data - Unique'!$B$2:$B$42942,B11,'List Unsorted Data - Unique'!$C$2:$C$42942,C11,'List Unsorted Data - Unique'!$D$2:$D$42942,D11,'List Unsorted Data - Unique'!$E$2:$E$42942,E11,'List Unsorted Data - Unique'!$F$2:$F$42942,F11) -> 35 | K11: =INDEX('List Unsorted Data - Unique'!$H$2:$H$42942,MATCH(A11&B11&C11&D11&E11&F11,'List Unsorted Data - Unique'!$A$2:$A$42942&'List Unsorted Data - Unique'!$B$2:$B$42942&'List Unsorted Data - Unique'!$C$2:$C$42942&'List Unsorted Data - Unique'!$D$2:$D$42942&'List Unsorted Data - Unique'!$E$2:$E$42942&'List Unsorted Data - Unique'!$F$2:$F$42942,0)) -> 35 | M11: =INDEX('List Unsorted Data - Unique'!$H$2:$H$42942,MATCH(1,('List Unsorted Data - Unique'!$A$2:$A$42942=A11)*('List Unsorted Data - Unique'!$B$2:$B$42942=B11)*('List Unsorted Data - Unique'!$C$2:$C$42942=C11)*('List Unsorted Data - Unique'!$D$2:$D$42942=D11)*('List Unsorted Data - Unique'!$E$2:$E$42942=E11)*('List Unsorted Data - Unique'!$F$2:$F$42942=F11),0)) -> 35 | O11: =SUMPRODUCT(('List Unsorted Data - Unique'!$A$2:$A$42942=A11)*('List Unsorted Data - Unique'!$B$2:$B$42942=B11)*('List Unsorted Data - Unique'!$C$2:$C$42942=C11)*('List Unsorted Data - Unique'!$D$2:$D$42942=D11)*('List Unsorted Data - Unique'!$E$2:$E$42942=E11)*('List Unsorted Data - Unique'!$F$2:$F$42942=F11)*('List Unsorted Data - Unique'!$H$2:$H$42942)) -> 35 | Q11: =VLOOKUP(A11&B11&C11&D11&E11&F11,CHOOSE({1,2,3,4,5,6},'List Unsorted Data - Unique'!$A$2:$A$42942&'List Unsorted Data - Unique'!$B$2:$B$42942&'List Unsorted Data - Unique'!$C$2:$C$42942&'List Unsorted Data - Unique'!$D$2:$D$42942&'List Unsorted Data - Unique'!$E$2:$E$42942&'List Unsorted Data - Unique'!$F$2:$F$42942,'List Unsorted Data - Unique'!$H$2:$H$42942),2,0) -> 35 | S11: =SUM(('List Unsorted Data - Unique'!$A$2:$A$42942=A11)*('List Unsorted Data - Unique'!$B$2:$B$42942=B11)*('List Unsorted Data - Unique'!$C$2:$C$42942=C11)*('List Unsorted Data - Unique'!$D$2:$D$42942=D11)*('List Unsorted Data - Unique'!$E$2:$E$42942=E11)*('List Unsorted Data - Unique'!$F$2:$F$42942=F11)*('List Unsorted Data - Unique'!$H$2:$H$42942)) -> 35
A12: 2016 | B12: 9 | C12: S. Crow | D12: ASL001 | E12: PA01 | F12: Forecast | G12: =INDEX('List Unsorted Data - Unique'!$H$2:$H$42942,MATCH(A12&"-"&B12&"-"&C12&"-"&D12&"-"&E12&"-"&F12,'List Unsorted Data - Unique'!$G$2:$G$42942,0)) -> 137 | I12: =SUMIFS('List Unsorted Data - Unique'!$H$2:$H$42942,'List Unsorted Data - Unique'!$A$2:$A$42942,A12,'List Unsorted Data - Unique'!$B$2:$B$42942,B12,'List Unsorted Data - Unique'!$C$2:$C$42942,C12,'List Unsorted Data - Unique'!$D$2:$D$42942,D12,'List Unsorted Data - Unique'!$E$2:$E$42942,E12,'List Unsorted Data - Unique'!$F$2:$F$42942,F12) -> 137 | K12: =INDEX('List Unsorted Data - Unique'!$H$2:$H$42942,MATCH(A12&B12&C12&D12&E12&F12,'List Unsorted Data - Unique'!$A$2:$A$42942&'List Unsorted Data - Unique'!$B$2:$B$42942&'List Unsorted Data - Unique'!$C$2:$C$42942&'List Unsorted Data - Unique'!$D$2:$D$42942&'List Unsorted Data - Unique'!$E$2:$E$42942&'List Unsorted Data - Unique'!$F$2:$F$42942,0)) -> 137 | M12: =INDEX('List Unsorted Data - Unique'!$H$2:$H$42942,MATCH(1,('List Unsorted Data - Unique'!$A$2:$A$42942=A12)*('List Unsorted Data - Unique'!$B$2:$B$42942=B12)*('List Unsorted Data - Unique'!$C$2:$C$42942=C12)*('List Unsorted Data - Unique'!$D$2:$D$42942=D12)*('List Unsorted Data - Unique'!$E$2:$E$42942=E12)*('List Unsorted Data - Unique'!$F$2:$F$42942=F12),0)) -> 137 | O12: =SUMPRODUCT(('List Unsorted Data - Unique'!$A$2:$A$42942=A12)*('List Unsorted Data - Unique'!$B$2:$B$42942=B12)*('List Unsorted Data - Unique'!$C$2:$C$42942=C12)*('List Unsorted Data - Unique'!$D$2:$D$42942=D12)*('List Unsorted Data - Unique'!$E$2:$E$42942=E12)*('List Unsorted Data - Unique'!$F$2:$F$42942=F12)*('List Unsorted Data - Unique'!$H$2:$H$42942)) -> 137 | Q12: =VLOOKUP(A12&B12&C12&D12&E12&F12,CHOOSE({1,2,3,4,5,6},'List Unsorted Data - Unique'!$A$2:$A$42942&'List Unsorted Data - Unique'!$B$2:$B$42942&'List Unsorted Data - Unique'!$C$2:$C$42942&'List Unsorted Data - Unique'!$D$2:$D$42942&'List Unsorted Data - Unique'!$E$2:$E$42942&'List Unsorted Data - Unique'!$F$2:$F$42942,'List Unsorted Data - Unique'!$H$2:$H$42942),2,0) -> 137 | S12: =SUM(('List Unsorted Data - Unique'!$A$2:$A$42942=A12)*('List Unsorted Data - Unique'!$B$2:$B$42942=B12)*('List Unsorted Data - Unique'!$C$2:$C$42942=C12)*('List Unsorted Data - Unique'!$D$2:$D$42942=D12)*('List Unsorted Data - Unique'!$E$2:$E$42942=E12)*('List Unsorted Data - Unique'!$F$2:$F$42942=F12)*('List Unsorted Data - Unique'!$H$2:$H$42942)) -> 137
A13: 2015 | B13: 9 | C13: P. Buck | D13: ASL003 | E13: LA01 | F13: Forecast | G13: =INDEX('List Unsorted Data - Unique'!$H$2:$H$42942,MATCH(A13&"-"&B13&"-"&C13&"-"&D13&"-"&E13&"-"&F13,'List Unsorted Data - Unique'!$G$2:$G$42942,0)) -> 459 | I13: =SUMIFS('List Unsorted Data - Unique'!$H$2:$H$42942,'List Unsorted Data - Unique'!$A$2:$A$42942,A13,'List Unsorted Data - Unique'!$B$2:$B$42942,B13,'List Unsorted Data - Unique'!$C$2:$C$42942,C13,'List Unsorted Data - Unique'!$D$2:$D$42942,D13,'List Unsorted Data - Unique'!$E$2:$E$42942,E13,'List Unsorted Data - Unique'!$F$2:$F$42942,F13) -> 459 | K13: =INDEX('List Unsorted Data - Unique'!$H$2:$H$42942,MATCH(A13&B13&C13&D13&E13&F13,'List Unsorted Data - Unique'!$A$2:$A$42942&'List Unsorted Data - Unique'!$B$2:$B$42942&'List Unsorted Data - Unique'!$C$2:$C$42942&'List Unsorted Data - Unique'!$D$2:$D$42942&'List Unsorted Data - Unique'!$E$2:$E$42942&'List Unsorted Data - Unique'!$F$2:$F$42942,0)) -> 459 | M13: =INDEX('List Unsorted Data - Unique'!$H$2:$H$42942,MATCH(1,('List Unsorted Data - Unique'!$A$2:$A$42942=A13)*('List Unsorted Data - Unique'!$B$2:$B$42942=B13)*('List Unsorted Data - Unique'!$C$2:$C$42942=C13)*('List Unsorted Data - Unique'!$D$2:$D$42942=D13)*('List Unsorted Data - Unique'!$E$2:$E$42942=E13)*('List Unsorted Data - Unique'!$F$2:$F$42942=F13),0)) -> 459 | O13: =SUMPRODUCT(('List Unsorted Data - Unique'!$A$2:$A$42942=A13)*('List Unsorted Data - Unique'!$B$2:$B$42942=B13)*('List Unsorted Data - Unique'!$C$2:$C$42942=C13)*('List Unsorted Data - Unique'!$D$2:$D$42942=D13)*('List Unsorted Data - Unique'!$E$2:$E$42942=E13)*('List Unsorted Data - Unique'!$F$2:$F$42942=F13)*('List Unsorted Data - Unique'!$H$2:$H$42942)) -> 459 | Q13: =VLOOKUP(A13&B13&C13&D13&E13&F13,CHOOSE({1,2,3,4,5,6},'List Unsorted Data - Unique'!$A$2:$A$42942&'List Unsorted Data - Unique'!$B$2:$B$42942&'List Unsorted Data - Unique'!$C$2:$C$42942&'List Unsorted Data - Unique'!$D$2:$D$42942&'List Unsorted Data - Unique'!$E$2:$E$42942&'List Unsorted Data - Unique'!$F$2:$F$42942,'List Unsorted Data - Unique'!$H$2:$H$42942),2,0) -> 459 | S13: =SUM(('List Unsorted Data - Unique'!$A$2:$A$42942=A13)*('List Unsorted Data - Unique'!$B$2:$B$42942=B13)*('List Unsorted Data - Unique'!$C$2:$C$42942=C13)*('List Unsorted Data - Unique'!$D$2:$D$42942=D13)*('List Unsorted Data - Unique'!$E$2:$E$42942=E13)*('List Unsorted Data - Unique'!$F$2:$F$42942=F13)*('List Unsorted Data - Unique'!$H$2:$H$42942)) -> 459
A14: 2015 | B14: 7 | C14: P. Buck | D14: ASL003 | E14: SD01 | F14: Actual | G14: =INDEX('List Unsorted Data - Unique'!$H$2:$H$42942,MATCH(A14&"-"&B14&"-"&C14&"-"&D14&"-"&E14&"-"&F14,'List Unsorted Data - Unique'!$G$2:$G$42942,0)) -> 389 | I14: =SUMIFS('List Unsorted Data - Unique'!$H$2:$H$42942,'List Unsorted Data - Unique'!$A$2:$A$42942,A14,'List Unsorted Data - Unique'!$B$2:$B$42942,B14,'List Unsorted Data - Unique'!$C$2:$C$42942,C14,'List Unsorted Data - Unique'!$D$2:$D$42942,D14,'List Unsorted Data - Unique'!$E$2:$E$42942,E14,'List Unsorted Data - Unique'!$F$2:$F$42942,F14) -> 389 | K14: =INDEX('List Unsorted Data - Unique'!$H$2:$H$42942,MATCH(A14&B14&C14&D14&E14&F14,'List Unsorted Data - Unique'!$A$2:$A$42942&'List Unsorted Data - Unique'!$B$2:$B$42942&'List Unsorted Data - Unique'!$C$2:$C$42942&'List Unsorted Data - Unique'!$D$2:$D$42942&'List Unsorted Data - Unique'!$E$2:$E$42942&'List Unsorted Data - Unique'!$F$2:$F$42942,0)) -> 389 | M14: =INDEX('List Unsorted Data - Unique'!$H$2:$H$42942,MATCH(1,('List Unsorted Data - Unique'!$A$2:$A$42942=A14)*('List Unsorted Data - Unique'!$B$2:$B$42942=B14)*('List Unsorted Data - Unique'!$C$2:$C$42942=C14)*('List Unsorted Data - Unique'!$D$2:$D$42942=D14)*('List Unsorted Data - Unique'!$E$2:$E$42942=E14)*('List Unsorted Data - Unique'!$F$2:$F$42942=F14),0)) -> 389 | O14: =SUMPRODUCT(('List Unsorted Data - Unique'!$A$2:$A$42942=A14)*('List Unsorted Data - Unique'!$B$2:$B$42942=B14)*('List Unsorted Data - Unique'!$C$2:$C$42942=C14)*('List Unsorted Data - Unique'!$D$2:$D$42942=D14)*('List Unsorted Data - Unique'!$E$2:$E$42942=E14)*('List Unsorted Data - Unique'!$F$2:$F$42942=F14)*('List Unsorted Data - Unique'!$H$2:$H$42942)) -> 389 | Q14: =VLOOKUP(A14&B14&C14&D14&E14&F14,CHOOSE({1,2,3,4,5,6},'List Unsorted Data - Unique'!$A$2:$A$42942&'List Unsorted Data - Unique'!$B$2:$B$42942&'List Unsorted Data - Unique'!$C$2:$C$42942&'List Unsorted Data - Unique'!$D$2:$D$42942&'List Unsorted Data - Unique'!$E$2:$E$42942&'List Unsorted Data - Unique'!$F$2:$F$42942,'List Unsorted Data - Unique'!$H$2:$H$42942),2,0) -> 389 | S14: =SUM(('List Unsorted Data - Unique'!$A$2:$A$42942=A14)*('List Unsorted Data - Unique'!$B$2:$B$42942=B14)*('List Unsorted Data - Unique'!$C$2:$C$42942=C14)*('List Unsorted Data - Unique'!$D$2:$D$42942=D14)*('List Unsorted Data - Unique'!$E$2:$E$42942=E14)*('List Unsorted Data - Unique'!$F$2:$F$42942=F14)*('List Unsorted Data - Unique'!$H$2:$H$42942)) -> 389
A15: 2016 | B15: 10 | C15: P. Buck | D15: PRD002 | E15: MN01 | F15: Forecast | G15: =INDEX('List Unsorted Data - Unique'!$H$2:$H$42942,MATCH(A15&"-"&B15&"-"&C15&"-"&D15&"-"&E15&"-"&F15,'List Unsorted Data - Unique'!$G$2:$G$42942,0)) -> 74 | I15: =SUMIFS('List Unsorted Data - Unique'!$H$2:$H$42942,'List Unsorted Data - Unique'!$A$2:$A$42942,A15,'List Unsorted Data - Unique'!$B$2:$B$42942,B15,'List Unsorted Data - Unique'!$C$2:$C$42942,C15,'List Unsorted Data - Unique'!$D$2:$D$42942,D15,'List Unsorted Data - Unique'!$E$2:$E$42942,E15,'List Unsorted Data - Unique'!$F$2:$F$42942,F15) -> 74 | K15: =INDEX('List Unsorted Data - Unique'!$H$2:$H$42942,MATCH(A15&B15&C15&D15&E15&F15,'List Unsorted Data - Unique'!$A$2:$A$42942&'List Unsorted Data - Unique'!$B$2:$B$42942&'List Unsorted Data - Unique'!$C$2:$C$42942&'List Unsorted Data - Unique'!$D$2:$D$42942&'List Unsorted Data - Unique'!$E$2:$E$42942&'List Unsorted Data - Unique'!$F$2:$F$42942,0)) -> 74 | M15: =INDEX('List Unsorted Data - Unique'!$H$2:$H$42942,MATCH(1,('List Unsorted Data - Unique'!$A$2:$A$42942=A15)*('List Unsorted Data - Unique'!$B$2:$B$42942=B15)*('List Unsorted Data - Unique'!$C$2:$C$42942=C15)*('List Unsorted Data - Unique'!$D$2:$D$42942=D15)*('List Unsorted Data - Unique'!$E$2:$E$42942=E15)*('List Unsorted Data - Unique'!$F$2:$F$42942=F15),0)) -> 74 | O15: =SUMPRODUCT(('List Unsorted Data - Unique'!$A$2:$A$42942=A15)*('List Unsorted Data - Unique'!$B$2:$B$42942=B15)*('List Unsorted Data - Unique'!$C$2:$C$42942=C15)*('List Unsorted Data - Unique'!$D$2:$D$42942=D15)*('List Unsorted Data - Unique'!$E$2:$E$42942=E15)*('List Unsorted Data - Unique'!$F$2:$F$42942=F15)*('List Unsorted Data - Unique'!$H$2:$H$42942)) -> 74 | Q15: =VLOOKUP(A15&B15&C15&D15&E15&F15,CHOOSE({1,2,3,4,5,6},'List Unsorted Data - Unique'!$A$2:$A$42942&'List Unsorted Data - Unique'!$B$2:$B$42942&'List Unsorted Data - Unique'!$C$2:$C$42942&'List Unsorted Data - Unique'!$D$2:$D$42942&'List Unsorted Data - Unique'!$E$2:$E$42942&'List Unsorted Data - Unique'!$F$2:$F$42942,'List Unsorted Data - Unique'!$H$2:$H$42942),2,0) -> 74 | S15: =SUM(('List Unsorted Data - Unique'!$A$2:$A$42942=A15)*('List Unsorted Data - Unique'!$B$2:$B$42942=B15)*('List Unsorted Data - Unique'!$C$2:$C$42942=C15)*('List Unsorted Data - Unique'!$D$2:$D$42942=D15)*('List Unsorted Data - Unique'!$E$2:$E$42942=E15)*('List Unsorted Data - Unique'!$F$2:$F$42942=F15)*('List Unsorted Data - Unique'!$H$2:$H$42942)) -> 74
A16: 2014 | B16: 6 | C16: B. Paisley | D16: DFG001 | E16: PA01 | F16: Actual | G16: =INDEX('List Unsorted Data - Unique'!$H$2:$H$42942,MATCH(A16&"-"&B16&"-"&C16&"-"&D16&"-"&E16&"-"&F16,'List Unsorted Data - Unique'!$G$2:$G$42942,0)) -> 124 | I16: =SUMIFS('List Unsorted Data - Unique'!$H$2:$H$42942,'List Unsorted Data - Unique'!$A$2:$A$42942,A16,'List Unsorted Data - Unique'!$B$2:$B$42942,B16,'List Unsorted Data - Unique'!$C$2:$C$42942,C16,'List Unsorted Data - Unique'!$D$2:$D$42942,D16,'List Unsorted Data - Unique'!$E$2:$E$42942,E16,'List Unsorted Data - Unique'!$F$2:$F$42942,F16) -> 124 | K16: =INDEX('List Unsorted Data - Unique'!$H$2:$H$42942,MATCH(A16&B16&C16&D16&E16&F16,'List Unsorted Data - Unique'!$A$2:$A$42942&'List Unsorted Data - Unique'!$B$2:$B$42942&'List Unsorted Data - Unique'!$C$2:$C$42942&'List Unsorted Data - Unique'!$D$2:$D$42942&'List Unsorted Data - Unique'!$E$2:$E$42942&'List Unsorted Data - Unique'!$F$2:$F$42942,0)) -> 124 | M16: =INDEX('List Unsorted Data - Unique'!$H$2:$H$42942,MATCH(1,('List Unsorted Data - Unique'!$A$2:$A$42942=A16)*('List Unsorted Data - Unique'!$B$2:$B$42942=B16)*('List Unsorted Data - Unique'!$C$2:$C$42942=C16)*('List Unsorted Data - Unique'!$D$2:$D$42942=D16)*('List Unsorted Data - Unique'!$E$2:$E$42942=E16)*('List Unsorted Data - Unique'!$F$2:$F$42942=F16),0)) -> 124 | O16: =SUMPRODUCT(('List Unsorted Data - Unique'!$A$2:$A$42942=A16)*('List Unsorted Data - Unique'!$B$2:$B$42942=B16)*('List Unsorted Data - Unique'!$C$2:$C$42942=C16)*('List Unsorted Data - Unique'!$D$2:$D$42942=D16)*('List Unsorted Data - Unique'!$E$2:$E$42942=E16)*('List Unsorted Data - Unique'!$F$2:$F$42942=F16)*('List Unsorted Data - Unique'!$H$2:$H$42942)) -> 124 | Q16: =VLOOKUP(A16&B16&C16&D16&E16&F16,CHOOSE({1,2,3,4,5,6},'List Unsorted Data - Unique'!$A$2:$A$42942&'List Unsorted Data - Unique'!$B$2:$B$42942&'List Unsorted Data - Unique'!$C$2:$C$42942&'List Unsorted Data - Unique'!$D$2:$D$42942&'List Unsorted Data - Unique'!$E$2:$E$42942&'List Unsorted Data - Unique'!$F$2:$F$42942,'List Unsorted Data - Unique'!$H$2:$H$42942),2,0) -> 124 | S16: =SUM(('List Unsorted Data - Unique'!$A$2:$A$42942=A16)*('List Unsorted Data - Unique'!$B$2:$B$42942=B16)*('List Unsorted Data - Unique'!$C$2:$C$42942=C16)*('List Unsorted Data - Unique'!$D$2:$D$42942=D16)*('List Unsorted Data - Unique'!$E$2:$E$42942=E16)*('List Unsorted Data - Unique'!$F$2:$F$42942=F16)*('List Unsorted Data - Unique'!$H$2:$H$42942)) -> 124
A17: 2015 | B17: 3 | C17: J. Lennon | D17: DFG001 | E17: PA01 | F17: Actual | G17: =INDEX('List Unsorted Data - Unique'!$H$2:$H$42942,MATCH(A17&"-"&B17&"-"&C17&"-"&D17&"-"&E17&"-"&F17,'List Unsorted Data - Unique'!$G$2:$G$42942,0)) -> 54 | I17: =SUMIFS('List Unsorted Data - Unique'!$H$2:$H$42942,'List Unsorted Data - Unique'!$A$2:$A$42942,A17,'List Unsorted Data - Unique'!$B$2:$B$42942,B17,'List Unsorted Data - Unique'!$C$2:$C$42942,C17,'List Unsorted Data - Unique'!$D$2:$D$42942,D17,'List Unsorted Data - Unique'!$E$2:$E$42942,E17,'List Unsorted Data - Unique'!$F$2:$F$42942,F17) -> 54 | K17: =INDEX('List Unsorted Data - Unique'!$H$2:$H$42942,MATCH(A17&B17&C17&D17&E17&F17,'List Unsorted Data - Unique'!$A$2:$A$42942&'List Unsorted Data - Unique'!$B$2:$B$42942&'List Unsorted Data - Unique'!$C$2:$C$42942&'List Unsorted Data - Unique'!$D$2:$D$42942&'List Unsorted Data - Unique'!$E$2:$E$42942&'List Unsorted Data - Unique'!$F$2:$F$42942,0)) -> 54 | M17: =INDEX('List Unsorted Data - Unique'!$H$2:$H$42942,MATCH(1,('List Unsorted Data - Unique'!$A$2:$A$42942=A17)*('List Unsorted Data - Unique'!$B$2:$B$42942=B17)*('List Unsorted Data - Unique'!$C$2:$C$42942=C17)*('List Unsorted Data - Unique'!$D$2:$D$42942=D17)*('List Unsorted Data - Unique'!$E$2:$E$42942=E17)*('List Unsorted Data - Unique'!$F$2:$F$42942=F17),0)) -> 54 | O17: =SUMPRODUCT(('List Unsorted Data - Unique'!$A$2:$A$42942=A17)*('List Unsorted Data - Unique'!$B$2:$B$42942=B17)*('List Unsorted Data - Unique'!$C$2:$C$42942=C17)*('List Unsorted Data - Unique'!$D$2:$D$42942=D17)*('List Unsorted Data - Unique'!$E$2:$E$42942=E17)*('List Unsorted Data - Unique'!$F$2:$F$42942=F17)*('List Unsorted Data - Unique'!$H$2:$H$42942)) -> 54 | Q17: =VLOOKUP(A17&B17&C17&D17&E17&F17,CHOOSE({1,2,3,4,5,6},'List Unsorted Data - Unique'!$A$2:$A$42942&'List Unsorted Data - Unique'!$B$2:$B$42942&'List Unsorted Data - Unique'!$C$2:$C$42942&'List Unsorted Data - Unique'!$D$2:$D$42942&'List Unsorted Data - Unique'!$E$2:$E$42942&'List Unsorted Data - Unique'!$F$2:$F$42942,'List Unsorted Data - Unique'!$H$2:$H$42942),2,0) -> 54 | S17: =SUM(('List Unsorted Data - Unique'!$A$2:$A$42942=A17)*('List Unsorted Data - Unique'!$B$2:$B$42942=B17)*('List Unsorted Data - Unique'!$C$2:$C$42942=C17)*('List Unsorted Data - Unique'!$D$2:$D$42942=D17)*('List Unsorted Data - Unique'!$E$2:$E$42942=E17)*('List Unsorted Data - Unique'!$F$2:$F$42942=F17)*('List Unsorted Data - Unique'!$H$2:$H$42942)) -> 54
A18: 2015 | B18: 9 | C18: M. Stipe | D18: PRD001 | E18: AK01 | F18: Forecast | G18: =INDEX('List Unsorted Data - Unique'!$H$2:$H$42942,MATCH(A18&"-"&B18&"-"&C18&"-"&D18&"-"&E18&"-"&F18,'List Unsorted Data - Unique'!$G$2:$G$42942,0)) -> 99 | I18: =SUMIFS('List Unsorted Data - Unique'!$H$2:$H$42942,'List Unsorted Data - Unique'!$A$2:$A$42942,A18,'List Unsorted Data - Unique'!$B$2:$B$42942,B18,'List Unsorted Data - Unique'!$C$2:$C$42942,C18,'List Unsorted Data - Unique'!$D$2:$D$42942,D18,'List Unsorted Data - Unique'!$E$2:$E$42942,E18,'List Unsorted Data - Unique'!$F$2:$F$42942,F18) -> 99 | K18: =INDEX('List Unsorted Data - Unique'!$H$2:$H$42942,MATCH(A18&B18&C18&D18&E18&F18,'List Unsorted Data - Unique'!$A$2:$A$42942&'List Unsorted Data - Unique'!$B$2:$B$42942&'List Unsorted Data - Unique'!$C$2:$C$42942&'List Unsorted Data - Unique'!$D$2:$D$42942&'List Unsorted Data - Unique'!$E$2:$E$42942&'List Unsorted Data - Unique'!$F$2:$F$42942,0)) -> 99 | M18: =INDEX('List Unsorted Data - Unique'!$H$2:$H$42942,MATCH(1,('List Unsorted Data - Unique'!$A$2:$A$42942=A18)*('List Unsorted Data - Unique'!$B$2:$B$42942=B18)*('List Unsorted Data - Unique'!$C$2:$C$42942=C18)*('List Unsorted Data - Unique'!$D$2:$D$42942=D18)*('List Unsorted Data - Unique'!$E$2:$E$42942=E18)*('List Unsorted Data - Unique'!$F$2:$F$42942=F18),0)) -> 99 | O18: =SUMPRODUCT(('List Unsorted Data - Unique'!$A$2:$A$42942=A18)*('List Unsorted Data - Unique'!$B$2:$B$42942=B18)*('List Unsorted Data - Unique'!$C$2:$C$42942=C18)*('List Unsorted Data - Unique'!$D$2:$D$42942=D18)*('List Unsorted Data - Unique'!$E$2:$E$42942=E18)*('List Unsorted Data - Unique'!$F$2:$F$42942=F18)*('List Unsorted Data - Unique'!$H$2:$H$42942)) -> 99 | Q18: =VLOOKUP(A18&B18&C18&D18&E18&F18,CHOOSE({1,2,3,4,5,6},'List Unsorted Data - Unique'!$A$2:$A$42942&'List Unsorted Data - Unique'!$B$2:$B$42942&'List Unsorted Data - Unique'!$C$2:$C$42942&'List Unsorted Data - Unique'!$D$2:$D$42942&'List Unsorted Data - Unique'!$E$2:$E$42942&'List Unsorted Data - Unique'!$F$2:$F$42942,'List Unsorted Data - Unique'!$H$2:$H$42942),2,0) -> 99 | S18: =SUM(('List Unsorted Data - Unique'!$A$2:$A$42942=A18)*('List Unsorted Data - Unique'!$B$2:$B$42942=B18)*('List Unsorted Data - Unique'!$C$2:$C$42942=C18)*('List Unsorted Data - Unique'!$D$2:$D$42942=D18)*('List Unsorted Data - Unique'!$E$2:$E$42942=E18)*('List Unsorted Data - Unique'!$F$2:$F$42942=F18)*('List Unsorted Data - Unique'!$H$2:$H$42942)) -> 99
A19: 2015 | B19: 6 | C19: J. Lennon | D19: POT001 | E19: LA01 | F19: Forecast | G19: =INDEX('List Unsorted Data - Unique'!$H$2:$H$42942,MATCH(A19&"-"&B19&"-"&C19&"-"&D19&"-"&E19&"-"&F19,'List Unsorted Data - Unique'!$G$2:$G$42942,0)) -> 316 | I19: =SUMIFS('List Unsorted Data - Unique'!$H$2:$H$42942,'List Unsorted Data - Unique'!$A$2:$A$42942,A19,'List Unsorted Data - Unique'!$B$2:$B$42942,B19,'List Unsorted Data - Unique'!$C$2:$C$42942,C19,'List Unsorted Data - Unique'!$D$2:$D$42942,D19,'List Unsorted Data - Unique'!$E$2:$E$42942,E19,'List Unsorted Data - Unique'!$F$2:$F$42942,F19) -> 316 | K19: =INDEX('List Unsorted Data - Unique'!$H$2:$H$42942,MATCH(A19&B19&C19&D19&E19&F19,'List Unsorted Data - Unique'!$A$2:$A$42942&'List Unsorted Data - Unique'!$B$2:$B$42942&'List Unsorted Data - Unique'!$C$2:$C$42942&'List Unsorted Data - Unique'!$D$2:$D$42942&'List Unsorted Data - Unique'!$E$2:$E$42942&'List Unsorted Data - Unique'!$F$2:$F$42942,0)) -> 316 | M19: =INDEX('List Unsorted Data - Unique'!$H$2:$H$42942,MATCH(1,('List Unsorted Data - Unique'!$A$2:$A$42942=A19)*('List Unsorted Data - Unique'!$B$2:$B$42942=B19)*('List Unsorted Data - Unique'!$C$2:$C$42942=C19)*('List Unsorted Data - Unique'!$D$2:$D$42942=D19)*('List Unsorted Data - Unique'!$E$2:$E$42942=E19)*('List Unsorted Data - Unique'!$F$2:$F$42942=F19),0)) -> 316 | O19: =SUMPRODUCT(('List Unsorted Data - Unique'!$A$2:$A$42942=A19)*('List Unsorted Data - Unique'!$B$2:$B$42942=B19)*('List Unsorted Data - Unique'!$C$2:$C$42942=C19)*('List Unsorted Data - Unique'!$D$2:$D$42942=D19)*('List Unsorted Data - Unique'!$E$2:$E$42942=E19)*('List Unsorted Data - Unique'!$F$2:$F$42942=F19)*('List Unsorted Data - Unique'!$H$2:$H$42942)) -> 316 | Q19: =VLOOKUP(A19&B19&C19&D19&E19&F19,CHOOSE({1,2,3,4,5,6},'List Unsorted Data - Unique'!$A$2:$A$42942&'List Unsorted Data - Unique'!$B$2:$B$42942&'List Unsorted Data - Unique'!$C$2:$C$42942&'List Unsorted Data - Unique'!$D$2:$D$42942&'List Unsorted Data - Unique'!$E$2:$E$42942&'List Unsorted Data - Unique'!$F$2:$F$42942,'List Unsorted Data - Unique'!$H$2:$H$42942),2,0) -> 316 | S19: =SUM(('List Unsorted Data - Unique'!$A$2:$A$42942=A19)*('List Unsorted Data - Unique'!$B$2:$B$42942=B19)*('List Unsorted Data - Unique'!$C$2:$C$42942=C19)*('List Unsorted Data - Unique'!$D$2:$D$42942=D19)*('List Unsorted Data - Unique'!$E$2:$E$42942=E19)*('List Unsorted Data - Unique'!$F$2:$F$42942=F19)*('List Unsorted Data - Unique'!$H$2:$H$42942)) -> 316
A20: 2014 | B20: 6 | C20: J. McVie | D20: JKL001 | E20: CA01 | F20: Actual | G20: =INDEX('List Unsorted Data - Unique'!$H$2:$H$42942,MATCH(A20&"-"&B20&"-"&C20&"-"&D20&"-"&E20&"-"&F20,'List Unsorted Data - Unique'!$G$2:$G$42942,0)) -> 35 | I20: =SUMIFS('List Unsorted Data - Unique'!$H$2:$H$42942,'List Unsorted Data - Unique'!$A$2:$A$42942,A20,'List Unsorted Data - Unique'!$B$2:$B$42942,B20,'List Unsorted Data - Unique'!$C$2:$C$42942,C20,'List Unsorted Data - Unique'!$D$2:$D$42942,D20,'List Unsorted Data - Unique'!$E$2:$E$42942,E20,'List Unsorted Data - Unique'!$F$2:$F$42942,F20) -> 35 | K20: =INDEX('List Unsorted Data - Unique'!$H$2:$H$42942,MATCH(A20&B20&C20&D20&E20&F20,'List Unsorted Data - Unique'!$A$2:$A$42942&'List Unsorted Data - Unique'!$B$2:$B$42942&'List Unsorted Data - Unique'!$C$2:$C$42942&'List Unsorted Data - Unique'!$D$2:$D$42942&'List Unsorted Data - Unique'!$E$2:$E$42942&'List Unsorted Data - Unique'!$F$2:$F$42942,0)) -> 35 | M20: =INDEX('List Unsorted Data - Unique'!$H$2:$H$42942,MATCH(1,('List Unsorted Data - Unique'!$A$2:$A$42942=A20)*('List Unsorted Data - Unique'!$B$2:$B$42942=B20)*('List Unsorted Data - Unique'!$C$2:$C$42942=C20)*('List Unsorted Data - Unique'!$D$2:$D$42942=D20)*('List Unsorted Data - Unique'!$E$2:$E$42942=E20)*('List Unsorted Data - Unique'!$F$2:$F$42942=F20),0)) -> 35 | O20: =SUMPRODUCT(('List Unsorted Data - Unique'!$A$2:$A$42942=A20)*('List Unsorted Data - Unique'!$B$2:$B$42942=B20)*('List Unsorted Data - Unique'!$C$2:$C$42942=C20)*('List Unsorted Data - Unique'!$D$2:$D$42942=D20)*('List Unsorted Data - Unique'!$E$2:$E$42942=E20)*('List Unsorted Data - Unique'!$F$2:$F$42942=F20)*('List Unsorted Data - Unique'!$H$2:$H$42942)) -> 35 | Q20: =VLOOKUP(A20&B20&C20&D20&E20&F20,CHOOSE({1,2,3,4,5,6},'List Unsorted Data - Unique'!$A$2:$A$42942&'List Unsorted Data - Unique'!$B$2:$B$42942&'List Unsorted Data - Unique'!$C$2:$C$42942&'List Unsorted Data - Unique'!$D$2:$D$42942&'List Unsorted Data - Unique'!$E$2:$E$42942&'List Unsorted Data - Unique'!$F$2:$F$42942,'List Unsorted Data - Unique'!$H$2:$H$42942),2,0) -> 35 | S20: =SUM(('List Unsorted Data - Unique'!$A$2:$A$42942=A20)*('List Unsorted Data - Unique'!$B$2:$B$42942=B20)*('List Unsorted Data - Unique'!$C$2:$C$42942=C20)*('List Unsorted Data - Unique'!$D$2:$D$42942=D20)*('List Unsorted Data - Unique'!$E$2:$E$42942=E20)*('List Unsorted Data - Unique'!$F$2:$F$42942=F20)*('List Unsorted Data - Unique'!$H$2:$H$42942)) -> 35
A21: 2015 | B21: 8 | C21: J. Lennon | D21: POT001 | E21: AK01 | F21: Actual | G21: =INDEX('List Unsorted Data - Unique'!$H$2:$H$42942,MATCH(A21&"-"&B21&"-"&C21&"-"&D21&"-"&E21&"-"&F21,'List Unsorted Data - Unique'!$G$2:$G$42942,0)) -> 161 | I21: =SUMIFS('List Unsorted Data - Unique'!$H$2:$H$42942,'List Unsorted Data - Unique'!$A$2:$A$42942,A21,'List Unsorted Data - Unique'!$B$2:$B$42942,B21,'List Unsorted Data - Unique'!$C$2:$C$42942,C21,'List Unsorted Data - Unique'!$D$2:$D$42942,D21,'List Unsorted Data - Unique'!$E$2:$E$42942,E21,'List Unsorted Data - Unique'!$F$2:$F$42942,F21) -> 161 | K21: =INDEX('List Unsorted Data - Unique'!$H$2:$H$42942,MATCH(A21&B21&C21&D21&E21&F21,'List Unsorted Data - Unique'!$A$2:$A$42942&'List Unsorted Data - Unique'!$B$2:$B$42942&'List Unsorted Data - Unique'!$C$2:$C$42942&'List Unsorted Data - Unique'!$D$2:$D$42942&'List Unsorted Data - Unique'!$E$2:$E$42942&'List Unsorted Data - Unique'!$F$2:$F$42942,0)) -> 161 | M21: =INDEX('List Unsorted Data - Unique'!$H$2:$H$42942,MATCH(1,('List Unsorted Data - Unique'!$A$2:$A$42942=A21)*('List Unsorted Data - Unique'!$B$2:$B$42942=B21)*('List Unsorted Data - Unique'!$C$2:$C$42942=C21)*('List Unsorted Data - Unique'!$D$2:$D$42942=D21)*('List Unsorted Data - Unique'!$E$2:$E$42942=E21)*('List Unsorted Data - Unique'!$F$2:$F$42942=F21),0)) -> 161 | O21: =SUMPRODUCT(('List Unsorted Data - Unique'!$A$2:$A$42942=A21)*('List Unsorted Data - Unique'!$B$2:$B$42942=B21)*('List Unsorted Data - Unique'!$C$2:$C$42942=C21)*('List Unsorted Data - Unique'!$D$2:$D$42942=D21)*('List Unsorted Data - Unique'!$E$2:$E$42942=E21)*('List Unsorted Data - Unique'!$F$2:$F$42942=F21)*('List Unsorted Data - Unique'!$H$2:$H$42942)) -> 161 | Q21: =VLOOKUP(A21&B21&C21&D21&E21&F21,CHOOSE({1,2,3,4,5,6},'List Unsorted Data - Unique'!$A$2:$A$42942&'List Unsorted Data - Unique'!$B$2:$B$42942&'List Unsorted Data - Unique'!$C$2:$C$42942&'List Unsorted Data - Unique'!$D$2:$D$42942&'List Unsorted Data - Unique'!$E$2:$E$42942&'List Unsorted Data - Unique'!$F$2:$F$42942,'List Unsorted Data - Unique'!$H$2:$H$42942),2,0) -> 161 | S21: =SUM(('List Unsorted Data - Unique'!$A$2:$A$42942=A21)*('List Unsorted Data - Unique'!$B$2:$B$42942=B21)*('List Unsorted Data - Unique'!$C$2:$C$42942=C21)*('List Unsorted Data - Unique'!$D$2:$D$42942=D21)*('List Unsorted Data - Unique'!$E$2:$E$42942=E21)*('List Unsorted Data - Unique'!$F$2:$F$42942=F21)*('List Unsorted Data - Unique'!$H$2:$H$42942)) -> 161
A22: 2015 | B22: 4 | C22: J. Lennon | D22: DFG001 | E22: CA01 | F22: Actual | G22: =INDEX('List Unsorted Data - Unique'!$H$2:$H$42942,MATCH(A22&"-"&B22&"-"&C22&"-"&D22&"-"&E22&"-"&F22,'List Unsorted Data - Unique'!$G$2:$G$42942,0)) -> 61 | I22: =SUMIFS('List Unsorted Data - Unique'!$H$2:$H$42942,'List Unsorted Data - Unique'!$A$2:$A$42942,A22,'List Unsorted Data - Unique'!$B$2:$B$42942,B22,'List Unsorted Data - Unique'!$C$2:$C$42942,C22,'List Unsorted Data - Unique'!$D$2:$D$42942,D22,'List Unsorted Data - Unique'!$E$2:$E$42942,E22,'List Unsorted Data - Unique'!$F$2:$F$42942,F22) -> 61 | K22: =INDEX('List Unsorted Data - Unique'!$H$2:$H$42942,MATCH(A22&B22&C22&D22&E22&F22,'List Unsorted Data - Unique'!$A$2:$A$42942&'List Unsorted Data - Unique'!$B$2:$B$42942&'List Unsorted Data - Unique'!$C$2:$C$42942&'List Unsorted Data - Unique'!$D$2:$D$42942&'List Unsorted Data - Unique'!$E$2:$E$42942&'List Unsorted Data - Unique'!$F$2:$F$42942,0)) -> 61 | M22: =INDEX('List Unsorted Data - Unique'!$H$2:$H$42942,MATCH(1,('List Unsorted Data - Unique'!$A$2:$A$42942=A22)*('List Unsorted Data - Unique'!$B$2:$B$42942=B22)*('List Unsorted Data - Unique'!$C$2:$C$42942=C22)*('List Unsorted Data - Unique'!$D$2:$D$42942=D22)*('List Unsorted Data - Unique'!$E$2:$E$42942=E22)*('List Unsorted Data - Unique'!$F$2:$F$42942=F22),0)) -> 61 | O22: =SUMPRODUCT(('List Unsorted Data - Unique'!$A$2:$A$42942=A22)*('List Unsorted Data - Unique'!$B$2:$B$42942=B22)*('List Unsorted Data - Unique'!$C$2:$C$42942=C22)*('List Unsorted Data - Unique'!$D$2:$D$42942=D22)*('List Unsorted Data - Unique'!$E$2:$E$42942=E22)*('List Unsorted Data - Unique'!$F$2:$F$42942=F22)*('List Unsorted Data - Unique'!$H$2:$H$42942)) -> 61 | Q22: =VLOOKUP(A22&B22&C22&D22&E22&F22,CHOOSE({1,2,3,4,5,6},'List Unsorted Data - Unique'!$A$2:$A$42942&'List Unsorted Data - Unique'!$B$2:$B$42942&'List Unsorted Data - Unique'!$C$2:$C$42942&'List Unsorted Data - Unique'!$D$2:$D$42942&'List Unsorted Data - Unique'!$E$2:$E$42942&'List Unsorted Data - Unique'!$F$2:$F$42942,'List Unsorted Data - Unique'!$H$2:$H$42942),2,0) -> 61 | S22: =SUM(('List Unsorted Data - Unique'!$A$2:$A$42942=A22)*('List Unsorted Data - Unique'!$B$2:$B$42942=B22)*('List Unsorted Data - Unique'!$C$2:$C$42942=C22)*('List Unsorted Data - Unique'!$D$2:$D$42942=D22)*('List Unsorted Data - Unique'!$E$2:$E$42942=E22)*('List Unsorted Data - Unique'!$F$2:$F$42942=F22)*('List Unsorted Data - Unique'!$H$2:$H$42942)) -> 61
A23: 2015 | B23: 11 | C23: M.Mills | D23: ASL003 | E23: MN01 | F23: Actual | G23: =INDEX('List Unsorted Data - Unique'!$H$2:$H$42942,MATCH(A23&"-"&B23&"-"&C23&"-"&D23&"-"&E23&"-"&F23,'List Unsorted Data - Unique'!$G$2:$G$42942,0)) -> 246 | I23: =SUMIFS('List Unsorted Data - Unique'!$H$2:$H$42942,'List Unsorted Data - Unique'!$A$2:$A$42942,A23,'List Unsorted Data - Unique'!$B$2:$B$42942,B23,'List Unsorted Data - Unique'!$C$2:$C$42942,C23,'List Unsorted Data - Unique'!$D$2:$D$42942,D23,'List Unsorted Data - Unique'!$E$2:$E$42942,E23,'List Unsorted Data - Unique'!$F$2:$F$42942,F23) -> 246 | K23: =INDEX('List Unsorted Data - Unique'!$H$2:$H$42942,MATCH(A23&B23&C23&D23&E23&F23,'List Unsorted Data - Unique'!$A$2:$A$42942&'List Unsorted Data - Unique'!$B$2:$B$42942&'List Unsorted Data - Unique'!$C$2:$C$42942&'List Unsorted Data - Unique'!$D$2:$D$42942&'List Unsorted Data - Unique'!$E$2:$E$42942&'List Unsorted Data - Unique'!$F$2:$F$42942,0)) -> 246 | M23: =INDEX('List Unsorted Data - Unique'!$H$2:$H$42942,MATCH(1,('List Unsorted Data - Unique'!$A$2:$A$42942=A23)*('List Unsorted Data - Unique'!$B$2:$B$42942=B23)*('List Unsorted Data - Unique'!$C$2:$C$42942=C23)*('List Unsorted Data - Unique'!$D$2:$D$42942=D23)*('List Unsorted Data - Unique'!$E$2:$E$42942=E23)*('List Unsorted Data - Unique'!$F$2:$F$42942=F23),0)) -> 246 | O23: =SUMPRODUCT(('List Unsorted Data - Unique'!$A$2:$A$42942=A23)*('List Unsorted Data - Unique'!$B$2:$B$42942=B23)*('List Unsorted Data - Unique'!$C$2:$C$42942=C23)*('List Unsorted Data - Unique'!$D$2:$D$42942=D23)*('List Unsorted Data - Unique'!$E$2:$E$42942=E23)*('List Unsorted Data - Unique'!$F$2:$F$42942=F23)*('List Unsorted Data - Unique'!$H$2:$H$42942)) -> 246 | Q23: =VLOOKUP(A23&B23&C23&D23&E23&F23,CHOOSE({1,2,3,4,5,6},'List Unsorted Data - Unique'!$A$2:$A$42942&'List Unsorted Data - Unique'!$B$2:$B$42942&'List Unsorted Data - Unique'!$C$2:$C$42942&'List Unsorted Data - Unique'!$D$2:$D$42942&'List Unsorted Data - Unique'!$E$2:$E$42942&'List Unsorted Data - Unique'!$F$2:$F$42942,'List Unsorted Data - Unique'!$H$2:$H$42942),2,0) -> 246 | S23: =SUM(('List Unsorted Data - Unique'!$A$2:$A$42942=A23)*('List Unsorted Data - Unique'!$B$2:$B$42942=B23)*('List Unsorted Data - Unique'!$C$2:$C$42942=C23)*('List Unsorted Data - Unique'!$D$2:$D$42942=D23)*('List Unsorted Data - Unique'!$E$2:$E$42942=E23)*('List Unsorted Data - Unique'!$F$2:$F$42942=F23)*('List Unsorted Data - Unique'!$H$2:$H$42942)) -> 246
A24: 2016 | B24: 2 | C24: J. Lennon | D24: ASL001 | E24: AK01 | F24: Forecast | G24: =INDEX('List Unsorted Data - Unique'!$H$2:$H$42942,MATCH(A24&"-"&B24&"-"&C24&"-"&D24&"-"&E24&"-"&F24,'List Unsorted Data - Unique'!$G$2:$G$42942,0)) -> 78 | I24: =SUMIFS('List Unsorted Data - Unique'!$H$2:$H$42942,'List Unsorted Data - Unique'!$A$2:$A$42942,A24,'List Unsorted Data - Unique'!$B$2:$B$42942,B24,'List Unsorted Data - Unique'!$C$2:$C$42942,C24,'List Unsorted Data - Unique'!$D$2:$D$42942,D24,'List Unsorted Data - Unique'!$E$2:$E$42942,E24,'List Unsorted Data - Unique'!$F$2:$F$42942,F24) -> 78 | K24: =INDEX('List Unsorted Data - Unique'!$H$2:$H$42942,MATCH(A24&B24&C24&D24&E24&F24,'List Unsorted Data - Unique'!$A$2:$A$42942&'List Unsorted Data - Unique'!$B$2:$B$42942&'List Unsorted Data - Unique'!$C$2:$C$42942&'List Unsorted Data - Unique'!$D$2:$D$42942&'List Unsorted Data - Unique'!$E$2:$E$42942&'List Unsorted Data - Unique'!$F$2:$F$42942,0)) -> 78 | M24: =INDEX('List Unsorted Data - Unique'!$H$2:$H$42942,MATCH(1,('List Unsorted Data - Unique'!$A$2:$A$42942=A24)*('List Unsorted Data - Unique'!$B$2:$B$42942=B24)*('List Unsorted Data - Unique'!$C$2:$C$42942=C24)*('List Unsorted Data - Unique'!$D$2:$D$42942=D24)*('List Unsorted Data - Unique'!$E$2:$E$42942=E24)*('List Unsorted Data - Unique'!$F$2:$F$42942=F24),0)) -> 78 | O24: =SUMPRODUCT(('List Unsorted Data - Unique'!$A$2:$A$42942=A24)*('List Unsorted Data - Unique'!$B$2:$B$42942=B24)*('List Unsorted Data - Unique'!$C$2:$C$42942=C24)*('List Unsorted Data - Unique'!$D$2:$D$42942=D24)*('List Unsorted Data - Unique'!$E$2:$E$42942=E24)*('List Unsorted Data - Unique'!$F$2:$F$42942=F24)*('List Unsorted Data - Unique'!$H$2:$H$42942)) -> 78 | Q24: =VLOOKUP(A24&B24&C24&D24&E24&F24,CHOOSE({1,2,3,4,5,6},'List Unsorted Data - Unique'!$A$2:$A$42942&'List Unsorted Data - Unique'!$B$2:$B$42942&'List Unsorted Data - Unique'!$C$2:$C$42942&'List Unsorted Data - Unique'!$D$2:$D$42942&'List Unsorted Data - Unique'!$E$2:$E$42942&'List Unsorted Data - Unique'!$F$2:$F$42942,'List Unsorted Data - Unique'!$H$2:$H$42942),2,0) -> 78 | S24: =SUM(('List Unsorted Data - Unique'!$A$2:$A$42942=A24)*('List Unsorted Data - Unique'!$B$2:$B$42942=B24)*('List Unsorted Data - Unique'!$C$2:$C$42942=C24)*('List Unsorted Data - Unique'!$D$2:$D$42942=D24)*('List Unsorted Data - Unique'!$E$2:$E$42942=E24)*('List Unsorted Data - Unique'!$F$2:$F$42942=F24)*('List Unsorted Data - Unique'!$H$2:$H$42942)) -> 78
A25: 2015 | B25: 6 | C25: M.Mills | D25: ASL002 | E25: AL01 | F25: Actual | G25: =INDEX('List Unsorted Data - Unique'!$H$2:$H$42942,MATCH(A25&"-"&B25&"-"&C25&"-"&D25&"-"&E25&"-"&F25,'List Unsorted Data - Unique'!$G$2:$G$42942,0)) -> 318 | I25: =SUMIFS('List Unsorted Data - Unique'!$H$2:$H$42942,'List Unsorted Data - Unique'!$A$2:$A$42942,A25,'List Unsorted Data - Unique'!$B$2:$B$42942,B25,'List Unsorted Data - Unique'!$C$2:$C$42942,C25,'List Unsorted Data - Unique'!$D$2:$D$42942,D25,'List Unsorted Data - Unique'!$E$2:$E$42942,E25,'List Unsorted Data - Unique'!$F$2:$F$42942,F25) -> 318 | K25: =INDEX('List Unsorted Data - Unique'!$H$2:$H$42942,MATCH(A25&B25&C25&D25&E25&F25,'List Unsorted Data - Unique'!$A$2:$A$42942&'List Unsorted Data - Unique'!$B$2:$B$42942&'List Unsorted Data - Unique'!$C$2:$C$42942&'List Unsorted Data - Unique'!$D$2:$D$42942&'List Unsorted Data - Unique'!$E$2:$E$42942&'List Unsorted Data - Unique'!$F$2:$F$42942,0)) -> 318 | M25: =INDEX('List Unsorted Data - Unique'!$H$2:$H$42942,MATCH(1,('List Unsorted Data - Unique'!$A$2:$A$42942=A25)*('List Unsorted Data - Unique'!$B$2:$B$42942=B25)*('List Unsorted Data - Unique'!$C$2:$C$42942=C25)*('List Unsorted Data - Unique'!$D$2:$D$42942=D25)*('List Unsorted Data - Unique'!$E$2:$E$42942=E25)*('List Unsorted Data - Unique'!$F$2:$F$42942=F25),0)) -> 318 | O25: =SUMPRODUCT(('List Unsorted Data - Unique'!$A$2:$A$42942=A25)*('List Unsorted Data - Unique'!$B$2:$B$42942=B25)*('List Unsorted Data - Unique'!$C$2:$C$42942=C25)*('List Unsorted Data - Unique'!$D$2:$D$42942=D25)*('List Unsorted Data - Unique'!$E$2:$E$42942=E25)*('List Unsorted Data - Unique'!$F$2:$F$42942=F25)*('List Unsorted Data - Unique'!$H$2:$H$42942)) -> 318 | Q25: =VLOOKUP(A25&B25&C25&D25&E25&F25,CHOOSE({1,2,3,4,5,6},'List Unsorted Data - Unique'!$A$2:$A$42942&'List Unsorted Data - Unique'!$B$2:$B$42942&'List Unsorted Data - Unique'!$C$2:$C$42942&'List Unsorted Data - Unique'!$D$2:$D$42942&'List Unsorted Data - Unique'!$E$2:$E$42942&'List Unsorted Data - Unique'!$F$2:$F$42942,'List Unsorted Data - Unique'!$H$2:$H$42942),2,0) -> 318 | S25: =SUM(('List Unsorted Data - Unique'!$A$2:$A$42942=A25)*('List Unsorted Data - Unique'!$B$2:$B$42942=B25)*('List Unsorted Data - Unique'!$C$2:$C$42942=C25)*('List Unsorted Data - Unique'!$D$2:$D$42942=D25)*('List Unsorted Data - Unique'!$E$2:$E$42942=E25)*('List Unsorted Data - Unique'!$F$2:$F$42942=F25)*('List Unsorted Data - Unique'!$H$2:$H$42942)) -> 318
A26: 2014 | B26: 4 | C26: C. Underwood | D26: JKL001 | E26: PA01 | F26: Forecast | G26: =INDEX('List Unsorted Data - Unique'!$H$2:$H$42942,MATCH(A26&"-"&B26&"-"&C26&"-"&D26&"-"&E26&"-"&F26,'List Unsorted Data - Unique'!$G$2:$G$42942,0)) -> 43 | I26: =SUMIFS('List Unsorted Data - Unique'!$H$2:$H$42942,'List Unsorted Data - Unique'!$A$2:$A$42942,A26,'List Unsorted Data - Unique'!$B$2:$B$42942,B26,'List Unsorted Data - Unique'!$C$2:$C$42942,C26,'List Unsorted Data - Unique'!$D$2:$D$42942,D26,'List Unsorted Data - Unique'!$E$2:$E$42942,E26,'List Unsorted Data - Unique'!$F$2:$F$42942,F26) -> 43 | K26: =INDEX('List Unsorted Data - Unique'!$H$2:$H$42942,MATCH(A26&B26&C26&D26&E26&F26,'List Unsorted Data - Unique'!$A$2:$A$42942&'List Unsorted Data - Unique'!$B$2:$B$42942&'List Unsorted Data - Unique'!$C$2:$C$42942&'List Unsorted Data - Unique'!$D$2:$D$42942&'List Unsorted Data - Unique'!$E$2:$E$42942&'List Unsorted Data - Unique'!$F$2:$F$42942,0)) -> 43 | M26: =INDEX('List Unsorted Data - Unique'!$H$2:$H$42942,MATCH(1,('List Unsorted Data - Unique'!$A$2:$A$42942=A26)*('List Unsorted Data - Unique'!$B$2:$B$42942=B26)*('List Unsorted Data - Unique'!$C$2:$C$42942=C26)*('List Unsorted Data - Unique'!$D$2:$D$42942=D26)*('List Unsorted Data - Unique'!$E$2:$E$42942=E26)*('List Unsorted Data - Unique'!$F$2:$F$42942=F26),0)) -> 43 | O26: =SUMPRODUCT(('List Unsorted Data - Unique'!$A$2:$A$42942=A26)*('List Unsorted Data - Unique'!$B$2:$B$42942=B26)*('List Unsorted Data - Unique'!$C$2:$C$42942=C26)*('List Unsorted Data - Unique'!$D$2:$D$42942=D26)*('List Unsorted Data - Unique'!$E$2:$E$42942=E26)*('List Unsorted Data - Unique'!$F$2:$F$42942=F26)*('List Unsorted Data - Unique'!$H$2:$H$42942)) -> 43 | Q26: =VLOOKUP(A26&B26&C26&D26&E26&F26,CHOOSE({1,2,3,4,5,6},'List Unsorted Data - Unique'!$A$2:$A$42942&'List Unsorted Data - Unique'!$B$2:$B$42942&'List Unsorted Data - Unique'!$C$2:$C$42942&'List Unsorted Data - Unique'!$D$2:$D$42942&'List Unsorted Data - Unique'!$E$2:$E$42942&'List Unsorted Data - Unique'!$F$2:$F$42942,'List Unsorted Data - Unique'!$H$2:$H$42942),2,0) -> 43 | S26: =SUM(('List Unsorted Data - Unique'!$A$2:$A$42942=A26)*('List Unsorted Data - Unique'!$B$2:$B$42942=B26)*('List Unsorted Data - Unique'!$C$2:$C$42942=C26)*('List Unsorted Data - Unique'!$D$2:$D$42942=D26)*('List Unsorted Data - Unique'!$E$2:$E$42942=E26)*('List Unsorted Data - Unique'!$F$2:$F$42942=F26)*('List Unsorted Data - Unique'!$H$2:$H$42942)) -> 43
A27: 2015 | B27: 7 | C27: C. Underwood | D27: PRD002 | E27: PA01 | F27: Actual | G27: =INDEX('List Unsorted Data - Unique'!$H$2:$H$42942,MATCH(A27&"-"&B27&"-"&C27&"-"&D27&"-"&E27&"-"&F27,'List Unsorted Data - Unique'!$G$2:$G$42942,0)) -> 469 | I27: =SUMIFS('List Unsorted Data - Unique'!$H$2:$H$42942,'List Unsorted Data - Unique'!$A$2:$A$42942,A27,'List Unsorted Data - Unique'!$B$2:$B$42942,B27,'List Unsorted Data - Unique'!$C$2:$C$42942,C27,'List Unsorted Data - Unique'!$D$2:$D$42942,D27,'List Unsorted Data - Unique'!$E$2:$E$42942,E27,'List Unsorted Data - Unique'!$F$2:$F$42942,F27) -> 469 | K27: =INDEX('List Unsorted Data - Unique'!$H$2:$H$42942,MATCH(A27&B27&C27&D27&E27&F27,'List Unsorted Data - Unique'!$A$2:$A$42942&'List Unsorted Data - Unique'!$B$2:$B$42942&'List Unsorted Data - Unique'!$C$2:$C$42942&'List Unsorted Data - Unique'!$D$2:$D$42942&'List Unsorted Data - Unique'!$E$2:$E$42942&'List Unsorted Data - Unique'!$F$2:$F$42942,0)) -> 469 | M27: =INDEX('List Unsorted Data - Unique'!$H$2:$H$42942,MATCH(1,('List Unsorted Data - Unique'!$A$2:$A$42942=A27)*('List Unsorted Data - Unique'!$B$2:$B$42942=B27)*('List Unsorted Data - Unique'!$C$2:$C$42942=C27)*('List Unsorted Data - Unique'!$D$2:$D$42942=D27)*('List Unsorted Data - Unique'!$E$2:$E$42942=E27)*('List Unsorted Data - Unique'!$F$2:$F$42942=F27),0)) -> 469 | O27: =SUMPRODUCT(('List Unsorted Data - Unique'!$A$2:$A$42942=A27)*('List Unsorted Data - Unique'!$B$2:$B$42942=B27)*('List Unsorted Data - Unique'!$C$2:$C$42942=C27)*('List Unsorted Data - Unique'!$D$2:$D$42942=D27)*('List Unsorted Data - Unique'!$E$2:$E$42942=E27)*('List Unsorted Data - Unique'!$F$2:$F$42942=F27)*('List Unsorted Data - Unique'!$H$2:$H$42942)) -> 469 | Q27: =VLOOKUP(A27&B27&C27&D27&E27&F27,CHOOSE({1,2,3,4,5,6},'List Unsorted Data - Unique'!$A$2:$A$42942&'List Unsorted Data - Unique'!$B$2:$B$42942&'List Unsorted Data - Unique'!$C$2:$C$42942&'List Unsorted Data - Unique'!$D$2:$D$42942&'List Unsorted Data - Unique'!$E$2:$E$42942&'List Unsorted Data - Unique'!$F$2:$F$42942,'List Unsorted Data - Unique'!$H$2:$H$42942),2,0) -> 469 | S27: =SUM(('List Unsorted Data - Unique'!$A$2:$A$42942=A27)*('List Unsorted Data - Unique'!$B$2:$B$42942=B27)*('List Unsorted Data - Unique'!$C$2:$C$42942=C27)*('List Unsorted Data - Unique'!$D$2:$D$42942=D27)*('List Unsorted Data - Unique'!$E$2:$E$42942=E27)*('List Unsorted Data - Unique'!$F$2:$F$42942=F27)*('List Unsorted Data - Unique'!$H$2:$H$42942)) -> 469
A28: 2014 | B28: 3 | C28: J. Lennon | D28: JKL001 | E28: NC01 | F28: Forecast | G28: =INDEX('List Unsorted Data - Unique'!$H$2:$H$42942,MATCH(A28&"-"&B28&"-"&C28&"-"&D28&"-"&E28&"-"&F28,'List Unsorted Data - Unique'!$G$2:$G$42942,0)) -> 123 | I28: =SUMIFS('List Unsorted Data - Unique'!$H$2:$H$42942,'List Unsorted Data - Unique'!$A$2:$A$42942,A28,'List Unsorted Data - Unique'!$B$2:$B$42942,B28,'List Unsorted Data - Unique'!$C$2:$C$42942,C28,'List Unsorted Data - Unique'!$D$2:$D$42942,D28,'List Unsorted Data - Unique'!$E$2:$E$42942,E28,'List Unsorted Data - Unique'!$F$2:$F$42942,F28) -> 123 | K28: =INDEX('List Unsorted Data - Unique'!$H$2:$H$42942,MATCH(A28&B28&C28&D28&E28&F28,'List Unsorted Data - Unique'!$A$2:$A$42942&'List Unsorted Data - Unique'!$B$2:$B$42942&'List Unsorted Data - Unique'!$C$2:$C$42942&'List Unsorted Data - Unique'!$D$2:$D$42942&'List Unsorted Data - Unique'!$E$2:$E$42942&'List Unsorted Data - Unique'!$F$2:$F$42942,0)) -> 123 | M28: =INDEX('List Unsorted Data - Unique'!$H$2:$H$42942,MATCH(1,('List Unsorted Data - Unique'!$A$2:$A$42942=A28)*('List Unsorted Data - Unique'!$B$2:$B$42942=B28)*('List Unsorted Data - Unique'!$C$2:$C$42942=C28)*('List Unsorted Data - Unique'!$D$2:$D$42942=D28)*('List Unsorted Data - Unique'!$E$2:$E$42942=E28)*('List Unsorted Data - Unique'!$F$2:$F$42942=F28),0)) -> 123 | O28: =SUMPRODUCT(('List Unsorted Data - Unique'!$A$2:$A$42942=A28)*('List Unsorted Data - Unique'!$B$2:$B$42942=B28)*('List Unsorted Data - Unique'!$C$2:$C$42942=C28)*('List Unsorted Data - Unique'!$D$2:$D$42942=D28)*('List Unsorted Data - Unique'!$E$2:$E$42942=E28)*('List Unsorted Data - Unique'!$F$2:$F$42942=F28)*('List Unsorted Data - Unique'!$H$2:$H$42942)) -> 123 | Q28: =VLOOKUP(A28&B28&C28&D28&E28&F28,CHOOSE({1,2,3,4,5,6},'List Unsorted Data - Unique'!$A$2:$A$42942&'List Unsorted Data - Unique'!$B$2:$B$42942&'List Unsorted Data - Unique'!$C$2:$C$42942&'List Unsorted Data - Unique'!$D$2:$D$42942&'List Unsorted Data - Unique'!$E$2:$E$42942&'List Unsorted Data - Unique'!$F$2:$F$42942,'List Unsorted Data - Unique'!$H$2:$H$42942),2,0) -> 123 | S28: =SUM(('List Unsorted Data - Unique'!$A$2:$A$42942=A28)*('List Unsorted Data - Unique'!$B$2:$B$42942=B28)*('List Unsorted Data - Unique'!$C$2:$C$42942=C28)*('List Unsorted Data - Unique'!$D$2:$D$42942=D28)*('List Unsorted Data - Unique'!$E$2:$E$42942=E28)*('List Unsorted Data - Unique'!$F$2:$F$42942=F28)*('List Unsorted Data - Unique'!$H$2:$H$42942)) -> 123
A29: 2016 | B29: 7 | C29: B. Paisley | D29: DFG001 | E29: SD01 | F29: Actual | G29: =INDEX('List Unsorted Data - Unique'!$H$2:$H$42942,MATCH(A29&"-"&B29&"-"&C29&"-"&D29&"-"&E29&"-"&F29,'List Unsorted Data - Unique'!$G$2:$G$42942,0)) -> 56 | I29: =SUMIFS('List Unsorted Data - Unique'!$H$2:$H$42942,'List Unsorted Data - Unique'!$A$2:$A$42942,A29,'List Unsorted Data - Unique'!$B$2:$B$42942,B29,'List Unsorted Data - Unique'!$C$2:$C$42942,C29,'List Unsorted Data - Unique'!$D$2:$D$42942,D29,'List Unsorted Data - Unique'!$E$2:$E$42942,E29,'List Unsorted Data - Unique'!$F$2:$F$42942,F29) -> 56 | K29: =INDEX('List Unsorted Data - Unique'!$H$2:$H$42942,MATCH(A29&B29&C29&D29&E29&F29,'List Unsorted Data - Unique'!$A$2:$A$42942&'List Unsorted Data - Unique'!$B$2:$B$42942&'List Unsorted Data - Unique'!$C$2:$C$42942&'List Unsorted Data - Unique'!$D$2:$D$42942&'List Unsorted Data - Unique'!$E$2:$E$42942&'List Unsorted Data - Unique'!$F$2:$F$42942,0)) -> 56 | M29: =INDEX('List Unsorted Data - Unique'!$H$2:$H$42942,MATCH(1,('List Unsorted Data - Unique'!$A$2:$A$42942=A29)*('List Unsorted Data - Unique'!$B$2:$B$42942=B29)*('List Unsorted Data - Unique'!$C$2:$C$42942=C29)*('List Unsorted Data - Unique'!$D$2:$D$42942=D29)*('List Unsorted Data - Unique'!$E$2:$E$42942=E29)*('List Unsorted Data - Unique'!$F$2:$F$42942=F29),0)) -> 56 | O29: =SUMPRODUCT(('List Unsorted Data - Unique'!$A$2:$A$42942=A29)*('List Unsorted Data - Unique'!$B$2:$B$42942=B29)*('List Unsorted Data - Unique'!$C$2:$C$42942=C29)*('List Unsorted Data - Unique'!$D$2:$D$42942=D29)*('List Unsorted Data - Unique'!$E$2:$E$42942=E29)*('List Unsorted Data - Unique'!$F$2:$F$42942=F29)*('List Unsorted Data - Unique'!$H$2:$H$42942)) -> 56 | Q29: =VLOOKUP(A29&B29&C29&D29&E29&F29,CHOOSE({1,2,3,4,5,6},'List Unsorted Data - Unique'!$A$2:$A$42942&'List Unsorted Data - Unique'!$B$2:$B$42942&'List Unsorted Data - Unique'!$C$2:$C$42942&'List Unsorted Data - Unique'!$D$2:$D$42942&'List Unsorted Data - Unique'!$E$2:$E$42942&'List Unsorted Data - Unique'!$F$2:$F$42942,'List Unsorted Data - Unique'!$H$2:$H$42942),2,0) -> 56 | S29: =SUM(('List Unsorted Data - Unique'!$A$2:$A$42942=A29)*('List Unsorted Data - Unique'!$B$2:$B$42942=B29)*('List Unsorted Data - Unique'!$C$2:$C$42942=C29)*('List Unsorted Data - Unique'!$D$2:$D$42942=D29)*('List Unsorted Data - Unique'!$E$2:$E$42942=E29)*('List Unsorted Data - Unique'!$F$2:$F$42942=F29)*('List Unsorted Data - Unique'!$H$2:$H$42942)) -> 56
A30: 2014 | B30: 6 | C30: J. McVie | D30: DFG001 | E30: MN01 | F30: Actual | G30: =INDEX('List Unsorted Data - Unique'!$H$2:$H$42942,MATCH(A30&"-"&B30&"-"&C30&"-"&D30&"-"&E30&"-"&F30,'List Unsorted Data - Unique'!$G$2:$G$42942,0)) -> 129 | I30: =SUMIFS('List Unsorted Data - Unique'!$H$2:$H$42942,'List Unsorted Data - Unique'!$A$2:$A$42942,A30,'List Unsorted Data - Unique'!$B$2:$B$42942,B30,'List Unsorted Data - Unique'!$C$2:$C$42942,C30,'List Unsorted Data - Unique'!$D$2:$D$42942,D30,'List Unsorted Data - Unique'!$E$2:$E$42942,E30,'List Unsorted Data - Unique'!$F$2:$F$42942,F30) -> 129 | K30: =INDEX('List Unsorted Data - Unique'!$H$2:$H$42942,MATCH(A30&B30&C30&D30&E30&F30,'List Unsorted Data - Unique'!$A$2:$A$42942&'List Unsorted Data - Unique'!$B$2:$B$42942&'List Unsorted Data - Unique'!$C$2:$C$42942&'List Unsorted Data - Unique'!$D$2:$D$42942&'List Unsorted Data - Unique'!$E$2:$E$42942&'List Unsorted Data - Unique'!$F$2:$F$42942,0)) -> 129 | M30: =INDEX('List Unsorted Data - Unique'!$H$2:$H$42942,MATCH(1,('List Unsorted Data - Unique'!$A$2:$A$42942=A30)*('List Unsorted Data - Unique'!$B$2:$B$42942=B30)*('List Unsorted Data - Unique'!$C$2:$C$42942=C30)*('List Unsorted Data - Unique'!$D$2:$D$42942=D30)*('List Unsorted Data - Unique'!$E$2:$E$42942=E30)*('List Unsorted Data - Unique'!$F$2:$F$42942=F30),0)) -> 129 | O30: =SUMPRODUCT(('List Unsorted Data - Unique'!$A$2:$A$42942=A30)*('List Unsorted Data - Unique'!$B$2:$B$42942=B30)*('List Unsorted Data - Unique'!$C$2:$C$42942=C30)*('List Unsorted Data - Unique'!$D$2:$D$42942=D30)*('List Unsorted Data - Unique'!$E$2:$E$42942=E30)*('List Unsorted Data - Unique'!$F$2:$F$42942=F30)*('List Unsorted Data - Unique'!$H$2:$H$42942)) -> 129 | Q30: =VLOOKUP(A30&B30&C30&D30&E30&F30,CHOOSE({1,2,3,4,5,6},'List Unsorted Data - Unique'!$A$2:$A$42942&'List Unsorted Data - Unique'!$B$2:$B$42942&'List Unsorted Data - Unique'!$C$2:$C$42942&'List Unsorted Data - Unique'!$D$2:$D$42942&'List Unsorted Data - Unique'!$E$2:$E$42942&'List Unsorted Data - Unique'!$F$2:$F$42942,'List Unsorted Data - Unique'!$H$2:$H$42942),2,0) -> 129 | S30: =SUM(('List Unsorted Data - Unique'!$A$2:$A$42942=A30)*('List Unsorted Data - Unique'!$B$2:$B$42942=B30)*('List Unsorted Data - Unique'!$C$2:$C$42942=C30)*('List Unsorted Data - Unique'!$D$2:$D$42942=D30)*('List Unsorted Data - Unique'!$E$2:$E$42942=E30)*('List Unsorted Data - Unique'!$F$2:$F$42942=F30)*('List Unsorted Data - Unique'!$H$2:$H$42942)) -> 129
A31: 2014 | B31: 12 | C31: B. Shelton | D31: PRD002 | E31: NC01 | F31: Forecast | G31: =INDEX('List Unsorted Data - Unique'!$H$2:$H$42942,MATCH(A31&"-"&B31&"-"&C31&"-"&D31&"-"&E31&"-"&F31,'List Unsorted Data - Unique'!$G$2:$G$42942,0)) -> 169 | I31: =SUMIFS('List Unsorted Data - Unique'!$H$2:$H$42942,'List Unsorted Data - Unique'!$A$2:$A$42942,A31,'List Unsorted Data - Unique'!$B$2:$B$42942,B31,'List Unsorted Data - Unique'!$C$2:$C$42942,C31,'List Unsorted Data - Unique'!$D$2:$D$42942,D31,'List Unsorted Data - Unique'!$E$2:$E$42942,E31,'List Unsorted Data - Unique'!$F$2:$F$42942,F31) -> 169 | K31: =INDEX('List Unsorted Data - Unique'!$H$2:$H$42942,MATCH(A31&B31&C31&D31&E31&F31,'List Unsorted Data - Unique'!$A$2:$A$42942&'List Unsorted Data - Unique'!$B$2:$B$42942&'List Unsorted Data - Unique'!$C$2:$C$42942&'List Unsorted Data - Unique'!$D$2:$D$42942&'List Unsorted Data - Unique'!$E$2:$E$42942&'List Unsorted Data - Unique'!$F$2:$F$42942,0)) -> 169 | M31: =INDEX('List Unsorted Data - Unique'!$H$2:$H$42942,MATCH(1,('List Unsorted Data - Unique'!$A$2:$A$42942=A31)*('List Unsorted Data - Unique'!$B$2:$B$42942=B31)*('List Unsorted Data - Unique'!$C$2:$C$42942=C31)*('List Unsorted Data - Unique'!$D$2:$D$42942=D31)*('List Unsorted Data - Unique'!$E$2:$E$42942=E31)*('List Unsorted Data - Unique'!$F$2:$F$42942=F31),0)) -> 169 | O31: =SUMPRODUCT(('List Unsorted Data - Unique'!$A$2:$A$42942=A31)*('List Unsorted Data - Unique'!$B$2:$B$42942=B31)*('List Unsorted Data - Unique'!$C$2:$C$42942=C31)*('List Unsorted Data - Unique'!$D$2:$D$42942=D31)*('List Unsorted Data - Unique'!$E$2:$E$42942=E31)*('List Unsorted Data - Unique'!$F$2:$F$42942=F31)*('List Unsorted Data - Unique'!$H$2:$H$42942)) -> 169 | Q31: =VLOOKUP(A31&B31&C31&D31&E31&F31,CHOOSE({1,2,3,4,5,6},'List Unsorted Data - Unique'!$A$2:$A$42942&'List Unsorted Data - Unique'!$B$2:$B$42942&'List Unsorted Data - Unique'!$C$2:$C$42942&'List Unsorted Data - Unique'!$D$2:$D$42942&'List Unsorted Data - Unique'!$E$2:$E$42942&'List Unsorted Data - Unique'!$F$2:$F$42942,'List Unsorted Data - Unique'!$H$2:$H$42942),2,0) -> 169 | S31: =SUM(('List Unsorted Data - Unique'!$A$2:$A$42942=A31)*('List Unsorted Data - Unique'!$B$2:$B$42942=B31)*('List Unsorted Data - Unique'!$C$2:$C$42942=C31)*('List Unsorted Data - Unique'!$D$2:$D$42942=D31)*('List Unsorted Data - Unique'!$E$2:$E$42942=E31)*('List Unsorted Data - Unique'!$F$2:$F$42942=F31)*('List Unsorted Data - Unique'!$H$2:$H$42942)) -> 169
A32: 2016 | B32: 4 | C32: R. Star | D32: PRD002 | E32: AK01 | F32: Actual | G32: =INDEX('List Unsorted Data - Unique'!$H$2:$H$42942,MATCH(A32&"-"&B32&"-"&C32&"-"&D32&"-"&E32&"-"&F32,'List Unsorted Data - Unique'!$G$2:$G$42942,0)) -> 79 | I32: =SUMIFS('List Unsorted Data - Unique'!$H$2:$H$42942,'List Unsorted Data - Unique'!$A$2:$A$42942,A32,'List Unsorted Data - Unique'!$B$2:$B$42942,B32,'List Unsorted Data - Unique'!$C$2:$C$42942,C32,'List Unsorted Data - Unique'!$D$2:$D$42942,D32,'List Unsorted Data - Unique'!$E$2:$E$42942,E32,'List Unsorted Data - Unique'!$F$2:$F$42942,F32) -> 79 | K32: =INDEX('List Unsorted Data - Unique'!$H$2:$H$42942,MATCH(A32&B32&C32&D32&E32&F32,'List Unsorted Data - Unique'!$A$2:$A$42942&'List Unsorted Data - Unique'!$B$2:$B$42942&'List Unsorted Data - Unique'!$C$2:$C$42942&'List Unsorted Data - Unique'!$D$2:$D$42942&'List Unsorted Data - Unique'!$E$2:$E$42942&'List Unsorted Data - Unique'!$F$2:$F$42942,0)) -> 79 | M32: =INDEX('List Unsorted Data - Unique'!$H$2:$H$42942,MATCH(1,('List Unsorted Data - Unique'!$A$2:$A$42942=A32)*('List Unsorted Data - Unique'!$B$2:$B$42942=B32)*('List Unsorted Data - Unique'!$C$2:$C$42942=C32)*('List Unsorted Data - Unique'!$D$2:$D$42942=D32)*('List Unsorted Data - Unique'!$E$2:$E$42942=E32)*('List Unsorted Data - Unique'!$F$2:$F$42942=F32),0)) -> 79 | O32: =SUMPRODUCT(('List Unsorted Data - Unique'!$A$2:$A$42942=A32)*('List Unsorted Data - Unique'!$B$2:$B$42942=B32)*('List Unsorted Data - Unique'!$C$2:$C$42942=C32)*('List Unsorted Data - Unique'!$D$2:$D$42942=D32)*('List Unsorted Data - Unique'!$E$2:$E$42942=E32)*('List Unsorted Data - Unique'!$F$2:$F$42942=F32)*('List Unsorted Data - Unique'!$H$2:$H$42942)) -> 79 | Q32: =VLOOKUP(A32&B32&C32&D32&E32&F32,CHOOSE({1,2,3,4,5,6},'List Unsorted Data - Unique'!$A$2:$A$42942&'List Unsorted Data - Unique'!$B$2:$B$42942&'List Unsorted Data - Unique'!$C$2:$C$42942&'List Unsorted Data - Unique'!$D$2:$D$42942&'List Unsorted Data - Unique'!$E$2:$E$42942&'List Unsorted Data - Unique'!$F$2:$F$42942,'List Unsorted Data - Unique'!$H$2:$H$42942),2,0) -> 79 | S32: =SUM(('List Unsorted Data - Unique'!$A$2:$A$42942=A32)*('List Unsorted Data - Unique'!$B$2:$B$42942=B32)*('List Unsorted Data - Unique'!$C$2:$C$42942=C32)*('List Unsorted Data - Unique'!$D$2:$D$42942=D32)*('List Unsorted Data - Unique'!$E$2:$E$42942=E32)*('List Unsorted Data - Unique'!$F$2:$F$42942=F32)*('List Unsorted Data - Unique'!$H$2:$H$42942)) -> 79
A33: 2014 | B33: 9 | C33: R. Star | D33: JKL001 | E33: CA01 | F33: Actual | G33: =INDEX('List Unsorted Data - Unique'!$H$2:$H$42942,MATCH(A33&"-"&B33&"-"&C33&"-"&D33&"-"&E33&"-"&F33,'List Unsorted Data - Unique'!$G$2:$G$42942,0)) -> 204 | I33: =SUMIFS('List Unsorted Data - Unique'!$H$2:$H$42942,'List Unsorted Data - Unique'!$A$2:$A$42942,A33,'List Unsorted Data - Unique'!$B$2:$B$42942,B33,'List Unsorted Data - Unique'!$C$2:$C$42942,C33,'List Unsorted Data - Unique'!$D$2:$D$42942,D33,'List Unsorted Data - Unique'!$E$2:$E$42942,E33,'List Unsorted Data - Unique'!$F$2:$F$42942,F33) -> 204 | K33: =INDEX('List Unsorted Data - Unique'!$H$2:$H$42942,MATCH(A33&B33&C33&D33&E33&F33,'List Unsorted Data - Unique'!$A$2:$A$42942&'List Unsorted Data - Unique'!$B$2:$B$42942&'List Unsorted Data - Unique'!$C$2:$C$42942&'List Unsorted Data - Unique'!$D$2:$D$42942&'List Unsorted Data - Unique'!$E$2:$E$42942&'List Unsorted Data - Unique'!$F$2:$F$42942,0)) -> 204 | M33: =INDEX('List Unsorted Data - Unique'!$H$2:$H$42942,MATCH(1,('List Unsorted Data - Unique'!$A$2:$A$42942=A33)*('List Unsorted Data - Unique'!$B$2:$B$42942=B33)*('List Unsorted Data - Unique'!$C$2:$C$42942=C33)*('List Unsorted Data - Unique'!$D$2:$D$42942=D33)*('List Unsorted Data - Unique'!$E$2:$E$42942=E33)*('List Unsorted Data - Unique'!$F$2:$F$42942=F33),0)) -> 204 | O33: =SUMPRODUCT(('List Unsorted Data - Unique'!$A$2:$A$42942=A33)*('List Unsorted Data - Unique'!$B$2:$B$42942=B33)*('List Unsorted Data - Unique'!$C$2:$C$42942=C33)*('List Unsorted Data - Unique'!$D$2:$D$42942=D33)*('List Unsorted Data - Unique'!$E$2:$E$42942=E33)*('List Unsorted Data - Unique'!$F$2:$F$42942=F33)*('List Unsorted Data - Unique'!$H$2:$H$42942)) -> 204 | Q33: =VLOOKUP(A33&B33&C33&D33&E33&F33,CHOOSE({1,2,3,4,5,6},'List Unsorted Data - Unique'!$A$2:$A$42942&'List Unsorted Data - Unique'!$B$2:$B$42942&'List Unsorted Data - Unique'!$C$2:$C$42942&'List Unsorted Data - Unique'!$D$2:$D$42942&'List Unsorted Data - Unique'!$E$2:$E$42942&'List Unsorted Data - Unique'!$F$2:$F$42942,'List Unsorted Data - Unique'!$H$2:$H$42942),2,0) -> 204 | S33: =SUM(('List Unsorted Data - Unique'!$A$2:$A$42942=A33)*('List Unsorted Data - Unique'!$B$2:$B$42942=B33)*('List Unsorted Data - Unique'!$C$2:$C$42942=C33)*('List Unsorted Data - Unique'!$D$2:$D$42942=D33)*('List Unsorted Data - Unique'!$E$2:$E$42942=E33)*('List Unsorted Data - Unique'!$F$2:$F$42942=F33)*('List Unsorted Data - Unique'!$H$2:$H$42942)) -> 204
A34: 2014 | B34: 2 | C34: M. Stipe | D34: ASL003 | E34: SD01 | F34: Forecast | G34: =INDEX('List Unsorted Data - Unique'!$H$2:$H$42942,MATCH(A34&"-"&B34&"-"&C34&"-"&D34&"-"&E34&"-"&F34,'List Unsorted Data - Unique'!$G$2:$G$42942,0)) -> 182 | I34: =SUMIFS('List Unsorted Data - Unique'!$H$2:$H$42942,'List Unsorted Data - Unique'!$A$2:$A$42942,A34,'List Unsorted Data - Unique'!$B$2:$B$42942,B34,'List Unsorted Data - Unique'!$C$2:$C$42942,C34,'List Unsorted Data - Unique'!$D$2:$D$42942,D34,'List Unsorted Data - Unique'!$E$2:$E$42942,E34,'List Unsorted Data - Unique'!$F$2:$F$42942,F34) -> 182 | K34: =INDEX('List Unsorted Data - Unique'!$H$2:$H$42942,MATCH(A34&B34&C34&D34&E34&F34,'List Unsorted Data - Unique'!$A$2:$A$42942&'List Unsorted Data - Unique'!$B$2:$B$42942&'List Unsorted Data - Unique'!$C$2:$C$42942&'List Unsorted Data - Unique'!$D$2:$D$42942&'List Unsorted Data - Unique'!$E$2:$E$42942&'List Unsorted Data - Unique'!$F$2:$F$42942,0)) -> 182 | M34: =INDEX('List Unsorted Data - Unique'!$H$2:$H$42942,MATCH(1,('List Unsorted Data - Unique'!$A$2:$A$42942=A34)*('List Unsorted Data - Unique'!$B$2:$B$42942=B34)*('List Unsorted Data - Unique'!$C$2:$C$42942=C34)*('List Unsorted Data - Unique'!$D$2:$D$42942=D34)*('List Unsorted Data - Unique'!$E$2:$E$42942=E34)*('List Unsorted Data - Unique'!$F$2:$F$42942=F34),0)) -> 182 | O34: =SUMPRODUCT(('List Unsorted Data - Unique'!$A$2:$A$42942=A34)*('List Unsorted Data - Unique'!$B$2:$B$42942=B34)*('List Unsorted Data - Unique'!$C$2:$C$42942=C34)*('List Unsorted Data - Unique'!$D$2:$D$42942=D34)*('List Unsorted Data - Unique'!$E$2:$E$42942=E34)*('List Unsorted Data - Unique'!$F$2:$F$42942=F34)*('List Unsorted Data - Unique'!$H$2:$H$42942)) -> 182 | Q34: =VLOOKUP(A34&B34&C34&D34&E34&F34,CHOOSE({1,2,3,4,5,6},'List Unsorted Data - Unique'!$A$2:$A$42942&'List Unsorted Data - Unique'!$B$2:$B$42942&'List Unsorted Data - Unique'!$C$2:$C$42942&'List Unsorted Data - Unique'!$D$2:$D$42942&'List Unsorted Data - Unique'!$E$2:$E$42942&'List Unsorted Data - Unique'!$F$2:$F$42942,'List Unsorted Data - Unique'!$H$2:$H$42942),2,0) -> 182 | S34: =SUM(('List Unsorted Data - Unique'!$A$2:$A$42942=A34)*('List Unsorted Data - Unique'!$B$2:$B$42942=B34)*('List Unsorted Data - Unique'!$C$2:$C$42942=C34)*('List Unsorted Data - Unique'!$D$2:$D$42942=D34)*('List Unsorted Data - Unique'!$E$2:$E$42942=E34)*('List Unsorted Data - Unique'!$F$2:$F$42942=F34)*('List Unsorted Data - Unique'!$H$2:$H$42942)) -> 182
A35: 2015 | B35: 9 | C35: M. Stipe | D35: ASL002 | E35: SD01 | F35: Forecast | G35: =INDEX('List Unsorted Data - Unique'!$H$2:$H$42942,MATCH(A35&"-"&B35&"-"&C35&"-"&D35&"-"&E35&"-"&F35,'List Unsorted Data - Unique'!$G$2:$G$42942,0)) -> 102 | I35: =SUMIFS('List Unsorted Data - Unique'!$H$2:$H$42942,'List Unsorted Data - Unique'!$A$2:$A$42942,A35,'List Unsorted Data - Unique'!$B$2:$B$42942,B35,'List Unsorted Data - Unique'!$C$2:$C$42942,C35,'List Unsorted Data - Unique'!$D$2:$D$42942,D35,'List Unsorted Data - Unique'!$E$2:$E$42942,E35,'List Unsorted Data - Unique'!$F$2:$F$42942,F35) -> 102 | K35: =INDEX('List Unsorted Data - Unique'!$H$2:$H$42942,MATCH(A35&B35&C35&D35&E35&F35,'List Unsorted Data - Unique'!$A$2:$A$42942&'List Unsorted Data - Unique'!$B$2:$B$42942&'List Unsorted Data - Unique'!$C$2:$C$42942&'List Unsorted Data - Unique'!$D$2:$D$42942&'List Unsorted Data - Unique'!$E$2:$E$42942&'List Unsorted Data - Unique'!$F$2:$F$42942,0)) -> 102 | M35: =INDEX('List Unsorted Data - Unique'!$H$2:$H$42942,MATCH(1,('List Unsorted Data - Unique'!$A$2:$A$42942=A35)*('List Unsorted Data - Unique'!$B$2:$B$42942=B35)*('List Unsorted Data - Unique'!$C$2:$C$42942=C35)*('List Unsorted Data - Unique'!$D$2:$D$42942=D35)*('List Unsorted Data - Unique'!$E$2:$E$42942=E35)*('List Unsorted Data - Unique'!$F$2:$F$42942=F35),0)) -> 102 | O35: =SUMPRODUCT(('List Unsorted Data - Unique'!$A$2:$A$42942=A35)*('List Unsorted Data - Unique'!$B$2:$B$42942=B35)*('List Unsorted Data - Unique'!$C$2:$C$42942=C35)*('List Unsorted Data - Unique'!$D$2:$D$42942=D35)*('List Unsorted Data - Unique'!$E$2:$E$42942=E35)*('List Unsorted Data - Unique'!$F$2:$F$42942=F35)*('List Unsorted Data - Unique'!$H$2:$H$42942)) -> 102 | Q35: =VLOOKUP(A35&B35&C35&D35&E35&F35,CHOOSE({1,2,3,4,5,6},'List Unsorted Data - Unique'!$A$2:$A$42942&'List Unsorted Data - Unique'!$B$2:$B$42942&'List Unsorted Data - Unique'!$C$2:$C$42942&'List Unsorted Data - Unique'!$D$2:$D$42942&'List Unsorted Data - Unique'!$E$2:$E$42942&'List Unsorted Data - Unique'!$F$2:$F$42942,'List Unsorted Data - Unique'!$H$2:$H$42942),2,0) -> 102 | S35: =SUM(('List Unsorted Data - Unique'!$A$2:$A$42942=A35)*('List Unsorted Data - Unique'!$B$2:$B$42942=B35)*('List Unsorted Data - Unique'!$C$2:$C$42942=C35)*('List Unsorted Data - Unique'!$D$2:$D$42942=D35)*('List Unsorted Data - Unique'!$E$2:$E$42942=E35)*('List Unsorted Data - Unique'!$F$2:$F$42942=F35)*('List Unsorted Data - Unique'!$H$2:$H$42942)) -> 102
A36: 2014 | B36: 4 | C36: J. Lennon | D36: ASL001 | E36: MN01 | F36: Actual | G36: =INDEX('List Unsorted Data - Unique'!$H$2:$H$42942,MATCH(A36&"-"&B36&"-"&C36&"-"&D36&"-"&E36&"-"&F36,'List Unsorted Data - Unique'!$G$2:$G$42942,0)) -> 297 | I36: =SUMIFS('List Unsorted Data - Unique'!$H$2:$H$42942,'List Unsorted Data - Unique'!$A$2:$A$42942,A36,'List Unsorted Data - Unique'!$B$2:$B$42942,B36,'List Unsorted Data - Unique'!$C$2:$C$42942,C36,'List Unsorted Data - Unique'!$D$2:$D$42942,D36,'List Unsorted Data - Unique'!$E$2:$E$42942,E36,'List Unsorted Data - Unique'!$F$2:$F$42942,F36) -> 297 | K36: =INDEX('List Unsorted Data - Unique'!$H$2:$H$42942,MATCH(A36&B36&C36&D36&E36&F36,'List Unsorted Data - Unique'!$A$2:$A$42942&'List Unsorted Data - Unique'!$B$2:$B$42942&'List Unsorted Data - Unique'!$C$2:$C$42942&'List Unsorted Data - Unique'!$D$2:$D$42942&'List Unsorted Data - Unique'!$E$2:$E$42942&'List Unsorted Data - Unique'!$F$2:$F$42942,0)) -> 297 | M36: =INDEX('List Unsorted Data - Unique'!$H$2:$H$42942,MATCH(1,('List Unsorted Data - Unique'!$A$2:$A$42942=A36)*('List Unsorted Data - Unique'!$B$2:$B$42942=B36)*('List Unsorted Data - Unique'!$C$2:$C$42942=C36)*('List Unsorted Data - Unique'!$D$2:$D$42942=D36)*('List Unsorted Data - Unique'!$E$2:$E$42942=E36)*('List Unsorted Data - Unique'!$F$2:$F$42942=F36),0)) -> 297 | O36: =SUMPRODUCT(('List Unsorted Data - Unique'!$A$2:$A$42942=A36)*('List Unsorted Data - Unique'!$B$2:$B$42942=B36)*('List Unsorted Data - Unique'!$C$2:$C$42942=C36)*('List Unsorted Data - Unique'!$D$2:$D$42942=D36)*('List Unsorted Data - Unique'!$E$2:$E$42942=E36)*('List Unsorted Data - Unique'!$F$2:$F$42942=F36)*('List Unsorted Data - Unique'!$H$2:$H$42942)) -> 297 | Q36: =VLOOKUP(A36&B36&C36&D36&E36&F36,CHOOSE({1,2,3,4,5,6},'List Unsorted Data - Unique'!$A$2:$A$42942&'List Unsorted Data - Unique'!$B$2:$B$42942&'List Unsorted Data - Unique'!$C$2:$C$42942&'List Unsorted Data - Unique'!$D$2:$D$42942&'List Unsorted Data - Unique'!$E$2:$E$42942&'List Unsorted Data - Unique'!$F$2:$F$42942,'List Unsorted Data - Unique'!$H$2:$H$42942),2,0) -> 297 | S36: =SUM(('List Unsorted Data - Unique'!$A$2:$A$42942=A36)*('List Unsorted Data - Unique'!$B$2:$B$42942=B36)*('List Unsorted Data - Unique'!$C$2:$C$42942=C36)*('List Unsorted Data - Unique'!$D$2:$D$42942=D36)*('List Unsorted Data - Unique'!$E$2:$E$42942=E36)*('List Unsorted Data - Unique'!$F$2:$F$42942=F36)*('List Unsorted Data - Unique'!$H$2:$H$42942)) -> 297
A37: 2016 | B37: 5 | C37: M.Mills | D37: PRD002 | E37: CA01 | F37: Actual | G37: =INDEX('List Unsorted Data - Unique'!$H$2:$H$42942,MATCH(A37&"-"&B37&"-"&C37&"-"&D37&"-"&E37&"-"&F37,'List Unsorted Data - Unique'!$G$2:$G$42942,0)) -> 157 | I37: =SUMIFS('List Unsorted Data - Unique'!$H$2:$H$42942,'List Unsorted Data - Unique'!$A$2:$A$42942,A37,'List Unsorted Data - Unique'!$B$2:$B$42942,B37,'List Unsorted Data - Unique'!$C$2:$C$42942,C37,'List Unsorted Data - Unique'!$D$2:$D$42942,D37,'List Unsorted Data - Unique'!$E$2:$E$42942,E37,'List Unsorted Data - Unique'!$F$2:$F$42942,F37) -> 157 | K37: =INDEX('List Unsorted Data - Unique'!$H$2:$H$42942,MATCH(A37&B37&C37&D37&E37&F37,'List Unsorted Data - Unique'!$A$2:$A$42942&'List Unsorted Data - Unique'!$B$2:$B$42942&'List Unsorted Data - Unique'!$C$2:$C$42942&'List Unsorted Data - Unique'!$D$2:$D$42942&'List Unsorted Data - Unique'!$E$2:$E$42942&'List Unsorted Data - Unique'!$F$2:$F$42942,0)) -> 157 | M37: =INDEX('List Unsorted Data - Unique'!$H$2:$H$42942,MATCH(1,('List Unsorted Data - Unique'!$A$2:$A$42942=A37)*('List Unsorted Data - Unique'!$B$2:$B$42942=B37)*('List Unsorted Data - Unique'!$C$2:$C$42942=C37)*('List Unsorted Data - Unique'!$D$2:$D$42942=D37)*('List Unsorted Data - Unique'!$E$2:$E$42942=E37)*('List Unsorted Data - Unique'!$F$2:$F$42942=F37),0)) -> 157 | O37: =SUMPRODUCT(('List Unsorted Data - Unique'!$A$2:$A$42942=A37)*('List Unsorted Data - Unique'!$B$2:$B$42942=B37)*('List Unsorted Data - Unique'!$C$2:$C$42942=C37)*('List Unsorted Data - Unique'!$D$2:$D$42942=D37)*('List Unsorted Data - Unique'!$E$2:$E$42942=E37)*('List Unsorted Data - Unique'!$F$2:$F$42942=F37)*('List Unsorted Data - Unique'!$H$2:$H$42942)) -> 157 | Q37: =VLOOKUP(A37&B37&C37&D37&E37&F37,CHOOSE({1,2,3,4,5,6},'List Unsorted Data - Unique'!$A$2:$A$42942&'List Unsorted Data - Unique'!$B$2:$B$42942&'List Unsorted Data - Unique'!$C$2:$C$42942&'List Unsorted Data - Unique'!$D$2:$D$42942&'List Unsorted Data - Unique'!$E$2:$E$42942&'List Unsorted Data - Unique'!$F$2:$F$42942,'List Unsorted Data - Unique'!$H$2:$H$42942),2,0) -> 157 | S37: =SUM(('List Unsorted Data - Unique'!$A$2:$A$42942=A37)*('List Unsorted Data - Unique'!$B$2:$B$42942=B37)*('List Unsorted Data - Unique'!$C$2:$C$42942=C37)*('List Unsorted Data - Unique'!$D$2:$D$42942=D37)*('List Unsorted Data - Unique'!$E$2:$E$42942=E37)*('List Unsorted Data - Unique'!$F$2:$F$42942=F37)*('List Unsorted Data - Unique'!$H$2:$H$42942)) -> 157
A38: 2015 | B38: 7 | C38: P. Buck | D38: ASL003 | E38: VA01 | F38: Actual | G38: =INDEX('List Unsorted Data - Unique'!$H$2:$H$42942,MATCH(A38&"-"&B38&"-"&C38&"-"&D38&"-"&E38&"-"&F38,'List Unsorted Data - Unique'!$G$2:$G$42942,0)) -> 188 | I38: =SUMIFS('List Unsorted Data - Unique'!$H$2:$H$42942,'List Unsorted Data - Unique'!$A$2:$A$42942,A38,'List Unsorted Data - Unique'!$B$2:$B$42942,B38,'List Unsorted Data - Unique'!$C$2:$C$42942,C38,'List Unsorted Data - Unique'!$D$2:$D$42942,D38,'List Unsorted Data - Unique'!$E$2:$E$42942,E38,'List Unsorted Data - Unique'!$F$2:$F$42942,F38) -> 188 | K38: =INDEX('List Unsorted Data - Unique'!$H$2:$H$42942,MATCH(A38&B38&C38&D38&E38&F38,'List Unsorted Data - Unique'!$A$2:$A$42942&'List Unsorted Data - Unique'!$B$2:$B$42942&'List Unsorted Data - Unique'!$C$2:$C$42942&'List Unsorted Data - Unique'!$D$2:$D$42942&'List Unsorted Data - Unique'!$E$2:$E$42942&'List Unsorted Data - Unique'!$F$2:$F$42942,0)) -> 188 | M38: =INDEX('List Unsorted Data - Unique'!$H$2:$H$42942,MATCH(1,('List Unsorted Data - Unique'!$A$2:$A$42942=A38)*('List Unsorted Data - Unique'!$B$2:$B$42942=B38)*('List Unsorted Data - Unique'!$C$2:$C$42942=C38)*('List Unsorted Data - Unique'!$D$2:$D$42942=D38)*('List Unsorted Data - Unique'!$E$2:$E$42942=E38)*('List Unsorted Data - Unique'!$F$2:$F$42942=F38),0)) -> 188 | O38: =SUMPRODUCT(('List Unsorted Data - Unique'!$A$2:$A$42942=A38)*('List Unsorted Data - Unique'!$B$2:$B$42942=B38)*('List Unsorted Data - Unique'!$C$2:$C$42942=C38)*('List Unsorted Data - Unique'!$D$2:$D$42942=D38)*('List Unsorted Data - Unique'!$E$2:$E$42942=E38)*('List Unsorted Data - Unique'!$F$2:$F$42942=F38)*('List Unsorted Data - Unique'!$H$2:$H$42942)) -> 188 | Q38: =VLOOKUP(A38&B38&C38&D38&E38&F38,CHOOSE({1,2,3,4,5,6},'List Unsorted Data - Unique'!$A$2:$A$42942&'List Unsorted Data - Unique'!$B$2:$B$42942&'List Unsorted Data - Unique'!$C$2:$C$42942&'List Unsorted Data - Unique'!$D$2:$D$42942&'List Unsorted Data - Unique'!$E$2:$E$42942&'List Unsorted Data - Unique'!$F$2:$F$42942,'List Unsorted Data - Unique'!$H$2:$H$42942),2,0) -> 188 | S38: =SUM(('List Unsorted Data - Unique'!$A$2:$A$42942=A38)*('List Unsorted Data - Unique'!$B$2:$B$42942=B38)*('List Unsorted Data - Unique'!$C$2:$C$42942=C38)*('List Unsorted Data - Unique'!$D$2:$D$42942=D38)*('List Unsorted Data - Unique'!$E$2:$E$42942=E38)*('List Unsorted Data - Unique'!$F$2:$F$42942=F38)*('List Unsorted Data - Unique'!$H$2:$H$42942)) -> 188
A39: 2015 | B39: 6 | C39: B. Shelton | D39: POT002 | E39: LA01 | F39: Forecast | G39: =INDEX('List Unsorted Data - Unique'!$H$2:$H$42942,MATCH(A39&"-"&B39&"-"&C39&"-"&D39&"-"&E39&"-"&F39,'List Unsorted Data - Unique'!$G$2:$G$42942,0)) -> 525 | I39: =SUMIFS('List Unsorted Data - Unique'!$H$2:$H$42942,'List Unsorted Data - Unique'!$A$2:$A$42942,A39,'List Unsorted Data - Unique'!$B$2:$B$42942,B39,'List Unsorted Data - Unique'!$C$2:$C$42942,C39,'List Unsorted Data - Unique'!$D$2:$D$42942,D39,'List Unsorted Data - Unique'!$E$2:$E$42942,E39,'List Unsorted Data - Unique'!$F$2:$F$42942,F39) -> 525 | K39: =INDEX('List Unsorted Data - Unique'!$H$2:$H$42942,MATCH(A39&B39&C39&D39&E39&F39,'List Unsorted Data - Unique'!$A$2:$A$42942&'List Unsorted Data - Unique'!$B$2:$B$42942&'List Unsorted Data - Unique'!$C$2:$C$42942&'List Unsorted Data - Unique'!$D$2:$D$42942&'List Unsorted Data - Unique'!$E$2:$E$42942&'List Unsorted Data - Unique'!$F$2:$F$42942,0)) -> 525 | M39: =INDEX('List Unsorted Data - Unique'!$H$2:$H$42942,MATCH(1,('List Unsorted Data - Unique'!$A$2:$A$42942=A39)*('List Unsorted Data - Unique'!$B$2:$B$42942=B39)*('List Unsorted Data - Unique'!$C$2:$C$42942=C39)*('List Unsorted Data - Unique'!$D$2:$D$42942=D39)*('List Unsorted Data - Unique'!$E$2:$E$42942=E39)*('List Unsorted Data - Unique'!$F$2:$F$42942=F39),0)) -> 525 | O39: =SUMPRODUCT(('List Unsorted Data - Unique'!$A$2:$A$42942=A39)*('List Unsorted Data - Unique'!$B$2:$B$42942=B39)*('List Unsorted Data - Unique'!$C$2:$C$42942=C39)*('List Unsorted Data - Unique'!$D$2:$D$42942=D39)*('List Unsorted Data - Unique'!$E$2:$E$42942=E39)*('List Unsorted Data - Unique'!$F$2:$F$42942=F39)*('List Unsorted Data - Unique'!$H$2:$H$42942)) -> 525 | Q39: =VLOOKUP(A39&B39&C39&D39&E39&F39,CHOOSE({1,2,3,4,5,6},'List Unsorted Data - Unique'!$A$2:$A$42942&'List Unsorted Data - Unique'!$B$2:$B$42942&'List Unsorted Data - Unique'!$C$2:$C$42942&'List Unsorted Data - Unique'!$D$2:$D$42942&'List Unsorted Data - Unique'!$E$2:$E$42942&'List Unsorted Data - Unique'!$F$2:$F$42942,'List Unsorted Data - Unique'!$H$2:$H$42942),2,0) -> 525 | S39: =SUM(('List Unsorted Data - Unique'!$A$2:$A$42942=A39)*('List Unsorted Data - Unique'!$B$2:$B$42942=B39)*('List Unsorted Data - Unique'!$C$2:$C$42942=C39)*('List Unsorted Data - Unique'!$D$2:$D$42942=D39)*('List Unsorted Data - Unique'!$E$2:$E$42942=E39)*('List Unsorted Data - Unique'!$F$2:$F$42942=F39)*('List Unsorted Data - Unique'!$H$2:$H$42942)) -> 525
A40: 2016 | B40: 8 | C40: B. Paisley | D40: POT001 | E40: VA01 | F40: Actual | G40: =INDEX('List Unsorted Data - Unique'!$H$2:$H$42942,MATCH(A40&"-"&B40&"-"&C40&"-"&D40&"-"&E40&"-"&F40,'List Unsorted Data - Unique'!$G$2:$G$42942,0)) -> 153 | I40: =SUMIFS('List Unsorted Data - Unique'!$H$2:$H$42942,'List Unsorted Data - Unique'!$A$2:$A$42942,A40,'List Unsorted Data - Unique'!$B$2:$B$42942,B40,'List Unsorted Data - Unique'!$C$2:$C$42942,C40,'List Unsorted Data - Unique'!$D$2:$D$42942,D40,'List Unsorted Data - Unique'!$E$2:$E$42942,E40,'List Unsorted Data - Unique'!$F$2:$F$42942,F40) -> 153 | K40: =INDEX('List Unsorted Data - Unique'!$H$2:$H$42942,MATCH(A40&B40&C40&D40&E40&F40,'List Unsorted Data - Unique'!$A$2:$A$42942&'List Unsorted Data - Unique'!$B$2:$B$42942&'List Unsorted Data - Unique'!$C$2:$C$42942&'List Unsorted Data - Unique'!$D$2:$D$42942&'List Unsorted Data - Unique'!$E$2:$E$42942&'List Unsorted Data - Unique'!$F$2:$F$42942,0)) -> 153 | M40: =INDEX('List Unsorted Data - Unique'!$H$2:$H$42942,MATCH(1,('List Unsorted Data - Unique'!$A$2:$A$42942=A40)*('List Unsorted Data - Unique'!$B$2:$B$42942=B40)*('List Unsorted Data - Unique'!$C$2:$C$42942=C40)*('List Unsorted Data - Unique'!$D$2:$D$42942=D40)*('List Unsorted Data - Unique'!$E$2:$E$42942=E40)*('List Unsorted Data - Unique'!$F$2:$F$42942=F40),0)) -> 153 | O40: =SUMPRODUCT(('List Unsorted Data - Unique'!$A$2:$A$42942=A40)*('List Unsorted Data - Unique'!$B$2:$B$42942=B40)*('List Unsorted Data - Unique'!$C$2:$C$42942=C40)*('List Unsorted Data - Unique'!$D$2:$D$42942=D40)*('List Unsorted Data - Unique'!$E$2:$E$42942=E40)*('List Unsorted Data - Unique'!$F$2:$F$42942=F40)*('List Unsorted Data - Unique'!$H$2:$H$42942)) -> 153 | Q40: =VLOOKUP(A40&B40&C40&D40&E40&F40,CHOOSE({1,2,3,4,5,6},'List Unsorted Data - Unique'!$A$2:$A$42942&'List Unsorted Data - Unique'!$B$2:$B$42942&'List Unsorted Data - Unique'!$C$2:$C$42942&'List Unsorted Data - Unique'!$D$2:$D$42942&'List Unsorted Data - Unique'!$E$2:$E$42942&'List Unsorted Data - Unique'!$F$2:$F$42942,'List Unsorted Data - Unique'!$H$2:$H$42942),2,0) -> 153 | S40: =SUM(('List Unsorted Data - Unique'!$A$2:$A$42942=A40)*('List Unsorted Data - Unique'!$B$2:$B$42942=B40)*('List Unsorted Data - Unique'!$C$2:$C$42942=C40)*('List Unsorted Data - Unique'!$D$2:$D$42942=D40)*('List Unsorted Data - Unique'!$E$2:$E$42942=E40)*('List Unsorted Data - Unique'!$F$2:$F$42942=F40)*('List Unsorted Data - Unique'!$H$2:$H$42942)) -> 153
A41: 2015 | B41: 8 | C41: J. McVie | D41: PRD002 | E41: NC01 | F41: Actual | G41: =INDEX('List Unsorted Data - Unique'!$H$2:$H$42942,MATCH(A41&"-"&B41&"-"&C41&"-"&D41&"-"&E41&"-"&F41,'List Unsorted Data - Unique'!$G$2:$G$42942,0)) -> 78 | I41: =SUMIFS('List Unsorted Data - Unique'!$H$2:$H$42942,'List Unsorted Data - Unique'!$A$2:$A$42942,A41,'List Unsorted Data - Unique'!$B$2:$B$42942,B41,'List Unsorted Data - Unique'!$C$2:$C$42942,C41,'List Unsorted Data - Unique'!$D$2:$D$42942,D41,'List Unsorted Data - Unique'!$E$2:$E$42942,E41,'List Unsorted Data - Unique'!$F$2:$F$42942,F41) -> 78 | K41: =INDEX('List Unsorted Data - Unique'!$H$2:$H$42942,MATCH(A41&B41&C41&D41&E41&F41,'List Unsorted Data - Unique'!$A$2:$A$42942&'List Unsorted Data - Unique'!$B$2:$B$42942&'List Unsorted Data - Unique'!$C$2:$C$42942&'List Unsorted Data - Unique'!$D$2:$D$42942&'List Unsorted Data - Unique'!$E$2:$E$42942&'List Unsorted Data - Unique'!$F$2:$F$42942,0)) -> 78 | M41: =INDEX('List Unsorted Data - Unique'!$H$2:$H$42942,MATCH(1,('List Unsorted Data - Unique'!$A$2:$A$42942=A41)*('List Unsorted Data - Unique'!$B$2:$B$42942=B41)*('List Unsorted Data - Unique'!$C$2:$C$42942=C41)*('List Unsorted Data - Unique'!$D$2:$D$42942=D41)*('List Unsorted Data - Unique'!$E$2:$E$42942=E41)*('List Unsorted Data - Unique'!$F$2:$F$42942=F41),0)) -> 78 | O41: =SUMPRODUCT(('List Unsorted Data - Unique'!$A$2:$A$42942=A41)*('List Unsorted Data - Unique'!$B$2:$B$42942=B41)*('List Unsorted Data - Unique'!$C$2:$C$42942=C41)*('List Unsorted Data - Unique'!$D$2:$D$42942=D41)*('List Unsorted Data - Unique'!$E$2:$E$42942=E41)*('List Unsorted Data - Unique'!$F$2:$F$42942=F41)*('List Unsorted Data - Unique'!$H$2:$H$42942)) -> 78 | Q41: =VLOOKUP(A41&B41&C41&D41&E41&F41,CHOOSE({1,2,3,4,5,6},'List Unsorted Data - Unique'!$A$2:$A$42942&'List Unsorted Data - Unique'!$B$2:$B$42942&'List Unsorted Data - Unique'!$C$2:$C$42942&'List Unsorted Data - Unique'!$D$2:$D$42942&'List Unsorted Data - Unique'!$E$2:$E$42942&'List Unsorted Data - Unique'!$F$2:$F$42942,'List Unsorted Data - Unique'!$H$2:$H$42942),2,0) -> 78 | S41: =SUM(('List Unsorted Data - Unique'!$A$2:$A$42942=A41)*('List Unsorted Data - Unique'!$B$2:$B$42942=B41)*('List Unsorted Data - Unique'!$C$2:$C$42942=C41)*('List Unsorted Data - Unique'!$D$2:$D$42942=D41)*('List Unsorted Data - Unique'!$E$2:$E$42942=E41)*('List Unsorted Data - Unique'!$F$2:$F$42942=F41)*('List Unsorted Data - Unique'!$H$2:$H$42942)) -> 78
A42: 2016 | B42: 7 | C42: J. McVie | D42: JKL001 | E42: SD01 | F42: Actual | G42: =INDEX('List Unsorted Data - Unique'!$H$2:$H$42942,MATCH(A42&"-"&B42&"-"&C42&"-"&D42&"-"&E42&"-"&F42,'List Unsorted Data - Unique'!$G$2:$G$42942,0)) -> 69 | I42: =SUMIFS('List Unsorted Data - Unique'!$H$2:$H$42942,'List Unsorted Data - Unique'!$A$2:$A$42942,A42,'List Unsorted Data - Unique'!$B$2:$B$42942,B42,'List Unsorted Data - Unique'!$C$2:$C$42942,C42,'List Unsorted Data - Unique'!$D$2:$D$42942,D42,'List Unsorted Data - Unique'!$E$2:$E$42942,E42,'List Unsorted Data - Unique'!$F$2:$F$42942,F42) -> 69 | K42: =INDEX('List Unsorted Data - Unique'!$H$2:$H$42942,MATCH(A42&B42&C42&D42&E42&F42,'List Unsorted Data - Unique'!$A$2:$A$42942&'List Unsorted Data - Unique'!$B$2:$B$42942&'List Unsorted Data - Unique'!$C$2:$C$42942&'List Unsorted Data - Unique'!$D$2:$D$42942&'List Unsorted Data - Unique'!$E$2:$E$42942&'List Unsorted Data - Unique'!$F$2:$F$42942,0)) -> 69 | M42: =INDEX('List Unsorted Data - Unique'!$H$2:$H$42942,MATCH(1,('List Unsorted Data - Unique'!$A$2:$A$42942=A42)*('List Unsorted Data - Unique'!$B$2:$B$42942=B42)*('List Unsorted Data - Unique'!$C$2:$C$42942=C42)*('List Unsorted Data - Unique'!$D$2:$D$42942=D42)*('List Unsorted Data - Unique'!$E$2:$E$42942=E42)*('List Unsorted Data - Unique'!$F$2:$F$42942=F42),0)) -> 69 | O42: =SUMPRODUCT(('List Unsorted Data - Unique'!$A$2:$A$42942=A42)*('List Unsorted Data - Unique'!$B$2:$B$42942=B42)*('List Unsorted Data - Unique'!$C$2:$C$42942=C42)*('List Unsorted Data - Unique'!$D$2:$D$42942=D42)*('List Unsorted Data - Unique'!$E$2:$E$42942=E42)*('List Unsorted Data - Unique'!$F$2:$F$42942=F42)*('List Unsorted Data - Unique'!$H$2:$H$42942)) -> 69 | Q42: =VLOOKUP(A42&B42&C42&D42&E42&F42,CHOOSE({1,2,3,4,5,6},'List Unsorted Data - Unique'!$A$2:$A$42942&'List Unsorted Data - Unique'!$B$2:$B$42942&'List Unsorted Data - Unique'!$C$2:$C$42942&'List Unsorted Data - Unique'!$D$2:$D$42942&'List Unsorted Data - Unique'!$E$2:$E$42942&'List Unsorted Data - Unique'!$F$2:$F$42942,'List Unsorted Data - Unique'!$H$2:$H$42942),2,0) -> 69 | S42: =SUM(('List Unsorted Data - Unique'!$A$2:$A$42942=A42)*('List Unsorted Data - Unique'!$B$2:$B$42942=B42)*('List Unsorted Data - Unique'!$C$2:$C$42942=C42)*('List Unsorted Data - Unique'!$D$2:$D$42942=D42)*('List Unsorted Data - Unique'!$E$2:$E$42942=E42)*('List Unsorted Data - Unique'!$F$2:$F$42942=F42)*('List Unsorted Data - Unique'!$H$2:$H$42942)) -> 69
A43: 2016 | B43: 11 | C43: B. Paisley | D43: DFG001 | E43: MN01 | F43: Forecast | G43: =INDEX('List Unsorted Data - Unique'!$H$2:$H$42942,MATCH(A43&"-"&B43&"-"&C43&"-"&D43&"-"&E43&"-"&F43,'List Unsorted Data - Unique'!$G$2:$G$42942,0)) -> 56 | I43: =SUMIFS('List Unsorted Data - Unique'!$H$2:$H$42942,'List Unsorted Data - Unique'!$A$2:$A$42942,A43,'List Unsorted Data - Unique'!$B$2:$B$42942,B43,'List Unsorted Data - Unique'!$C$2:$C$42942,C43,'List Unsorted Data - Unique'!$D$2:$D$42942,D43,'List Unsorted Data - Unique'!$E$2:$E$42942,E43,'List Unsorted Data - Unique'!$F$2:$F$42942,F43) -> 56 | K43: =INDEX('List Unsorted Data - Unique'!$H$2:$H$42942,MATCH(A43&B43&C43&D43&E43&F43,'List Unsorted Data - Unique'!$A$2:$A$42942&'List Unsorted Data - Unique'!$B$2:$B$42942&'List Unsorted Data - Unique'!$C$2:$C$42942&'List Unsorted Data - Unique'!$D$2:$D$42942&'List Unsorted Data - Unique'!$E$2:$E$42942&'List Unsorted Data - Unique'!$F$2:$F$42942,0)) -> 56 | M43: =INDEX('List Unsorted Data - Unique'!$H$2:$H$42942,MATCH(1,('List Unsorted Data - Unique'!$A$2:$A$42942=A43)*('List Unsorted Data - Unique'!$B$2:$B$42942=B43)*('List Unsorted Data - Unique'!$C$2:$C$42942=C43)*('List Unsorted Data - Unique'!$D$2:$D$42942=D43)*('List Unsorted Data - Unique'!$E$2:$E$42942=E43)*('List Unsorted Data - Unique'!$F$2:$F$42942=F43),0)) -> 56 | O43: =SUMPRODUCT(('List Unsorted Data - Unique'!$A$2:$A$42942=A43)*('List Unsorted Data - Unique'!$B$2:$B$42942=B43)*('List Unsorted Data - Unique'!$C$2:$C$42942=C43)*('List Unsorted Data - Unique'!$D$2:$D$42942=D43)*('List Unsorted Data - Unique'!$E$2:$E$42942=E43)*('List Unsorted Data - Unique'!$F$2:$F$42942=F43)*('List Unsorted Data - Unique'!$H$2:$H$42942)) -> 56 | Q43: =VLOOKUP(A43&B43&C43&D43&E43&F43,CHOOSE({1,2,3,4,5,6},'List Unsorted Data - Unique'!$A$2:$A$42942&'List Unsorted Data - Unique'!$B$2:$B$42942&'List Unsorted Data - Unique'!$C$2:$C$42942&'List Unsorted Data - Unique'!$D$2:$D$42942&'List Unsorted Data - Unique'!$E$2:$E$42942&'List Unsorted Data - Unique'!$F$2:$F$42942,'List Unsorted Data - Unique'!$H$2:$H$42942),2,0) -> 56 | S43: =SUM(('List Unsorted Data - Unique'!$A$2:$A$42942=A43)*('List Unsorted Data - Unique'!$B$2:$B$42942=B43)*('List Unsorted Data - Unique'!$C$2:$C$42942=C43)*('List Unsorted Data - Unique'!$D$2:$D$42942=D43)*('List Unsorted Data - Unique'!$E$2:$E$42942=E43)*('List Unsorted Data - Unique'!$F$2:$F$42942=F43)*('List Unsorted Data - Unique'!$H$2:$H$42942)) -> 56
A44: 2016 | B44: 5 | C44: P. Buck | D44: PRD002 | E44: AL01 | F44: Forecast | G44: =INDEX('List Unsorted Data - Unique'!$H$2:$H$42942,MATCH(A44&"-"&B44&"-"&C44&"-"&D44&"-"&E44&"-"&F44,'List Unsorted Data - Unique'!$G$2:$G$42942,0)) -> 339 | I44: =SUMIFS('List Unsorted Data - Unique'!$H$2:$H$42942,'List Unsorted Data - Unique'!$A$2:$A$42942,A44,'List Unsorted Data - Unique'!$B$2:$B$42942,B44,'List Unsorted Data - Unique'!$C$2:$C$42942,C44,'List Unsorted Data - Unique'!$D$2:$D$42942,D44,'List Unsorted Data - Unique'!$E$2:$E$42942,E44,'List Unsorted Data - Unique'!$F$2:$F$42942,F44) -> 339 | K44: =INDEX('List Unsorted Data - Unique'!$H$2:$H$42942,MATCH(A44&B44&C44&D44&E44&F44,'List Unsorted Data - Unique'!$A$2:$A$42942&'List Unsorted Data - Unique'!$B$2:$B$42942&'List Unsorted Data - Unique'!$C$2:$C$42942&'List Unsorted Data - Unique'!$D$2:$D$42942&'List Unsorted Data - Unique'!$E$2:$E$42942&'List Unsorted Data - Unique'!$F$2:$F$42942,0)) -> 339 | M44: =INDEX('List Unsorted Data - Unique'!$H$2:$H$42942,MATCH(1,('List Unsorted Data - Unique'!$A$2:$A$42942=A44)*('List Unsorted Data - Unique'!$B$2:$B$42942=B44)*('List Unsorted Data - Unique'!$C$2:$C$42942=C44)*('List Unsorted Data - Unique'!$D$2:$D$42942=D44)*('List Unsorted Data - Unique'!$E$2:$E$42942=E44)*('List Unsorted Data - Unique'!$F$2:$F$42942=F44),0)) -> 339 | O44: =SUMPRODUCT(('List Unsorted Data - Unique'!$A$2:$A$42942=A44)*('List Unsorted Data - Unique'!$B$2:$B$42942=B44)*('List Unsorted Data - Unique'!$C$2:$C$42942=C44)*('List Unsorted Data - Unique'!$D$2:$D$42942=D44)*('List Unsorted Data - Unique'!$E$2:$E$42942=E44)*('List Unsorted Data - Unique'!$F$2:$F$42942=F44)*('List Unsorted Data - Unique'!$H$2:$H$42942)) -> 339 | Q44: =VLOOKUP(A44&B44&C44&D44&E44&F44,CHOOSE({1,2,3,4,5,6},'List Unsorted Data - Unique'!$A$2:$A$42942&'List Unsorted Data - Unique'!$B$2:$B$42942&'List Unsorted Data - Unique'!$C$2:$C$42942&'List Unsorted Data - Unique'!$D$2:$D$42942&'List Unsorted Data - Unique'!$E$2:$E$42942&'List Unsorted Data - Unique'!$F$2:$F$42942,'List Unsorted Data - Unique'!$H$2:$H$42942),2,0) -> 339 | S44: =SUM(('List Unsorted Data - Unique'!$A$2:$A$42942=A44)*('List Unsorted Data - Unique'!$B$2:$B$42942=B44)*('List Unsorted Data - Unique'!$C$2:$C$42942=C44)*('List Unsorted Data - Unique'!$D$2:$D$42942=D44)*('List Unsorted Data - Unique'!$E$2:$E$42942=E44)*('List Unsorted Data - Unique'!$F$2:$F$42942=F44)*('List Unsorted Data - Unique'!$H$2:$H$42942)) -> 339
A45: 2015 | B45: 7 | C45: S. Crow | D45: POT002 | E45: CA01 | F45: Actual | G45: =INDEX('List Unsorted Data - Unique'!$H$2:$H$42942,MATCH(A45&"-"&B45&"-"&C45&"-"&D45&"-"&E45&"-"&F45,'List Unsorted Data - Unique'!$G$2:$G$42942,0)) -> 149 | I45: =SUMIFS('List Unsorted Data - Unique'!$H$2:$H$42942,'List Unsorted Data - Unique'!$A$2:$A$42942,A45,'List Unsorted Data - Unique'!$B$2:$B$42942,B45,'List Unsorted Data - Unique'!$C$2:$C$42942,C45,'List Unsorted Data - Unique'!$D$2:$D$42942,D45,'List Unsorted Data - Unique'!$E$2:$E$42942,E45,'List Unsorted Data - Unique'!$F$2:$F$42942,F45) -> 149 | K45: =INDEX('List Unsorted Data - Unique'!$H$2:$H$42942,MATCH(A45&B45&C45&D45&E45&F45,'List Unsorted Data - Unique'!$A$2:$A$42942&'List Unsorted Data - Unique'!$B$2:$B$42942&'List Unsorted Data - Unique'!$C$2:$C$42942&'List Unsorted Data - Unique'!$D$2:$D$42942&'List Unsorted Data - Unique'!$E$2:$E$42942&'List Unsorted Data - Unique'!$F$2:$F$42942,0)) -> 149 | M45: =INDEX('List Unsorted Data - Unique'!$H$2:$H$42942,MATCH(1,('List Unsorted Data - Unique'!$A$2:$A$42942=A45)*('List Unsorted Data - Unique'!$B$2:$B$42942=B45)*('List Unsorted Data - Unique'!$C$2:$C$42942=C45)*('List Unsorted Data - Unique'!$D$2:$D$42942=D45)*('List Unsorted Data - Unique'!$E$2:$E$42942=E45)*('List Unsorted Data - Unique'!$F$2:$F$42942=F45),0)) -> 149 | O45: =SUMPRODUCT(('List Unsorted Data - Unique'!$A$2:$A$42942=A45)*('List Unsorted Data - Unique'!$B$2:$B$42942=B45)*('List Unsorted Data - Unique'!$C$2:$C$42942=C45)*('List Unsorted Data - Unique'!$D$2:$D$42942=D45)*('List Unsorted Data - Unique'!$E$2:$E$42942=E45)*('List Unsorted Data - Unique'!$F$2:$F$42942=F45)*('List Unsorted Data - Unique'!$H$2:$H$42942)) -> 149 | Q45: =VLOOKUP(A45&B45&C45&D45&E45&F45,CHOOSE({1,2,3,4,5,6},'List Unsorted Data - Unique'!$A$2:$A$42942&'List Unsorted Data - Unique'!$B$2:$B$42942&'List Unsorted Data - Unique'!$C$2:$C$42942&'List Unsorted Data - Unique'!$D$2:$D$42942&'List Unsorted Data - Unique'!$E$2:$E$42942&'List Unsorted Data - Unique'!$F$2:$F$42942,'List Unsorted Data - Unique'!$H$2:$H$42942),2,0) -> 149 | S45: =SUM(('List Unsorted Data - Unique'!$A$2:$A$42942=A45)*('List Unsorted Data - Unique'!$B$2:$B$42942=B45)*('List Unsorted Data - Unique'!$C$2:$C$42942=C45)*('List Unsorted Data - Unique'!$D$2:$D$42942=D45)*('List Unsorted Data - Unique'!$E$2:$E$42942=E45)*('List Unsorted Data - Unique'!$F$2:$F$42942=F45)*('List Unsorted Data - Unique'!$H$2:$H$42942)) -> 149
A46: 2016 | B46: 7 | C46: B. Paisley | D46: DFG001 | E46: AK01 | F46: Forecast | G46: =INDEX('List Unsorted Data - Unique'!$H$2:$H$42942,MATCH(A46&"-"&B46&"-"&C46&"-"&D46&"-"&E46&"-"&F46,'List Unsorted Data - Unique'!$G$2:$G$42942,0)) -> 112 | I46: =SUMIFS('List Unsorted Data - Unique'!$H$2:$H$42942,'List Unsorted Data - Unique'!$A$2:$A$42942,A46,'List Unsorted Data - Unique'!$B$2:$B$42942,B46,'List Unsorted Data - Unique'!$C$2:$C$42942,C46,'List Unsorted Data - Unique'!$D$2:$D$42942,D46,'List Unsorted Data - Unique'!$E$2:$E$42942,E46,'List Unsorted Data - Unique'!$F$2:$F$42942,F46) -> 112 | K46: =INDEX('List Unsorted Data - Unique'!$H$2:$H$42942,MATCH(A46&B46&C46&D46&E46&F46,'List Unsorted Data - Unique'!$A$2:$A$42942&'List Unsorted Data - Unique'!$B$2:$B$42942&'List Unsorted Data - Unique'!$C$2:$C$42942&'List Unsorted Data - Unique'!$D$2:$D$42942&'List Unsorted Data - Unique'!$E$2:$E$42942&'List Unsorted Data - Unique'!$F$2:$F$42942,0)) -> 112 | M46: =INDEX('List Unsorted Data - Unique'!$H$2:$H$42942,MATCH(1,('List Unsorted Data - Unique'!$A$2:$A$42942=A46)*('List Unsorted Data - Unique'!$B$2:$B$42942=B46)*('List Unsorted Data - Unique'!$C$2:$C$42942=C46)*('List Unsorted Data - Unique'!$D$2:$D$42942=D46)*('List Unsorted Data - Unique'!$E$2:$E$42942=E46)*('List Unsorted Data - Unique'!$F$2:$F$42942=F46),0)) -> 112 | O46: =SUMPRODUCT(('List Unsorted Data - Unique'!$A$2:$A$42942=A46)*('List Unsorted Data - Unique'!$B$2:$B$42942=B46)*('List Unsorted Data - Unique'!$C$2:$C$42942=C46)*('List Unsorted Data - Unique'!$D$2:$D$42942=D46)*('List Unsorted Data - Unique'!$E$2:$E$42942=E46)*('List Unsorted Data - Unique'!$F$2:$F$42942=F46)*('List Unsorted Data - Unique'!$H$2:$H$42942)) -> 112 | Q46: =VLOOKUP(A46&B46&C46&D46&E46&F46,CHOOSE({1,2,3,4,5,6},'List Unsorted Data - Unique'!$A$2:$A$42942&'List Unsorted Data - Unique'!$B$2:$B$42942&'List Unsorted Data - Unique'!$C$2:$C$42942&'List Unsorted Data - Unique'!$D$2:$D$42942&'List Unsorted Data - Unique'!$E$2:$E$42942&'List Unsorted Data - Unique'!$F$2:$F$42942,'List Unsorted Data - Unique'!$H$2:$H$42942),2,0) -> 112 | S46: =SUM(('List Unsorted Data - Unique'!$A$2:$A$42942=A46)*('List Unsorted Data - Unique'!$B$2:$B$42942=B46)*('List Unsorted Data - Unique'!$C$2:$C$42942=C46)*('List Unsorted Data - Unique'!$D$2:$D$42942=D46)*('List Unsorted Data - Unique'!$E$2:$E$42942=E46)*('List Unsorted Data - Unique'!$F$2:$F$42942=F46)*('List Unsorted Data - Unique'!$H$2:$H$42942)) -> 112
A47: 2014 | B47: 9 | C47: B. Paisley | D47: PRD001 | E47: MN01 | F47: Actual | G47: =INDEX('List Unsorted Data - Unique'!$H$2:$H$42942,MATCH(A47&"-"&B47&"-"&C47&"-"&D47&"-"&E47&"-"&F47,'List Unsorted Data - Unique'!$G$2:$G$42942,0)) -> 263 | I47: =SUMIFS('List Unsorted Data - Unique'!$H$2:$H$42942,'List Unsorted Data - Unique'!$A$2:$A$42942,A47,'List Unsorted Data - Unique'!$B$2:$B$42942,B47,'List Unsorted Data - Unique'!$C$2:$C$42942,C47,'List Unsorted Data - Unique'!$D$2:$D$42942,D47,'List Unsorted Data - Unique'!$E$2:$E$42942,E47,'List Unsorted Data - Unique'!$F$2:$F$42942,F47) -> 263 | K47: =INDEX('List Unsorted Data - Unique'!$H$2:$H$42942,MATCH(A47&B47&C47&D47&E47&F47,'List Unsorted Data - Unique'!$A$2:$A$42942&'List Unsorted Data - Unique'!$B$2:$B$42942&'List Unsorted Data - Unique'!$C$2:$C$42942&'List Unsorted Data - Unique'!$D$2:$D$42942&'List Unsorted Data - Unique'!$E$2:$E$42942&'List Unsorted Data - Unique'!$F$2:$F$42942,0)) -> 263 | M47: =INDEX('List Unsorted Data - Unique'!$H$2:$H$42942,MATCH(1,('List Unsorted Data - Unique'!$A$2:$A$42942=A47)*('List Unsorted Data - Unique'!$B$2:$B$42942=B47)*('List Unsorted Data - Unique'!$C$2:$C$42942=C47)*('List Unsorted Data - Unique'!$D$2:$D$42942=D47)*('List Unsorted Data - Unique'!$E$2:$E$42942=E47)*('List Unsorted Data - Unique'!$F$2:$F$42942=F47),0)) -> 263 | O47: =SUMPRODUCT(('List Unsorted Data - Unique'!$A$2:$A$42942=A47)*('List Unsorted Data - Unique'!$B$2:$B$42942=B47)*('List Unsorted Data - Unique'!$C$2:$C$42942=C47)*('List Unsorted Data - Unique'!$D$2:$D$42942=D47)*('List Unsorted Data - Unique'!$E$2:$E$42942=E47)*('List Unsorted Data - Unique'!$F$2:$F$42942=F47)*('List Unsorted Data - Unique'!$H$2:$H$42942)) -> 263 | Q47: =VLOOKUP(A47&B47&C47&D47&E47&F47,CHOOSE({1,2,3,4,5,6},'List Unsorted Data - Unique'!$A$2:$A$42942&'List Unsorted Data - Unique'!$B$2:$B$42942&'List Unsorted Data - Unique'!$C$2:$C$42942&'List Unsorted Data - Unique'!$D$2:$D$42942&'List Unsorted Data - Unique'!$E$2:$E$42942&'List Unsorted Data - Unique'!$F$2:$F$42942,'List Unsorted Data - Unique'!$H$2:$H$42942),2,0) -> 263 | S47: =SUM(('List Unsorted Data - Unique'!$A$2:$A$42942=A47)*('List Unsorted Data - Unique'!$B$2:$B$42942=B47)*('List Unsorted Data - Unique'!$C$2:$C$42942=C47)*('List Unsorted Data - Unique'!$D$2:$D$42942=D47)*('List Unsorted Data - Unique'!$E$2:$E$42942=E47)*('List Unsorted Data - Unique'!$F$2:$F$42942=F47)*('List Unsorted Data - Unique'!$H$2:$H$42942)) -> 263
A48: 2015 | B48: 1 | C48: M. Stipe | D48: POT001 | E48: SD01 | F48: Actual | G48: =INDEX('List Unsorted Data - Unique'!$H$2:$H$42942,MATCH(A48&"-"&B48&"-"&C48&"-"&D48&"-"&E48&"-"&F48,'List Unsorted Data - Unique'!$G$2:$G$42942,0)) -> 152 | I48: =SUMIFS('List Unsorted Data - Unique'!$H$2:$H$42942,'List Unsorted Data - Unique'!$A$2:$A$42942,A48,'List Unsorted Data - Unique'!$B$2:$B$42942,B48,'List Unsorted Data - Unique'!$C$2:$C$42942,C48,'List Unsorted Data - Unique'!$D$2:$D$42942,D48,'List Unsorted Data - Unique'!$E$2:$E$42942,E48,'List Unsorted Data - Unique'!$F$2:$F$42942,F48) -> 152 | K48: =INDEX('List Unsorted Data - Unique'!$H$2:$H$42942,MATCH(A48&B48&C48&D48&E48&F48,'List Unsorted Data - Unique'!$A$2:$A$42942&'List Unsorted Data - Unique'!$B$2:$B$42942&'List Unsorted Data - Unique'!$C$2:$C$42942&'List Unsorted Data - Unique'!$D$2:$D$42942&'List Unsorted Data - Unique'!$E$2:$E$42942&'List Unsorted Data - Unique'!$F$2:$F$42942,0)) -> 152 | M48: =INDEX('List Unsorted Data - Unique'!$H$2:$H$42942,MATCH(1,('List Unsorted Data - Unique'!$A$2:$A$42942=A48)*('List Unsorted Data - Unique'!$B$2:$B$42942=B48)*('List Unsorted Data - Unique'!$C$2:$C$42942=C48)*('List Unsorted Data - Unique'!$D$2:$D$42942=D48)*('List Unsorted Data - Unique'!$E$2:$E$42942=E48)*('List Unsorted Data - Unique'!$F$2:$F$42942=F48),0)) -> 152 | O48: =SUMPRODUCT(('List Unsorted Data - Unique'!$A$2:$A$42942=A48)*('List Unsorted Data - Unique'!$B$2:$B$42942=B48)*('List Unsorted Data - Unique'!$C$2:$C$42942=C48)*('List Unsorted Data - Unique'!$D$2:$D$42942=D48)*('List Unsorted Data - Unique'!$E$2:$E$42942=E48)*('List Unsorted Data - Unique'!$F$2:$F$42942=F48)*('List Unsorted Data - Unique'!$H$2:$H$42942)) -> 152 | Q48: =VLOOKUP(A48&B48&C48&D48&E48&F48,CHOOSE({1,2,3,4,5,6},'List Unsorted Data - Unique'!$A$2:$A$42942&'List Unsorted Data - Unique'!$B$2:$B$42942&'List Unsorted Data - Unique'!$C$2:$C$42942&'List Unsorted Data - Unique'!$D$2:$D$42942&'List Unsorted Data - Unique'!$E$2:$E$42942&'List Unsorted Data - Unique'!$F$2:$F$42942,'List Unsorted Data - Unique'!$H$2:$H$42942),2,0) -> 152 | S48: =SUM(('List Unsorted Data - Unique'!$A$2:$A$42942=A48)*('List Unsorted Data - Unique'!$B$2:$B$42942=B48)*('List Unsorted Data - Unique'!$C$2:$C$42942=C48)*('List Unsorted Data - Unique'!$D$2:$D$42942=D48)*('List Unsorted Data - Unique'!$E$2:$E$42942=E48)*('List Unsorted Data - Unique'!$F$2:$F$42942=F48)*('List Unsorted Data - Unique'!$H$2:$H$42942)) -> 152
A49: 2015 | B49: 12 | C49: M. Stipe | D49: DFG001 | E49: AL01 | F49: Forecast | G49: =INDEX('List Unsorted Data - Unique'!$H$2:$H$42942,MATCH(A49&"-"&B49&"-"&C49&"-"&D49&"-"&E49&"-"&F49,'List Unsorted Data - Unique'!$G$2:$G$42942,0)) -> 59 | I49: =SUMIFS('List Unsorted Data - Unique'!$H$2:$H$42942,'List Unsorted Data - Unique'!$A$2:$A$42942,A49,'List Unsorted Data - Unique'!$B$2:$B$42942,B49,'List Unsorted Data - Unique'!$C$2:$C$42942,C49,'List Unsorted Data - Unique'!$D$2:$D$42942,D49,'List Unsorted Data - Unique'!$E$2:$E$42942,E49,'List Unsorted Data - Unique'!$F$2:$F$42942,F49) -> 59 | K49: =INDEX('List Unsorted Data - Unique'!$H$2:$H$42942,MATCH(A49&B49&C49&D49&E49&F49,'List Unsorted Data - Unique'!$A$2:$A$42942&'List Unsorted Data - Unique'!$B$2:$B$42942&'List Unsorted Data - Unique'!$C$2:$C$42942&'List Unsorted Data - Unique'!$D$2:$D$42942&'List Unsorted Data - Unique'!$E$2:$E$42942&'List Unsorted Data - Unique'!$F$2:$F$42942,0)) -> 59 | M49: =INDEX('List Unsorted Data - Unique'!$H$2:$H$42942,MATCH(1,('List Unsorted Data - Unique'!$A$2:$A$42942=A49)*('List Unsorted Data - Unique'!$B$2:$B$42942=B49)*('List Unsorted Data - Unique'!$C$2:$C$42942=C49)*('List Unsorted Data - Unique'!$D$2:$D$42942=D49)*('List Unsorted Data - Unique'!$E$2:$E$42942=E49)*('List Unsorted Data - Unique'!$F$2:$F$42942=F49),0)) -> 59 | O49: =SUMPRODUCT(('List Unsorted Data - Unique'!$A$2:$A$42942=A49)*('List Unsorted Data - Unique'!$B$2:$B$42942=B49)*('List Unsorted Data - Unique'!$C$2:$C$42942=C49)*('List Unsorted Data - Unique'!$D$2:$D$42942=D49)*('List Unsorted Data - Unique'!$E$2:$E$42942=E49)*('List Unsorted Data - Unique'!$F$2:$F$42942=F49)*('List Unsorted Data - Unique'!$H$2:$H$42942)) -> 59 | Q49: =VLOOKUP(A49&B49&C49&D49&E49&F49,CHOOSE({1,2,3,4,5,6},'List Unsorted Data - Unique'!$A$2:$A$42942&'List Unsorted Data - Unique'!$B$2:$B$42942&'List Unsorted Data - Unique'!$C$2:$C$42942&'List Unsorted Data - Unique'!$D$2:$D$42942&'List Unsorted Data - Unique'!$E$2:$E$42942&'List Unsorted Data - Unique'!$F$2:$F$42942,'List Unsorted Data - Unique'!$H$2:$H$42942),2,0) -> 59 | S49: =SUM(('List Unsorted Data - Unique'!$A$2:$A$42942=A49)*('List Unsorted Data - Unique'!$B$2:$B$42942=B49)*('List Unsorted Data - Unique'!$C$2:$C$42942=C49)*('List Unsorted Data - Unique'!$D$2:$D$42942=D49)*('List Unsorted Data - Unique'!$E$2:$E$42942=E49)*('List Unsorted Data - Unique'!$F$2:$F$42942=F49)*('List Unsorted Data - Unique'!$H$2:$H$42942)) -> 59
A50: 2016 | B50: 1 | C50: J. Lennon | D50: POT002 | E50: AL01 | F50: Actual | G50: =INDEX('List Unsorted Data - Unique'!$H$2:$H$42942,MATCH(A50&"-"&B50&"-"&C50&"-"&D50&"-"&E50&"-"&F50,'List Unsorted Data - Unique'!$G$2:$G$42942,0)) -> 80 | I50: =SUMIFS('List Unsorted Data - Unique'!$H$2:$H$42942,'List Unsorted Data - Unique'!$A$2:$A$42942,A50,'List Unsorted Data - Unique'!$B$2:$B$42942,B50,'List Unsorted Data - Unique'!$C$2:$C$42942,C50,'List Unsorted Data - Unique'!$D$2:$D$42942,D50,'List Unsorted Data - Unique'!$E$2:$E$42942,E50,'List Unsorted Data - Unique'!$F$2:$F$42942,F50) -> 80 | K50: =INDEX('List Unsorted Data - Unique'!$H$2:$H$42942,MATCH(A50&B50&C50&D50&E50&F50,'List Unsorted Data - Unique'!$A$2:$A$42942&'List Unsorted Data - Unique'!$B$2:$B$42942&'List Unsorted Data - Unique'!$C$2:$C$42942&'List Unsorted Data - Unique'!$D$2:$D$42942&'List Unsorted Data - Unique'!$E$2:$E$42942&'List Unsorted Data - Unique'!$F$2:$F$42942,0)) -> 80 | M50: =INDEX('List Unsorted Data - Unique'!$H$2:$H$42942,MATCH(1,('List Unsorted Data - Unique'!$A$2:$A$42942=A50)*('List Unsorted Data - Unique'!$B$2:$B$42942=B50)*('List Unsorted Data - Unique'!$C$2:$C$42942=C50)*('List Unsorted Data - Unique'!$D$2:$D$42942=D50)*('List Unsorted Data - Unique'!$E$2:$E$42942=E50)*('List Unsorted Data - Unique'!$F$2:$F$42942=F50),0)) -> 80 | O50: =SUMPRODUCT(('List Unsorted Data - Unique'!$A$2:$A$42942=A50)*('List Unsorted Data - Unique'!$B$2:$B$42942=B50)*('List Unsorted Data - Unique'!$C$2:$C$42942=C50)*('List Unsorted Data - Unique'!$D$2:$D$42942=D50)*('List Unsorted Data - Unique'!$E$2:$E$42942=E50)*('List Unsorted Data - Unique'!$F$2:$F$42942=F50)*('List Unsorted Data - Unique'!$H$2:$H$42942)) -> 80 | Q50: =VLOOKUP(A50&B50&C50&D50&E50&F50,CHOOSE({1,2,3,4,5,6},'List Unsorted Data - Unique'!$A$2:$A$42942&'List Unsorted Data - Unique'!$B$2:$B$42942&'List Unsorted Data - Unique'!$C$2:$C$42942&'List Unsorted Data - Unique'!$D$2:$D$42942&'List Unsorted Data - Unique'!$E$2:$E$42942&'List Unsorted Data - Unique'!$F$2:$F$42942,'List Unsorted Data - Unique'!$H$2:$H$42942),2,0) -> 80 | S50: =SUM(('List Unsorted Data - Unique'!$A$2:$A$42942=A50)*('List Unsorted Data - Unique'!$B$2:$B$42942=B50)*('List Unsorted Data - Unique'!$C$2:$C$42942=C50)*('List Unsorted Data - Unique'!$D$2:$D$42942=D50)*('List Unsorted Data - Unique'!$E$2:$E$42942=E50)*('List Unsorted Data - Unique'!$F$2:$F$42942=F50)*('List Unsorted Data - Unique'!$H$2:$H$42942)) -> 80
A51: 2015 | B51: 9 | C51: M.Mills | D51: POT002 | E51: AL01 | F51: Forecast | G51: =INDEX('List Unsorted Data - Unique'!$H$2:$H$42942,MATCH(A51&"-"&B51&"-"&C51&"-"&D51&"-"&E51&"-"&F51,'List Unsorted Data - Unique'!$G$2:$G$42942,0)) -> 145 | I51: =SUMIFS('List Unsorted Data - Unique'!$H$2:$H$42942,'List Unsorted Data - Unique'!$A$2:$A$42942,A51,'List Unsorted Data - Unique'!$B$2:$B$42942,B51,'List Unsorted Data - Unique'!$C$2:$C$42942,C51,'List Unsorted Data - Unique'!$D$2:$D$42942,D51,'List Unsorted Data - Unique'!$E$2:$E$42942,E51,'List Unsorted Data - Unique'!$F$2:$F$42942,F51) -> 145 | K51: =INDEX('List Unsorted Data - Unique'!$H$2:$H$42942,MATCH(A51&B51&C51&D51&E51&F51,'List Unsorted Data - Unique'!$A$2:$A$42942&'List Unsorted Data - Unique'!$B$2:$B$42942&'List Unsorted Data - Unique'!$C$2:$C$42942&'List Unsorted Data - Unique'!$D$2:$D$42942&'List Unsorted Data - Unique'!$E$2:$E$42942&'List Unsorted Data - Unique'!$F$2:$F$42942,0)) -> 145 | M51: =INDEX('List Unsorted Data - Unique'!$H$2:$H$42942,MATCH(1,('List Unsorted Data - Unique'!$A$2:$A$42942=A51)*('List Unsorted Data - Unique'!$B$2:$B$42942=B51)*('List Unsorted Data - Unique'!$C$2:$C$42942=C51)*('List Unsorted Data - Unique'!$D$2:$D$42942=D51)*('List Unsorted Data - Unique'!$E$2:$E$42942=E51)*('List Unsorted Data - Unique'!$F$2:$F$42942=F51),0)) -> 145 | O51: =SUMPRODUCT(('List Unsorted Data - Unique'!$A$2:$A$42942=A51)*('List Unsorted Data - Unique'!$B$2:$B$42942=B51)*('List Unsorted Data - Unique'!$C$2:$C$42942=C51)*('List Unsorted Data - Unique'!$D$2:$D$42942=D51)*('List Unsorted Data - Unique'!$E$2:$E$42942=E51)*('List Unsorted Data - Unique'!$F$2:$F$42942=F51)*('List Unsorted Data - Unique'!$H$2:$H$42942)) -> 145 | Q51: =VLOOKUP(A51&B51&C51&D51&E51&F51,CHOOSE({1,2,3,4,5,6},'List Unsorted Data - Unique'!$A$2:$A$42942&'List Unsorted Data - Unique'!$B$2:$B$42942&'List Unsorted Data - Unique'!$C$2:$C$42942&'List Unsorted Data - Unique'!$D$2:$D$42942&'List Unsorted Data - Unique'!$E$2:$E$42942&'List Unsorted Data - Unique'!$F$2:$F$42942,'List Unsorted Data - Unique'!$H$2:$H$42942),2,0) -> 145 | S51: =SUM(('List Unsorted Data - Unique'!$A$2:$A$42942=A51)*('List Unsorted Data - Unique'!$B$2:$B$42942=B51)*('List Unsorted Data - Unique'!$C$2:$C$42942=C51)*('List Unsorted Data - Unique'!$D$2:$D$42942=D51)*('List Unsorted Data - Unique'!$E$2:$E$42942=E51)*('List Unsorted Data - Unique'!$F$2:$F$42942=F51)*('List Unsorted Data - Unique'!$H$2:$H$42942)) -> 145
A52: 2016 | B52: 9 | C52: C. Underwood | D52: JKL001 | E52: MN01 | F52: Forecast | G52: =INDEX('List Unsorted Data - Unique'!$H$2:$H$42942,MATCH(A52&"-"&B52&"-"&C52&"-"&D52&"-"&E52&"-"&F52,'List Unsorted Data - Unique'!$G$2:$G$42942,0)) -> 122 | I52: =SUMIFS('List Unsorted Data - Unique'!$H$2:$H$42942,'List Unsorted Data - Unique'!$A$2:$A$42942,A52,'List Unsorted Data - Unique'!$B$2:$B$42942,B52,'List Unsorted Data - Unique'!$C$2:$C$42942,C52,'List Unsorted Data - Unique'!$D$2:$D$42942,D52,'List Unsorted Data - Unique'!$E$2:$E$42942,E52,'List Unsorted Data - Unique'!$F$2:$F$42942,F52) -> 122 | K52: =INDEX('List Unsorted Data - Unique'!$H$2:$H$42942,MATCH(A52&B52&C52&D52&E52&F52,'List Unsorted Data - Unique'!$A$2:$A$42942&'List Unsorted Data - Unique'!$B$2:$B$42942&'List Unsorted Data - Unique'!$C$2:$C$42942&'List Unsorted Data - Unique'!$D$2:$D$42942&'List Unsorted Data - Unique'!$E$2:$E$42942&'List Unsorted Data - Unique'!$F$2:$F$42942,0)) -> 122 | M52: =INDEX('List Unsorted Data - Unique'!$H$2:$H$42942,MATCH(1,('List Unsorted Data - Unique'!$A$2:$A$42942=A52)*('List Unsorted Data - Unique'!$B$2:$B$42942=B52)*('List Unsorted Data - Unique'!$C$2:$C$42942=C52)*('List Unsorted Data - Unique'!$D$2:$D$42942=D52)*('List Unsorted Data - Unique'!$E$2:$E$42942=E52)*('List Unsorted Data - Unique'!$F$2:$F$42942=F52),0)) -> 122 | O52: =SUMPRODUCT(('List Unsorted Data - Unique'!$A$2:$A$42942=A52)*('List Unsorted Data - Unique'!$B$2:$B$42942=B52)*('List Unsorted Data - Unique'!$C$2:$C$42942=C52)*('List Unsorted Data - Unique'!$D$2:$D$42942=D52)*('List Unsorted Data - Unique'!$E$2:$E$42942=E52)*('List Unsorted Data - Unique'!$F$2:$F$42942=F52)*('List Unsorted Data - Unique'!$H$2:$H$42942)) -> 122 | Q52: =VLOOKUP(A52&B52&C52&D52&E52&F52,CHOOSE({1,2,3,4,5,6},'List Unsorted Data - Unique'!$A$2:$A$42942&'List Unsorted Data - Unique'!$B$2:$B$42942&'List Unsorted Data - Unique'!$C$2:$C$42942&'List Unsorted Data - Unique'!$D$2:$D$42942&'List Unsorted Data - Unique'!$E$2:$E$42942&'List Unsorted Data - Unique'!$F$2:$F$42942,'List Unsorted Data - Unique'!$H$2:$H$42942),2,0) -> 122 | S52: =SUM(('List Unsorted Data - Unique'!$A$2:$A$42942=A52)*('List Unsorted Data - Unique'!$B$2:$B$42942=B52)*('List Unsorted Data - Unique'!$C$2:$C$42942=C52)*('List Unsorted Data - Unique'!$D$2:$D$42942=D52)*('List Unsorted Data - Unique'!$E$2:$E$42942=E52)*('List Unsorted Data - Unique'!$F$2:$F$42942=F52)*('List Unsorted Data - Unique'!$H$2:$H$42942)) -> 122
A53: 2015 | B53: 2 | C53: B. Paisley | D53: PRD002 | E53: AL01 | F53: Forecast | G53: =INDEX('List Unsorted Data - Unique'!$H$2:$H$42942,MATCH(A53&"-"&B53&"-"&C53&"-"&D53&"-"&E53&"-"&F53,'List Unsorted Data - Unique'!$G$2:$G$42942,0)) -> 240 | I53: =SUMIFS('List Unsorted Data - Unique'!$H$2:$H$42942,'List Unsorted Data - Unique'!$A$2:$A$42942,A53,'List Unsorted Data - Unique'!$B$2:$B$42942,B53,'List Unsorted Data - Unique'!$C$2:$C$42942,C53,'List Unsorted Data - Unique'!$D$2:$D$42942,D53,'List Unsorted Data - Unique'!$E$2:$E$42942,E53,'List Unsorted Data - Unique'!$F$2:$F$42942,F53) -> 240 | K53: =INDEX('List Unsorted Data - Unique'!$H$2:$H$42942,MATCH(A53&B53&C53&D53&E53&F53,'List Unsorted Data - Unique'!$A$2:$A$42942&'List Unsorted Data - Unique'!$B$2:$B$42942&'List Unsorted Data - Unique'!$C$2:$C$42942&'List Unsorted Data - Unique'!$D$2:$D$42942&'List Unsorted Data - Unique'!$E$2:$E$42942&'List Unsorted Data - Unique'!$F$2:$F$42942,0)) -> 240 | M53: =INDEX('List Unsorted Data - Unique'!$H$2:$H$42942,MATCH(1,('List Unsorted Data - Unique'!$A$2:$A$42942=A53)*('List Unsorted Data - Unique'!$B$2:$B$42942=B53)*('List Unsorted Data - Unique'!$C$2:$C$42942=C53)*('List Unsorted Data - Unique'!$D$2:$D$42942=D53)*('List Unsorted Data - Unique'!$E$2:$E$42942=E53)*('List Unsorted Data - Unique'!$F$2:$F$42942=F53),0)) -> 240 | O53: =SUMPRODUCT(('List Unsorted Data - Unique'!$A$2:$A$42942=A53)*('List Unsorted Data - Unique'!$B$2:$B$42942=B53)*('List Unsorted Data - Unique'!$C$2:$C$42942=C53)*('List Unsorted Data - Unique'!$D$2:$D$42942=D53)*('List Unsorted Data - Unique'!$E$2:$E$42942=E53)*('List Unsorted Data - Unique'!$F$2:$F$42942=F53)*('List Unsorted Data - Unique'!$H$2:$H$42942)) -> 240 | Q53: =VLOOKUP(A53&B53&C53&D53&E53&F53,CHOOSE({1,2,3,4,5,6},'List Unsorted Data - Unique'!$A$2:$A$42942&'List Unsorted Data - Unique'!$B$2:$B$42942&'List Unsorted Data - Unique'!$C$2:$C$42942&'List Unsorted Data - Unique'!$D$2:$D$42942&'List Unsorted Data - Unique'!$E$2:$E$42942&'List Unsorted Data - Unique'!$F$2:$F$42942,'List Unsorted Data - Unique'!$H$2:$H$42942),2,0) -> 240 | S53: =SUM(('List Unsorted Data - Unique'!$A$2:$A$42942=A53)*('List Unsorted Data - Unique'!$B$2:$B$42942=B53)*('List Unsorted Data - Unique'!$C$2:$C$42942=C53)*('List Unsorted Data - Unique'!$D$2:$D$42942=D53)*('List Unsorted Data - Unique'!$E$2:$E$42942=E53)*('List Unsorted Data - Unique'!$F$2:$F$42942=F53)*('List Unsorted Data - Unique'!$H$2:$H$42942)) -> 240
A54: 2015 | B54: 12 | C54: C. Underwood | D54: DFG001 | E54: MN01 | F54: Actual | G54: =INDEX('List Unsorted Data - Unique'!$H$2:$H$42942,MATCH(A54&"-"&B54&"-"&C54&"-"&D54&"-"&E54&"-"&F54,'List Unsorted Data - Unique'!$G$2:$G$42942,0)) -> 54 | I54: =SUMIFS('List Unsorted Data - Unique'!$H$2:$H$42942,'List Unsorted Data - Unique'!$A$2:$A$42942,A54,'List Unsorted Data - Unique'!$B$2:$B$42942,B54,'List Unsorted Data - Unique'!$C$2:$C$42942,C54,'List Unsorted Data - Unique'!$D$2:$D$42942,D54,'List Unsorted Data - Unique'!$E$2:$E$42942,E54,'List Unsorted Data - Unique'!$F$2:$F$42942,F54) -> 54 | K54: =INDEX('List Unsorted Data - Unique'!$H$2:$H$42942,MATCH(A54&B54&C54&D54&E54&F54,'List Unsorted Data - Unique'!$A$2:$A$42942&'List Unsorted Data - Unique'!$B$2:$B$42942&'List Unsorted Data - Unique'!$C$2:$C$42942&'List Unsorted Data - Unique'!$D$2:$D$42942&'List Unsorted Data - Unique'!$E$2:$E$42942&'List Unsorted Data - Unique'!$F$2:$F$42942,0)) -> 54 | M54: =INDEX('List Unsorted Data - Unique'!$H$2:$H$42942,MATCH(1,('List Unsorted Data - Unique'!$A$2:$A$42942=A54)*('List Unsorted Data - Unique'!$B$2:$B$42942=B54)*('List Unsorted Data - Unique'!$C$2:$C$42942=C54)*('List Unsorted Data - Unique'!$D$2:$D$42942=D54)*('List Unsorted Data - Unique'!$E$2:$E$42942=E54)*('List Unsorted Data - Unique'!$F$2:$F$42942=F54),0)) -> 54 | O54: =SUMPRODUCT(('List Unsorted Data - Unique'!$A$2:$A$42942=A54)*('List Unsorted Data - Unique'!$B$2:$B$42942=B54)*('List Unsorted Data - Unique'!$C$2:$C$42942=C54)*('List Unsorted Data - Unique'!$D$2:$D$42942=D54)*('List Unsorted Data - Unique'!$E$2:$E$42942=E54)*('List Unsorted Data - Unique'!$F$2:$F$42942=F54)*('List Unsorted Data - Unique'!$H$2:$H$42942)) -> 54 | Q54: =VLOOKUP(A54&B54&C54&D54&E54&F54,CHOOSE({1,2,3,4,5,6},'List Unsorted Data - Unique'!$A$2:$A$42942&'List Unsorted Data - Unique'!$B$2:$B$42942&'List Unsorted Data - Unique'!$C$2:$C$42942&'List Unsorted Data - Unique'!$D$2:$D$42942&'List Unsorted Data - Unique'!$E$2:$E$42942&'List Unsorted Data - Unique'!$F$2:$F$42942,'List Unsorted Data - Unique'!$H$2:$H$42942),2,0) -> 54 | S54: =SUM(('List Unsorted Data - Unique'!$A$2:$A$42942=A54)*('List Unsorted Data - Unique'!$B$2:$B$42942=B54)*('List Unsorted Data - Unique'!$C$2:$C$42942=C54)*('List Unsorted Data - Unique'!$D$2:$D$42942=D54)*('List Unsorted Data - Unique'!$E$2:$E$42942=E54)*('List Unsorted Data - Unique'!$F$2:$F$42942=F54)*('List Unsorted Data - Unique'!$H$2:$H$42942)) -> 54
A55: 2016 | B55: 2 | C55: B. Paisley | D55: ASL003 | E55: PA01 | F55: Forecast | G55: =INDEX('List Unsorted Data - Unique'!$H$2:$H$42942,MATCH(A55&"-"&B55&"-"&C55&"-"&D55&"-"&E55&"-"&F55,'List Unsorted Data - Unique'!$G$2:$G$42942,0)) -> 177 | I55: =SUMIFS('List Unsorted Data - Unique'!$H$2:$H$42942,'List Unsorted Data - Unique'!$A$2:$A$42942,A55,'List Unsorted Data - Unique'!$B$2:$B$42942,B55,'List Unsorted Data - Unique'!$C$2:$C$42942,C55,'List Unsorted Data - Unique'!$D$2:$D$42942,D55,'List Unsorted Data - Unique'!$E$2:$E$42942,E55,'List Unsorted Data - Unique'!$F$2:$F$42942,F55) -> 177 | K55: =INDEX('List Unsorted Data - Unique'!$H$2:$H$42942,MATCH(A55&B55&C55&D55&E55&F55,'List Unsorted Data - Unique'!$A$2:$A$42942&'List Unsorted Data - Unique'!$B$2:$B$42942&'List Unsorted Data - Unique'!$C$2:$C$42942&'List Unsorted Data - Unique'!$D$2:$D$42942&'List Unsorted Data - Unique'!$E$2:$E$42942&'List Unsorted Data - Unique'!$F$2:$F$42942,0)) -> 177 | M55: =INDEX('List Unsorted Data - Unique'!$H$2:$H$42942,MATCH(1,('List Unsorted Data - Unique'!$A$2:$A$42942=A55)*('List Unsorted Data - Unique'!$B$2:$B$42942=B55)*('List Unsorted Data - Unique'!$C$2:$C$42942=C55)*('List Unsorted Data - Unique'!$D$2:$D$42942=D55)*('List Unsorted Data - Unique'!$E$2:$E$42942=E55)*('List Unsorted Data - Unique'!$F$2:$F$42942=F55),0)) -> 177 | O55: =SUMPRODUCT(('List Unsorted Data - Unique'!$A$2:$A$42942=A55)*('List Unsorted Data - Unique'!$B$2:$B$42942=B55)*('List Unsorted Data - Unique'!$C$2:$C$42942=C55)*('List Unsorted Data - Unique'!$D$2:$D$42942=D55)*('List Unsorted Data - Unique'!$E$2:$E$42942=E55)*('List Unsorted Data - Unique'!$F$2:$F$42942=F55)*('List Unsorted Data - Unique'!$H$2:$H$42942)) -> 177 | Q55: =VLOOKUP(A55&B55&C55&D55&E55&F55,CHOOSE({1,2,3,4,5,6},'List Unsorted Data - Unique'!$A$2:$A$42942&'List Unsorted Data - Unique'!$B$2:$B$42942&'List Unsorted Data - Unique'!$C$2:$C$42942&'List Unsorted Data - Unique'!$D$2:$D$42942&'List Unsorted Data - Unique'!$E$2:$E$42942&'List Unsorted Data - Unique'!$F$2:$F$42942,'List Unsorted Data - Unique'!$H$2:$H$42942),2,0) -> 177 | S55: =SUM(('List Unsorted Data - Unique'!$A$2:$A$42942=A55)*('List Unsorted Data - Unique'!$B$2:$B$42942=B55)*('List Unsorted Data - Unique'!$C$2:$C$42942=C55)*('List Unsorted Data - Unique'!$D$2:$D$42942=D55)*('List Unsorted Data - Unique'!$E$2:$E$42942=E55)*('List Unsorted Data - Unique'!$F$2:$F$42942=F55)*('List Unsorted Data - Unique'!$H$2:$H$42942)) -> 177
A56: 2016 | B56: 10 | C56: R. Star | D56: PRD002 | E56: CA01 | F56: Forecast | G56: =INDEX('List Unsorted Data - Unique'!$H$2:$H$42942,MATCH(A56&"-"&B56&"-"&C56&"-"&D56&"-"&E56&"-"&F56,'List Unsorted Data - Unique'!$G$2:$G$42942,0)) -> 328 | I56: =SUMIFS('List Unsorted Data - Unique'!$H$2:$H$42942,'List Unsorted Data - Unique'!$A$2:$A$42942,A56,'List Unsorted Data - Unique'!$B$2:$B$42942,B56,'List Unsorted Data - Unique'!$C$2:$C$42942,C56,'List Unsorted Data - Unique'!$D$2:$D$42942,D56,'List Unsorted Data - Unique'!$E$2:$E$42942,E56,'List Unsorted Data - Unique'!$F$2:$F$42942,F56) -> 328 | K56: =INDEX('List Unsorted Data - Unique'!$H$2:$H$42942,MATCH(A56&B56&C56&D56&E56&F56,'List Unsorted Data - Unique'!$A$2:$A$42942&'List Unsorted Data - Unique'!$B$2:$B$42942&'List Unsorted Data - Unique'!$C$2:$C$42942&'List Unsorted Data - Unique'!$D$2:$D$42942&'List Unsorted Data - Unique'!$E$2:$E$42942&'List Unsorted Data - Unique'!$F$2:$F$42942,0)) -> 328 | M56: =INDEX('List Unsorted Data - Unique'!$H$2:$H$42942,MATCH(1,('List Unsorted Data - Unique'!$A$2:$A$42942=A56)*('List Unsorted Data - Unique'!$B$2:$B$42942=B56)*('List Unsorted Data - Unique'!$C$2:$C$42942=C56)*('List Unsorted Data - Unique'!$D$2:$D$42942=D56)*('List Unsorted Data - Unique'!$E$2:$E$42942=E56)*('List Unsorted Data - Unique'!$F$2:$F$42942=F56),0)) -> 328 | O56: =SUMPRODUCT(('List Unsorted Data - Unique'!$A$2:$A$42942=A56)*('List Unsorted Data - Unique'!$B$2:$B$42942=B56)*('List Unsorted Data - Unique'!$C$2:$C$42942=C56)*('List Unsorted Data - Unique'!$D$2:$D$42942=D56)*('List Unsorted Data - Unique'!$E$2:$E$42942=E56)*('List Unsorted Data - Unique'!$F$2:$F$42942=F56)*('List Unsorted Data - Unique'!$H$2:$H$42942)) -> 328 | Q56: =VLOOKUP(A56&B56&C56&D56&E56&F56,CHOOSE({1,2,3,4,5,6},'List Unsorted Data - Unique'!$A$2:$A$42942&'List Unsorted Data - Unique'!$B$2:$B$42942&'List Unsorted Data - Unique'!$C$2:$C$42942&'List Unsorted Data - Unique'!$D$2:$D$42942&'List Unsorted Data - Unique'!$E$2:$E$42942&'List Unsorted Data - Unique'!$F$2:$F$42942,'List Unsorted Data - Unique'!$H$2:$H$42942),2,0) -> 328 | S56: =SUM(('List Unsorted Data - Unique'!$A$2:$A$42942=A56)*('List Unsorted Data - Unique'!$B$2:$B$42942=B56)*('List Unsorted Data - Unique'!$C$2:$C$42942=C56)*('List Unsorted Data - Unique'!$D$2:$D$42942=D56)*('List Unsorted Data - Unique'!$E$2:$E$42942=E56)*('List Unsorted Data - Unique'!$F$2:$F$42942=F56)*('List Unsorted Data - Unique'!$H$2:$H$42942)) -> 328
A57: 2015 | B57: 6 | C57: P. Buck | D57: PRD002 | E57: NC01 | F57: Forecast | G57: =INDEX('List Unsorted Data - Unique'!$H$2:$H$42942,MATCH(A57&"-"&B57&"-"&C57&"-"&D57&"-"&E57&"-"&F57,'List Unsorted Data - Unique'!$G$2:$G$42942,0)) -> 324 | I57: =SUMIFS('List Unsorted Data - Unique'!$H$2:$H$42942,'List Unsorted Data - Unique'!$A$2:$A$42942,A57,'List Unsorted Data - Unique'!$B$2:$B$42942,B57,'List Unsorted Data - Unique'!$C$2:$C$42942,C57,'List Unsorted Data - Unique'!$D$2:$D$42942,D57,'List Unsorted Data - Unique'!$E$2:$E$42942,E57,'List Unsorted Data - Unique'!$F$2:$F$42942,F57) -> 324 | K57: =INDEX('List Unsorted Data - Unique'!$H$2:$H$42942,MATCH(A57&B57&C57&D57&E57&F57,'List Unsorted Data - Unique'!$A$2:$A$42942&'List Unsorted Data - Unique'!$B$2:$B$42942&'List Unsorted Data - Unique'!$C$2:$C$42942&'List Unsorted Data - Unique'!$D$2:$D$42942&'List Unsorted Data - Unique'!$E$2:$E$42942&'List Unsorted Data - Unique'!$F$2:$F$42942,0)) -> 324 | M57: =INDEX('List Unsorted Data - Unique'!$H$2:$H$42942,MATCH(1,('List Unsorted Data - Unique'!$A$2:$A$42942=A57)*('List Unsorted Data - Unique'!$B$2:$B$42942=B57)*('List Unsorted Data - Unique'!$C$2:$C$42942=C57)*('List Unsorted Data - Unique'!$D$2:$D$42942=D57)*('List Unsorted Data - Unique'!$E$2:$E$42942=E57)*('List Unsorted Data - Unique'!$F$2:$F$42942=F57),0)) -> 324 | O57: =SUMPRODUCT(('List Unsorted Data - Unique'!$A$2:$A$42942=A57)*('List Unsorted Data - Unique'!$B$2:$B$42942=B57)*('List Unsorted Data - Unique'!$C$2:$C$42942=C57)*('List Unsorted Data - Unique'!$D$2:$D$42942=D57)*('List Unsorted Data - Unique'!$E$2:$E$42942=E57)*('List Unsorted Data - Unique'!$F$2:$F$42942=F57)*('List Unsorted Data - Unique'!$H$2:$H$42942)) -> 324 | Q57: =VLOOKUP(A57&B57&C57&D57&E57&F57,CHOOSE({1,2,3,4,5,6},'List Unsorted Data - Unique'!$A$2:$A$42942&'List Unsorted Data - Unique'!$B$2:$B$42942&'List Unsorted Data - Unique'!$C$2:$C$42942&'List Unsorted Data - Unique'!$D$2:$D$42942&'List Unsorted Data - Unique'!$E$2:$E$42942&'List Unsorted Data - Unique'!$F$2:$F$42942,'List Unsorted Data - Unique'!$H$2:$H$42942),2,0) -> 324 | S57: =SUM(('List Unsorted Data - Unique'!$A$2:$A$42942=A57)*('List Unsorted Data - Unique'!$B$2:$B$42942=B57)*('List Unsorted Data - Unique'!$C$2:$C$42942=C57)*('List Unsorted Data - Unique'!$D$2:$D$42942=D57)*('List Unsorted Data - Unique'!$E$2:$E$42942=E57)*('List Unsorted Data - Unique'!$F$2:$F$42942=F57)*('List Unsorted Data - Unique'!$H$2:$H$42942)) -> 324
A58: 2016 | B58: 4 | C58: M. Stipe | D58: PRD002 | E58: PA01 | F58: Actual | G58: =INDEX('List Unsorted Data - Unique'!$H$2:$H$42942,MATCH(A58&"-"&B58&"-"&C58&"-"&D58&"-"&E58&"-"&F58,'List Unsorted Data - Unique'!$G$2:$G$42942,0)) -> 76 | I58: =SUMIFS('List Unsorted Data - Unique'!$H$2:$H$42942,'List Unsorted Data - Unique'!$A$2:$A$42942,A58,'List Unsorted Data - Unique'!$B$2:$B$42942,B58,'List Unsorted Data - Unique'!$C$2:$C$42942,C58,'List Unsorted Data - Unique'!$D$2:$D$42942,D58,'List Unsorted Data - Unique'!$E$2:$E$42942,E58,'List Unsorted Data - Unique'!$F$2:$F$42942,F58) -> 76 | K58: =INDEX('List Unsorted Data - Unique'!$H$2:$H$42942,MATCH(A58&B58&C58&D58&E58&F58,'List Unsorted Data - Unique'!$A$2:$A$42942&'List Unsorted Data - Unique'!$B$2:$B$42942&'List Unsorted Data - Unique'!$C$2:$C$42942&'List Unsorted Data - Unique'!$D$2:$D$42942&'List Unsorted Data - Unique'!$E$2:$E$42942&'List Unsorted Data - Unique'!$F$2:$F$42942,0)) -> 76 | M58: =INDEX('List Unsorted Data - Unique'!$H$2:$H$42942,MATCH(1,('List Unsorted Data - Unique'!$A$2:$A$42942=A58)*('List Unsorted Data - Unique'!$B$2:$B$42942=B58)*('List Unsorted Data - Unique'!$C$2:$C$42942=C58)*('List Unsorted Data - Unique'!$D$2:$D$42942=D58)*('List Unsorted Data - Unique'!$E$2:$E$42942=E58)*('List Unsorted Data - Unique'!$F$2:$F$42942=F58),0)) -> 76 | O58: =SUMPRODUCT(('List Unsorted Data - Unique'!$A$2:$A$42942=A58)*('List Unsorted Data - Unique'!$B$2:$B$42942=B58)*('List Unsorted Data - Unique'!$C$2:$C$42942=C58)*('List Unsorted Data - Unique'!$D$2:$D$42942=D58)*('List Unsorted Data - Unique'!$E$2:$E$42942=E58)*('List Unsorted Data - Unique'!$F$2:$F$42942=F58)*('List Unsorted Data - Unique'!$H$2:$H$42942)) -> 76 | Q58: =VLOOKUP(A58&B58&C58&D58&E58&F58,CHOOSE({1,2,3,4,5,6},'List Unsorted Data - Unique'!$A$2:$A$42942&'List Unsorted Data - Unique'!$B$2:$B$42942&'List Unsorted Data - Unique'!$C$2:$C$42942&'List Unsorted Data - Unique'!$D$2:$D$42942&'List Unsorted Data - Unique'!$E$2:$E$42942&'List Unsorted Data - Unique'!$F$2:$F$42942,'List Unsorted Data - Unique'!$H$2:$H$42942),2,0) -> 76 | S58: =SUM(('List Unsorted Data - Unique'!$A$2:$A$42942=A58)*('List Unsorted Data - Unique'!$B$2:$B$42942=B58)*('List Unsorted Data - Unique'!$C$2:$C$42942=C58)*('List Unsorted Data - Unique'!$D$2:$D$42942=D58)*('List Unsorted Data - Unique'!$E$2:$E$42942=E58)*('List Unsorted Data - Unique'!$F$2:$F$42942=F58)*('List Unsorted Data - Unique'!$H$2:$H$42942)) -> 76
A59: 2015 | B59: 3 | C59: B. Shelton | D59: PRD002 | E59: VA01 | F59: Actual | G59: =INDEX('List Unsorted Data - Unique'!$H$2:$H$42942,MATCH(A59&"-"&B59&"-"&C59&"-"&D59&"-"&E59&"-"&F59,'List Unsorted Data - Unique'!$G$2:$G$42942,0)) -> 328 | I59: =SUMIFS('List Unsorted Data - Unique'!$H$2:$H$42942,'List Unsorted Data - Unique'!$A$2:$A$42942,A59,'List Unsorted Data - Unique'!$B$2:$B$42942,B59,'List Unsorted Data - Unique'!$C$2:$C$42942,C59,'List Unsorted Data - Unique'!$D$2:$D$42942,D59,'List Unsorted Data - Unique'!$E$2:$E$42942,E59,'List Unsorted Data - Unique'!$F$2:$F$42942,F59) -> 328 | K59: =INDEX('List Unsorted Data - Unique'!$H$2:$H$42942,MATCH(A59&B59&C59&D59&E59&F59,'List Unsorted Data - Unique'!$A$2:$A$42942&'List Unsorted Data - Unique'!$B$2:$B$42942&'List Unsorted Data - Unique'!$C$2:$C$42942&'List Unsorted Data - Unique'!$D$2:$D$42942&'List Unsorted Data - Unique'!$E$2:$E$42942&'List Unsorted Data - Unique'!$F$2:$F$42942,0)) -> 328 | M59: =INDEX('List Unsorted Data - Unique'!$H$2:$H$42942,MATCH(1,('List Unsorted Data - Unique'!$A$2:$A$42942=A59)*('List Unsorted Data - Unique'!$B$2:$B$42942=B59)*('List Unsorted Data - Unique'!$C$2:$C$42942=C59)*('List Unsorted Data - Unique'!$D$2:$D$42942=D59)*('List Unsorted Data - Unique'!$E$2:$E$42942=E59)*('List Unsorted Data - Unique'!$F$2:$F$42942=F59),0)) -> 328 | O59: =SUMPRODUCT(('List Unsorted Data - Unique'!$A$2:$A$42942=A59)*('List Unsorted Data - Unique'!$B$2:$B$42942=B59)*('List Unsorted Data - Unique'!$C$2:$C$42942=C59)*('List Unsorted Data - Unique'!$D$2:$D$42942=D59)*('List Unsorted Data - Unique'!$E$2:$E$42942=E59)*('List Unsorted Data - Unique'!$F$2:$F$42942=F59)*('List Unsorted Data - Unique'!$H$2:$H$42942)) -> 328 | Q59: =VLOOKUP(A59&B59&C59&D59&E59&F59,CHOOSE({1,2,3,4,5,6},'List Unsorted Data - Unique'!$A$2:$A$42942&'List Unsorted Data - Unique'!$B$2:$B$42942&'List Unsorted Data - Unique'!$C$2:$C$42942&'List Unsorted Data - Unique'!$D$2:$D$42942&'List Unsorted Data - Unique'!$E$2:$E$42942&'List Unsorted Data - Unique'!$F$2:$F$42942,'List Unsorted Data - Unique'!$H$2:$H$42942),2,0) -> 328 | S59: =SUM(('List Unsorted Data - Unique'!$A$2:$A$42942=A59)*('List Unsorted Data - Unique'!$B$2:$B$42942=B59)*('List Unsorted Data - Unique'!$C$2:$C$42942=C59)*('List Unsorted Data - Unique'!$D$2:$D$42942=D59)*('List Unsorted Data - Unique'!$E$2:$E$42942=E59)*('List Unsorted Data - Unique'!$F$2:$F$42942=F59)*('List Unsorted Data - Unique'!$H$2:$H$42942)) -> 328
A60: 2016 | B60: 6 | C60: P. Buck | D60: ASL001 | E60: AK01 | F60: Actual | G60: =INDEX('List Unsorted Data - Unique'!$H$2:$H$42942,MATCH(A60&"-"&B60&"-"&C60&"-"&D60&"-"&E60&"-"&F60,'List Unsorted Data - Unique'!$G$2:$G$42942,0)) -> 210 | I60: =SUMIFS('List Unsorted Data - Unique'!$H$2:$H$42942,'List Unsorted Data - Unique'!$A$2:$A$42942,A60,'List Unsorted Data - Unique'!$B$2:$B$42942,B60,'List Unsorted Data - Unique'!$C$2:$C$42942,C60,'List Unsorted Data - Unique'!$D$2:$D$42942,D60,'List Unsorted Data - Unique'!$E$2:$E$42942,E60,'List Unsorted Data - Unique'!$F$2:$F$42942,F60) -> 210 | K60: =INDEX('List Unsorted Data - Unique'!$H$2:$H$42942,MATCH(A60&B60&C60&D60&E60&F60,'List Unsorted Data - Unique'!$A$2:$A$42942&'List Unsorted Data - Unique'!$B$2:$B$42942&'List Unsorted Data - Unique'!$C$2:$C$42942&'List Unsorted Data - Unique'!$D$2:$D$42942&'List Unsorted Data - Unique'!$E$2:$E$42942&'List Unsorted Data - Unique'!$F$2:$F$42942,0)) -> 210 | M60: =INDEX('List Unsorted Data - Unique'!$H$2:$H$42942,MATCH(1,('List Unsorted Data - Unique'!$A$2:$A$42942=A60)*('List Unsorted Data - Unique'!$B$2:$B$42942=B60)*('List Unsorted Data - Unique'!$C$2:$C$42942=C60)*('List Unsorted Data - Unique'!$D$2:$D$42942=D60)*('List Unsorted Data - Unique'!$E$2:$E$42942=E60)*('List Unsorted Data - Unique'!$F$2:$F$42942=F60),0)) -> 210 | O60: =SUMPRODUCT(('List Unsorted Data - Unique'!$A$2:$A$42942=A60)*('List Unsorted Data - Unique'!$B$2:$B$42942=B60)*('List Unsorted Data - Unique'!$C$2:$C$42942=C60)*('List Unsorted Data - Unique'!$D$2:$D$42942=D60)*('List Unsorted Data - Unique'!$E$2:$E$42942=E60)*('List Unsorted Data - Unique'!$F$2:$F$42942=F60)*('List Unsorted Data - Unique'!$H$2:$H$42942)) -> 210 | Q60: =VLOOKUP(A60&B60&C60&D60&E60&F60,CHOOSE({1,2,3,4,5,6},'List Unsorted Data - Unique'!$A$2:$A$42942&'List Unsorted Data - Unique'!$B$2:$B$42942&'List Unsorted Data - Unique'!$C$2:$C$42942&'List Unsorted Data - Unique'!$D$2:$D$42942&'List Unsorted Data - Unique'!$E$2:$E$42942&'List Unsorted Data - Unique'!$F$2:$F$42942,'List Unsorted Data - Unique'!$H$2:$H$42942),2,0) -> 210 | S60: =SUM(('List Unsorted Data - Unique'!$A$2:$A$42942=A60)*('List Unsorted Data - Unique'!$B$2:$B$42942=B60)*('List Unsorted Data - Unique'!$C$2:$C$42942=C60)*('List Unsorted Data - Unique'!$D$2:$D$42942=D60)*('List Unsorted Data - Unique'!$E$2:$E$42942=E60)*('List Unsorted Data - Unique'!$F$2:$F$42942=F60)*('List Unsorted Data - Unique'!$H$2:$H$42942)) -> 210
A61: 2015 | B61: 9 | C61: S. Crow | D61: ASL003 | E61: SD01 | F61: Forecast | G61: =INDEX('List Unsorted Data - Unique'!$H$2:$H$42942,MATCH(A61&"-"&B61&"-"&C61&"-"&D61&"-"&E61&"-"&F61,'List Unsorted Data - Unique'!$G$2:$G$42942,0)) -> 179 | I61: =SUMIFS('List Unsorted Data - Unique'!$H$2:$H$42942,'List Unsorted Data - Unique'!$A$2:$A$42942,A61,'List Unsorted Data - Unique'!$B$2:$B$42942,B61,'List Unsorted Data - Unique'!$C$2:$C$42942,C61,'List Unsorted Data - Unique'!$D$2:$D$42942,D61,'List Unsorted Data - Unique'!$E$2:$E$42942,E61,'List Unsorted Data - Unique'!$F$2:$F$42942,F61) -> 179 | K61: =INDEX('List Unsorted Data - Unique'!$H$2:$H$42942,MATCH(A61&B61&C61&D61&E61&F61,'List Unsorted Data - Unique'!$A$2:$A$42942&'List Unsorted Data - Unique'!$B$2:$B$42942&'List Unsorted Data - Unique'!$C$2:$C$42942&'List Unsorted Data - Unique'!$D$2:$D$42942&'List Unsorted Data - Unique'!$E$2:$E$42942&'List Unsorted Data - Unique'!$F$2:$F$42942,0)) -> 179 | M61: =INDEX('List Unsorted Data - Unique'!$H$2:$H$42942,MATCH(1,('List Unsorted Data - Unique'!$A$2:$A$42942=A61)*('List Unsorted Data - Unique'!$B$2:$B$42942=B61)*('List Unsorted Data - Unique'!$C$2:$C$42942=C61)*('List Unsorted Data - Unique'!$D$2:$D$42942=D61)*('List Unsorted Data - Unique'!$E$2:$E$42942=E61)*('List Unsorted Data - Unique'!$F$2:$F$42942=F61),0)) -> 179 | O61: =SUMPRODUCT(('List Unsorted Data - Unique'!$A$2:$A$42942=A61)*('List Unsorted Data - Unique'!$B$2:$B$42942=B61)*('List Unsorted Data - Unique'!$C$2:$C$42942=C61)*('List Unsorted Data - Unique'!$D$2:$D$42942=D61)*('List Unsorted Data - Unique'!$E$2:$E$42942=E61)*('List Unsorted Data - Unique'!$F$2:$F$42942=F61)*('List Unsorted Data - Unique'!$H$2:$H$42942)) -> 179 | Q61: =VLOOKUP(A61&B61&C61&D61&E61&F61,CHOOSE({1,2,3,4,5,6},'List Unsorted Data - Unique'!$A$2:$A$42942&'List Unsorted Data - Unique'!$B$2:$B$42942&'List Unsorted Data - Unique'!$C$2:$C$42942&'List Unsorted Data - Unique'!$D$2:$D$42942&'List Unsorted Data - Unique'!$E$2:$E$42942&'List Unsorted Data - Unique'!$F$2:$F$42942,'List Unsorted Data - Unique'!$H$2:$H$42942),2,0) -> 179 | S61: =SUM(('List Unsorted Data - Unique'!$A$2:$A$42942=A61)*('List Unsorted Data - Unique'!$B$2:$B$42942=B61)*('List Unsorted Data - Unique'!$C$2:$C$42942=C61)*('List Unsorted Data - Unique'!$D$2:$D$42942=D61)*('List Unsorted Data - Unique'!$E$2:$E$42942=E61)*('List Unsorted Data - Unique'!$F$2:$F$42942=F61)*('List Unsorted Data - Unique'!$H$2:$H$42942)) -> 179
A62: 2014 | B62: 8 | C62: P. Buck | D62: DFG001 | E62: AK01 | F62: Actual | G62: =INDEX('List Unsorted Data - Unique'!$H$2:$H$42942,MATCH(A62&"-"&B62&"-"&C62&"-"&D62&"-"&E62&"-"&F62,'List Unsorted Data - Unique'!$G$2:$G$42942,0)) -> 68 | I62: =SUMIFS('List Unsorted Data - Unique'!$H$2:$H$42942,'List Unsorted Data - Unique'!$A$2:$A$42942,A62,'List Unsorted Data - Unique'!$B$2:$B$42942,B62,'List Unsorted Data - Unique'!$C$2:$C$42942,C62,'List Unsorted Data - Unique'!$D$2:$D$42942,D62,'List Unsorted Data - Unique'!$E$2:$E$42942,E62,'List Unsorted Data - Unique'!$F$2:$F$42942,F62) -> 68 | K62: =INDEX('List Unsorted Data - Unique'!$H$2:$H$42942,MATCH(A62&B62&C62&D62&E62&F62,'List Unsorted Data - Unique'!$A$2:$A$42942&'List Unsorted Data - Unique'!$B$2:$B$42942&'List Unsorted Data - Unique'!$C$2:$C$42942&'List Unsorted Data - Unique'!$D$2:$D$42942&'List Unsorted Data - Unique'!$E$2:$E$42942&'List Unsorted Data - Unique'!$F$2:$F$42942,0)) -> 68 | M62: =INDEX('List Unsorted Data - Unique'!$H$2:$H$42942,MATCH(1,('List Unsorted Data - Unique'!$A$2:$A$42942=A62)*('List Unsorted Data - Unique'!$B$2:$B$42942=B62)*('List Unsorted Data - Unique'!$C$2:$C$42942=C62)*('List Unsorted Data - Unique'!$D$2:$D$42942=D62)*('List Unsorted Data - Unique'!$E$2:$E$42942=E62)*('List Unsorted Data - Unique'!$F$2:$F$42942=F62),0)) -> 68 | O62: =SUMPRODUCT(('List Unsorted Data - Unique'!$A$2:$A$42942=A62)*('List Unsorted Data - Unique'!$B$2:$B$42942=B62)*('List Unsorted Data - Unique'!$C$2:$C$42942=C62)*('List Unsorted Data - Unique'!$D$2:$D$42942=D62)*('List Unsorted Data - Unique'!$E$2:$E$42942=E62)*('List Unsorted Data - Unique'!$F$2:$F$42942=F62)*('List Unsorted Data - Unique'!$H$2:$H$42942)) -> 68 | Q62: =VLOOKUP(A62&B62&C62&D62&E62&F62,CHOOSE({1,2,3,4,5,6},'List Unsorted Data - Unique'!$A$2:$A$42942&'List Unsorted Data - Unique'!$B$2:$B$42942&'List Unsorted Data - Unique'!$C$2:$C$42942&'List Unsorted Data - Unique'!$D$2:$D$42942&'List Unsorted Data - Unique'!$E$2:$E$42942&'List Unsorted Data - Unique'!$F$2:$F$42942,'List Unsorted Data - Unique'!$H$2:$H$42942),2,0) -> 68 | S62: =SUM(('List Unsorted Data - Unique'!$A$2:$A$42942=A62)*('List Unsorted Data - Unique'!$B$2:$B$42942=B62)*('List Unsorted Data - Unique'!$C$2:$C$42942=C62)*('List Unsorted Data - Unique'!$D$2:$D$42942=D62)*('List Unsorted Data - Unique'!$E$2:$E$42942=E62)*('List Unsorted Data - Unique'!$F$2:$F$42942=F62)*('List Unsorted Data - Unique'!$H$2:$H$42942)) -> 68
A63: 2015 | B63: 10 | C63: J. Lennon | D63: DFG001 | E63: SD01 | F63: Forecast | G63: =INDEX('List Unsorted Data - Unique'!$H$2:$H$42942,MATCH(A63&"-"&B63&"-"&C63&"-"&D63&"-"&E63&"-"&F63,'List Unsorted Data - Unique'!$G$2:$G$42942,0)) -> 62 | I63: =SUMIFS('List Unsorted Data - Unique'!$H$2:$H$42942,'List Unsorted Data - Unique'!$A$2:$A$42942,A63,'List Unsorted Data - Unique'!$B$2:$B$42942,B63,'List Unsorted Data - Unique'!$C$2:$C$42942,C63,'List Unsorted Data - Unique'!$D$2:$D$42942,D63,'List Unsorted Data - Unique'!$E$2:$E$42942,E63,'List Unsorted Data - Unique'!$F$2:$F$42942,F63) -> 62 | K63: =INDEX('List Unsorted Data - Unique'!$H$2:$H$42942,MATCH(A63&B63&C63&D63&E63&F63,'List Unsorted Data - Unique'!$A$2:$A$42942&'List Unsorted Data - Unique'!$B$2:$B$42942&'List Unsorted Data - Unique'!$C$2:$C$42942&'List Unsorted Data - Unique'!$D$2:$D$42942&'List Unsorted Data - Unique'!$E$2:$E$42942&'List Unsorted Data - Unique'!$F$2:$F$42942,0)) -> 62 | M63: =INDEX('List Unsorted Data - Unique'!$H$2:$H$42942,MATCH(1,('List Unsorted Data - Unique'!$A$2:$A$42942=A63)*('List Unsorted Data - Unique'!$B$2:$B$42942=B63)*('List Unsorted Data - Unique'!$C$2:$C$42942=C63)*('List Unsorted Data - Unique'!$D$2:$D$42942=D63)*('List Unsorted Data - Unique'!$E$2:$E$42942=E63)*('List Unsorted Data - Unique'!$F$2:$F$42942=F63),0)) -> 62 | O63: =SUMPRODUCT(('List Unsorted Data - Unique'!$A$2:$A$42942=A63)*('List Unsorted Data - Unique'!$B$2:$B$42942=B63)*('List Unsorted Data - Unique'!$C$2:$C$42942=C63)*('List Unsorted Data - Unique'!$D$2:$D$42942=D63)*('List Unsorted Data - Unique'!$E$2:$E$42942=E63)*('List Unsorted Data - Unique'!$F$2:$F$42942=F63)*('List Unsorted Data - Unique'!$H$2:$H$42942)) -> 62 | Q63: =VLOOKUP(A63&B63&C63&D63&E63&F63,CHOOSE({1,2,3,4,5,6},'List Unsorted Data - Unique'!$A$2:$A$42942&'List Unsorted Data - Unique'!$B$2:$B$42942&'List Unsorted Data - Unique'!$C$2:$C$42942&'List Unsorted Data - Unique'!$D$2:$D$42942&'List Unsorted Data - Unique'!$E$2:$E$42942&'List Unsorted Data - Unique'!$F$2:$F$42942,'List Unsorted Data - Unique'!$H$2:$H$42942),2,0) -> 62 | S63: =SUM(('List Unsorted Data - Unique'!$A$2:$A$42942=A63)*('List Unsorted Data - Unique'!$B$2:$B$42942=B63)*('List Unsorted Data - Unique'!$C$2:$C$42942=C63)*('List Unsorted Data - Unique'!$D$2:$D$42942=D63)*('List Unsorted Data - Unique'!$E$2:$E$42942=E63)*('List Unsorted Data - Unique'!$F$2:$F$42942=F63)*('List Unsorted Data - Unique'!$H$2:$H$42942)) -> 62
A64: 2015 | B64: 11 | C64: B. Paisley | D64: PRD001 | E64: LA01 | F64: Forecast | G64: =INDEX('List Unsorted Data - Unique'!$H$2:$H$42942,MATCH(A64&"-"&B64&"-"&C64&"-"&D64&"-"&E64&"-"&F64,'List Unsorted Data - Unique'!$G$2:$G$42942,0)) -> 264 | I64: =SUMIFS('List Unsorted Data - Unique'!$H$2:$H$42942,'List Unsorted Data - Unique'!$A$2:$A$42942,A64,'List Unsorted Data - Unique'!$B$2:$B$42942,B64,'List Unsorted Data - Unique'!$C$2:$C$42942,C64,'List Unsorted Data - Unique'!$D$2:$D$42942,D64,'List Unsorted Data - Unique'!$E$2:$E$42942,E64,'List Unsorted Data - Unique'!$F$2:$F$42942,F64) -> 264 | K64: =INDEX('List Unsorted Data - Unique'!$H$2:$H$42942,MATCH(A64&B64&C64&D64&E64&F64,'List Unsorted Data - Unique'!$A$2:$A$42942&'List Unsorted Data - Unique'!$B$2:$B$42942&'List Unsorted Data - Unique'!$C$2:$C$42942&'List Unsorted Data - Unique'!$D$2:$D$42942&'List Unsorted Data - Unique'!$E$2:$E$42942&'List Unsorted Data - Unique'!$F$2:$F$42942,0)) -> 264 | M64: =INDEX('List Unsorted Data - Unique'!$H$2:$H$42942,MATCH(1,('List Unsorted Data - Unique'!$A$2:$A$42942=A64)*('List Unsorted Data - Unique'!$B$2:$B$42942=B64)*('List Unsorted Data - Unique'!$C$2:$C$42942=C64)*('List Unsorted Data - Unique'!$D$2:$D$42942=D64)*('List Unsorted Data - Unique'!$E$2:$E$42942=E64)*('List Unsorted Data - Unique'!$F$2:$F$42942=F64),0)) -> 264 | O64: =SUMPRODUCT(('List Unsorted Data - Unique'!$A$2:$A$42942=A64)*('List Unsorted Data - Unique'!$B$2:$B$42942=B64)*('List Unsorted Data - Unique'!$C$2:$C$42942=C64)*('List Unsorted Data - Unique'!$D$2:$D$42942=D64)*('List Unsorted Data - Unique'!$E$2:$E$42942=E64)*('List Unsorted Data - Unique'!$F$2:$F$42942=F64)*('List Unsorted Data - Unique'!$H$2:$H$42942)) -> 264 | Q64: =VLOOKUP(A64&B64&C64&D64&E64&F64,CHOOSE({1,2,3,4,5,6},'List Unsorted Data - Unique'!$A$2:$A$42942&'List Unsorted Data - Unique'!$B$2:$B$42942&'List Unsorted Data - Unique'!$C$2:$C$42942&'List Unsorted Data - Unique'!$D$2:$D$42942&'List Unsorted Data - Unique'!$E$2:$E$42942&'List Unsorted Data - Unique'!$F$2:$F$42942,'List Unsorted Data - Unique'!$H$2:$H$42942),2,0) -> 264 | S64: =SUM(('List Unsorted Data - Unique'!$A$2:$A$42942=A64)*('List Unsorted Data - Unique'!$B$2:$B$42942=B64)*('List Unsorted Data - Unique'!$C$2:$C$42942=C64)*('List Unsorted Data - Unique'!$D$2:$D$42942=D64)*('List Unsorted Data - Unique'!$E$2:$E$42942=E64)*('List Unsorted Data - Unique'!$F$2:$F$42942=F64)*('List Unsorted Data - Unique'!$H$2:$H$42942)) -> 264
A65: 2015 | B65: 7 | C65: C. Underwood | D65: ASL003 | E65: VA01 | F65: Forecast | G65: =INDEX('List Unsorted Data - Unique'!$H$2:$H$42942,MATCH(A65&"-"&B65&"-"&C65&"-"&D65&"-"&E65&"-"&F65,'List Unsorted Data - Unique'!$G$2:$G$42942,0)) -> 56 | I65: =SUMIFS('List Unsorted Data - Unique'!$H$2:$H$42942,'List Unsorted Data - Unique'!$A$2:$A$42942,A65,'List Unsorted Data - Unique'!$B$2:$B$42942,B65,'List Unsorted Data - Unique'!$C$2:$C$42942,C65,'List Unsorted Data - Unique'!$D$2:$D$42942,D65,'List Unsorted Data - Unique'!$E$2:$E$42942,E65,'List Unsorted Data - Unique'!$F$2:$F$42942,F65) -> 56 | K65: =INDEX('List Unsorted Data - Unique'!$H$2:$H$42942,MATCH(A65&B65&C65&D65&E65&F65,'List Unsorted Data - Unique'!$A$2:$A$42942&'List Unsorted Data - Unique'!$B$2:$B$42942&'List Unsorted Data - Unique'!$C$2:$C$42942&'List Unsorted Data - Unique'!$D$2:$D$42942&'List Unsorted Data - Unique'!$E$2:$E$42942&'List Unsorted Data - Unique'!$F$2:$F$42942,0)) -> 56 | M65: =INDEX('List Unsorted Data - Unique'!$H$2:$H$42942,MATCH(1,('List Unsorted Data - Unique'!$A$2:$A$42942=A65)*('List Unsorted Data - Unique'!$B$2:$B$42942=B65)*('List Unsorted Data - Unique'!$C$2:$C$42942=C65)*('List Unsorted Data - Unique'!$D$2:$D$42942=D65)*('List Unsorted Data - Unique'!$E$2:$E$42942=E65)*('List Unsorted Data - Unique'!$F$2:$F$42942=F65),0)) -> 56 | O65: =SUMPRODUCT(('List Unsorted Data - Unique'!$A$2:$A$42942=A65)*('List Unsorted Data - Unique'!$B$2:$B$42942=B65)*('List Unsorted Data - Unique'!$C$2:$C$42942=C65)*('List Unsorted Data - Unique'!$D$2:$D$42942=D65)*('List Unsorted Data - Unique'!$E$2:$E$42942=E65)*('List Unsorted Data - Unique'!$F$2:$F$42942=F65)*('List Unsorted Data - Unique'!$H$2:$H$42942)) -> 56 | Q65: =VLOOKUP(A65&B65&C65&D65&E65&F65,CHOOSE({1,2,3,4,5,6},'List Unsorted Data - Unique'!$A$2:$A$42942&'List Unsorted Data - Unique'!$B$2:$B$42942&'List Unsorted Data - Unique'!$C$2:$C$42942&'List Unsorted Data - Unique'!$D$2:$D$42942&'List Unsorted Data - Unique'!$E$2:$E$42942&'List Unsorted Data - Unique'!$F$2:$F$42942,'List Unsorted Data - Unique'!$H$2:$H$42942),2,0) -> 56 | S65: =SUM(('List Unsorted Data - Unique'!$A$2:$A$42942=A65)*('List Unsorted Data - Unique'!$B$2:$B$42942=B65)*('List Unsorted Data - Unique'!$C$2:$C$42942=C65)*('List Unsorted Data - Unique'!$D$2:$D$42942=D65)*('List Unsorted Data - Unique'!$E$2:$E$42942=E65)*('List Unsorted Data - Unique'!$F$2:$F$42942=F65)*('List Unsorted Data - Unique'!$H$2:$H$42942)) -> 56
A66: 2016 | B66: 9 | C66: B. Paisley | D66: ASL002 | E66: SD01 | F66: Forecast | G66: =INDEX('List Unsorted Data - Unique'!$H$2:$H$42942,MATCH(A66&"-"&B66&"-"&C66&"-"&D66&"-"&E66&"-"&F66,'List Unsorted Data - Unique'!$G$2:$G$42942,0)) -> 54 | I66: =SUMIFS('List Unsorted Data - Unique'!$H$2:$H$42942,'List Unsorted Data - Unique'!$A$2:$A$42942,A66,'List Unsorted Data - Unique'!$B$2:$B$42942,B66,'List Unsorted Data - Unique'!$C$2:$C$42942,C66,'List Unsorted Data - Unique'!$D$2:$D$42942,D66,'List Unsorted Data - Unique'!$E$2:$E$42942,E66,'List Unsorted Data - Unique'!$F$2:$F$42942,F66) -> 54 | K66: =INDEX('List Unsorted Data - Unique'!$H$2:$H$42942,MATCH(A66&B66&C66&D66&E66&F66,'List Unsorted Data - Unique'!$A$2:$A$42942&'List Unsorted Data - Unique'!$B$2:$B$42942&'List Unsorted Data - Unique'!$C$2:$C$42942&'List Unsorted Data - Unique'!$D$2:$D$42942&'List Unsorted Data - Unique'!$E$2:$E$42942&'List Unsorted Data - Unique'!$F$2:$F$42942,0)) -> 54 | M66: =INDEX('List Unsorted Data - Unique'!$H$2:$H$42942,MATCH(1,('List Unsorted Data - Unique'!$A$2:$A$42942=A66)*('List Unsorted Data - Unique'!$B$2:$B$42942=B66)*('List Unsorted Data - Unique'!$C$2:$C$42942=C66)*('List Unsorted Data - Unique'!$D$2:$D$42942=D66)*('List Unsorted Data - Unique'!$E$2:$E$42942=E66)*('List Unsorted Data - Unique'!$F$2:$F$42942=F66),0)) -> 54 | O66: =SUMPRODUCT(('List Unsorted Data - Unique'!$A$2:$A$42942=A66)*('List Unsorted Data - Unique'!$B$2:$B$42942=B66)*('List Unsorted Data - Unique'!$C$2:$C$42942=C66)*('List Unsorted Data - Unique'!$D$2:$D$42942=D66)*('List Unsorted Data - Unique'!$E$2:$E$42942=E66)*('List Unsorted Data - Unique'!$F$2:$F$42942=F66)*('List Unsorted Data - Unique'!$H$2:$H$42942)) -> 54 | Q66: =VLOOKUP(A66&B66&C66&D66&E66&F66,CHOOSE({1,2,3,4,5,6},'List Unsorted Data - Unique'!$A$2:$A$42942&'List Unsorted Data - Unique'!$B$2:$B$42942&'List Unsorted Data - Unique'!$C$2:$C$42942&'List Unsorted Data - Unique'!$D$2:$D$42942&'List Unsorted Data - Unique'!$E$2:$E$42942&'List Unsorted Data - Unique'!$F$2:$F$42942,'List Unsorted Data - Unique'!$H$2:$H$42942),2,0) -> 54 | S66: =SUM(('List Unsorted Data - Unique'!$A$2:$A$42942=A66)*('List Unsorted Data - Unique'!$B$2:$B$42942=B66)*('List Unsorted Data - Unique'!$C$2:$C$42942=C66)*('List Unsorted Data - Unique'!$D$2:$D$42942=D66)*('List Unsorted Data - Unique'!$E$2:$E$42942=E66)*('List Unsorted Data - Unique'!$F$2:$F$42942=F66)*('List Unsorted Data - Unique'!$H$2:$H$42942)) -> 54
A67: 2015 | B67: 8 | C67: B. Shelton | D67: ASL002 | E67: NC01 | F67: Forecast | G67: =INDEX('List Unsorted Data - Unique'!$H$2:$H$42942,MATCH(A67&"-"&B67&"-"&C67&"-"&D67&"-"&E67&"-"&F67,'List Unsorted Data - Unique'!$G$2:$G$42942,0)) -> 164 | I67: =SUMIFS('List Unsorted Data - Unique'!$H$2:$H$42942,'List Unsorted Data - Unique'!$A$2:$A$42942,A67,'List Unsorted Data - Unique'!$B$2:$B$42942,B67,'List Unsorted Data - Unique'!$C$2:$C$42942,C67,'List Unsorted Data - Unique'!$D$2:$D$42942,D67,'List Unsorted Data - Unique'!$E$2:$E$42942,E67,'List Unsorted Data - Unique'!$F$2:$F$42942,F67) -> 164 | K67: =INDEX('List Unsorted Data - Unique'!$H$2:$H$42942,MATCH(A67&B67&C67&D67&E67&F67,'List Unsorted Data - Unique'!$A$2:$A$42942&'List Unsorted Data - Unique'!$B$2:$B$42942&'List Unsorted Data - Unique'!$C$2:$C$42942&'List Unsorted Data - Unique'!$D$2:$D$42942&'List Unsorted Data - Unique'!$E$2:$E$42942&'List Unsorted Data - Unique'!$F$2:$F$42942,0)) -> 164 | M67: =INDEX('List Unsorted Data - Unique'!$H$2:$H$42942,MATCH(1,('List Unsorted Data - Unique'!$A$2:$A$42942=A67)*('List Unsorted Data - Unique'!$B$2:$B$42942=B67)*('List Unsorted Data - Unique'!$C$2:$C$42942=C67)*('List Unsorted Data - Unique'!$D$2:$D$42942=D67)*('List Unsorted Data - Unique'!$E$2:$E$42942=E67)*('List Unsorted Data - Unique'!$F$2:$F$42942=F67),0)) -> 164 | O67: =SUMPRODUCT(('List Unsorted Data - Unique'!$A$2:$A$42942=A67)*('List Unsorted Data - Unique'!$B$2:$B$42942=B67)*('List Unsorted Data - Unique'!$C$2:$C$42942=C67)*('List Unsorted Data - Unique'!$D$2:$D$42942=D67)*('List Unsorted Data - Unique'!$E$2:$E$42942=E67)*('List Unsorted Data - Unique'!$F$2:$F$42942=F67)*('List Unsorted Data - Unique'!$H$2:$H$42942)) -> 164 | Q67: =VLOOKUP(A67&B67&C67&D67&E67&F67,CHOOSE({1,2,3,4,5,6},'List Unsorted Data - Unique'!$A$2:$A$42942&'List Unsorted Data - Unique'!$B$2:$B$42942&'List Unsorted Data - Unique'!$C$2:$C$42942&'List Unsorted Data - Unique'!$D$2:$D$42942&'List Unsorted Data - Unique'!$E$2:$E$42942&'List Unsorted Data - Unique'!$F$2:$F$42942,'List Unsorted Data - Unique'!$H$2:$H$42942),2,0) -> 164 | S67: =SUM(('List Unsorted Data - Unique'!$A$2:$A$42942=A67)*('List Unsorted Data - Unique'!$B$2:$B$42942=B67)*('List Unsorted Data - Unique'!$C$2:$C$42942=C67)*('List Unsorted Data - Unique'!$D$2:$D$42942=D67)*('List Unsorted Data - Unique'!$E$2:$E$42942=E67)*('List Unsorted Data - Unique'!$F$2:$F$42942=F67)*('List Unsorted Data - Unique'!$H$2:$H$42942)) -> 164
A68: 2016 | B68: 6 | C68: S. Crow | D68: POT002 | E68: PA01 | F68: Actual | G68: =INDEX('List Unsorted Data - Unique'!$H$2:$H$42942,MATCH(A68&"-"&B68&"-"&C68&"-"&D68&"-"&E68&"-"&F68,'List Unsorted Data - Unique'!$G$2:$G$42942,0)) -> 65 | I68: =SUMIFS('List Unsorted Data - Unique'!$H$2:$H$42942,'List Unsorted Data - Unique'!$A$2:$A$42942,A68,'List Unsorted Data - Unique'!$B$2:$B$42942,B68,'List Unsorted Data - Unique'!$C$2:$C$42942,C68,'List Unsorted Data - Unique'!$D$2:$D$42942,D68,'List Unsorted Data - Unique'!$E$2:$E$42942,E68,'List Unsorted Data - Unique'!$F$2:$F$42942,F68) -> 65 | K68: =INDEX('List Unsorted Data - Unique'!$H$2:$H$42942,MATCH(A68&B68&C68&D68&E68&F68,'List Unsorted Data - Unique'!$A$2:$A$42942&'List Unsorted Data - Unique'!$B$2:$B$42942&'List Unsorted Data - Unique'!$C$2:$C$42942&'List Unsorted Data - Unique'!$D$2:$D$42942&'List Unsorted Data - Unique'!$E$2:$E$42942&'List Unsorted Data - Unique'!$F$2:$F$42942,0)) -> 65 | M68: =INDEX('List Unsorted Data - Unique'!$H$2:$H$42942,MATCH(1,('List Unsorted Data - Unique'!$A$2:$A$42942=A68)*('List Unsorted Data - Unique'!$B$2:$B$42942=B68)*('List Unsorted Data - Unique'!$C$2:$C$42942=C68)*('List Unsorted Data - Unique'!$D$2:$D$42942=D68)*('List Unsorted Data - Unique'!$E$2:$E$42942=E68)*('List Unsorted Data - Unique'!$F$2:$F$42942=F68),0)) -> 65 | O68: =SUMPRODUCT(('List Unsorted Data - Unique'!$A$2:$A$42942=A68)*('List Unsorted Data - Unique'!$B$2:$B$42942=B68)*('List Unsorted Data - Unique'!$C$2:$C$42942=C68)*('List Unsorted Data - Unique'!$D$2:$D$42942=D68)*('List Unsorted Data - Unique'!$E$2:$E$42942=E68)*('List Unsorted Data - Unique'!$F$2:$F$42942=F68)*('List Unsorted Data - Unique'!$H$2:$H$42942)) -> 65 | Q68: =VLOOKUP(A68&B68&C68&D68&E68&F68,CHOOSE({1,2,3,4,5,6},'List Unsorted Data - Unique'!$A$2:$A$42942&'List Unsorted Data - Unique'!$B$2:$B$42942&'List Unsorted Data - Unique'!$C$2:$C$42942&'List Unsorted Data - Unique'!$D$2:$D$42942&'List Unsorted Data - Unique'!$E$2:$E$42942&'List Unsorted Data - Unique'!$F$2:$F$42942,'List Unsorted Data - Unique'!$H$2:$H$42942),2,0) -> 65 | S68: =SUM(('List Unsorted Data - Unique'!$A$2:$A$42942=A68)*('List Unsorted Data - Unique'!$B$2:$B$42942=B68)*('List Unsorted Data - Unique'!$C$2:$C$42942=C68)*('List Unsorted Data - Unique'!$D$2:$D$42942=D68)*('List Unsorted Data - Unique'!$E$2:$E$42942=E68)*('List Unsorted Data - Unique'!$F$2:$F$42942=F68)*('List Unsorted Data - Unique'!$H$2:$H$42942)) -> 65
A69: 2014 | B69: 12 | C69: M. Stipe | D69: POT002 | E69: MN01 | F69: Actual | G69: =INDEX('List Unsorted Data - Unique'!$H$2:$H$42942,MATCH(A69&"-"&B69&"-"&C69&"-"&D69&"-"&E69&"-"&F69,'List Unsorted Data - Unique'!$G$2:$G$42942,0)) -> 143 | I69: =SUMIFS('List Unsorted Data - Unique'!$H$2:$H$42942,'List Unsorted Data - Unique'!$A$2:$A$42942,A69,'List Unsorted Data - Unique'!$B$2:$B$42942,B69,'List Unsorted Data - Unique'!$C$2:$C$42942,C69,'List Unsorted Data - Unique'!$D$2:$D$42942,D69,'List Unsorted Data - Unique'!$E$2:$E$42942,E69,'List Unsorted Data - Unique'!$F$2:$F$42942,F69) -> 143 | K69: =INDEX('List Unsorted Data - Unique'!$H$2:$H$42942,MATCH(A69&B69&C69&D69&E69&F69,'List Unsorted Data - Unique'!$A$2:$A$42942&'List Unsorted Data - Unique'!$B$2:$B$42942&'List Unsorted Data - Unique'!$C$2:$C$42942&'List Unsorted Data - Unique'!$D$2:$D$42942&'List Unsorted Data - Unique'!$E$2:$E$42942&'List Unsorted Data - Unique'!$F$2:$F$42942,0)) -> 143 | M69: =INDEX('List Unsorted Data - Unique'!$H$2:$H$42942,MATCH(1,('List Unsorted Data - Unique'!$A$2:$A$42942=A69)*('List Unsorted Data - Unique'!$B$2:$B$42942=B69)*('List Unsorted Data - Unique'!$C$2:$C$42942=C69)*('List Unsorted Data - Unique'!$D$2:$D$42942=D69)*('List Unsorted Data - Unique'!$E$2:$E$42942=E69)*('List Unsorted Data - Unique'!$F$2:$F$42942=F69),0)) -> 143 | O69: =SUMPRODUCT(('List Unsorted Data - Unique'!$A$2:$A$42942=A69)*('List Unsorted Data - Unique'!$B$2:$B$42942=B69)*('List Unsorted Data - Unique'!$C$2:$C$42942=C69)*('List Unsorted Data - Unique'!$D$2:$D$42942=D69)*('List Unsorted Data - Unique'!$E$2:$E$42942=E69)*('List Unsorted Data - Unique'!$F$2:$F$42942=F69)*('List Unsorted Data - Unique'!$H$2:$H$42942)) -> 143 | Q69: =VLOOKUP(A69&B69&C69&D69&E69&F69,CHOOSE({1,2,3,4,5,6},'List Unsorted Data - Unique'!$A$2:$A$42942&'List Unsorted Data - Unique'!$B$2:$B$42942&'List Unsorted Data - Unique'!$C$2:$C$42942&'List Unsorted Data - Unique'!$D$2:$D$42942&'List Unsorted Data - Unique'!$E$2:$E$42942&'List Unsorted Data - Unique'!$F$2:$F$42942,'List Unsorted Data - Unique'!$H$2:$H$42942),2,0) -> 143 | S69: =SUM(('List Unsorted Data - Unique'!$A$2:$A$42942=A69)*('List Unsorted Data - Unique'!$B$2:$B$42942=B69)*('List Unsorted Data - Unique'!$C$2:$C$42942=C69)*('List Unsorted Data - Unique'!$D$2:$D$42942=D69)*('List Unsorted Data - Unique'!$E$2:$E$42942=E69)*('List Unsorted Data - Unique'!$F$2:$F$42942=F69)*('List Unsorted Data - Unique'!$H$2:$H$42942)) -> 143
A70: 2015 | B70: 8 | C70: R. Star | D70: POT002 | E70: SD01 | F70: Actual | G70: =INDEX('List Unsorted Data - Unique'!$H$2:$H$42942,MATCH(A70&"-"&B70&"-"&C70&"-"&D70&"-"&E70&"-"&F70,'List Unsorted Data - Unique'!$G$2:$G$42942,0)) -> 151 | I70: =SUMIFS('List Unsorted Data - Unique'!$H$2:$H$42942,'List Unsorted Data - Unique'!$A$2:$A$42942,A70,'List Unsorted Data - Unique'!$B$2:$B$42942,B70,'List Unsorted Data - Unique'!$C$2:$C$42942,C70,'List Unsorted Data - Unique'!$D$2:$D$42942,D70,'List Unsorted Data - Unique'!$E$2:$E$42942,E70,'List Unsorted Data - Unique'!$F$2:$F$42942,F70) -> 151 | K70: =INDEX('List Unsorted Data - Unique'!$H$2:$H$42942,MATCH(A70&B70&C70&D70&E70&F70,'List Unsorted Data - Unique'!$A$2:$A$42942&'List Unsorted Data - Unique'!$B$2:$B$42942&'List Unsorted Data - Unique'!$C$2:$C$42942&'List Unsorted Data - Unique'!$D$2:$D$42942&'List Unsorted Data - Unique'!$E$2:$E$42942&'List Unsorted Data - Unique'!$F$2:$F$42942,0)) -> 151 | M70: =INDEX('List Unsorted Data - Unique'!$H$2:$H$42942,MATCH(1,('List Unsorted Data - Unique'!$A$2:$A$42942=A70)*('List Unsorted Data - Unique'!$B$2:$B$42942=B70)*('List Unsorted Data - Unique'!$C$2:$C$42942=C70)*('List Unsorted Data - Unique'!$D$2:$D$42942=D70)*('List Unsorted Data - Unique'!$E$2:$E$42942=E70)*('List Unsorted Data - Unique'!$F$2:$F$42942=F70),0)) -> 151 | O70: =SUMPRODUCT(('List Unsorted Data - Unique'!$A$2:$A$42942=A70)*('List Unsorted Data - Unique'!$B$2:$B$42942=B70)*('List Unsorted Data - Unique'!$C$2:$C$42942=C70)*('List Unsorted Data - Unique'!$D$2:$D$42942=D70)*('List Unsorted Data - Unique'!$E$2:$E$42942=E70)*('List Unsorted Data - Unique'!$F$2:$F$42942=F70)*('List Unsorted Data - Unique'!$H$2:$H$42942)) -> 151 | Q70: =VLOOKUP(A70&B70&C70&D70&E70&F70,CHOOSE({1,2,3,4,5,6},'List Unsorted Data - Unique'!$A$2:$A$42942&'List Unsorted Data - Unique'!$B$2:$B$42942&'List Unsorted Data - Unique'!$C$2:$C$42942&'List Unsorted Data - Unique'!$D$2:$D$42942&'List Unsorted Data - Unique'!$E$2:$E$42942&'List Unsorted Data - Unique'!$F$2:$F$42942,'List Unsorted Data - Unique'!$H$2:$H$42942),2,0) -> 151 | S70: =SUM(('List Unsorted Data - Unique'!$A$2:$A$42942=A70)*('List Unsorted Data - Unique'!$B$2:$B$42942=B70)*('List Unsorted Data - Unique'!$C$2:$C$42942=C70)*('List Unsorted Data - Unique'!$D$2:$D$42942=D70)*('List Unsorted Data - Unique'!$E$2:$E$42942=E70)*('List Unsorted Data - Unique'!$F$2:$F$42942=F70)*('List Unsorted Data - Unique'!$H$2:$H$42942)) -> 151
A71: 2015 | B71: 7 | C71: S. Crow | D71: PRD002 | E71: LA01 | F71: Forecast | G71: =INDEX('List Unsorted Data - Unique'!$H$2:$H$42942,MATCH(A71&"-"&B71&"-"&C71&"-"&D71&"-"&E71&"-"&F71,'List Unsorted Data - Unique'!$G$2:$G$42942,0)) -> 240 | I71: =SUMIFS('List Unsorted Data - Unique'!$H$2:$H$42942,'List Unsorted Data - Unique'!$A$2:$A$42942,A71,'List Unsorted Data - Unique'!$B$2:$B$42942,B71,'List Unsorted Data - Unique'!$C$2:$C$42942,C71,'List Unsorted Data - Unique'!$D$2:$D$42942,D71,'List Unsorted Data - Unique'!$E$2:$E$42942,E71,'List Unsorted Data - Unique'!$F$2:$F$42942,F71) -> 240 | K71: =INDEX('List Unsorted Data - Unique'!$H$2:$H$42942,MATCH(A71&B71&C71&D71&E71&F71,'List Unsorted Data - Unique'!$A$2:$A$42942&'List Unsorted Data - Unique'!$B$2:$B$42942&'List Unsorted Data - Unique'!$C$2:$C$42942&'List Unsorted Data - Unique'!$D$2:$D$42942&'List Unsorted Data - Unique'!$E$2:$E$42942&'List Unsorted Data - Unique'!$F$2:$F$42942,0)) -> 240 | M71: =INDEX('List Unsorted Data - Unique'!$H$2:$H$42942,MATCH(1,('List Unsorted Data - Unique'!$A$2:$A$42942=A71)*('List Unsorted Data - Unique'!$B$2:$B$42942=B71)*('List Unsorted Data - Unique'!$C$2:$C$42942=C71)*('List Unsorted Data - Unique'!$D$2:$D$42942=D71)*('List Unsorted Data - Unique'!$E$2:$E$42942=E71)*('List Unsorted Data - Unique'!$F$2:$F$42942=F71),0)) -> 240 | O71: =SUMPRODUCT(('List Unsorted Data - Unique'!$A$2:$A$42942=A71)*('List Unsorted Data - Unique'!$B$2:$B$42942=B71)*('List Unsorted Data - Unique'!$C$2:$C$42942=C71)*('List Unsorted Data - Unique'!$D$2:$D$42942=D71)*('List Unsorted Data - Unique'!$E$2:$E$42942=E71)*('List Unsorted Data - Unique'!$F$2:$F$42942=F71)*('List Unsorted Data - Unique'!$H$2:$H$42942)) -> 240 | Q71: =VLOOKUP(A71&B71&C71&D71&E71&F71,CHOOSE({1,2,3,4,5,6},'List Unsorted Data - Unique'!$A$2:$A$42942&'List Unsorted Data - Unique'!$B$2:$B$42942&'List Unsorted Data - Unique'!$C$2:$C$42942&'List Unsorted Data - Unique'!$D$2:$D$42942&'List Unsorted Data - Unique'!$E$2:$E$42942&'List Unsorted Data - Unique'!$F$2:$F$42942,'List Unsorted Data - Unique'!$H$2:$H$42942),2,0) -> 240 | S71: =SUM(('List Unsorted Data - Unique'!$A$2:$A$42942=A71)*('List Unsorted Data - Unique'!$B$2:$B$42942=B71)*('List Unsorted Data - Unique'!$C$2:$C$42942=C71)*('List Unsorted Data - Unique'!$D$2:$D$42942=D71)*('List Unsorted Data - Unique'!$E$2:$E$42942=E71)*('List Unsorted Data - Unique'!$F$2:$F$42942=F71)*('List Unsorted Data - Unique'!$H$2:$H$42942)) -> 240
A72: 2014 | B72: 6 | C72: C. Underwood | D72: POT002 | E72: MN01 | F72: Forecast | G72: =INDEX('List Unsorted Data - Unique'!$H$2:$H$42942,MATCH(A72&"-"&B72&"-"&C72&"-"&D72&"-"&E72&"-"&F72,'List Unsorted Data - Unique'!$G$2:$G$42942,0)) -> 150 | I72: =SUMIFS('List Unsorted Data - Unique'!$H$2:$H$42942,'List Unsorted Data - Unique'!$A$2:$A$42942,A72,'List Unsorted Data - Unique'!$B$2:$B$42942,B72,'List Unsorted Data - Unique'!$C$2:$C$42942,C72,'List Unsorted Data - Unique'!$D$2:$D$42942,D72,'List Unsorted Data - Unique'!$E$2:$E$42942,E72,'List Unsorted Data - Unique'!$F$2:$F$42942,F72) -> 150 | K72: =INDEX('List Unsorted Data - Unique'!$H$2:$H$42942,MATCH(A72&B72&C72&D72&E72&F72,'List Unsorted Data - Unique'!$A$2:$A$42942&'List Unsorted Data - Unique'!$B$2:$B$42942&'List Unsorted Data - Unique'!$C$2:$C$42942&'List Unsorted Data - Unique'!$D$2:$D$42942&'List Unsorted Data - Unique'!$E$2:$E$42942&'List Unsorted Data - Unique'!$F$2:$F$42942,0)) -> 150 | M72: =INDEX('List Unsorted Data - Unique'!$H$2:$H$42942,MATCH(1,('List Unsorted Data - Unique'!$A$2:$A$42942=A72)*('List Unsorted Data - Unique'!$B$2:$B$42942=B72)*('List Unsorted Data - Unique'!$C$2:$C$42942=C72)*('List Unsorted Data - Unique'!$D$2:$D$42942=D72)*('List Unsorted Data - Unique'!$E$2:$E$42942=E72)*('List Unsorted Data - Unique'!$F$2:$F$42942=F72),0)) -> 150 | O72: =SUMPRODUCT(('List Unsorted Data - Unique'!$A$2:$A$42942=A72)*('List Unsorted Data - Unique'!$B$2:$B$42942=B72)*('List Unsorted Data - Unique'!$C$2:$C$42942=C72)*('List Unsorted Data - Unique'!$D$2:$D$42942=D72)*('List Unsorted Data - Unique'!$E$2:$E$42942=E72)*('List Unsorted Data - Unique'!$F$2:$F$42942=F72)*('List Unsorted Data - Unique'!$H$2:$H$42942)) -> 150 | Q72: =VLOOKUP(A72&B72&C72&D72&E72&F72,CHOOSE({1,2,3,4,5,6},'List Unsorted Data - Unique'!$A$2:$A$42942&'List Unsorted Data - Unique'!$B$2:$B$42942&'List Unsorted Data - Unique'!$C$2:$C$42942&'List Unsorted Data - Unique'!$D$2:$D$42942&'List Unsorted Data - Unique'!$E$2:$E$42942&'List Unsorted Data - Unique'!$F$2:$F$42942,'List Unsorted Data - Unique'!$H$2:$H$42942),2,0) -> 150 | S72: =SUM(('List Unsorted Data - Unique'!$A$2:$A$42942=A72)*('List Unsorted Data - Unique'!$B$2:$B$42942=B72)*('List Unsorted Data - Unique'!$C$2:$C$42942=C72)*('List Unsorted Data - Unique'!$D$2:$D$42942=D72)*('List Unsorted Data - Unique'!$E$2:$E$42942=E72)*('List Unsorted Data - Unique'!$F$2:$F$42942=F72)*('List Unsorted Data - Unique'!$H$2:$H$42942)) -> 150
A73: 2015 | B73: 7 | C73: B. Shelton | D73: JKL001 | E73: CA01 | F73: Actual | G73: =INDEX('List Unsorted Data - Unique'!$H$2:$H$42942,MATCH(A73&"-"&B73&"-"&C73&"-"&D73&"-"&E73&"-"&F73,'List Unsorted Data - Unique'!$G$2:$G$42942,0)) -> 223 | I73: =SUMIFS('List Unsorted Data - Unique'!$H$2:$H$42942,'List Unsorted Data - Unique'!$A$2:$A$42942,A73,'List Unsorted Data - Unique'!$B$2:$B$42942,B73,'List Unsorted Data - Unique'!$C$2:$C$42942,C73,'List Unsorted Data - Unique'!$D$2:$D$42942,D73,'List Unsorted Data - Unique'!$E$2:$E$42942,E73,'List Unsorted Data - Unique'!$F$2:$F$42942,F73) -> 223 | K73: =INDEX('List Unsorted Data - Unique'!$H$2:$H$42942,MATCH(A73&B73&C73&D73&E73&F73,'List Unsorted Data - Unique'!$A$2:$A$42942&'List Unsorted Data - Unique'!$B$2:$B$42942&'List Unsorted Data - Unique'!$C$2:$C$42942&'List Unsorted Data - Unique'!$D$2:$D$42942&'List Unsorted Data - Unique'!$E$2:$E$42942&'List Unsorted Data - Unique'!$F$2:$F$42942,0)) -> 223 | M73: =INDEX('List Unsorted Data - Unique'!$H$2:$H$42942,MATCH(1,('List Unsorted Data - Unique'!$A$2:$A$42942=A73)*('List Unsorted Data - Unique'!$B$2:$B$42942=B73)*('List Unsorted Data - Unique'!$C$2:$C$42942=C73)*('List Unsorted Data - Unique'!$D$2:$D$42942=D73)*('List Unsorted Data - Unique'!$E$2:$E$42942=E73)*('List Unsorted Data - Unique'!$F$2:$F$42942=F73),0)) -> 223 | O73: =SUMPRODUCT(('List Unsorted Data - Unique'!$A$2:$A$42942=A73)*('List Unsorted Data - Unique'!$B$2:$B$42942=B73)*('List Unsorted Data - Unique'!$C$2:$C$42942=C73)*('List Unsorted Data - Unique'!$D$2:$D$42942=D73)*('List Unsorted Data - Unique'!$E$2:$E$42942=E73)*('List Unsorted Data - Unique'!$F$2:$F$42942=F73)*('List Unsorted Data - Unique'!$H$2:$H$42942)) -> 223 | Q73: =VLOOKUP(A73&B73&C73&D73&E73&F73,CHOOSE({1,2,3,4,5,6},'List Unsorted Data - Unique'!$A$2:$A$42942&'List Unsorted Data - Unique'!$B$2:$B$42942&'List Unsorted Data - Unique'!$C$2:$C$42942&'List Unsorted Data - Unique'!$D$2:$D$42942&'List Unsorted Data - Unique'!$E$2:$E$42942&'List Unsorted Data - Unique'!$F$2:$F$42942,'List Unsorted Data - Unique'!$H$2:$H$42942),2,0) -> 223 | S73: =SUM(('List Unsorted Data - Unique'!$A$2:$A$42942=A73)*('List Unsorted Data - Unique'!$B$2:$B$42942=B73)*('List Unsorted Data - Unique'!$C$2:$C$42942=C73)*('List Unsorted Data - Unique'!$D$2:$D$42942=D73)*('List Unsorted Data - Unique'!$E$2:$E$42942=E73)*('List Unsorted Data - Unique'!$F$2:$F$42942=F73)*('List Unsorted Data - Unique'!$H$2:$H$42942)) -> 223
A74: 2014 | B74: 6 | C74: M.Mills | D74: DFG001 | E74: SD01 | F74: Forecast | G74: =INDEX('List Unsorted Data - Unique'!$H$2:$H$42942,MATCH(A74&"-"&B74&"-"&C74&"-"&D74&"-"&E74&"-"&F74,'List Unsorted Data - Unique'!$G$2:$G$42942,0)) -> 112 | I74: =SUMIFS('List Unsorted Data - Unique'!$H$2:$H$42942,'List Unsorted Data - Unique'!$A$2:$A$42942,A74,'List Unsorted Data - Unique'!$B$2:$B$42942,B74,'List Unsorted Data - Unique'!$C$2:$C$42942,C74,'List Unsorted Data - Unique'!$D$2:$D$42942,D74,'List Unsorted Data - Unique'!$E$2:$E$42942,E74,'List Unsorted Data - Unique'!$F$2:$F$42942,F74) -> 112 | K74: =INDEX('List Unsorted Data - Unique'!$H$2:$H$42942,MATCH(A74&B74&C74&D74&E74&F74,'List Unsorted Data - Unique'!$A$2:$A$42942&'List Unsorted Data - Unique'!$B$2:$B$42942&'List Unsorted Data - Unique'!$C$2:$C$42942&'List Unsorted Data - Unique'!$D$2:$D$42942&'List Unsorted Data - Unique'!$E$2:$E$42942&'List Unsorted Data - Unique'!$F$2:$F$42942,0)) -> 112 | M74: =INDEX('List Unsorted Data - Unique'!$H$2:$H$42942,MATCH(1,('List Unsorted Data - Unique'!$A$2:$A$42942=A74)*('List Unsorted Data - Unique'!$B$2:$B$42942=B74)*('List Unsorted Data - Unique'!$C$2:$C$42942=C74)*('List Unsorted Data - Unique'!$D$2:$D$42942=D74)*('List Unsorted Data - Unique'!$E$2:$E$42942=E74)*('List Unsorted Data - Unique'!$F$2:$F$42942=F74),0)) -> 112 | O74: =SUMPRODUCT(('List Unsorted Data - Unique'!$A$2:$A$42942=A74)*('List Unsorted Data - Unique'!$B$2:$B$42942=B74)*('List Unsorted Data - Unique'!$C$2:$C$42942=C74)*('List Unsorted Data - Unique'!$D$2:$D$42942=D74)*('List Unsorted Data - Unique'!$E$2:$E$42942=E74)*('List Unsorted Data - Unique'!$F$2:$F$42942=F74)*('List Unsorted Data - Unique'!$H$2:$H$42942)) -> 112 | Q74: =VLOOKUP(A74&B74&C74&D74&E74&F74,CHOOSE({1,2,3,4,5,6},'List Unsorted Data - Unique'!$A$2:$A$42942&'List Unsorted Data - Unique'!$B$2:$B$42942&'List Unsorted Data - Unique'!$C$2:$C$42942&'List Unsorted Data - Unique'!$D$2:$D$42942&'List Unsorted Data - Unique'!$E$2:$E$42942&'List Unsorted Data - Unique'!$F$2:$F$42942,'List Unsorted Data - Unique'!$H$2:$H$42942),2,0) -> 112 | S74: =SUM(('List Unsorted Data - Unique'!$A$2:$A$42942=A74)*('List Unsorted Data - Unique'!$B$2:$B$42942=B74)*('List Unsorted Data - Unique'!$C$2:$C$42942=C74)*('List Unsorted Data - Unique'!$D$2:$D$42942=D74)*('List Unsorted Data - Unique'!$E$2:$E$42942=E74)*('List Unsorted Data - Unique'!$F$2:$F$42942=F74)*('List Unsorted Data - Unique'!$H$2:$H$42942)) -> 112
A75: 2014 | B75: 4 | C75: S. Crow | D75: ASL002 | E75: VA01 | F75: Forecast | G75: =INDEX('List Unsorted Data - Unique'!$H$2:$H$42942,MATCH(A75&"-"&B75&"-"&C75&"-"&D75&"-"&E75&"-"&F75,'List Unsorted Data - Unique'!$G$2:$G$42942,0)) -> 105 | I75: =SUMIFS('List Unsorted Data - Unique'!$H$2:$H$42942,'List Unsorted Data - Unique'!$A$2:$A$42942,A75,'List Unsorted Data - Unique'!$B$2:$B$42942,B75,'List Unsorted Data - Unique'!$C$2:$C$42942,C75,'List Unsorted Data - Unique'!$D$2:$D$42942,D75,'List Unsorted Data - Unique'!$E$2:$E$42942,E75,'List Unsorted Data - Unique'!$F$2:$F$42942,F75) -> 105 | K75: =INDEX('List Unsorted Data - Unique'!$H$2:$H$42942,MATCH(A75&B75&C75&D75&E75&F75,'List Unsorted Data - Unique'!$A$2:$A$42942&'List Unsorted Data - Unique'!$B$2:$B$42942&'List Unsorted Data - Unique'!$C$2:$C$42942&'List Unsorted Data - Unique'!$D$2:$D$42942&'List Unsorted Data - Unique'!$E$2:$E$42942&'List Unsorted Data - Unique'!$F$2:$F$42942,0)) -> 105 | M75: =INDEX('List Unsorted Data - Unique'!$H$2:$H$42942,MATCH(1,('List Unsorted Data - Unique'!$A$2:$A$42942=A75)*('List Unsorted Data - Unique'!$B$2:$B$42942=B75)*('List Unsorted Data - Unique'!$C$2:$C$42942=C75)*('List Unsorted Data - Unique'!$D$2:$D$42942=D75)*('List Unsorted Data - Unique'!$E$2:$E$42942=E75)*('List Unsorted Data - Unique'!$F$2:$F$42942=F75),0)) -> 105 | O75: =SUMPRODUCT(('List Unsorted Data - Unique'!$A$2:$A$42942=A75)*('List Unsorted Data - Unique'!$B$2:$B$42942=B75)*('List Unsorted Data - Unique'!$C$2:$C$42942=C75)*('List Unsorted Data - Unique'!$D$2:$D$42942=D75)*('List Unsorted Data - Unique'!$E$2:$E$42942=E75)*('List Unsorted Data - Unique'!$F$2:$F$42942=F75)*('List Unsorted Data - Unique'!$H$2:$H$42942)) -> 105 | Q75: =VLOOKUP(A75&B75&C75&D75&E75&F75,CHOOSE({1,2,3,4,5,6},'List Unsorted Data - Unique'!$A$2:$A$42942&'List Unsorted Data - Unique'!$B$2:$B$42942&'List Unsorted Data - Unique'!$C$2:$C$42942&'List Unsorted Data - Unique'!$D$2:$D$42942&'List Unsorted Data - Unique'!$E$2:$E$42942&'List Unsorted Data - Unique'!$F$2:$F$42942,'List Unsorted Data - Unique'!$H$2:$H$42942),2,0) -> 105 | S75: =SUM(('List Unsorted Data - Unique'!$A$2:$A$42942=A75)*('List Unsorted Data - Unique'!$B$2:$B$42942=B75)*('List Unsorted Data - Unique'!$C$2:$C$42942=C75)*('List Unsorted Data - Unique'!$D$2:$D$42942=D75)*('List Unsorted Data - Unique'!$E$2:$E$42942=E75)*('List Unsorted Data - Unique'!$F$2:$F$42942=F75)*('List Unsorted Data - Unique'!$H$2:$H$42942)) -> 105
A76: 2015 | B76: 5 | C76: P. Buck | D76: ASL002 | E76: MN01 | F76: Actual | G76: =INDEX('List Unsorted Data - Unique'!$H$2:$H$42942,MATCH(A76&"-"&B76&"-"&C76&"-"&D76&"-"&E76&"-"&F76,'List Unsorted Data - Unique'!$G$2:$G$42942,0)) -> 156 | I76: =SUMIFS('List Unsorted Data - Unique'!$H$2:$H$42942,'List Unsorted Data - Unique'!$A$2:$A$42942,A76,'List Unsorted Data - Unique'!$B$2:$B$42942,B76,'List Unsorted Data - Unique'!$C$2:$C$42942,C76,'List Unsorted Data - Unique'!$D$2:$D$42942,D76,'List Unsorted Data - Unique'!$E$2:$E$42942,E76,'List Unsorted Data - Unique'!$F$2:$F$42942,F76) -> 156 | K76: =INDEX('List Unsorted Data - Unique'!$H$2:$H$42942,MATCH(A76&B76&C76&D76&E76&F76,'List Unsorted Data - Unique'!$A$2:$A$42942&'List Unsorted Data - Unique'!$B$2:$B$42942&'List Unsorted Data - Unique'!$C$2:$C$42942&'List Unsorted Data - Unique'!$D$2:$D$42942&'List Unsorted Data - Unique'!$E$2:$E$42942&'List Unsorted Data - Unique'!$F$2:$F$42942,0)) -> 156 | M76: =INDEX('List Unsorted Data - Unique'!$H$2:$H$42942,MATCH(1,('List Unsorted Data - Unique'!$A$2:$A$42942=A76)*('List Unsorted Data - Unique'!$B$2:$B$42942=B76)*('List Unsorted Data - Unique'!$C$2:$C$42942=C76)*('List Unsorted Data - Unique'!$D$2:$D$42942=D76)*('List Unsorted Data - Unique'!$E$2:$E$42942=E76)*('List Unsorted Data - Unique'!$F$2:$F$42942=F76),0)) -> 156 | O76: =SUMPRODUCT(('List Unsorted Data - Unique'!$A$2:$A$42942=A76)*('List Unsorted Data - Unique'!$B$2:$B$42942=B76)*('List Unsorted Data - Unique'!$C$2:$C$42942=C76)*('List Unsorted Data - Unique'!$D$2:$D$42942=D76)*('List Unsorted Data - Unique'!$E$2:$E$42942=E76)*('List Unsorted Data - Unique'!$F$2:$F$42942=F76)*('List Unsorted Data - Unique'!$H$2:$H$42942)) -> 156 | Q76: =VLOOKUP(A76&B76&C76&D76&E76&F76,CHOOSE({1,2,3,4,5,6},'List Unsorted Data - Unique'!$A$2:$A$42942&'List Unsorted Data - Unique'!$B$2:$B$42942&'List Unsorted Data - Unique'!$C$2:$C$42942&'List Unsorted Data - Unique'!$D$2:$D$42942&'List Unsorted Data - Unique'!$E$2:$E$42942&'List Unsorted Data - Unique'!$F$2:$F$42942,'List Unsorted Data - Unique'!$H$2:$H$42942),2,0) -> 156 | S76: =SUM(('List Unsorted Data - Unique'!$A$2:$A$42942=A76)*('List Unsorted Data - Unique'!$B$2:$B$42942=B76)*('List Unsorted Data - Unique'!$C$2:$C$42942=C76)*('List Unsorted Data - Unique'!$D$2:$D$42942=D76)*('List Unsorted Data - Unique'!$E$2:$E$42942=E76)*('List Unsorted Data - Unique'!$F$2:$F$42942=F76)*('List Unsorted Data - Unique'!$H$2:$H$42942)) -> 156
A77: 2015 | B77: 7 | C77: B. Paisley | D77: PRD002 | E77: LA01 | F77: Actual | G77: =INDEX('List Unsorted Data - Unique'!$H$2:$H$42942,MATCH(A77&"-"&B77&"-"&C77&"-"&D77&"-"&E77&"-"&F77,'List Unsorted Data - Unique'!$G$2:$G$42942,0)) -> 239 | I77: =SUMIFS('List Unsorted Data - Unique'!$H$2:$H$42942,'List Unsorted Data - Unique'!$A$2:$A$42942,A77,'List Unsorted Data - Unique'!$B$2:$B$42942,B77,'List Unsorted Data - Unique'!$C$2:$C$42942,C77,'List Unsorted Data - Unique'!$D$2:$D$42942,D77,'List Unsorted Data - Unique'!$E$2:$E$42942,E77,'List Unsorted Data - Unique'!$F$2:$F$42942,F77) -> 239 | K77: =INDEX('List Unsorted Data - Unique'!$H$2:$H$42942,MATCH(A77&B77&C77&D77&E77&F77,'List Unsorted Data - Unique'!$A$2:$A$42942&'List Unsorted Data - Unique'!$B$2:$B$42942&'List Unsorted Data - Unique'!$C$2:$C$42942&'List Unsorted Data - Unique'!$D$2:$D$42942&'List Unsorted Data - Unique'!$E$2:$E$42942&'List Unsorted Data - Unique'!$F$2:$F$42942,0)) -> 239 | M77: =INDEX('List Unsorted Data - Unique'!$H$2:$H$42942,MATCH(1,('List Unsorted Data - Unique'!$A$2:$A$42942=A77)*('List Unsorted Data - Unique'!$B$2:$B$42942=B77)*('List Unsorted Data - Unique'!$C$2:$C$42942=C77)*('List Unsorted Data - Unique'!$D$2:$D$42942=D77)*('List Unsorted Data - Unique'!$E$2:$E$42942=E77)*('List Unsorted Data - Unique'!$F$2:$F$42942=F77),0)) -> 239 | O77: =SUMPRODUCT(('List Unsorted Data - Unique'!$A$2:$A$42942=A77)*('List Unsorted Data - Unique'!$B$2:$B$42942=B77)*('List Unsorted Data - Unique'!$C$2:$C$42942=C77)*('List Unsorted Data - Unique'!$D$2:$D$42942=D77)*('List Unsorted Data - Unique'!$E$2:$E$42942=E77)*('List Unsorted Data - Unique'!$F$2:$F$42942=F77)*('List Unsorted Data - Unique'!$H$2:$H$42942)) -> 239 | Q77: =VLOOKUP(A77&B77&C77&D77&E77&F77,CHOOSE({1,2,3,4,5,6},'List Unsorted Data - Unique'!$A$2:$A$42942&'List Unsorted Data - Unique'!$B$2:$B$42942&'List Unsorted Data - Unique'!$C$2:$C$42942&'List Unsorted Data - Unique'!$D$2:$D$42942&'List Unsorted Data - Unique'!$E$2:$E$42942&'List Unsorted Data - Unique'!$F$2:$F$42942,'List Unsorted Data - Unique'!$H$2:$H$42942),2,0) -> 239 | S77: =SUM(('List Unsorted Data - Unique'!$A$2:$A$42942=A77)*('List Unsorted Data - Unique'!$B$2:$B$42942=B77)*('List Unsorted Data - Unique'!$C$2:$C$42942=C77)*('List Unsorted Data - Unique'!$D$2:$D$42942=D77)*('List Unsorted Data - Unique'!$E$2:$E$42942=E77)*('List Unsorted Data - Unique'!$F$2:$F$42942=F77)*('List Unsorted Data - Unique'!$H$2:$H$42942)) -> 239
A78: 2015 | B78: 8 | C78: B. Shelton | D78: ASL003 | E78: VA01 | F78: Actual | G78: =INDEX('List Unsorted Data - Unique'!$H$2:$H$42942,MATCH(A78&"-"&B78&"-"&C78&"-"&D78&"-"&E78&"-"&F78,'List Unsorted Data - Unique'!$G$2:$G$42942,0)) -> 59 | I78: =SUMIFS('List Unsorted Data - Unique'!$H$2:$H$42942,'List Unsorted Data - Unique'!$A$2:$A$42942,A78,'List Unsorted Data - Unique'!$B$2:$B$42942,B78,'List Unsorted Data - Unique'!$C$2:$C$42942,C78,'List Unsorted Data - Unique'!$D$2:$D$42942,D78,'List Unsorted Data - Unique'!$E$2:$E$42942,E78,'List Unsorted Data - Unique'!$F$2:$F$42942,F78) -> 59 | K78: =INDEX('List Unsorted Data - Unique'!$H$2:$H$42942,MATCH(A78&B78&C78&D78&E78&F78,'List Unsorted Data - Unique'!$A$2:$A$42942&'List Unsorted Data - Unique'!$B$2:$B$42942&'List Unsorted Data - Unique'!$C$2:$C$42942&'List Unsorted Data - Unique'!$D$2:$D$42942&'List Unsorted Data - Unique'!$E$2:$E$42942&'List Unsorted Data - Unique'!$F$2:$F$42942,0)) -> 59 | M78: =INDEX('List Unsorted Data - Unique'!$H$2:$H$42942,MATCH(1,('List Unsorted Data - Unique'!$A$2:$A$42942=A78)*('List Unsorted Data - Unique'!$B$2:$B$42942=B78)*('List Unsorted Data - Unique'!$C$2:$C$42942=C78)*('List Unsorted Data - Unique'!$D$2:$D$42942=D78)*('List Unsorted Data - Unique'!$E$2:$E$42942=E78)*('List Unsorted Data - Unique'!$F$2:$F$42942=F78),0)) -> 59 | O78: =SUMPRODUCT(('List Unsorted Data - Unique'!$A$2:$A$42942=A78)*('List Unsorted Data - Unique'!$B$2:$B$42942=B78)*('List Unsorted Data - Unique'!$C$2:$C$42942=C78)*('List Unsorted Data - Unique'!$D$2:$D$42942=D78)*('List Unsorted Data - Unique'!$E$2:$E$42942=E78)*('List Unsorted Data - Unique'!$F$2:$F$42942=F78)*('List Unsorted Data - Unique'!$H$2:$H$42942)) -> 59 | Q78: =VLOOKUP(A78&B78&C78&D78&E78&F78,CHOOSE({1,2,3,4,5,6},'List Unsorted Data - Unique'!$A$2:$A$42942&'List Unsorted Data - Unique'!$B$2:$B$42942&'List Unsorted Data - Unique'!$C$2:$C$42942&'List Unsorted Data - Unique'!$D$2:$D$42942&'List Unsorted Data - Unique'!$E$2:$E$42942&'List Unsorted Data - Unique'!$F$2:$F$42942,'List Unsorted Data - Unique'!$H$2:$H$42942),2,0) -> 59 | S78: =SUM(('List Unsorted Data - Unique'!$A$2:$A$42942=A78)*('List Unsorted Data - Unique'!$B$2:$B$42942=B78)*('List Unsorted Data - Unique'!$C$2:$C$42942=C78)*('List Unsorted Data - Unique'!$D$2:$D$42942=D78)*('List Unsorted Data - Unique'!$E$2:$E$42942=E78)*('List Unsorted Data - Unique'!$F$2:$F$42942=F78)*('List Unsorted Data - Unique'!$H$2:$H$42942)) -> 59
A79: 2015 | B79: 3 | C79: M.Mills | D79: POT002 | E79: LA01 | F79: Actual | G79: =INDEX('List Unsorted Data - Unique'!$H$2:$H$42942,MATCH(A79&"-"&B79&"-"&C79&"-"&D79&"-"&E79&"-"&F79,'List Unsorted Data - Unique'!$G$2:$G$42942,0)) -> 203 | I79: =SUMIFS('List Unsorted Data - Unique'!$H$2:$H$42942,'List Unsorted Data - Unique'!$A$2:$A$42942,A79,'List Unsorted Data - Unique'!$B$2:$B$42942,B79,'List Unsorted Data - Unique'!$C$2:$C$42942,C79,'List Unsorted Data - Unique'!$D$2:$D$42942,D79,'List Unsorted Data - Unique'!$E$2:$E$42942,E79,'List Unsorted Data - Unique'!$F$2:$F$42942,F79) -> 203 | K79: =INDEX('List Unsorted Data - Unique'!$H$2:$H$42942,MATCH(A79&B79&C79&D79&E79&F79,'List Unsorted Data - Unique'!$A$2:$A$42942&'List Unsorted Data - Unique'!$B$2:$B$42942&'List Unsorted Data - Unique'!$C$2:$C$42942&'List Unsorted Data - Unique'!$D$2:$D$42942&'List Unsorted Data - Unique'!$E$2:$E$42942&'List Unsorted Data - Unique'!$F$2:$F$42942,0)) -> 203 | M79: =INDEX('List Unsorted Data - Unique'!$H$2:$H$42942,MATCH(1,('List Unsorted Data - Unique'!$A$2:$A$42942=A79)*('List Unsorted Data - Unique'!$B$2:$B$42942=B79)*('List Unsorted Data - Unique'!$C$2:$C$42942=C79)*('List Unsorted Data - Unique'!$D$2:$D$42942=D79)*('List Unsorted Data - Unique'!$E$2:$E$42942=E79)*('List Unsorted Data - Unique'!$F$2:$F$42942=F79),0)) -> 203 | O79: =SUMPRODUCT(('List Unsorted Data - Unique'!$A$2:$A$42942=A79)*('List Unsorted Data - Unique'!$B$2:$B$42942=B79)*('List Unsorted Data - Unique'!$C$2:$C$42942=C79)*('List Unsorted Data - Unique'!$D$2:$D$42942=D79)*('List Unsorted Data - Unique'!$E$2:$E$42942=E79)*('List Unsorted Data - Unique'!$F$2:$F$42942=F79)*('List Unsorted Data - Unique'!$H$2:$H$42942)) -> 203 | Q79: =VLOOKUP(A79&B79&C79&D79&E79&F79,CHOOSE({1,2,3,4,5,6},'List Unsorted Data - Unique'!$A$2:$A$42942&'List Unsorted Data - Unique'!$B$2:$B$42942&'List Unsorted Data - Unique'!$C$2:$C$42942&'List Unsorted Data - Unique'!$D$2:$D$42942&'List Unsorted Data - Unique'!$E$2:$E$42942&'List Unsorted Data - Unique'!$F$2:$F$42942,'List Unsorted Data - Unique'!$H$2:$H$42942),2,0) -> 203 | S79: =SUM(('List Unsorted Data - Unique'!$A$2:$A$42942=A79)*('List Unsorted Data - Unique'!$B$2:$B$42942=B79)*('List Unsorted Data - Unique'!$C$2:$C$42942=C79)*('List Unsorted Data - Unique'!$D$2:$D$42942=D79)*('List Unsorted Data - Unique'!$E$2:$E$42942=E79)*('List Unsorted Data - Unique'!$F$2:$F$42942=F79)*('List Unsorted Data - Unique'!$H$2:$H$42942)) -> 203
A80: 2015 | B80: 6 | C80: J. McVie | D80: DFG001 | E80: CA01 | F80: Actual | G80: =INDEX('List Unsorted Data - Unique'!$H$2:$H$42942,MATCH(A80&"-"&B80&"-"&C80&"-"&D80&"-"&E80&"-"&F80,'List Unsorted Data - Unique'!$G$2:$G$42942,0)) -> 55 | I80: =SUMIFS('List Unsorted Data - Unique'!$H$2:$H$42942,'List Unsorted Data - Unique'!$A$2:$A$42942,A80,'List Unsorted Data - Unique'!$B$2:$B$42942,B80,'List Unsorted Data - Unique'!$C$2:$C$42942,C80,'List Unsorted Data - Unique'!$D$2:$D$42942,D80,'List Unsorted Data - Unique'!$E$2:$E$42942,E80,'List Unsorted Data - Unique'!$F$2:$F$42942,F80) -> 55 | K80: =INDEX('List Unsorted Data - Unique'!$H$2:$H$42942,MATCH(A80&B80&C80&D80&E80&F80,'List Unsorted Data - Unique'!$A$2:$A$42942&'List Unsorted Data - Unique'!$B$2:$B$42942&'List Unsorted Data - Unique'!$C$2:$C$42942&'List Unsorted Data - Unique'!$D$2:$D$42942&'List Unsorted Data - Unique'!$E$2:$E$42942&'List Unsorted Data - Unique'!$F$2:$F$42942,0)) -> 55 | M80: =INDEX('List Unsorted Data - Unique'!$H$2:$H$42942,MATCH(1,('List Unsorted Data - Unique'!$A$2:$A$42942=A80)*('List Unsorted Data - Unique'!$B$2:$B$42942=B80)*('List Unsorted Data - Unique'!$C$2:$C$42942=C80)*('List Unsorted Data - Unique'!$D$2:$D$42942=D80)*('List Unsorted Data - Unique'!$E$2:$E$42942=E80)*('List Unsorted Data - Unique'!$F$2:$F$42942=F80),0)) -> 55 | O80: =SUMPRODUCT(('List Unsorted Data - Unique'!$A$2:$A$42942=A80)*('List Unsorted Data - Unique'!$B$2:$B$42942=B80)*('List Unsorted Data - Unique'!$C$2:$C$42942=C80)*('List Unsorted Data - Unique'!$D$2:$D$42942=D80)*('List Unsorted Data - Unique'!$E$2:$E$42942=E80)*('List Unsorted Data - Unique'!$F$2:$F$42942=F80)*('List Unsorted Data - Unique'!$H$2:$H$42942)) -> 55 | Q80: =VLOOKUP(A80&B80&C80&D80&E80&F80,CHOOSE({1,2,3,4,5,6},'List Unsorted Data - Unique'!$A$2:$A$42942&'List Unsorted Data - Unique'!$B$2:$B$42942&'List Unsorted Data - Unique'!$C$2:$C$42942&'List Unsorted Data - Unique'!$D$2:$D$42942&'List Unsorted Data - Unique'!$E$2:$E$42942&'List Unsorted Data - Unique'!$F$2:$F$42942,'List Unsorted Data - Unique'!$H$2:$H$42942),2,0) -> 55 | S80: =SUM(('List Unsorted Data - Unique'!$A$2:$A$42942=A80)*('List Unsorted Data - Unique'!$B$2:$B$42942=B80)*('List Unsorted Data - Unique'!$C$2:$C$42942=C80)*('List Unsorted Data - Unique'!$D$2:$D$42942=D80)*('List Unsorted Data - Unique'!$E$2:$E$42942=E80)*('List Unsorted Data - Unique'!$F$2:$F$42942=F80)*('List Unsorted Data - Unique'!$H$2:$H$42942)) -> 55
A81: 2015 | B81: 7 | C81: B. Shelton | D81: ASL002 | E81: AL01 | F81: Actual | G81: =INDEX('List Unsorted Data - Unique'!$H$2:$H$42942,MATCH(A81&"-"&B81&"-"&C81&"-"&D81&"-"&E81&"-"&F81,'List Unsorted Data - Unique'!$G$2:$G$42942,0)) -> 246 | I81: =SUMIFS('List Unsorted Data - Unique'!$H$2:$H$42942,'List Unsorted Data - Unique'!$A$2:$A$42942,A81,'List Unsorted Data - Unique'!$B$2:$B$42942,B81,'List Unsorted Data - Unique'!$C$2:$C$42942,C81,'List Unsorted Data - Unique'!$D$2:$D$42942,D81,'List Unsorted Data - Unique'!$E$2:$E$42942,E81,'List Unsorted Data - Unique'!$F$2:$F$42942,F81) -> 246 | K81: =INDEX('List Unsorted Data - Unique'!$H$2:$H$42942,MATCH(A81&B81&C81&D81&E81&F81,'List Unsorted Data - Unique'!$A$2:$A$42942&'List Unsorted Data - Unique'!$B$2:$B$42942&'List Unsorted Data - Unique'!$C$2:$C$42942&'List Unsorted Data - Unique'!$D$2:$D$42942&'List Unsorted Data - Unique'!$E$2:$E$42942&'List Unsorted Data - Unique'!$F$2:$F$42942,0)) -> 246 | M81: =INDEX('List Unsorted Data - Unique'!$H$2:$H$42942,MATCH(1,('List Unsorted Data - Unique'!$A$2:$A$42942=A81)*('List Unsorted Data - Unique'!$B$2:$B$42942=B81)*('List Unsorted Data - Unique'!$C$2:$C$42942=C81)*('List Unsorted Data - Unique'!$D$2:$D$42942=D81)*('List Unsorted Data - Unique'!$E$2:$E$42942=E81)*('List Unsorted Data - Unique'!$F$2:$F$42942=F81),0)) -> 246 | O81: =SUMPRODUCT(('List Unsorted Data - Unique'!$A$2:$A$42942=A81)*('List Unsorted Data - Unique'!$B$2:$B$42942=B81)*('List Unsorted Data - Unique'!$C$2:$C$42942=C81)*('List Unsorted Data - Unique'!$D$2:$D$42942=D81)*('List Unsorted Data - Unique'!$E$2:$E$42942=E81)*('List Unsorted Data - Unique'!$F$2:$F$42942=F81)*('List Unsorted Data - Unique'!$H$2:$H$42942)) -> 246 | Q81: =VLOOKUP(A81&B81&C81&D81&E81&F81,CHOOSE({1,2,3,4,5,6},'List Unsorted Data - Unique'!$A$2:$A$42942&'List Unsorted Data - Unique'!$B$2:$B$42942&'List Unsorted Data - Unique'!$C$2:$C$42942&'List Unsorted Data - Unique'!$D$2:$D$42942&'List Unsorted Data - Unique'!$E$2:$E$42942&'List Unsorted Data - Unique'!$F$2:$F$42942,'List Unsorted Data - Unique'!$H$2:$H$42942),2,0) -> 246 | S81: =SUM(('List Unsorted Data - Unique'!$A$2:$A$42942=A81)*('List Unsorted Data - Unique'!$B$2:$B$42942=B81)*('List Unsorted Data - Unique'!$C$2:$C$42942=C81)*('List Unsorted Data - Unique'!$D$2:$D$42942=D81)*('List Unsorted Data - Unique'!$E$2:$E$42942=E81)*('List Unsorted Data - Unique'!$F$2:$F$42942=F81)*('List Unsorted Data - Unique'!$H$2:$H$42942)) -> 246
A82: 2016 | B82: 3 | C82: C. Underwood | D82: ASL003 | E82: AL01 | F82: Actual | G82: =INDEX('List Unsorted Data - Unique'!$H$2:$H$42942,MATCH(A82&"-"&B82&"-"&C82&"-"&D82&"-"&E82&"-"&F82,'List Unsorted Data - Unique'!$G$2:$G$42942,0)) -> 124 | I82: =SUMIFS('List Unsorted Data - Unique'!$H$2:$H$42942,'List Unsorted Data - Unique'!$A$2:$A$42942,A82,'List Unsorted Data - Unique'!$B$2:$B$42942,B82,'List Unsorted Data - Unique'!$C$2:$C$42942,C82,'List Unsorted Data - Unique'!$D$2:$D$42942,D82,'List Unsorted Data - Unique'!$E$2:$E$42942,E82,'List Unsorted Data - Unique'!$F$2:$F$42942,F82) -> 124 | K82: =INDEX('List Unsorted Data - Unique'!$H$2:$H$42942,MATCH(A82&B82&C82&D82&E82&F82,'List Unsorted Data - Unique'!$A$2:$A$42942&'List Unsorted Data - Unique'!$B$2:$B$42942&'List Unsorted Data - Unique'!$C$2:$C$42942&'List Unsorted Data - Unique'!$D$2:$D$42942&'List Unsorted Data - Unique'!$E$2:$E$42942&'List Unsorted Data - Unique'!$F$2:$F$42942,0)) -> 124 | M82: =INDEX('List Unsorted Data - Unique'!$H$2:$H$42942,MATCH(1,('List Unsorted Data - Unique'!$A$2:$A$42942=A82)*('List Unsorted Data - Unique'!$B$2:$B$42942=B82)*('List Unsorted Data - Unique'!$C$2:$C$42942=C82)*('List Unsorted Data - Unique'!$D$2:$D$42942=D82)*('List Unsorted Data - Unique'!$E$2:$E$42942=E82)*('List Unsorted Data - Unique'!$F$2:$F$42942=F82),0)) -> 124 | O82: =SUMPRODUCT(('List Unsorted Data - Unique'!$A$2:$A$42942=A82)*('List Unsorted Data - Unique'!$B$2:$B$42942=B82)*('List Unsorted Data - Unique'!$C$2:$C$42942=C82)*('List Unsorted Data - Unique'!$D$2:$D$42942=D82)*('List Unsorted Data - Unique'!$E$2:$E$42942=E82)*('List Unsorted Data - Unique'!$F$2:$F$42942=F82)*('List Unsorted Data - Unique'!$H$2:$H$42942)) -> 124 | Q82: =VLOOKUP(A82&B82&C82&D82&E82&F82,CHOOSE({1,2,3,4,5,6},'List Unsorted Data - Unique'!$A$2:$A$42942&'List Unsorted Data - Unique'!$B$2:$B$42942&'List Unsorted Data - Unique'!$C$2:$C$42942&'List Unsorted Data - Unique'!$D$2:$D$42942&'List Unsorted Data - Unique'!$E$2:$E$42942&'List Unsorted Data - Unique'!$F$2:$F$42942,'List Unsorted Data - Unique'!$H$2:$H$42942),2,0) -> 124 | S82: =SUM(('List Unsorted Data - Unique'!$A$2:$A$42942=A82)*('List Unsorted Data - Unique'!$B$2:$B$42942=B82)*('List Unsorted Data - Unique'!$C$2:$C$42942=C82)*('List Unsorted Data - Unique'!$D$2:$D$42942=D82)*('List Unsorted Data - Unique'!$E$2:$E$42942=E82)*('List Unsorted Data - Unique'!$F$2:$F$42942=F82)*('List Unsorted Data - Unique'!$H$2:$H$42942)) -> 124
A83: 2016 | B83: 1 | C83: J. McVie | D83: POT002 | E83: NC01 | F83: Actual | G83: =INDEX('List Unsorted Data - Unique'!$H$2:$H$42942,MATCH(A83&"-"&B83&"-"&C83&"-"&D83&"-"&E83&"-"&F83,'List Unsorted Data - Unique'!$G$2:$G$42942,0)) -> 64 | I83: =SUMIFS('List Unsorted Data - Unique'!$H$2:$H$42942,'List Unsorted Data - Unique'!$A$2:$A$42942,A83,'List Unsorted Data - Unique'!$B$2:$B$42942,B83,'List Unsorted Data - Unique'!$C$2:$C$42942,C83,'List Unsorted Data - Unique'!$D$2:$D$42942,D83,'List Unsorted Data - Unique'!$E$2:$E$42942,E83,'List Unsorted Data - Unique'!$F$2:$F$42942,F83) -> 64 | K83: =INDEX('List Unsorted Data - Unique'!$H$2:$H$42942,MATCH(A83&B83&C83&D83&E83&F83,'List Unsorted Data - Unique'!$A$2:$A$42942&'List Unsorted Data - Unique'!$B$2:$B$42942&'List Unsorted Data - Unique'!$C$2:$C$42942&'List Unsorted Data - Unique'!$D$2:$D$42942&'List Unsorted Data - Unique'!$E$2:$E$42942&'List Unsorted Data - Unique'!$F$2:$F$42942,0)) -> 64 | M83: =INDEX('List Unsorted Data - Unique'!$H$2:$H$42942,MATCH(1,('List Unsorted Data - Unique'!$A$2:$A$42942=A83)*('List Unsorted Data - Unique'!$B$2:$B$42942=B83)*('List Unsorted Data - Unique'!$C$2:$C$42942=C83)*('List Unsorted Data - Unique'!$D$2:$D$42942=D83)*('List Unsorted Data - Unique'!$E$2:$E$42942=E83)*('List Unsorted Data - Unique'!$F$2:$F$42942=F83),0)) -> 64 | O83: =SUMPRODUCT(('List Unsorted Data - Unique'!$A$2:$A$42942=A83)*('List Unsorted Data - Unique'!$B$2:$B$42942=B83)*('List Unsorted Data - Unique'!$C$2:$C$42942=C83)*('List Unsorted Data - Unique'!$D$2:$D$42942=D83)*('List Unsorted Data - Unique'!$E$2:$E$42942=E83)*('List Unsorted Data - Unique'!$F$2:$F$42942=F83)*('List Unsorted Data - Unique'!$H$2:$H$42942)) -> 64 | Q83: =VLOOKUP(A83&B83&C83&D83&E83&F83,CHOOSE({1,2,3,4,5,6},'List Unsorted Data - Unique'!$A$2:$A$42942&'List Unsorted Data - Unique'!$B$2:$B$42942&'List Unsorted Data - Unique'!$C$2:$C$42942&'List Unsorted Data - Unique'!$D$2:$D$42942&'List Unsorted Data - Unique'!$E$2:$E$42942&'List Unsorted Data - Unique'!$F$2:$F$42942,'List Unsorted Data - Unique'!$H$2:$H$42942),2,0) -> 64 | S83: =SUM(('List Unsorted Data - Unique'!$A$2:$A$42942=A83)*('List Unsorted Data - Unique'!$B$2:$B$42942=B83)*('List Unsorted Data - Unique'!$C$2:$C$42942=C83)*('List Unsorted Data - Unique'!$D$2:$D$42942=D83)*('List Unsorted Data - Unique'!$E$2:$E$42942=E83)*('List Unsorted Data - Unique'!$F$2:$F$42942=F83)*('List Unsorted Data - Unique'!$H$2:$H$42942)) -> 64
A84: 2016 | B84: 5 | C84: M.Mills | D84: ASL001 | E84: MN01 | F84: Forecast | G84: =INDEX('List Unsorted Data - Unique'!$H$2:$H$42942,MATCH(A84&"-"&B84&"-"&C84&"-"&D84&"-"&E84&"-"&F84,'List Unsorted Data - Unique'!$G$2:$G$42942,0)) -> 62 | I84: =SUMIFS('List Unsorted Data - Unique'!$H$2:$H$42942,'List Unsorted Data - Unique'!$A$2:$A$42942,A84,'List Unsorted Data - Unique'!$B$2:$B$42942,B84,'List Unsorted Data - Unique'!$C$2:$C$42942,C84,'List Unsorted Data - Unique'!$D$2:$D$42942,D84,'List Unsorted Data - Unique'!$E$2:$E$42942,E84,'List Unsorted Data - Unique'!$F$2:$F$42942,F84) -> 62 | K84: =INDEX('List Unsorted Data - Unique'!$H$2:$H$42942,MATCH(A84&B84&C84&D84&E84&F84,'List Unsorted Data - Unique'!$A$2:$A$42942&'List Unsorted Data - Unique'!$B$2:$B$42942&'List Unsorted Data - Unique'!$C$2:$C$42942&'List Unsorted Data - Unique'!$D$2:$D$42942&'List Unsorted Data - Unique'!$E$2:$E$42942&'List Unsorted Data - Unique'!$F$2:$F$42942,0)) -> 62 | M84: =INDEX('List Unsorted Data - Unique'!$H$2:$H$42942,MATCH(1,('List Unsorted Data - Unique'!$A$2:$A$42942=A84)*('List Unsorted Data - Unique'!$B$2:$B$42942=B84)*('List Unsorted Data - Unique'!$C$2:$C$42942=C84)*('List Unsorted Data - Unique'!$D$2:$D$42942=D84)*('List Unsorted Data - Unique'!$E$2:$E$42942=E84)*('List Unsorted Data - Unique'!$F$2:$F$42942=F84),0)) -> 62 | O84: =SUMPRODUCT(('List Unsorted Data - Unique'!$A$2:$A$42942=A84)*('List Unsorted Data - Unique'!$B$2:$B$42942=B84)*('List Unsorted Data - Unique'!$C$2:$C$42942=C84)*('List Unsorted Data - Unique'!$D$2:$D$42942=D84)*('List Unsorted Data - Unique'!$E$2:$E$42942=E84)*('List Unsorted Data - Unique'!$F$2:$F$42942=F84)*('List Unsorted Data - Unique'!$H$2:$H$42942)) -> 62 | Q84: =VLOOKUP(A84&B84&C84&D84&E84&F84,CHOOSE({1,2,3,4,5,6},'List Unsorted Data - Unique'!$A$2:$A$42942&'List Unsorted Data - Unique'!$B$2:$B$42942&'List Unsorted Data - Unique'!$C$2:$C$42942&'List Unsorted Data - Unique'!$D$2:$D$42942&'List Unsorted Data - Unique'!$E$2:$E$42942&'List Unsorted Data - Unique'!$F$2:$F$42942,'List Unsorted Data - Unique'!$H$2:$H$42942),2,0) -> 62 | S84: =SUM(('List Unsorted Data - Unique'!$A$2:$A$42942=A84)*('List Unsorted Data - Unique'!$B$2:$B$42942=B84)*('List Unsorted Data - Unique'!$C$2:$C$42942=C84)*('List Unsorted Data - Unique'!$D$2:$D$42942=D84)*('List Unsorted Data - Unique'!$E$2:$E$42942=E84)*('List Unsorted Data - Unique'!$F$2:$F$42942=F84)*('List Unsorted Data - Unique'!$H$2:$H$42942)) -> 62
A85: 2015 | B85: 7 | C85: M.Mills | D85: PRD001 | E85: AK01 | F85: Forecast | G85: =INDEX('List Unsorted Data - Unique'!$H$2:$H$42942,MATCH(A85&"-"&B85&"-"&C85&"-"&D85&"-"&E85&"-"&F85,'List Unsorted Data - Unique'!$G$2:$G$42942,0)) -> 198 | I85: =SUMIFS('List Unsorted Data - Unique'!$H$2:$H$42942,'List Unsorted Data - Unique'!$A$2:$A$42942,A85,'List Unsorted Data - Unique'!$B$2:$B$42942,B85,'List Unsorted Data - Unique'!$C$2:$C$42942,C85,'List Unsorted Data - Unique'!$D$2:$D$42942,D85,'List Unsorted Data - Unique'!$E$2:$E$42942,E85,'List Unsorted Data - Unique'!$F$2:$F$42942,F85) -> 198 | K85: =INDEX('List Unsorted Data - Unique'!$H$2:$H$42942,MATCH(A85&B85&C85&D85&E85&F85,'List Unsorted Data - Unique'!$A$2:$A$42942&'List Unsorted Data - Unique'!$B$2:$B$42942&'List Unsorted Data - Unique'!$C$2:$C$42942&'List Unsorted Data - Unique'!$D$2:$D$42942&'List Unsorted Data - Unique'!$E$2:$E$42942&'List Unsorted Data - Unique'!$F$2:$F$42942,0)) -> 198 | M85: =INDEX('List Unsorted Data - Unique'!$H$2:$H$42942,MATCH(1,('List Unsorted Data - Unique'!$A$2:$A$42942=A85)*('List Unsorted Data - Unique'!$B$2:$B$42942=B85)*('List Unsorted Data - Unique'!$C$2:$C$42942=C85)*('List Unsorted Data - Unique'!$D$2:$D$42942=D85)*('List Unsorted Data - Unique'!$E$2:$E$42942=E85)*('List Unsorted Data - Unique'!$F$2:$F$42942=F85),0)) -> 198 | O85: =SUMPRODUCT(('List Unsorted Data - Unique'!$A$2:$A$42942=A85)*('List Unsorted Data - Unique'!$B$2:$B$42942=B85)*('List Unsorted Data - Unique'!$C$2:$C$42942=C85)*('List Unsorted Data - Unique'!$D$2:$D$42942=D85)*('List Unsorted Data - Unique'!$E$2:$E$42942=E85)*('List Unsorted Data - Unique'!$F$2:$F$42942=F85)*('List Unsorted Data - Unique'!$H$2:$H$42942)) -> 198 | Q85: =VLOOKUP(A85&B85&C85&D85&E85&F85,CHOOSE({1,2,3,4,5,6},'List Unsorted Data - Unique'!$A$2:$A$42942&'List Unsorted Data - Unique'!$B$2:$B$42942&'List Unsorted Data - Unique'!$C$2:$C$42942&'List Unsorted Data - Unique'!$D$2:$D$42942&'List Unsorted Data - Unique'!$E$2:$E$42942&'List Unsorted Data - Unique'!$F$2:$F$42942,'List Unsorted Data - Unique'!$H$2:$H$42942),2,0) -> 198 | S85: =SUM(('List Unsorted Data - Unique'!$A$2:$A$42942=A85)*('List Unsorted Data - Unique'!$B$2:$B$42942=B85)*('List Unsorted Data - Unique'!$C$2:$C$42942=C85)*('List Unsorted Data - Unique'!$D$2:$D$42942=D85)*('List Unsorted Data - Unique'!$E$2:$E$42942=E85)*('List Unsorted Data - Unique'!$F$2:$F$42942=F85)*('List Unsorted Data - Unique'!$H$2:$H$42942)) -> 198
A86: 2015 | B86: 6 | C86: C. Underwood | D86: JKL001 | E86: AL01 | F86: Actual | G86: =INDEX('List Unsorted Data - Unique'!$H$2:$H$42942,MATCH(A86&"-"&B86&"-"&C86&"-"&D86&"-"&E86&"-"&F86,'List Unsorted Data - Unique'!$G$2:$G$42942,0)) -> 80 | I86: =SUMIFS('List Unsorted Data - Unique'!$H$2:$H$42942,'List Unsorted Data - Unique'!$A$2:$A$42942,A86,'List Unsorted Data - Unique'!$B$2:$B$42942,B86,'List Unsorted Data - Unique'!$C$2:$C$42942,C86,'List Unsorted Data - Unique'!$D$2:$D$42942,D86,'List Unsorted Data - Unique'!$E$2:$E$42942,E86,'List Unsorted Data - Unique'!$F$2:$F$42942,F86) -> 80 | K86: =INDEX('List Unsorted Data - Unique'!$H$2:$H$42942,MATCH(A86&B86&C86&D86&E86&F86,'List Unsorted Data - Unique'!$A$2:$A$42942&'List Unsorted Data - Unique'!$B$2:$B$42942&'List Unsorted Data - Unique'!$C$2:$C$42942&'List Unsorted Data - Unique'!$D$2:$D$42942&'List Unsorted Data - Unique'!$E$2:$E$42942&'List Unsorted Data - Unique'!$F$2:$F$42942,0)) -> 80 | M86: =INDEX('List Unsorted Data - Unique'!$H$2:$H$42942,MATCH(1,('List Unsorted Data - Unique'!$A$2:$A$42942=A86)*('List Unsorted Data - Unique'!$B$2:$B$42942=B86)*('List Unsorted Data - Unique'!$C$2:$C$42942=C86)*('List Unsorted Data - Unique'!$D$2:$D$42942=D86)*('List Unsorted Data - Unique'!$E$2:$E$42942=E86)*('List Unsorted Data - Unique'!$F$2:$F$42942=F86),0)) -> 80 | O86: =SUMPRODUCT(('List Unsorted Data - Unique'!$A$2:$A$42942=A86)*('List Unsorted Data - Unique'!$B$2:$B$42942=B86)*('List Unsorted Data - Unique'!$C$2:$C$42942=C86)*('List Unsorted Data - Unique'!$D$2:$D$42942=D86)*('List Unsorted Data - Unique'!$E$2:$E$42942=E86)*('List Unsorted Data - Unique'!$F$2:$F$42942=F86)*('List Unsorted Data - Unique'!$H$2:$H$42942)) -> 80 | Q86: =VLOOKUP(A86&B86&C86&D86&E86&F86,CHOOSE({1,2,3,4,5,6},'List Unsorted Data - Unique'!$A$2:$A$42942&'List Unsorted Data - Unique'!$B$2:$B$42942&'List Unsorted Data - Unique'!$C$2:$C$42942&'List Unsorted Data - Unique'!$D$2:$D$42942&'List Unsorted Data - Unique'!$E$2:$E$42942&'List Unsorted Data - Unique'!$F$2:$F$42942,'List Unsorted Data - Unique'!$H$2:$H$42942),2,0) -> 80 | S86: =SUM(('List Unsorted Data - Unique'!$A$2:$A$42942=A86)*('List Unsorted Data - Unique'!$B$2:$B$42942=B86)*('List Unsorted Data - Unique'!$C$2:$C$42942=C86)*('List Unsorted Data - Unique'!$D$2:$D$42942=D86)*('List Unsorted Data - Unique'!$E$2:$E$42942=E86)*('List Unsorted Data - Unique'!$F$2:$F$42942=F86)*('List Unsorted Data - Unique'!$H$2:$H$42942)) -> 80
A87: 2015 | B87: 12 | C87: S. Crow | D87: DFG001 | E87: SD01 | F87: Forecast | G87: =INDEX('List Unsorted Data - Unique'!$H$2:$H$42942,MATCH(A87&"-"&B87&"-"&C87&"-"&D87&"-"&E87&"-"&F87,'List Unsorted Data - Unique'!$G$2:$G$42942,0)) -> 62 | I87: =SUMIFS('List Unsorted Data - Unique'!$H$2:$H$42942,'List Unsorted Data - Unique'!$A$2:$A$42942,A87,'List Unsorted Data - Unique'!$B$2:$B$42942,B87,'List Unsorted Data - Unique'!$C$2:$C$42942,C87,'List Unsorted Data - Unique'!$D$2:$D$42942,D87,'List Unsorted Data - Unique'!$E$2:$E$42942,E87,'List Unsorted Data - Unique'!$F$2:$F$42942,F87) -> 62 | K87: =INDEX('List Unsorted Data - Unique'!$H$2:$H$42942,MATCH(A87&B87&C87&D87&E87&F87,'List Unsorted Data - Unique'!$A$2:$A$42942&'List Unsorted Data - Unique'!$B$2:$B$42942&'List Unsorted Data - Unique'!$C$2:$C$42942&'List Unsorted Data - Unique'!$D$2:$D$42942&'List Unsorted Data - Unique'!$E$2:$E$42942&'List Unsorted Data - Unique'!$F$2:$F$42942,0)) -> 62 | M87: =INDEX('List Unsorted Data - Unique'!$H$2:$H$42942,MATCH(1,('List Unsorted Data - Unique'!$A$2:$A$42942=A87)*('List Unsorted Data - Unique'!$B$2:$B$42942=B87)*('List Unsorted Data - Unique'!$C$2:$C$42942=C87)*('List Unsorted Data - Unique'!$D$2:$D$42942=D87)*('List Unsorted Data - Unique'!$E$2:$E$42942=E87)*('List Unsorted Data - Unique'!$F$2:$F$42942=F87),0)) -> 62 | O87: =SUMPRODUCT(('List Unsorted Data - Unique'!$A$2:$A$42942=A87)*('List Unsorted Data - Unique'!$B$2:$B$42942=B87)*('List Unsorted Data - Unique'!$C$2:$C$42942=C87)*('List Unsorted Data - Unique'!$D$2:$D$42942=D87)*('List Unsorted Data - Unique'!$E$2:$E$42942=E87)*('List Unsorted Data - Unique'!$F$2:$F$42942=F87)*('List Unsorted Data - Unique'!$H$2:$H$42942)) -> 62 | Q87: =VLOOKUP(A87&B87&C87&D87&E87&F87,CHOOSE({1,2,3,4,5,6},'List Unsorted Data - Unique'!$A$2:$A$42942&'List Unsorted Data - Unique'!$B$2:$B$42942&'List Unsorted Data - Unique'!$C$2:$C$42942&'List Unsorted Data - Unique'!$D$2:$D$42942&'List Unsorted Data - Unique'!$E$2:$E$42942&'List Unsorted Data - Unique'!$F$2:$F$42942,'List Unsorted Data - Unique'!$H$2:$H$42942),2,0) -> 62 | S87: =SUM(('List Unsorted Data - Unique'!$A$2:$A$42942=A87)*('List Unsorted Data - Unique'!$B$2:$B$42942=B87)*('List Unsorted Data - Unique'!$C$2:$C$42942=C87)*('List Unsorted Data - Unique'!$D$2:$D$42942=D87)*('List Unsorted Data - Unique'!$E$2:$E$42942=E87)*('List Unsorted Data - Unique'!$F$2:$F$42942=F87)*('List Unsorted Data - Unique'!$H$2:$H$42942)) -> 62
A88: 2016 | B88: 6 | C88: J. McVie | D88: PRD002 | E88: SD01 | F88: Actual | G88: =INDEX('List Unsorted Data - Unique'!$H$2:$H$42942,MATCH(A88&"-"&B88&"-"&C88&"-"&D88&"-"&E88&"-"&F88,'List Unsorted Data - Unique'!$G$2:$G$42942,0)) -> 73 | I88: =SUMIFS('List Unsorted Data - Unique'!$H$2:$H$42942,'List Unsorted Data - Unique'!$A$2:$A$42942,A88,'List Unsorted Data - Unique'!$B$2:$B$42942,B88,'List Unsorted Data - Unique'!$C$2:$C$42942,C88,'List Unsorted Data - Unique'!$D$2:$D$42942,D88,'List Unsorted Data - Unique'!$E$2:$E$42942,E88,'List Unsorted Data - Unique'!$F$2:$F$42942,F88) -> 73 | K88: =INDEX('List Unsorted Data - Unique'!$H$2:$H$42942,MATCH(A88&B88&C88&D88&E88&F88,'List Unsorted Data - Unique'!$A$2:$A$42942&'List Unsorted Data - Unique'!$B$2:$B$42942&'List Unsorted Data - Unique'!$C$2:$C$42942&'List Unsorted Data - Unique'!$D$2:$D$42942&'List Unsorted Data - Unique'!$E$2:$E$42942&'List Unsorted Data - Unique'!$F$2:$F$42942,0)) -> 73 | M88: =INDEX('List Unsorted Data - Unique'!$H$2:$H$42942,MATCH(1,('List Unsorted Data - Unique'!$A$2:$A$42942=A88)*('List Unsorted Data - Unique'!$B$2:$B$42942=B88)*('List Unsorted Data - Unique'!$C$2:$C$42942=C88)*('List Unsorted Data - Unique'!$D$2:$D$42942=D88)*('List Unsorted Data - Unique'!$E$2:$E$42942=E88)*('List Unsorted Data - Unique'!$F$2:$F$42942=F88),0)) -> 73 | O88: =SUMPRODUCT(('List Unsorted Data - Unique'!$A$2:$A$42942=A88)*('List Unsorted Data - Unique'!$B$2:$B$42942=B88)*('List Unsorted Data - Unique'!$C$2:$C$42942=C88)*('List Unsorted Data - Unique'!$D$2:$D$42942=D88)*('List Unsorted Data - Unique'!$E$2:$E$42942=E88)*('List Unsorted Data - Unique'!$F$2:$F$42942=F88)*('List Unsorted Data - Unique'!$H$2:$H$42942)) -> 73 | Q88: =VLOOKUP(A88&B88&C88&D88&E88&F88,CHOOSE({1,2,3,4,5,6},'List Unsorted Data - Unique'!$A$2:$A$42942&'List Unsorted Data - Unique'!$B$2:$B$42942&'List Unsorted Data - Unique'!$C$2:$C$42942&'List Unsorted Data - Unique'!$D$2:$D$42942&'List Unsorted Data - Unique'!$E$2:$E$42942&'List Unsorted Data - Unique'!$F$2:$F$42942,'List Unsorted Data - Unique'!$H$2:$H$42942),2,0) -> 73 | S88: =SUM(('List Unsorted Data - Unique'!$A$2:$A$42942=A88)*('List Unsorted Data - Unique'!$B$2:$B$42942=B88)*('List Unsorted Data - Unique'!$C$2:$C$42942=C88)*('List Unsorted Data - Unique'!$D$2:$D$42942=D88)*('List Unsorted Data - Unique'!$E$2:$E$42942=E88)*('List Unsorted Data - Unique'!$F$2:$F$42942=F88)*('List Unsorted Data - Unique'!$H$2:$H$42942)) -> 73
A89: 2015 | B89: 7 | C89: C. Underwood | D89: ASL002 | E89: MN01 | F89: Forecast | G89: =INDEX('List Unsorted Data - Unique'!$H$2:$H$42942,MATCH(A89&"-"&B89&"-"&C89&"-"&D89&"-"&E89&"-"&F89,'List Unsorted Data - Unique'!$G$2:$G$42942,0)) -> 375 | I89: =SUMIFS('List Unsorted Data - Unique'!$H$2:$H$42942,'List Unsorted Data - Unique'!$A$2:$A$42942,A89,'List Unsorted Data - Unique'!$B$2:$B$42942,B89,'List Unsorted Data - Unique'!$C$2:$C$42942,C89,'List Unsorted Data - Unique'!$D$2:$D$42942,D89,'List Unsorted Data - Unique'!$E$2:$E$42942,E89,'List Unsorted Data - Unique'!$F$2:$F$42942,F89) -> 375 | K89: =INDEX('List Unsorted Data - Unique'!$H$2:$H$42942,MATCH(A89&B89&C89&D89&E89&F89,'List Unsorted Data - Unique'!$A$2:$A$42942&'List Unsorted Data - Unique'!$B$2:$B$42942&'List Unsorted Data - Unique'!$C$2:$C$42942&'List Unsorted Data - Unique'!$D$2:$D$42942&'List Unsorted Data - Unique'!$E$2:$E$42942&'List Unsorted Data - Unique'!$F$2:$F$42942,0)) -> 375 | M89: =INDEX('List Unsorted Data - Unique'!$H$2:$H$42942,MATCH(1,('List Unsorted Data - Unique'!$A$2:$A$42942=A89)*('List Unsorted Data - Unique'!$B$2:$B$42942=B89)*('List Unsorted Data - Unique'!$C$2:$C$42942=C89)*('List Unsorted Data - Unique'!$D$2:$D$42942=D89)*('List Unsorted Data - Unique'!$E$2:$E$42942=E89)*('List Unsorted Data - Unique'!$F$2:$F$42942=F89),0)) -> 375 | O89: =SUMPRODUCT(('List Unsorted Data - Unique'!$A$2:$A$42942=A89)*('List Unsorted Data - Unique'!$B$2:$B$42942=B89)*('List Unsorted Data - Unique'!$C$2:$C$42942=C89)*('List Unsorted Data - Unique'!$D$2:$D$42942=D89)*('List Unsorted Data - Unique'!$E$2:$E$42942=E89)*('List Unsorted Data - Unique'!$F$2:$F$42942=F89)*('List Unsorted Data - Unique'!$H$2:$H$42942)) -> 375 | Q89: =VLOOKUP(A89&B89&C89&D89&E89&F89,CHOOSE({1,2,3,4,5,6},'List Unsorted Data - Unique'!$A$2:$A$42942&'List Unsorted Data - Unique'!$B$2:$B$42942&'List Unsorted Data - Unique'!$C$2:$C$42942&'List Unsorted Data - Unique'!$D$2:$D$42942&'List Unsorted Data - Unique'!$E$2:$E$42942&'List Unsorted Data - Unique'!$F$2:$F$42942,'List Unsorted Data - Unique'!$H$2:$H$42942),2,0) -> 375 | S89: =SUM(('List Unsorted Data - Unique'!$A$2:$A$42942=A89)*('List Unsorted Data - Unique'!$B$2:$B$42942=B89)*('List Unsorted Data - Unique'!$C$2:$C$42942=C89)*('List Unsorted Data - Unique'!$D$2:$D$42942=D89)*('List Unsorted Data - Unique'!$E$2:$E$42942=E89)*('List Unsorted Data - Unique'!$F$2:$F$42942=F89)*('List Unsorted Data - Unique'!$H$2:$H$42942)) -> 375
A90: 2015 | B90: 9 | C90: B. Paisley | D90: JKL001 | E90: LA01 | F90: Actual | G90: =INDEX('List Unsorted Data - Unique'!$H$2:$H$42942,MATCH(A90&"-"&B90&"-"&C90&"-"&D90&"-"&E90&"-"&F90,'List Unsorted Data - Unique'!$G$2:$G$42942,0)) -> 172 | I90: =SUMIFS('List Unsorted Data - Unique'!$H$2:$H$42942,'List Unsorted Data - Unique'!$A$2:$A$42942,A90,'List Unsorted Data - Unique'!$B$2:$B$42942,B90,'List Unsorted Data - Unique'!$C$2:$C$42942,C90,'List Unsorted Data - Unique'!$D$2:$D$42942,D90,'List Unsorted Data - Unique'!$E$2:$E$42942,E90,'List Unsorted Data - Unique'!$F$2:$F$42942,F90) -> 172 | K90: =INDEX('List Unsorted Data - Unique'!$H$2:$H$42942,MATCH(A90&B90&C90&D90&E90&F90,'List Unsorted Data - Unique'!$A$2:$A$42942&'List Unsorted Data - Unique'!$B$2:$B$42942&'List Unsorted Data - Unique'!$C$2:$C$42942&'List Unsorted Data - Unique'!$D$2:$D$42942&'List Unsorted Data - Unique'!$E$2:$E$42942&'List Unsorted Data - Unique'!$F$2:$F$42942,0)) -> 172 | M90: =INDEX('List Unsorted Data - Unique'!$H$2:$H$42942,MATCH(1,('List Unsorted Data - Unique'!$A$2:$A$42942=A90)*('List Unsorted Data - Unique'!$B$2:$B$42942=B90)*('List Unsorted Data - Unique'!$C$2:$C$42942=C90)*('List Unsorted Data - Unique'!$D$2:$D$42942=D90)*('List Unsorted Data - Unique'!$E$2:$E$42942=E90)*('List Unsorted Data - Unique'!$F$2:$F$42942=F90),0)) -> 172 | O90: =SUMPRODUCT(('List Unsorted Data - Unique'!$A$2:$A$42942=A90)*('List Unsorted Data - Unique'!$B$2:$B$42942=B90)*('List Unsorted Data - Unique'!$C$2:$C$42942=C90)*('List Unsorted Data - Unique'!$D$2:$D$42942=D90)*('List Unsorted Data - Unique'!$E$2:$E$42942=E90)*('List Unsorted Data - Unique'!$F$2:$F$42942=F90)*('List Unsorted Data - Unique'!$H$2:$H$42942)) -> 172 | Q90: =VLOOKUP(A90&B90&C90&D90&E90&F90,CHOOSE({1,2,3,4,5,6},'List Unsorted Data - Unique'!$A$2:$A$42942&'List Unsorted Data - Unique'!$B$2:$B$42942&'List Unsorted Data - Unique'!$C$2:$C$42942&'List Unsorted Data - Unique'!$D$2:$D$42942&'List Unsorted Data - Unique'!$E$2:$E$42942&'List Unsorted Data - Unique'!$F$2:$F$42942,'List Unsorted Data - Unique'!$H$2:$H$42942),2,0) -> 172 | S90: =SUM(('List Unsorted Data - Unique'!$A$2:$A$42942=A90)*('List Unsorted Data - Unique'!$B$2:$B$42942=B90)*('List Unsorted Data - Unique'!$C$2:$C$42942=C90)*('List Unsorted Data - Unique'!$D$2:$D$42942=D90)*('List Unsorted Data - Unique'!$E$2:$E$42942=E90)*('List Unsorted Data - Unique'!$F$2:$F$42942=F90)*('List Unsorted Data - Unique'!$H$2:$H$42942)) -> 172
A91: 2015 | B91: 4 | C91: C. Underwood | D91: DFG001 | E91: MN01 | F91: Actual | G91: =INDEX('List Unsorted Data - Unique'!$H$2:$H$42942,MATCH(A91&"-"&B91&"-"&C91&"-"&D91&"-"&E91&"-"&F91,'List Unsorted Data - Unique'!$G$2:$G$42942,0)) -> 117 | I91: =SUMIFS('List Unsorted Data - Unique'!$H$2:$H$42942,'List Unsorted Data - Unique'!$A$2:$A$42942,A91,'List Unsorted Data - Unique'!$B$2:$B$42942,B91,'List Unsorted Data - Unique'!$C$2:$C$42942,C91,'List Unsorted Data - Unique'!$D$2:$D$42942,D91,'List Unsorted Data - Unique'!$E$2:$E$42942,E91,'List Unsorted Data - Unique'!$F$2:$F$42942,F91) -> 117 | K91: =INDEX('List Unsorted Data - Unique'!$H$2:$H$42942,MATCH(A91&B91&C91&D91&E91&F91,'List Unsorted Data - Unique'!$A$2:$A$42942&'List Unsorted Data - Unique'!$B$2:$B$42942&'List Unsorted Data - Unique'!$C$2:$C$42942&'List Unsorted Data - Unique'!$D$2:$D$42942&'List Unsorted Data - Unique'!$E$2:$E$42942&'List Unsorted Data - Unique'!$F$2:$F$42942,0)) -> 117 | M91: =INDEX('List Unsorted Data - Unique'!$H$2:$H$42942,MATCH(1,('List Unsorted Data - Unique'!$A$2:$A$42942=A91)*('List Unsorted Data - Unique'!$B$2:$B$42942=B91)*('List Unsorted Data - Unique'!$C$2:$C$42942=C91)*('List Unsorted Data - Unique'!$D$2:$D$42942=D91)*('List Unsorted Data - Unique'!$E$2:$E$42942=E91)*('List Unsorted Data - Unique'!$F$2:$F$42942=F91),0)) -> 117 | O91: =SUMPRODUCT(('List Unsorted Data - Unique'!$A$2:$A$42942=A91)*('List Unsorted Data - Unique'!$B$2:$B$42942=B91)*('List Unsorted Data - Unique'!$C$2:$C$42942=C91)*('List Unsorted Data - Unique'!$D$2:$D$42942=D91)*('List Unsorted Data - Unique'!$E$2:$E$42942=E91)*('List Unsorted Data - Unique'!$F$2:$F$42942=F91)*('List Unsorted Data - Unique'!$H$2:$H$42942)) -> 117 | Q91: =VLOOKUP(A91&B91&C91&D91&E91&F91,CHOOSE({1,2,3,4,5,6},'List Unsorted Data - Unique'!$A$2:$A$42942&'List Unsorted Data - Unique'!$B$2:$B$42942&'List Unsorted Data - Unique'!$C$2:$C$42942&'List Unsorted Data - Unique'!$D$2:$D$42942&'List Unsorted Data - Unique'!$E$2:$E$42942&'List Unsorted Data - Unique'!$F$2:$F$42942,'List Unsorted Data - Unique'!$H$2:$H$42942),2,0) -> 117 | S91: =SUM(('List Unsorted Data - Unique'!$A$2:$A$42942=A91)*('List Unsorted Data - Unique'!$B$2:$B$42942=B91)*('List Unsorted Data - Unique'!$C$2:$C$42942=C91)*('List Unsorted Data - Unique'!$D$2:$D$42942=D91)*('List Unsorted Data - Unique'!$E$2:$E$42942=E91)*('List Unsorted Data - Unique'!$F$2:$F$42942=F91)*('List Unsorted Data - Unique'!$H$2:$H$42942)) -> 117
A92: 2015 | B92: 4 | C92: B. Paisley | D92: PRD002 | E92: LA01 | F92: Actual | G92: =INDEX('List Unsorted Data - Unique'!$H$2:$H$42942,MATCH(A92&"-"&B92&"-"&C92&"-"&D92&"-"&E92&"-"&F92,'List Unsorted Data - Unique'!$G$2:$G$42942,0)) -> 74 | I92: =SUMIFS('List Unsorted Data - Unique'!$H$2:$H$42942,'List Unsorted Data - Unique'!$A$2:$A$42942,A92,'List Unsorted Data - Unique'!$B$2:$B$42942,B92,'List Unsorted Data - Unique'!$C$2:$C$42942,C92,'List Unsorted Data - Unique'!$D$2:$D$42942,D92,'List Unsorted Data - Unique'!$E$2:$E$42942,E92,'List Unsorted Data - Unique'!$F$2:$F$42942,F92) -> 74 | K92: =INDEX('List Unsorted Data - Unique'!$H$2:$H$42942,MATCH(A92&B92&C92&D92&E92&F92,'List Unsorted Data - Unique'!$A$2:$A$42942&'List Unsorted Data - Unique'!$B$2:$B$42942&'List Unsorted Data - Unique'!$C$2:$C$42942&'List Unsorted Data - Unique'!$D$2:$D$42942&'List Unsorted Data - Unique'!$E$2:$E$42942&'List Unsorted Data - Unique'!$F$2:$F$42942,0)) -> 74 | M92: =INDEX('List Unsorted Data - Unique'!$H$2:$H$42942,MATCH(1,('List Unsorted Data - Unique'!$A$2:$A$42942=A92)*('List Unsorted Data - Unique'!$B$2:$B$42942=B92)*('List Unsorted Data - Unique'!$C$2:$C$42942=C92)*('List Unsorted Data - Unique'!$D$2:$D$42942=D92)*('List Unsorted Data - Unique'!$E$2:$E$42942=E92)*('List Unsorted Data - Unique'!$F$2:$F$42942=F92),0)) -> 74 | O92: =SUMPRODUCT(('List Unsorted Data - Unique'!$A$2:$A$42942=A92)*('List Unsorted Data - Unique'!$B$2:$B$42942=B92)*('List Unsorted Data - Unique'!$C$2:$C$42942=C92)*('List Unsorted Data - Unique'!$D$2:$D$42942=D92)*('List Unsorted Data - Unique'!$E$2:$E$42942=E92)*('List Unsorted Data - Unique'!$F$2:$F$42942=F92)*('List Unsorted Data - Unique'!$H$2:$H$42942)) -> 74 | Q92: =VLOOKUP(A92&B92&C92&D92&E92&F92,CHOOSE({1,2,3,4,5,6},'List Unsorted Data - Unique'!$A$2:$A$42942&'List Unsorted Data - Unique'!$B$2:$B$42942&'List Unsorted Data - Unique'!$C$2:$C$42942&'List Unsorted Data - Unique'!$D$2:$D$42942&'List Unsorted Data - Unique'!$E$2:$E$42942&'List Unsorted Data - Unique'!$F$2:$F$42942,'List Unsorted Data - Unique'!$H$2:$H$42942),2,0) -> 74 | S92: =SUM(('List Unsorted Data - Unique'!$A$2:$A$42942=A92)*('List Unsorted Data - Unique'!$B$2:$B$42942=B92)*('List Unsorted Data - Unique'!$C$2:$C$42942=C92)*('List Unsorted Data - Unique'!$D$2:$D$42942=D92)*('List Unsorted Data - Unique'!$E$2:$E$42942=E92)*('List Unsorted Data - Unique'!$F$2:$F$42942=F92)*('List Unsorted Data - Unique'!$H$2:$H$42942)) -> 74
A93: 2015 | B93: 10 | C93: S. Crow | D93: DFG001 | E93: AL01 | F93: Actual | G93: =INDEX('List Unsorted Data - Unique'!$H$2:$H$42942,MATCH(A93&"-"&B93&"-"&C93&"-"&D93&"-"&E93&"-"&F93,'List Unsorted Data - Unique'!$G$2:$G$42942,0)) -> 50 | I93: =SUMIFS('List Unsorted Data - Unique'!$H$2:$H$42942,'List Unsorted Data - Unique'!$A$2:$A$42942,A93,'List Unsorted Data - Unique'!$B$2:$B$42942,B93,'List Unsorted Data - Unique'!$C$2:$C$42942,C93,'List Unsorted Data - Unique'!$D$2:$D$42942,D93,'List Unsorted Data - Unique'!$E$2:$E$42942,E93,'List Unsorted Data - Unique'!$F$2:$F$42942,F93) -> 50 | K93: =INDEX('List Unsorted Data - Unique'!$H$2:$H$42942,MATCH(A93&B93&C93&D93&E93&F93,'List Unsorted Data - Unique'!$A$2:$A$42942&'List Unsorted Data - Unique'!$B$2:$B$42942&'List Unsorted Data - Unique'!$C$2:$C$42942&'List Unsorted Data - Unique'!$D$2:$D$42942&'List Unsorted Data - Unique'!$E$2:$E$42942&'List Unsorted Data - Unique'!$F$2:$F$42942,0)) -> 50 | M93: =INDEX('List Unsorted Data - Unique'!$H$2:$H$42942,MATCH(1,('List Unsorted Data - Unique'!$A$2:$A$42942=A93)*('List Unsorted Data - Unique'!$B$2:$B$42942=B93)*('List Unsorted Data - Unique'!$C$2:$C$42942=C93)*('List Unsorted Data - Unique'!$D$2:$D$42942=D93)*('List Unsorted Data - Unique'!$E$2:$E$42942=E93)*('List Unsorted Data - Unique'!$F$2:$F$42942=F93),0)) -> 50 | O93: =SUMPRODUCT(('List Unsorted Data - Unique'!$A$2:$A$42942=A93)*('List Unsorted Data - Unique'!$B$2:$B$42942=B93)*('List Unsorted Data - Unique'!$C$2:$C$42942=C93)*('List Unsorted Data - Unique'!$D$2:$D$42942=D93)*('List Unsorted Data - Unique'!$E$2:$E$42942=E93)*('List Unsorted Data - Unique'!$F$2:$F$42942=F93)*('List Unsorted Data - Unique'!$H$2:$H$42942)) -> 50 | Q93: =VLOOKUP(A93&B93&C93&D93&E93&F93,CHOOSE({1,2,3,4,5,6},'List Unsorted Data - Unique'!$A$2:$A$42942&'List Unsorted Data - Unique'!$B$2:$B$42942&'List Unsorted Data - Unique'!$C$2:$C$42942&'List Unsorted Data - Unique'!$D$2:$D$42942&'List Unsorted Data - Unique'!$E$2:$E$42942&'List Unsorted Data - Unique'!$F$2:$F$42942,'List Unsorted Data - Unique'!$H$2:$H$42942),2,0) -> 50 | S93: =SUM(('List Unsorted Data - Unique'!$A$2:$A$42942=A93)*('List Unsorted Data - Unique'!$B$2:$B$42942=B93)*('List Unsorted Data - Unique'!$C$2:$C$42942=C93)*('List Unsorted Data - Unique'!$D$2:$D$42942=D93)*('List Unsorted Data - Unique'!$E$2:$E$42942=E93)*('List Unsorted Data - Unique'!$F$2:$F$42942=F93)*('List Unsorted Data - Unique'!$H$2:$H$42942)) -> 50
A94: 2014 | B94: 7 | C94: M.Mills | D94: PRD002 | E94: AK01 | F94: Actual | G94: =INDEX('List Unsorted Data - Unique'!$H$2:$H$42942,MATCH(A94&"-"&B94&"-"&C94&"-"&D94&"-"&E94&"-"&F94,'List Unsorted Data - Unique'!$G$2:$G$42942,0)) -> 89 | I94: =SUMIFS('List Unsorted Data - Unique'!$H$2:$H$42942,'List Unsorted Data - Unique'!$A$2:$A$42942,A94,'List Unsorted Data - Unique'!$B$2:$B$42942,B94,'List Unsorted Data - Unique'!$C$2:$C$42942,C94,'List Unsorted Data - Unique'!$D$2:$D$42942,D94,'List Unsorted Data - Unique'!$E$2:$E$42942,E94,'List Unsorted Data - Unique'!$F$2:$F$42942,F94) -> 89 | K94: =INDEX('List Unsorted Data - Unique'!$H$2:$H$42942,MATCH(A94&B94&C94&D94&E94&F94,'List Unsorted Data - Unique'!$A$2:$A$42942&'List Unsorted Data - Unique'!$B$2:$B$42942&'List Unsorted Data - Unique'!$C$2:$C$42942&'List Unsorted Data - Unique'!$D$2:$D$42942&'List Unsorted Data - Unique'!$E$2:$E$42942&'List Unsorted Data - Unique'!$F$2:$F$42942,0)) -> 89 | M94: =INDEX('List Unsorted Data - Unique'!$H$2:$H$42942,MATCH(1,('List Unsorted Data - Unique'!$A$2:$A$42942=A94)*('List Unsorted Data - Unique'!$B$2:$B$42942=B94)*('List Unsorted Data - Unique'!$C$2:$C$42942=C94)*('List Unsorted Data - Unique'!$D$2:$D$42942=D94)*('List Unsorted Data - Unique'!$E$2:$E$42942=E94)*('List Unsorted Data - Unique'!$F$2:$F$42942=F94),0)) -> 89 | O94: =SUMPRODUCT(('List Unsorted Data - Unique'!$A$2:$A$42942=A94)*('List Unsorted Data - Unique'!$B$2:$B$42942=B94)*('List Unsorted Data - Unique'!$C$2:$C$42942=C94)*('List Unsorted Data - Unique'!$D$2:$D$42942=D94)*('List Unsorted Data - Unique'!$E$2:$E$42942=E94)*('List Unsorted Data - Unique'!$F$2:$F$42942=F94)*('List Unsorted Data - Unique'!$H$2:$H$42942)) -> 89 | Q94: =VLOOKUP(A94&B94&C94&D94&E94&F94,CHOOSE({1,2,3,4,5,6},'List Unsorted Data - Unique'!$A$2:$A$42942&'List Unsorted Data - Unique'!$B$2:$B$42942&'List Unsorted Data - Unique'!$C$2:$C$42942&'List Unsorted Data - Unique'!$D$2:$D$42942&'List Unsorted Data - Unique'!$E$2:$E$42942&'List Unsorted Data - Unique'!$F$2:$F$42942,'List Unsorted Data - Unique'!$H$2:$H$42942),2,0) -> 89 | S94: =SUM(('List Unsorted Data - Unique'!$A$2:$A$42942=A94)*('List Unsorted Data - Unique'!$B$2:$B$42942=B94)*('List Unsorted Data - Unique'!$C$2:$C$42942=C94)*('List Unsorted Data - Unique'!$D$2:$D$42942=D94)*('List Unsorted Data - Unique'!$E$2:$E$42942=E94)*('List Unsorted Data - Unique'!$F$2:$F$42942=F94)*('List Unsorted Data - Unique'!$H$2:$H$42942)) -> 89
A95: 2015 | B95: 6 | C95: P. Buck | D95: ASL002 | E95: CA01 | F95: Forecast | G95: =INDEX('List Unsorted Data - Unique'!$H$2:$H$42942,MATCH(A95&"-"&B95&"-"&C95&"-"&D95&"-"&E95&"-"&F95,'List Unsorted Data - Unique'!$G$2:$G$42942,0)) -> 97 | I95: =SUMIFS('List Unsorted Data - Unique'!$H$2:$H$42942,'List Unsorted Data - Unique'!$A$2:$A$42942,A95,'List Unsorted Data - Unique'!$B$2:$B$42942,B95,'List Unsorted Data - Unique'!$C$2:$C$42942,C95,'List Unsorted Data - Unique'!$D$2:$D$42942,D95,'List Unsorted Data - Unique'!$E$2:$E$42942,E95,'List Unsorted Data - Unique'!$F$2:$F$42942,F95) -> 97 | K95: =INDEX('List Unsorted Data - Unique'!$H$2:$H$42942,MATCH(A95&B95&C95&D95&E95&F95,'List Unsorted Data - Unique'!$A$2:$A$42942&'List Unsorted Data - Unique'!$B$2:$B$42942&'List Unsorted Data - Unique'!$C$2:$C$42942&'List Unsorted Data - Unique'!$D$2:$D$42942&'List Unsorted Data - Unique'!$E$2:$E$42942&'List Unsorted Data - Unique'!$F$2:$F$42942,0)) -> 97 | M95: =INDEX('List Unsorted Data - Unique'!$H$2:$H$42942,MATCH(1,('List Unsorted Data - Unique'!$A$2:$A$42942=A95)*('List Unsorted Data - Unique'!$B$2:$B$42942=B95)*('List Unsorted Data - Unique'!$C$2:$C$42942=C95)*('List Unsorted Data - Unique'!$D$2:$D$42942=D95)*('List Unsorted Data - Unique'!$E$2:$E$42942=E95)*('List Unsorted Data - Unique'!$F$2:$F$42942=F95),0)) -> 97 | O95: =SUMPRODUCT(('List Unsorted Data - Unique'!$A$2:$A$42942=A95)*('List Unsorted Data - Unique'!$B$2:$B$42942=B95)*('List Unsorted Data - Unique'!$C$2:$C$42942=C95)*('List Unsorted Data - Unique'!$D$2:$D$42942=D95)*('List Unsorted Data - Unique'!$E$2:$E$42942=E95)*('List Unsorted Data - Unique'!$F$2:$F$42942=F95)*('List Unsorted Data - Unique'!$H$2:$H$42942)) -> 97 | Q95: =VLOOKUP(A95&B95&C95&D95&E95&F95,CHOOSE({1,2,3,4,5,6},'List Unsorted Data - Unique'!$A$2:$A$42942&'List Unsorted Data - Unique'!$B$2:$B$42942&'List Unsorted Data - Unique'!$C$2:$C$42942&'List Unsorted Data - Unique'!$D$2:$D$42942&'List Unsorted Data - Unique'!$E$2:$E$42942&'List Unsorted Data - Unique'!$F$2:$F$42942,'List Unsorted Data - Unique'!$H$2:$H$42942),2,0) -> 97 | S95: =SUM(('List Unsorted Data - Unique'!$A$2:$A$42942=A95)*('List Unsorted Data - Unique'!$B$2:$B$42942=B95)*('List Unsorted Data - Unique'!$C$2:$C$42942=C95)*('List Unsorted Data - Unique'!$D$2:$D$42942=D95)*('List Unsorted Data - Unique'!$E$2:$E$42942=E95)*('List Unsorted Data - Unique'!$F$2:$F$42942=F95)*('List Unsorted Data - Unique'!$H$2:$H$42942)) -> 97
A96: 2015 | B96: 12 | C96: P. Buck | D96: ASL003 | E96: AL01 | F96: Forecast | G96: =INDEX('List Unsorted Data - Unique'!$H$2:$H$42942,MATCH(A96&"-"&B96&"-"&C96&"-"&D96&"-"&E96&"-"&F96,'List Unsorted Data - Unique'!$G$2:$G$42942,0)) -> 184 | I96: =SUMIFS('List Unsorted Data - Unique'!$H$2:$H$42942,'List Unsorted Data - Unique'!$A$2:$A$42942,A96,'List Unsorted Data - Unique'!$B$2:$B$42942,B96,'List Unsorted Data - Unique'!$C$2:$C$42942,C96,'List Unsorted Data - Unique'!$D$2:$D$42942,D96,'List Unsorted Data - Unique'!$E$2:$E$42942,E96,'List Unsorted Data - Unique'!$F$2:$F$42942,F96) -> 184 | K96: =INDEX('List Unsorted Data - Unique'!$H$2:$H$42942,MATCH(A96&B96&C96&D96&E96&F96,'List Unsorted Data - Unique'!$A$2:$A$42942&'List Unsorted Data - Unique'!$B$2:$B$42942&'List Unsorted Data - Unique'!$C$2:$C$42942&'List Unsorted Data - Unique'!$D$2:$D$42942&'List Unsorted Data - Unique'!$E$2:$E$42942&'List Unsorted Data - Unique'!$F$2:$F$42942,0)) -> 184 | M96: =INDEX('List Unsorted Data - Unique'!$H$2:$H$42942,MATCH(1,('List Unsorted Data - Unique'!$A$2:$A$42942=A96)*('List Unsorted Data - Unique'!$B$2:$B$42942=B96)*('List Unsorted Data - Unique'!$C$2:$C$42942=C96)*('List Unsorted Data - Unique'!$D$2:$D$42942=D96)*('List Unsorted Data - Unique'!$E$2:$E$42942=E96)*('List Unsorted Data - Unique'!$F$2:$F$42942=F96),0)) -> 184 | O96: =SUMPRODUCT(('List Unsorted Data - Unique'!$A$2:$A$42942=A96)*('List Unsorted Data - Unique'!$B$2:$B$42942=B96)*('List Unsorted Data - Unique'!$C$2:$C$42942=C96)*('List Unsorted Data - Unique'!$D$2:$D$42942=D96)*('List Unsorted Data - Unique'!$E$2:$E$42942=E96)*('List Unsorted Data - Unique'!$F$2:$F$42942=F96)*('List Unsorted Data - Unique'!$H$2:$H$42942)) -> 184 | Q96: =VLOOKUP(A96&B96&C96&D96&E96&F96,CHOOSE({1,2,3,4,5,6},'List Unsorted Data - Unique'!$A$2:$A$42942&'List Unsorted Data - Unique'!$B$2:$B$42942&'List Unsorted Data - Unique'!$C$2:$C$42942&'List Unsorted Data - Unique'!$D$2:$D$42942&'List Unsorted Data - Unique'!$E$2:$E$42942&'List Unsorted Data - Unique'!$F$2:$F$42942,'List Unsorted Data - Unique'!$H$2:$H$42942),2,0) -> 184 | S96: =SUM(('List Unsorted Data - Unique'!$A$2:$A$42942=A96)*('List Unsorted Data - Unique'!$B$2:$B$42942=B96)*('List Unsorted Data - Unique'!$C$2:$C$42942=C96)*('List Unsorted Data - Unique'!$D$2:$D$42942=D96)*('List Unsorted Data - Unique'!$E$2:$E$42942=E96)*('List Unsorted Data - Unique'!$F$2:$F$42942=F96)*('List Unsorted Data - Unique'!$H$2:$H$42942)) -> 184
A97: 2016 | B97: 11 | C97: C. Underwood | D97: DFG001 | E97: PA01 | F97: Actual | G97: =INDEX('List Unsorted Data - Unique'!$H$2:$H$42942,MATCH(A97&"-"&B97&"-"&C97&"-"&D97&"-"&E97&"-"&F97,'List Unsorted Data - Unique'!$G$2:$G$42942,0)) -> 433 | I97: =SUMIFS('List Unsorted Data - Unique'!$H$2:$H$42942,'List Unsorted Data - Unique'!$A$2:$A$42942,A97,'List Unsorted Data - Unique'!$B$2:$B$42942,B97,'List Unsorted Data - Unique'!$C$2:$C$42942,C97,'List Unsorted Data - Unique'!$D$2:$D$42942,D97,'List Unsorted Data - Unique'!$E$2:$E$42942,E97,'List Unsorted Data - Unique'!$F$2:$F$42942,F97) -> 433 | K97: =INDEX('List Unsorted Data - Unique'!$H$2:$H$42942,MATCH(A97&B97&C97&D97&E97&F97,'List Unsorted Data - Unique'!$A$2:$A$42942&'List Unsorted Data - Unique'!$B$2:$B$42942&'List Unsorted Data - Unique'!$C$2:$C$42942&'List Unsorted Data - Unique'!$D$2:$D$42942&'List Unsorted Data - Unique'!$E$2:$E$42942&'List Unsorted Data - Unique'!$F$2:$F$42942,0)) -> 433 | M97: =INDEX('List Unsorted Data - Unique'!$H$2:$H$42942,MATCH(1,('List Unsorted Data - Unique'!$A$2:$A$42942=A97)*('List Unsorted Data - Unique'!$B$2:$B$42942=B97)*('List Unsorted Data - Unique'!$C$2:$C$42942=C97)*('List Unsorted Data - Unique'!$D$2:$D$42942=D97)*('List Unsorted Data - Unique'!$E$2:$E$42942=E97)*('List Unsorted Data - Unique'!$F$2:$F$42942=F97),0)) -> 433 | O97: =SUMPRODUCT(('List Unsorted Data - Unique'!$A$2:$A$42942=A97)*('List Unsorted Data - Unique'!$B$2:$B$42942=B97)*('List Unsorted Data - Unique'!$C$2:$C$42942=C97)*('List Unsorted Data - Unique'!$D$2:$D$42942=D97)*('List Unsorted Data - Unique'!$E$2:$E$42942=E97)*('List Unsorted Data - Unique'!$F$2:$F$42942=F97)*('List Unsorted Data - Unique'!$H$2:$H$42942)) -> 433 | Q97: =VLOOKUP(A97&B97&C97&D97&E97&F97,CHOOSE({1,2,3,4,5,6},'List Unsorted Data - Unique'!$A$2:$A$42942&'List Unsorted Data - Unique'!$B$2:$B$42942&'List Unsorted Data - Unique'!$C$2:$C$42942&'List Unsorted Data - Unique'!$D$2:$D$42942&'List Unsorted Data - Unique'!$E$2:$E$42942&'List Unsorted Data - Unique'!$F$2:$F$42942,'List Unsorted Data - Unique'!$H$2:$H$42942),2,0) -> 433 | S97: =SUM(('List Unsorted Data - Unique'!$A$2:$A$42942=A97)*('List Unsorted Data - Unique'!$B$2:$B$42942=B97)*('List Unsorted Data - Unique'!$C$2:$C$42942=C97)*('List Unsorted Data - Unique'!$D$2:$D$42942=D97)*('List Unsorted Data - Unique'!$E$2:$E$42942=E97)*('List Unsorted Data - Unique'!$F$2:$F$42942=F97)*('List Unsorted Data - Unique'!$H$2:$H$42942)) -> 433
A98: 2016 | B98: 5 | C98: M.Mills | D98: POT002 | E98: AL01 | F98: Actual | G98: =INDEX('List Unsorted Data - Unique'!$H$2:$H$42942,MATCH(A98&"-"&B98&"-"&C98&"-"&D98&"-"&E98&"-"&F98,'List Unsorted Data - Unique'!$G$2:$G$42942,0)) -> 218 | I98: =SUMIFS('List Unsorted Data - Unique'!$H$2:$H$42942,'List Unsorted Data - Unique'!$A$2:$A$42942,A98,'List Unsorted Data - Unique'!$B$2:$B$42942,B98,'List Unsorted Data - Unique'!$C$2:$C$42942,C98,'List Unsorted Data - Unique'!$D$2:$D$42942,D98,'List Unsorted Data - Unique'!$E$2:$E$42942,E98,'List Unsorted Data - Unique'!$F$2:$F$42942,F98) -> 218 | K98: =INDEX('List Unsorted Data - Unique'!$H$2:$H$42942,MATCH(A98&B98&C98&D98&E98&F98,'List Unsorted Data - Unique'!$A$2:$A$42942&'List Unsorted Data - Unique'!$B$2:$B$42942&'List Unsorted Data - Unique'!$C$2:$C$42942&'List Unsorted Data - Unique'!$D$2:$D$42942&'List Unsorted Data - Unique'!$E$2:$E$42942&'List Unsorted Data - Unique'!$F$2:$F$42942,0)) -> 218 | M98: =INDEX('List Unsorted Data - Unique'!$H$2:$H$42942,MATCH(1,('List Unsorted Data - Unique'!$A$2:$A$42942=A98)*('List Unsorted Data - Unique'!$B$2:$B$42942=B98)*('List Unsorted Data - Unique'!$C$2:$C$42942=C98)*('List Unsorted Data - Unique'!$D$2:$D$42942=D98)*('List Unsorted Data - Unique'!$E$2:$E$42942=E98)*('List Unsorted Data - Unique'!$F$2:$F$42942=F98),0)) -> 218 | O98: =SUMPRODUCT(('List Unsorted Data - Unique'!$A$2:$A$42942=A98)*('List Unsorted Data - Unique'!$B$2:$B$42942=B98)*('List Unsorted Data - Unique'!$C$2:$C$42942=C98)*('List Unsorted Data - Unique'!$D$2:$D$42942=D98)*('List Unsorted Data - Unique'!$E$2:$E$42942=E98)*('List Unsorted Data - Unique'!$F$2:$F$42942=F98)*('List Unsorted Data - Unique'!$H$2:$H$42942)) -> 218 | Q98: =VLOOKUP(A98&B98&C98&D98&E98&F98,CHOOSE({1,2,3,4,5,6},'List Unsorted Data - Unique'!$A$2:$A$42942&'List Unsorted Data - Unique'!$B$2:$B$42942&'List Unsorted Data - Unique'!$C$2:$C$42942&'List Unsorted Data - Unique'!$D$2:$D$42942&'List Unsorted Data - Unique'!$E$2:$E$42942&'List Unsorted Data - Unique'!$F$2:$F$42942,'List Unsorted Data - Unique'!$H$2:$H$42942),2,0) -> 218 | S98: =SUM(('List Unsorted Data - Unique'!$A$2:$A$42942=A98)*('List Unsorted Data - Unique'!$B$2:$B$42942=B98)*('List Unsorted Data - Unique'!$C$2:$C$42942=C98)*('List Unsorted Data - Unique'!$D$2:$D$42942=D98)*('List Unsorted Data - Unique'!$E$2:$E$42942=E98)*('List Unsorted Data - Unique'!$F$2:$F$42942=F98)*('List Unsorted Data - Unique'!$H$2:$H$42942)) -> 218
A99: 2015 | B99: 2 | C99: B. Paisley | D99: DFG001 | E99: LA01 | F99: Actual | G99: =INDEX('List Unsorted Data - Unique'!$H$2:$H$42942,MATCH(A99&"-"&B99&"-"&C99&"-"&D99&"-"&E99&"-"&F99,'List Unsorted Data - Unique'!$G$2:$G$42942,0)) -> 236 | I99: =SUMIFS('List Unsorted Data - Unique'!$H$2:$H$42942,'List Unsorted Data - Unique'!$A$2:$A$42942,A99,'List Unsorted Data - Unique'!$B$2:$B$42942,B99,'List Unsorted Data - Unique'!$C$2:$C$42942,C99,'List Unsorted Data - Unique'!$D$2:$D$42942,D99,'List Unsorted Data - Unique'!$E$2:$E$42942,E99,'List Unsorted Data - Unique'!$F$2:$F$42942,F99) -> 236 | K99: =INDEX('List Unsorted Data - Unique'!$H$2:$H$42942,MATCH(A99&B99&C99&D99&E99&F99,'List Unsorted Data - Unique'!$A$2:$A$42942&'List Unsorted Data - Unique'!$B$2:$B$42942&'List Unsorted Data - Unique'!$C$2:$C$42942&'List Unsorted Data - Unique'!$D$2:$D$42942&'List Unsorted Data - Unique'!$E$2:$E$42942&'List Unsorted Data - Unique'!$F$2:$F$42942,0)) -> 236 | M99: =INDEX('List Unsorted Data - Unique'!$H$2:$H$42942,MATCH(1,('List Unsorted Data - Unique'!$A$2:$A$42942=A99)*('List Unsorted Data - Unique'!$B$2:$B$42942=B99)*('List Unsorted Data - Unique'!$C$2:$C$42942=C99)*('List Unsorted Data - Unique'!$D$2:$D$42942=D99)*('List Unsorted Data - Unique'!$E$2:$E$42942=E99)*('List Unsorted Data - Unique'!$F$2:$F$42942=F99),0)) -> 236 | O99: =SUMPRODUCT(('List Unsorted Data - Unique'!$A$2:$A$42942=A99)*('List Unsorted Data - Unique'!$B$2:$B$42942=B99)*('List Unsorted Data - Unique'!$C$2:$C$42942=C99)*('List Unsorted Data - Unique'!$D$2:$D$42942=D99)*('List Unsorted Data - Unique'!$E$2:$E$42942=E99)*('List Unsorted Data - Unique'!$F$2:$F$42942=F99)*('List Unsorted Data - Unique'!$H$2:$H$42942)) -> 236 | Q99: =VLOOKUP(A99&B99&C99&D99&E99&F99,CHOOSE({1,2,3,4,5,6},'List Unsorted Data - Unique'!$A$2:$A$42942&'List Unsorted Data - Unique'!$B$2:$B$42942&'List Unsorted Data - Unique'!$C$2:$C$42942&'List Unsorted Data - Unique'!$D$2:$D$42942&'List Unsorted Data - Unique'!$E$2:$E$42942&'List Unsorted Data - Unique'!$F$2:$F$42942,'List Unsorted Data - Unique'!$H$2:$H$42942),2,0) -> 236 | S99: =SUM(('List Unsorted Data - Unique'!$A$2:$A$42942=A99)*('List Unsorted Data - Unique'!$B$2:$B$42942=B99)*('List Unsorted Data - Unique'!$C$2:$C$42942=C99)*('List Unsorted Data - Unique'!$D$2:$D$42942=D99)*('List Unsorted Data - Unique'!$E$2:$E$42942=E99)*('List Unsorted Data - Unique'!$F$2:$F$42942=F99)*('List Unsorted Data - Unique'!$H$2:$H$42942)) -> 236
A100: 2015 | B100: 3 | C100: B. Paisley | D100: ASL001 | E100: PA01 | F100: Forecast | G100: =INDEX('List Unsorted Data - Unique'!$H$2:$H$42942,MATCH(A100&"-"&B100&"-"&C100&"-"&D100&"-"&E100&"-"&F100,'List Unsorted Data - Unique'!$G$2:$G$42942,0)) -> 336 | I100: =SUMIFS('List Unsorted Data - Unique'!$H$2:$H$42942,'List Unsorted Data - Unique'!$A$2:$A$42942,A100,'List Unsorted Data - Unique'!$B$2:$B$42942,B100,'List Unsorted Data - Unique'!$C$2:$C$42942,C100,'List Unsorted Data - Unique'!$D$2:$D$42942,D100,'List Unsorted Data - Unique'!$E$2:$E$42942,E100,'List Unsorted Data - Unique'!$F$2:$F$42942,F100) -> 336 | K100: =INDEX('List Unsorted Data - Unique'!$H$2:$H$42942,MATCH(A100&B100&C100&D100&E100&F100,'List Unsorted Data - Unique'!$A$2:$A$42942&'List Unsorted Data - Unique'!$B$2:$B$42942&'List Unsorted Data - Unique'!$C$2:$C$42942&'List Unsorted Data - Unique'!$D$2:$D$42942&'List Unsorted Data - Unique'!$E$2:$E$42942&'List Unsorted Data - Unique'!$F$2:$F$42942,0)) -> 336 | M100: =INDEX('List Unsorted Data - Unique'!$H$2:$H$42942,MATCH(1,('List Unsorted Data - Unique'!$A$2:$A$42942=A100)*('List Unsorted Data - Unique'!$B$2:$B$42942=B100)*('List Unsorted Data - Unique'!$C$2:$C$42942=C100)*('List Unsorted Data - Unique'!$D$2:$D$42942=D100)*('List Unsorted Data - Unique'!$E$2:$E$42942=E100)*('List Unsorted Data - Unique'!$F$2:$F$42942=F100),0)) -> 336 | O100: =SUMPRODUCT(('List Unsorted Data - Unique'!$A$2:$A$42942=A100)*('List Unsorted Data - Unique'!$B$2:$B$42942=B100)*('List Unsorted Data - Unique'!$C$2:$C$42942=C100)*('List Unsorted Data - Unique'!$D$2:$D$42942=D100)*('List Unsorted Data - Unique'!$E$2:$E$42942=E100)*('List Unsorted Data - Unique'!$F$2:$F$42942=F100)*('List Unsorted Data - Unique'!$H$2:$H$42942)) -> 336 | Q100: =VLOOKUP(A100&B100&C100&D100&E100&F100,CHOOSE({1,2,3,4,5,6},'List Unsorted Data - Unique'!$A$2:$A$42942&'List Unsorted Data - Unique'!$B$2:$B$42942&'List Unsorted Data - Unique'!$C$2:$C$42942&'List Unsorted Data - Unique'!$D$2:$D$42942&'List Unsorted Data - Unique'!$E$2:$E$42942&'List Unsorted Data - Unique'!$F$2:$F$42942,'List Unsorted Data - Unique'!$H$2:$H$42942),2,0) -> 336 | S100: =SUM(('List Unsorted Data - Unique'!$A$2:$A$42942=A100)*('List Unsorted Data - Unique'!$B$2:$B$42942=B100)*('List Unsorted Data - Unique'!$C$2:$C$42942=C100)*('List Unsorted Data - Unique'!$D$2:$D$42942=D100)*('List Unsorted Data - Unique'!$E$2:$E$42942=E100)*('List Unsorted Data - Unique'!$F$2:$F$42942=F100)*('List Unsorted Data - Unique'!$H$2:$H$42942)) -> 336
A101: 2016 | B101: 6 | C101: M. Stipe | D101: JKL001 | E101: AL01 | F101: Actual | G101: =INDEX('List Unsorted Data - Unique'!$H$2:$H$42942,MATCH(A101&"-"&B101&"-"&C101&"-"&D101&"-"&E101&"-"&F101,'List Unsorted Data - Unique'!$G$2:$G$42942,0)) -> 105 | I101: =SUMIFS('List Unsorted Data - Unique'!$H$2:$H$42942,'List Unsorted Data - Unique'!$A$2:$A$42942,A101,'List Unsorted Data - Unique'!$B$2:$B$42942,B101,'List Unsorted Data - Unique'!$C$2:$C$42942,C101,'List Unsorted Data - Unique'!$D$2:$D$42942,D101,'List Unsorted Data - Unique'!$E$2:$E$42942,E101,'List Unsorted Data - Unique'!$F$2:$F$42942,F101) -> 105 | K101: =INDEX('List Unsorted Data - Unique'!$H$2:$H$42942,MATCH(A101&B101&C101&D101&E101&F101,'List Unsorted Data - Unique'!$A$2:$A$42942&'List Unsorted Data - Unique'!$B$2:$B$42942&'List Unsorted Data - Unique'!$C$2:$C$42942&'List Unsorted Data - Unique'!$D$2:$D$42942&'List Unsorted Data - Unique'!$E$2:$E$42942&'List Unsorted Data - Unique'!$F$2:$F$42942,0)) -> 105 | M101: =INDEX('List Unsorted Data - Unique'!$H$2:$H$42942,MATCH(1,('List Unsorted Data - Unique'!$A$2:$A$42942=A101)*('List Unsorted Data - Unique'!$B$2:$B$42942=B101)*('List Unsorted Data - Unique'!$C$2:$C$42942=C101)*('List Unsorted Data - Unique'!$D$2:$D$42942=D101)*('List Unsorted Data - Unique'!$E$2:$E$42942=E101)*('List Unsorted Data - Unique'!$F$2:$F$42942=F101),0)) -> 105 | O101: =SUMPRODUCT(('List Unsorted Data - Unique'!$A$2:$A$42942=A101)*('List Unsorted Data - Unique'!$B$2:$B$42942=B101)*('List Unsorted Data - Unique'!$C$2:$C$42942=C101)*('List Unsorted Data - Unique'!$D$2:$D$42942=D101)*('List Unsorted Data - Unique'!$E$2:$E$42942=E101)*('List Unsorted Data - Unique'!$F$2:$F$42942=F101)*('List Unsorted Data - Unique'!$H$2:$H$42942)) -> 105 | Q101: =VLOOKUP(A101&B101&C101&D101&E101&F101,CHOOSE({1,2,3,4,5,6},'List Unsorted Data - Unique'!$A$2:$A$42942&'List Unsorted Data - Unique'!$B$2:$B$42942&'List Unsorted Data - Unique'!$C$2:$C$42942&'List Unsorted Data - Unique'!$D$2:$D$42942&'List Unsorted Data - Unique'!$E$2:$E$42942&'List Unsorted Data - Unique'!$F$2:$F$42942,'List Unsorted Data - Unique'!$H$2:$H$42942),2,0) -> 105 | S101: =SUM(('List Unsorted Data - Unique'!$A$2:$A$42942=A101)*('List Unsorted Data - Unique'!$B$2:$B$42942=B101)*('List Unsorted Data - Unique'!$C$2:$C$42942=C101)*('List Unsorted Data - Unique'!$D$2:$D$42942=D101)*('List Unsorted Data - Unique'!$E$2:$E$42942=E101)*('List Unsorted Data - Unique'!$F$2:$F$42942=F101)*('List Unsorted Data - Unique'!$H$2:$H$42942)) -> 105
A102: 2015 | B102: 9 | C102: C. Underwood | D102: PRD001 | E102: PA01 | F102: Forecast | G102: =INDEX('List Unsorted Data - Unique'!$H$2:$H$42942,MATCH(A102&"-"&B102&"-"&C102&"-"&D102&"-"&E102&"-"&F102,'List Unsorted Data - Unique'!$G$2:$G$42942,0)) -> 82 | I102: =SUMIFS('List Unsorted Data - Unique'!$H$2:$H$42942,'List Unsorted Data - Unique'!$A$2:$A$42942,A102,'List Unsorted Data - Unique'!$B$2:$B$42942,B102,'List Unsorted Data - Unique'!$C$2:$C$42942,C102,'List Unsorted Data - Unique'!$D$2:$D$42942,D102,'List Unsorted Data - Unique'!$E$2:$E$42942,E102,'List Unsorted Data - Unique'!$F$2:$F$42942,F102) -> 82 | K102: =INDEX('List Unsorted Data - Unique'!$H$2:$H$42942,MATCH(A102&B102&C102&D102&E102&F102,'List Unsorted Data - Unique'!$A$2:$A$42942&'List Unsorted Data - Unique'!$B$2:$B$42942&'List Unsorted Data - Unique'!$C$2:$C$42942&'List Unsorted Data - Unique'!$D$2:$D$42942&'List Unsorted Data - Unique'!$E$2:$E$42942&'List Unsorted Data - Unique'!$F$2:$F$42942,0)) -> 82 | M102: =INDEX('List Unsorted Data - Unique'!$H$2:$H$42942,MATCH(1,('List Unsorted Data - Unique'!$A$2:$A$42942=A102)*('List Unsorted Data - Unique'!$B$2:$B$42942=B102)*('List Unsorted Data - Unique'!$C$2:$C$42942=C102)*('List Unsorted Data - Unique'!$D$2:$D$42942=D102)*('List Unsorted Data - Unique'!$E$2:$E$42942=E102)*('List Unsorted Data - Unique'!$F$2:$F$42942=F102),0)) -> 82 | O102: =SUMPRODUCT(('List Unsorted Data - Unique'!$A$2:$A$42942=A102)*('List Unsorted Data - Unique'!$B$2:$B$42942=B102)*('List Unsorted Data - Unique'!$C$2:$C$42942=C102)*('List Unsorted Data - Unique'!$D$2:$D$42942=D102)*('List Unsorted Data - Unique'!$E$2:$E$42942=E102)*('List Unsorted Data - Unique'!$F$2:$F$42942=F102)*('List Unsorted Data - Unique'!$H$2:$H$42942)) -> 82 | Q102: =VLOOKUP(A102&B102&C102&D102&E102&F102,CHOOSE({1,2,3,4,5,6},'List Unsorted Data - Unique'!$A$2:$A$42942&'List Unsorted Data - Unique'!$B$2:$B$42942&'List Unsorted Data - Unique'!$C$2:$C$42942&'List Unsorted Data - Unique'!$D$2:$D$42942&'List Unsorted Data - Unique'!$E$2:$E$42942&'List Unsorted Data - Unique'!$F$2:$F$42942,'List Unsorted Data - Unique'!$H$2:$H$42942),2,0) -> 82 | S102: =SUM(('List Unsorted Data - Unique'!$A$2:$A$42942=A102)*('List Unsorted Data - Unique'!$B$2:$B$42942=B102)*('List Unsorted Data - Unique'!$C$2:$C$42942=C102)*('List Unsorted Data - Unique'!$D$2:$D$42942=D102)*('List Unsorted Data - Unique'!$E$2:$E$42942=E102)*('List Unsorted Data - Unique'!$F$2:$F$42942=F102)*('List Unsorted Data - Unique'!$H$2:$H$42942)) -> 82
A103: 2016 | B103: 8 | C103: P. Buck | D103: ASL001 | E103: AL01 | F103: Forecast | G103: =INDEX('List Unsorted Data - Unique'!$H$2:$H$42942,MATCH(A103&"-"&B103&"-"&C103&"-"&D103&"-"&E103&"-"&F103,'List Unsorted Data - Unique'!$G$2:$G$42942,0)) -> 279 | I103: =SUMIFS('List Unsorted Data - Unique'!$H$2:$H$42942,'List Unsorted Data - Unique'!$A$2:$A$42942,A103,'List Unsorted Data - Unique'!$B$2:$B$42942,B103,'List Unsorted Data - Unique'!$C$2:$C$42942,C103,'List Unsorted Data - Unique'!$D$2:$D$42942,D103,'List Unsorted Data - Unique'!$E$2:$E$42942,E103,'List Unsorted Data - Unique'!$F$2:$F$42942,F103) -> 279 | K103: =INDEX('List Unsorted Data - Unique'!$H$2:$H$42942,MATCH(A103&B103&C103&D103&E103&F103,'List Unsorted Data - Unique'!$A$2:$A$42942&'List Unsorted Data - Unique'!$B$2:$B$42942&'List Unsorted Data - Unique'!$C$2:$C$42942&'List Unsorted Data - Unique'!$D$2:$D$42942&'List Unsorted Data - Unique'!$E$2:$E$42942&'List Unsorted Data - Unique'!$F$2:$F$42942,0)) -> 279 | M103: =INDEX('List Unsorted Data - Unique'!$H$2:$H$42942,MATCH(1,('List Unsorted Data - Unique'!$A$2:$A$42942=A103)*('List Unsorted Data - Unique'!$B$2:$B$42942=B103)*('List Unsorted Data - Unique'!$C$2:$C$42942=C103)*('List Unsorted Data - Unique'!$D$2:$D$42942=D103)*('List Unsorted Data - Unique'!$E$2:$E$42942=E103)*('List Unsorted Data - Unique'!$F$2:$F$42942=F103),0)) -> 279 | O103: =SUMPRODUCT(('List Unsorted Data - Unique'!$A$2:$A$42942=A103)*('List Unsorted Data - Unique'!$B$2:$B$42942=B103)*('List Unsorted Data - Unique'!$C$2:$C$42942=C103)*('List Unsorted Data - Unique'!$D$2:$D$42942=D103)*('List Unsorted Data - Unique'!$E$2:$E$42942=E103)*('List Unsorted Data - Unique'!$F$2:$F$42942=F103)*('List Unsorted Data - Unique'!$H$2:$H$42942)) -> 279 | Q103: =VLOOKUP(A103&B103&C103&D103&E103&F103,CHOOSE({1,2,3,4,5,6},'List Unsorted Data - Unique'!$A$2:$A$42942&'List Unsorted Data - Unique'!$B$2:$B$42942&'List Unsorted Data - Unique'!$C$2:$C$42942&'List Unsorted Data - Unique'!$D$2:$D$42942&'List Unsorted Data - Unique'!$E$2:$E$42942&'List Unsorted Data - Unique'!$F$2:$F$42942,'List Unsorted Data - Unique'!$H$2:$H$42942),2,0) -> 279 | S103: =SUM(('List Unsorted Data - Unique'!$A$2:$A$42942=A103)*('List Unsorted Data - Unique'!$B$2:$B$42942=B103)*('List Unsorted Data - Unique'!$C$2:$C$42942=C103)*('List Unsorted Data - Unique'!$D$2:$D$42942=D103)*('List Unsorted Data - Unique'!$E$2:$E$42942=E103)*('List Unsorted Data - Unique'!$F$2:$F$42942=F103)*('List Unsorted Data - Unique'!$H$2:$H$42942)) -> 279
A104: 2016 | B104: 6 | C104: B. Paisley | D104: ASL003 | E104: LA01 | F104: Forecast | G104: =INDEX('List Unsorted Data - Unique'!$H$2:$H$42942,MATCH(A104&"-"&B104&"-"&C104&"-"&D104&"-"&E104&"-"&F104,'List Unsorted Data - Unique'!$G$2:$G$42942,0)) -> 175 | I104: =SUMIFS('List Unsorted Data - Unique'!$H$2:$H$42942,'List Unsorted Data - Unique'!$A$2:$A$42942,A104,'List Unsorted Data - Unique'!$B$2:$B$42942,B104,'List Unsorted Data - Unique'!$C$2:$C$42942,C104,'List Unsorted Data - Unique'!$D$2:$D$42942,D104,'List Unsorted Data - Unique'!$E$2:$E$42942,E104,'List Unsorted Data - Unique'!$F$2:$F$42942,F104) -> 175 | K104: =INDEX('List Unsorted Data - Unique'!$H$2:$H$42942,MATCH(A104&B104&C104&D104&E104&F104,'List Unsorted Data - Unique'!$A$2:$A$42942&'List Unsorted Data - Unique'!$B$2:$B$42942&'List Unsorted Data - Unique'!$C$2:$C$42942&'List Unsorted Data - Unique'!$D$2:$D$42942&'List Unsorted Data - Unique'!$E$2:$E$42942&'List Unsorted Data - Unique'!$F$2:$F$42942,0)) -> 175 | M104: =INDEX('List Unsorted Data - Unique'!$H$2:$H$42942,MATCH(1,('List Unsorted Data - Unique'!$A$2:$A$42942=A104)*('List Unsorted Data - Unique'!$B$2:$B$42942=B104)*('List Unsorted Data - Unique'!$C$2:$C$42942=C104)*('List Unsorted Data - Unique'!$D$2:$D$42942=D104)*('List Unsorted Data - Unique'!$E$2:$E$42942=E104)*('List Unsorted Data - Unique'!$F$2:$F$42942=F104),0)) -> 175 | O104: =SUMPRODUCT(('List Unsorted Data - Unique'!$A$2:$A$42942=A104)*('List Unsorted Data - Unique'!$B$2:$B$42942=B104)*('List Unsorted Data - Unique'!$C$2:$C$42942=C104)*('List Unsorted Data - Unique'!$D$2:$D$42942=D104)*('List Unsorted Data - Unique'!$E$2:$E$42942=E104)*('List Unsorted Data - Unique'!$F$2:$F$42942=F104)*('List Unsorted Data - Unique'!$H$2:$H$42942)) -> 175 | Q104: =VLOOKUP(A104&B104&C104&D104&E104&F104,CHOOSE({1,2,3,4,5,6},'List Unsorted Data - Unique'!$A$2:$A$42942&'List Unsorted Data - Unique'!$B$2:$B$42942&'List Unsorted Data - Unique'!$C$2:$C$42942&'List Unsorted Data - Unique'!$D$2:$D$42942&'List Unsorted Data - Unique'!$E$2:$E$42942&'List Unsorted Data - Unique'!$F$2:$F$42942,'List Unsorted Data - Unique'!$H$2:$H$42942),2,0) -> 175 | S104: =SUM(('List Unsorted Data - Unique'!$A$2:$A$42942=A104)*('List Unsorted Data - Unique'!$B$2:$B$42942=B104)*('List Unsorted Data - Unique'!$C$2:$C$42942=C104)*('List Unsorted Data - Unique'!$D$2:$D$42942=D104)*('List Unsorted Data - Unique'!$E$2:$E$42942=E104)*('List Unsorted Data - Unique'!$F$2:$F$42942=F104)*('List Unsorted Data - Unique'!$H$2:$H$42942)) -> 175
A105: 2015 | B105: 8 | C105: B. Paisley | D105: POT001 | E105: PA01 | F105: Forecast | G105: =INDEX('List Unsorted Data - Unique'!$H$2:$H$42942,MATCH(A105&"-"&B105&"-"&C105&"-"&D105&"-"&E105&"-"&F105,'List Unsorted Data - Unique'!$G$2:$G$42942,0)) -> 335 | I105: =SUMIFS('List Unsorted Data - Unique'!$H$2:$H$42942,'List Unsorted Data - Unique'!$A$2:$A$42942,A105,'List Unsorted Data - Unique'!$B$2:$B$42942,B105,'List Unsorted Data - Unique'!$C$2:$C$42942,C105,'List Unsorted Data - Unique'!$D$2:$D$42942,D105,'List Unsorted Data - Unique'!$E$2:$E$42942,E105,'List Unsorted Data - Unique'!$F$2:$F$42942,F105) -> 335 | K105: =INDEX('List Unsorted Data - Unique'!$H$2:$H$42942,MATCH(A105&B105&C105&D105&E105&F105,'List Unsorted Data - Unique'!$A$2:$A$42942&'List Unsorted Data - Unique'!$B$2:$B$42942&'List Unsorted Data - Unique'!$C$2:$C$42942&'List Unsorted Data - Unique'!$D$2:$D$42942&'List Unsorted Data - Unique'!$E$2:$E$42942&'List Unsorted Data - Unique'!$F$2:$F$42942,0)) -> 335 | M105: =INDEX('List Unsorted Data - Unique'!$H$2:$H$42942,MATCH(1,('List Unsorted Data - Unique'!$A$2:$A$42942=A105)*('List Unsorted Data - Unique'!$B$2:$B$42942=B105)*('List Unsorted Data - Unique'!$C$2:$C$42942=C105)*('List Unsorted Data - Unique'!$D$2:$D$42942=D105)*('List Unsorted Data - Unique'!$E$2:$E$42942=E105)*('List Unsorted Data - Unique'!$F$2:$F$42942=F105),0)) -> 335 | O105: =SUMPRODUCT(('List Unsorted Data - Unique'!$A$2:$A$42942=A105)*('List Unsorted Data - Unique'!$B$2:$B$42942=B105)*('List Unsorted Data - Unique'!$C$2:$C$42942=C105)*('List Unsorted Data - Unique'!$D$2:$D$42942=D105)*('List Unsorted Data - Unique'!$E$2:$E$42942=E105)*('List Unsorted Data - Unique'!$F$2:$F$42942=F105)*('List Unsorted Data - Unique'!$H$2:$H$42942)) -> 335 | Q105: =VLOOKUP(A105&B105&C105&D105&E105&F105,CHOOSE({1,2,3,4,5,6},'List Unsorted Data - Unique'!$A$2:$A$42942&'List Unsorted Data - Unique'!$B$2:$B$42942&'List Unsorted Data - Unique'!$C$2:$C$42942&'List Unsorted Data - Unique'!$D$2:$D$42942&'List Unsorted Data - Unique'!$E$2:$E$42942&'List Unsorted Data - Unique'!$F$2:$F$42942,'List Unsorted Data - Unique'!$H$2:$H$42942),2,0) -> 335 | S105: =SUM(('List Unsorted Data - Unique'!$A$2:$A$42942=A105)*('List Unsorted Data - Unique'!$B$2:$B$42942=B105)*('List Unsorted Data - Unique'!$C$2:$C$42942=C105)*('List Unsorted Data - Unique'!$D$2:$D$42942=D105)*('List Unsorted Data - Unique'!$E$2:$E$42942=E105)*('List Unsorted Data - Unique'!$F$2:$F$42942=F105)*('List Unsorted Data - Unique'!$H$2:$H$42942)) -> 335
G107: INDEX/MATCH (Helper Column) | I107: SUMIFS | K107: INDEX/MATCH (Array) - Method 1 | M107: INDEX/MATCH (Array) - Method 2 | O107: SUMPRODUCT | Q107: VLOOKUP/ CHOOSE (Array) | S107: SUM (Array)
G108: Unsorted List | I108: Unsorted List | K108: Unsorted List | M108: Unsorted List | O108: Unsorted List | Q108: Unsorted List | S108: Unsorted List
F110: Time #1 | G110: 0.134254 | I110: 0.55657 | K110: 2.78255 | M110: 2.95195 | O110: 3.16725 | Q110: 5.4504 | S110: 3.1376
F111: Time #2 | G111: 0.15451 | I111: 0.53624 | K111: 2.81756 | M111: 2.92178 | O111: 3.17835 | Q111: 5.3435 | S111: 3.24903
F112: Time #3 | G112: 0.15324 | I112: 0.53951 | K112: 2.80555 | M112: 2.91727 | O112: 3.18748 | Q112: 5.33613 | S112: 3.09168
F113: Time #4 | G113: 0.14936 | I113: 0.54365 | K113: 2.77075 | M113: 2.93008 | O113: 3.18761 | Q113: 5.3532 | S113: 3.14708
F114: Time #5 | G114: 0.12534 | I114: 0.53606 | K114: 2.77793 | M114: 2.91248 | O114: 3.17564 | Q114: 5.33265 | S114: 3.00873
F116: Average: | G116: =AVERAGE(G110:G114) -> 0.1433408 | I116: =AVERAGE(I110:I114) -> 0.542406 | K116: =AVERAGE(K110:K114) -> 2.790868 | M116: =AVERAGE(M110:M114) -> 2.926712 | O116: =AVERAGE(O110:O114) -> 3.179266 | Q116: =AVERAGE(Q110:Q114) -> 5.363176 | S116: =AVERAGE(S110:S114) -> 3.126824
F118: % of slowest | G118: =G116/MAX($G$116:$S$116) -> 0.02672684991 | I118: =I116/MAX($G$116:$S$116) -> 0.1011352229 | K118: =K116/MAX($G$116:$S$116) -> 0.5203759862 | M118: =M116/MAX($G$116:$S$116) -> 0.5457050076 | O118: =O116/MAX($G$116:$S$116) -> 0.5927953884 | Q118: =Q116/MAX($G$116:$S$116) -> 1 | S118: =S116/MAX($G$116:$S$116) -> 0.5830172271

Sheet List Unsorted Data - Unique
A1: Year | B1: Period | C1: Sales Person | D1: Product | E1: Customer | F1: Forecast/Actual | G1: Helper | H1: Value
A2: 2015 | B2: 1 | C2: B. Shelton | D2: ASL001 | E2: CA01 | F2: Actual | G2: =A2&"-"&B2&"-"&C2&"-"&D2&"-"&E2&"-"&F2 -> 2015-1-B. Shelton-ASL001-CA01-Actual | H2: 145
A3: 2015 | B3: 5 | C3: M. Stipe | D3: POT002 | E3: SD01 | F3: Actual | G3: =A3&"-"&B3&"-"&C3&"-"&D3&"-"&E3&"-"&F3 -> 2015-5-M. Stipe-POT002-SD01-Actual | H3: 220
A4: 2016 | B4: 3 | C4: P. Buck | D4: POT002 | E4: AK01 | F4: Actual | G4: 2016-3-P. Buck-POT002-AK01-Actual | H4: 207
A5: 2015 | B5: 9 | C5: M. Stipe | D5: ASL003 | E5: CA01 | F5: Forecast | G5: 2015-9-M. Stipe-ASL003-CA01-Forecast | H5: 174
A6: 2016 | B6: 11 | C6: R. Star | D6: PRD002 | E6: AL01 | F6: Forecast | G6: 2016-11-R. Star-PRD002-AL01-Forecast | H6: 314
A7: 2016 | B7: 11 | C7: R. Star | D7: POT002 | E7: NC01 | F7: Actual | G7: 2016-11-R. Star-POT002-NC01-Actual | H7: 135
A8: 2015 | B8: 6 | C8: P. Buck | D8: PRD002 | E8: SD01 | F8: Actual | G8: 2015-6-P. Buck-PRD002-SD01-Actual | H8: 383
A9: 2015 | B9: 7 | C9: J. Lennon | D9: JKL001 | E9: PA01 | F9: Forecast | G9: 2015-7-J. Lennon-JKL001-PA01-Forecast | H9: 77
A10: 2016 | B10: 4 | C10: C. Underwood | D10: POT001 | E10: AL01 | F10: Actual | G10: 2016-4-C. Underwood-POT001-AL01-Actual | H10: 157
A11: 2016 | B11: 2 | C11: J. Lennon | D11: ASL002 | E11: MN01 | F11: Forecast | G11: 2016-2-J. Lennon-ASL002-MN01-Forecast | H11: 57
A12: 2016 | B12: 10 | C12: P. Buck | D12: JKL001 | E12: PA01 | F12: Actual | G12: 2016-10-P. Buck-JKL001-PA01-Actual | H12: 76
A13: 2015 | B13: 2 | C13: R. Star | D13: DFG001 | E13: SD01 | F13: Forecast | G13: 2015-2-R. Star-DFG001-SD01-Forecast | H13: 239
A14: 2016 | B14: 10 | C14: B. Paisley | D14: POT001 | E14: AL01 | F14: Actual | G14: 2016-10-B. Paisley-POT001-AL01-Actual | H14: 76
A15: 2015 | B15: 9 | C15: M. Stipe | D15: POT002 | E15: AK01 | F15: Forecast | G15: 2015-9-M. Stipe-POT002-AK01-Forecast | H15: 198
A16: 2015 | B16: 5 | C16: B. Paisley | D16: JKL001 | E16: CA01 | F16: Actual | G16: 2015-5-B. Paisley-JKL001-CA01-Actual | H16: 224
A17: 2015 | B17: 5 | C17: S. Crow | D17: POT001 | E17: CA01 | F17: Actual | G17: 2015-5-S. Crow-POT001-CA01-Actual | H17: 82
A18: 2014 | B18: 2 | C18: B. Paisley | D18: ASL001 | E18: LA01 | F18: Forecast | G18: 2014-2-B. Paisley-ASL001-LA01-Forecast | H18: 340
A19: 2015 | B19: 4 | C19: B. Paisley | D19: JKL001 | E19: PA01 | F19: Forecast | G19: 2015-4-B. Paisley-JKL001-PA01-Forecast | H19: 204
A20: 2015 | B20: 12 | C20: R. Star | D20: POT001 | E20: PA01 | F20: Actual | G20: 2015-12-R. Star-POT001-PA01-Actual | H20: 329
A21: 2014 | B21: 8 | C21: B. Paisley | D21: PRD002 | E21: AK01 | F21: Forecast | G21: 2014-8-B. Paisley-PRD002-AK01-Forecast | H21: 162
A22: 2015 | B22: 2 | C22: P. Buck | D22: ASL001 | E22: AL01 | F22: Actual | G22: 2015-2-P. Buck-ASL001-AL01-Actual | H22: 492
A23: 2015 | B23: 8 | C23: M. Stipe | D23: POT001 | E23: CA01 | F23: Actual | G23: 2015-8-M. Stipe-POT001-CA01-Actual | H23: 304
A24: 2015 | B24: 11 | C24: P. Buck | D24: JKL001 | E24: CA01 | F24: Actual | G24: 2015-11-P. Buck-JKL001-CA01-Actual | H24: 132
A25: 2014 | B25: 9 | C25: B. Paisley | D25: ASL001 | E25: AK01 | F25: Actual | G25: 2014-9-B. Paisley-ASL001-AK01-Actual | H25: 70
A26: 2015 | B26: 6 | C26: M. Stipe | D26: ASL001 | E26: LA01 | F26: Actual | G26: 2015-6-M. Stipe-ASL001-LA01-Actual | H26: 456
A27: 2014 | B27: 12 | C27: J. Lennon | D27: JKL001 | E27: SD01 | F27: Actual | G27: 2014-12-J. Lennon-JKL001-SD01-Actual | H27: 131
A28: 2015 | B28: 4 | C28: B. Shelton | D28: POT002 | E28: CA01 | F28: Forecast | G28: 2015-4-B. Shelton-POT002-CA01-Forecast | H28: 352
A29: 2015 | B29: 2 | C29: R. Star | D29: ASL001 | E29: MN01 | F29: Actual | G29: 2015-2-R. Star-ASL001-MN01-Actual | H29: 492
A30: 2016 | B30: 5 | C30: J. McVie | D30: PRD001 | E30: VA01 | F30: Forecast | G30: 2016-5-J. McVie-PRD001-VA01-Forecast | H30: 86
A31: 2015 | B31: 5 | C31: M. Stipe | D31: POT001 | E31: SD01 | F31: Forecast | G31: 2015-5-M. Stipe-POT001-SD01-Forecast | H31: 240
A32: 2016 | B32: 3 | C32: M.Mills | D32: PRD002 | E32: AL01 | F32: Forecast | G32: 2016-3-M.Mills-PRD002-AL01-Forecast | H32: 170
A33: 2015 | B33: 4 | C33: S. Crow | D33: POT001 | E33: CA01 | F33: Forecast | G33: 2015-4-S. Crow-POT001-CA01-Forecast | H33: 313
A34: 2015 | B34: 5 | C34: M.Mills | D34: ASL001 | E34: VA01 | F34: Forecast | G34: 2015-5-M.Mills-ASL001-VA01-Forecast | H34: 283
A35: 2014 | B35: 2 | C35: C. Underwood | D35: POT001 | E35: MN01 | F35: Actual | G35: 2014-2-C. Underwood-POT001-MN01-Actual | H35: 328
A36: 2015 | B36: 11 | C36: R. Star | D36: JKL001 | E36: NC01 | F36: Actual | G36: 2015-11-R. Star-JKL001-NC01-Actual | H36: 284
A37: 2015 | B37: 3 | C37: R. Star | D37: ASL003 | E37: AL01 | F37: Actual | G37: 2015-3-R. Star-ASL003-AL01-Actual | H37: 255
A38: 2015 | B38: 5 | C38: P. Buck | D38: DFG001 | E38: PA01 | F38: Forecast | G38: 2015-5-P. Buck-DFG001-PA01-Forecast | H38: 175
A39: 2015 | B39: 10 | C39: M.Mills | D39: ASL002 | E39: LA01 | F39: Actual | G39: 2015-10-M.Mills-ASL002-LA01-Actual | H39: 158
A40: 2016 | B40: 11 | C40: J. McVie | D40: PRD001 | E40: AL01 | F40: Forecast | G40: 2016-11-J. McVie-PRD001-AL01-Forecast | H40: 85
A41: 2015 | B41: 1 | C41: M.Mills | D41: JKL001 | E41: LA01 | F41: Actual | G41: 2015-1-M.Mills-JKL001-LA01-Actual | H41: 87
A42: 2015 | B42: 9 | C42: J. McVie | D42: POT002 | E42: SD01 | F42: Actual | G42: 2015-9-J. McVie-POT002-SD01-Actual | H42: 268
A43: 2014 | B43: 12 | C43: B. Shelton | D43: ASL001 | E43: NC01 | F43: Forecast | G43: 2014-12-B. Shelton-ASL001-NC01-Forecast | H43: 74
A44: 2016 | B44: 7 | C44: C. Underwood | D44: PRD002 | E44: MN01 | F44: Forecast | G44: 2016-7-C. Underwood-PRD002-MN01-Forecast | H44: 414
A45: 2015 | B45: 12 | C45: B. Shelton | D45: ASL001 | E45: MN01 | F45: Actual | G45: 2015-12-B. Shelton-ASL001-MN01-Actual | H45: 132
A46: 2014 | B46: 4 | C46: P. Buck | D46: PRD002 | E46: LA01 | F46: Actual | G46: 2014-4-P. Buck-PRD002-LA01-Actual | H46: 170
A47: 2016 | B47: 8 | C47: B. Shelton | D47: POT002 | E47: CA01 | F47: Actual | G47: 2016-8-B. Shelton-POT002-CA01-Actual | H47: 289
A48: 2015 | B48: 10 | C48: C. Underwood | D48: PRD001 | E48: AK01 | F48: Forecast | G48: 2015-10-C. Underwood-PRD001-AK01-Forecast | H48: 88
A49: 2015 | B49: 7 | C49: J. McVie | D49: POT002 | E49: NC01 | F49: Forecast | G49: 2015-7-J. McVie-POT002-NC01-Forecast | H49: 141
A50: 2015 | B50: 9 | C50: M.Mills | D50: POT001 | E50: NC01 | F50: Actual | G50: 2015-9-M.Mills-POT001-NC01-Actual | H50: 492
A51: 2014 | B51: 6 | C51: J. Lennon | D51: JKL001 | E51: CA01 | F51: Actual | G51: 2014-6-J. Lennon-JKL001-CA01-Actual | H51: 79
A52: 2014 | B52: 5 | C52: B. Paisley | D52: ASL002 | E52: SD01 | F52: Forecast | G52: 2014-5-B. Paisley-ASL002-SD01-Forecast | H52: 152
A53: 2015 | B53: 11 | C53: B. Shelton | D53: ASL003 | E53: MN01 | F53: Forecast | G53: 2015-11-B. Shelton-ASL003-MN01-Forecast | H53: 303
A54: 2015 | B54: 11 | C54: C. Underwood | D54: JKL001 | E54: MN01 | F54: Forecast | G54: 2015-11-C. Underwood-JKL001-MN01-Forecast | H54: 235
A55: 2014 | B55: 11 | C55: P. Buck | D55: DFG001 | E55: PA01 | F55: Actual | G55: 2014-11-P. Buck-DFG001-PA01-Actual | H55: 62
A56: 2015 | B56: 9 | C56: R. Star | D56: DFG001 | E56: SD01 | F56: Actual | G56: 2015-9-R. Star-DFG001-SD01-Actual | H56: 115
A57: 2015 | B57: 7 | C57: P. Buck | D57: ASL003 | E57: SD01 | F57: Actual | G57: 2015-7-P. Buck-ASL003-SD01-Actual | H57: 389
A58: 2015 | B58: 7 | C58: M.Mills | D58: PRD001 | E58: SD01 | F58: Actual | G58: 2015-7-M.Mills-PRD001-SD01-Actual | H58: 351
A59: 2015 | B59: 5 | C59: C. Underwood | D59: PRD002 | E59: AL01 | F59: Actual | G59: 2015-5-C. Underwood-PRD002-AL01-Actual | H59: 240
A60: 2015 | B60: 11 | C60: R. Star | D60: ASL001 | E60: LA01 | F60: Actual | G60: 2015-11-R. Star-ASL001-LA01-Actual | H60: 290
A61: 2015 | B61: 12 | C61: J. Lennon | D61: POT001 | E61: MN01 | F61: Actual | G61: 2015-12-J. Lennon-POT001-MN01-Actual | H61: 326
A62: 2016 | B62: 4 | C62: C. Underwood | D62: ASL002 | E62: LA01 | F62: Forecast | G62: 2016-4-C. Underwood-ASL002-LA01-Forecast | H62: 159
A63: 2014 | B63: 10 | C63: M.Mills | D63: JKL001 | E63: LA01 | F63: Forecast | G63: 2014-10-M.Mills-JKL001-LA01-Forecast | H63: 168
A64: 2015 | B64: 5 | C64: M. Stipe | D64: ASL003 | E64: CA01 | F64: Actual | G64: 2015-5-M. Stipe-ASL003-CA01-Actual | H64: 162
A65: 2014 | B65: 7 | C65: B. Paisley | D65: ASL002 | E65: LA01 | F65: Actual | G65: 2014-7-B. Paisley-ASL002-LA01-Actual | H65: 151
A66: 2014 | B66: 10 | C66: P. Buck | D66: ASL001 | E66: AL01 | F66: Forecast | G66: 2014-10-P. Buck-ASL001-AL01-Forecast | H66: 72
A67: 2015 | B67: 5 | C67: P. Buck | D67: ASL001 | E67: MN01 | F67: Actual | G67: =A67&"-"&B67&"-"&C67&"-"&D67&"-"&E67&"-"&F67 -> 2015-5-P. Buck-ASL001-MN01-Actual | H67: 480
A68: 2015 | B68: 4 | C68: M. Stipe | D68: POT002 | E68: VA01 | F68: Actual | G68: 2015-4-M. Stipe-POT002-VA01-Actual | H68: 350
A69: 2014 | B69: 9 | C69: M. Stipe | D69: POT001 | E69: AL01 | F69: Forecast | G69: 2014-9-M. Stipe-POT001-AL01-Forecast | H69: 233
A70: 2014 | B70: 10 | C70: J. Lennon | D70: ASL003 | E70: PA01 | F70: Forecast | G70: 2014-10-J. Lennon-ASL003-PA01-Forecast | H70: 412
A71: 2015 | B71: 11 | C71: J. McVie | D71: DFG001 | E71: SD01 | F71: Actual | G71: 2015-11-J. McVie-DFG001-SD01-Actual | H71: 58
A72: 2015 | B72: 9 | C72: C. Underwood | D72: POT002 | E72: AK01 | F72: Forecast | G72: 2015-9-C. Underwood-POT002-AK01-Forecast | H72: 72
A73: 2015 | B73: 12 | C73: J. Lennon | D73: JKL001 | E73: LA01 | F73: Actual | G73: 2015-12-J. Lennon-JKL001-LA01-Actual | H73: 188
A74: 2015 | B74: 8 | C74: M.Mills | D74: POT002 | E74: MN01 | F74: Actual | G74: 2015-8-M.Mills-POT002-MN01-Actual | H74: 271
A75: 2015 | B75: 11 | C75: J. Lennon | D75: PRD002 | E75: MN01 | F75: Forecast | G75: 2015-11-J. Lennon-PRD002-MN01-Forecast | H75: 499
A76: 2016 | B76: 5 | C76: R. Star | D76: ASL003 | E76: AK01 | F76: Forecast | G76: 2016-5-R. Star-ASL003-AK01-Forecast | H76: 367
A77: 2015 | B77: 3 | C77: P. Buck | D77: JKL001 | E77: SD01 | F77: Actual | G77: 2015-3-P. Buck-JKL001-SD01-Actual | H77: 306
A78: 2014 | B78: 9 | C78: B. Shelton | D78: POT002 | E78: SD01 | F78: Actual | G78: 2014-9-B. Shelton-POT002-SD01-Actual | H78: 211
A79: 2015 | B79: 2 | C79: C. Underwood | D79: PRD002 | E79: PA01 | F79: Actual | G79: 2015-2-C. Underwood-PRD002-PA01-Actual | H79: 415
A80: 2015 | B80: 3 | C80: R. Star | D80: JKL001 | E80: NC01 | F80: Forecast | G80: 2015-3-R. Star-JKL001-NC01-Forecast | H80: 151
A81: 2016 | B81: 5 | C81: M.Mills | D81: ASL001 | E81: CA01 | F81: Actual | G81: 2016-5-M.Mills-ASL001-CA01-Actual | H81: 64
A82: 2015 | B82: 2 | C82: M.Mills | D82: POT002 | E82: VA01 | F82: Actual | G82: 2015-2-M.Mills-POT002-VA01-Actual | H82: 134
A83: 2016 | B83: 11 | C83: R. Star | D83: POT001 | E83: AK01 | F83: Actual | G83: 2016-11-R. Star-POT001-AK01-Actual | H83: 303
A84: 2015 | B84: 2 | C84: M. Stipe | D84: ASL001 | E84: SD01 | F84: Forecast | G84: 2015-2-M. Stipe-ASL001-SD01-Forecast | H84: 268
A85: 2015 | B85: 2 | C85: S. Crow | D85: POT001 | E85: SD01 | F85: Forecast | G85: 2015-2-S. Crow-POT001-SD01-Forecast | H85: 242
A86: 2015 | B86: 5 | C86: J. Lennon | D86: ASL002 | E86: CA01 | F86: Forecast | G86: 2015-5-J. Lennon-ASL002-CA01-Forecast | H86: 370
A87: 2016 | B87: 6 | C87: P. Buck | D87: PRD002 | E87: AK01 | F87: Forecast | G87: 2016-6-P. Buck-PRD002-AK01-Forecast | H87: 158
A88: 2016 | B88: 11 | C88: J. Lennon | D88: JKL001 | E88: MN01 | F88: Forecast | G88: 2016-11-J. Lennon-JKL001-MN01-Forecast | H88: 107
A89: 2015 | B89: 10 | C89: B. Shelton | D89: JKL001 | E89: AL01 | F89: Forecast | G89: 2015-10-B. Shelton-JKL001-AL01-Forecast | H89: 151
A90: 2016 | B90: 11 | C90: C. Underwood | D90: POT002 | E90: AL01 | F90: Actual | G90: 2016-11-C. Underwood-POT002-AL01-Actual | H90: 223
A91: 2014 | B91: 6 | C91: S. Crow | D91: DFG001 | E91: AL01 | F91: Forecast | G91: 2014-6-S. Crow-DFG001-AL01-Forecast | H91: 59
A92: 2015 | B92: 9 | C92: M. Stipe | D92: ASL002 | E92: VA01 | F92: Actual | G92: 2015-9-M. Stipe-ASL002-VA01-Actual | H92: 91
A93: 2014 | B93: 9 | C93: B. Paisley | D93: POT002 | E93: MN01 | F93: Actual | G93: 2014-9-B. Paisley-POT002-MN01-Actual | H93: 278
A94: 2015 | B94: 10 | C94: J. McVie | D94: ASL003 | E94: PA01 | F94: Forecast | G94: 2015-10-J. McVie-ASL003-PA01-Forecast | H94: 281
A95: 2015 | B95: 11 | C95: R. Star | D95: ASL001 | E95: LA01 | F95: Forecast | G95: 2015-11-R. Star-ASL001-LA01-Forecast | H95: 491
A96: 2015 | B96: 9 | C96: C. Underwood | D96: ASL003 | E96: MN01 | F96: Actual | G96: 2015-9-C. Underwood-ASL003-MN01-Actual | H96: 189
A97: 2016 | B97: 1 | C97: J. McVie | D97: PRD002 | E97: AK01 | F97: Forecast | G97: 2016-1-J. McVie-PRD002-AK01-Forecast | H97: 71
A98: 2016 | B98: 3 | C98: S. Crow | D98: PRD001 | E98: AK01 | F98: Actual | G98: 2016-3-S. Crow-PRD001-AK01-Actual | H98: 91
A99: 2014 | B99: 7 | C99: M. Stipe | D99: ASL001 | E99: CA01 | F99: Actual | G99: 2014-7-M. Stipe-ASL001-CA01-Actual | H99: 74
A100: 2015 | B100: 10 | C100: B. Shelton | D100: ASL002 | E100: NC01 | F100: Forecast | G100: 2015-10-B. Shelton-ASL002-NC01-Forecast | H100: 264
A101: 2015 | B101: 9 | C101: R. Star | D101: ASL001 | E101: AL01 | F101: Actual | G101: 2015-9-R. Star-ASL001-AL01-Actual | H101: 73
A102: 2014 | B102: 12 | C102: M. Stipe | D102: PRD001 | E102: AK01 | F102: Forecast | G102: 2014-12-M. Stipe-PRD001-AK01-Forecast | H102: 175
A103: 2014 | B103: 8 | C103: C. Underwood | D103: ASL002 | E103: PA01 | F103: Forecast | G103: 2014-8-C. Underwood-ASL002-PA01-Forecast | H103: 135
A104: 2015 | B104: 1 | C104: C. Underwood | D104: POT002 | E104: CA01 | F104: Actual | G104: 2015-1-C. Underwood-POT002-CA01-Actual | H104: 140
A105: 2014 | B105: 8 | C105: S. Crow | D105: ASL002 | E105: CA01 | F105: Forecast | G105: 2014-8-S. Crow-ASL002-CA01-Forecast | H105: 202
A106: 2015 | B106: 3 | C106: M.Mills | D106: JKL001 | E106: PA01 | F106: Actual | G106: 2015-3-M.Mills-JKL001-PA01-Actual | H106: 132
A107: 2014 | B107: 5 | C107: M. Stipe | D107: POT001 | E107: PA01 | F107: Forecast | G107: 2014-5-M. Stipe-POT001-PA01-Forecast | H107: 385
A108: 2015 | B108: 8 | C108: M. Stipe | D108: ASL002 | E108: CA01 | F108: Actual | G108: 2015-8-M. Stipe-ASL002-CA01-Actual | H108: 247
A109: 2014 | B109: 3 | C109: J. Lennon | D109: ASL003 | E109: AL01 | F109: Forecast | G109: 2014-3-J. Lennon-ASL003-AL01-Forecast | H109: 175
A110: 2016 | B110: 8 | C110: S. Crow | D110: JKL001 | E110: LA01 | F110: Actual | G110: 2016-8-S. Crow-JKL001-LA01-Actual | H110: 48
A111: 2016 | B111: 12 | C111: B. Paisley | D111: ASL003 | E111: CA01 | F111: Actual | G111: 2016-12-B. Paisley-ASL003-CA01-Actual | H111: 114
A112: 2015 | B112: 1 | C112: B. Shelton | D112: JKL001 | E112: NC01 | F112: Forecast | G112: 2015-1-B. Shelton-JKL001-NC01-Forecast | H112: 81
A113: 2016 | B113: 4 | C113: B. Paisley | D113: ASL002 | E113: PA01 | F113: Actual | G113: 2016-4-B. Paisley-ASL002-PA01-Actual | H113: 275
A114: 2016 | B114: 11 | C114: P. Buck | D114: PRD002 | E114: NC01 | F114: Forecast | G114: 2016-11-P. Buck-PRD002-NC01-Forecast | H114: 165
A115: 2015 | B115: 4 | C115: P. Buck | D115: ASL002 | E115: MN01 | F115: Actual | G115: 2015-4-P. Buck-ASL002-MN01-Actual | H115: 196
A116: 2015 | B116: 10 | C116: B. Paisley | D116: PRD002 | E116: MN01 | F116: Actual | G116: 2015-10-B. Paisley-PRD002-MN01-Actual | H116: 496
A117: 2014 | B117: 2 | C117: M. Stipe | D117: POT002 | E117: SD01 | F117: Actual | G117: 2014-2-M. Stipe-POT002-SD01-Actual | H117: 138
A118: 2014 | B118: 1 | C118: S. Crow | D118: ASL001 | E118: AK01 | F118: Forecast | G118: 2014-1-S. Crow-ASL001-AK01-Forecast | H118: 66
A119: 2015 | B119: 11 | C119: P. Buck | D119: PRD002 | E119: PA01 | F119: Actual | G119: 2015-11-P. Buck-PRD002-PA01-Actual | H119: 498
A120: 2015 | B120: 3 | C120: P. Buck | D120: POT002 | E120: AL01 | F120: Actual | G120: 2015-3-P. Buck-POT002-AL01-Actual | H120: 520
A121: 2015 | B121: 12 | C121: R. Star | D121: ASL001 | E121: MN01 | F121: Forecast | G121: 2015-12-R. Star-ASL001-MN01-Forecast | H121: 75
A122: 2014 | B122: 9 | C122: P. Buck | D122: PRD002 | E122: NC01 | F122: Actual | G122: 2014-9-P. Buck-PRD002-NC01-Actual | H122: 245
A123: 2015 | B123: 4 | C123: P. Buck | D123: PRD002 | E123: SD01 | F123: Actual | G123: 2015-4-P. Buck-PRD002-SD01-Actual | H123: 241
A124: 2016 | B124: 1 | C124: R. Star | D124: POT002 | E124: AL01 | F124: Actual | G124: 2016-1-R. Star-POT002-AL01-Actual | H124: 135
A125: 2014 | B125: 2 | C125: C. Underwood | D125: ASL003 | E125: AL01 | F125: Forecast | G125: 2014-2-C. Underwood-ASL003-AL01-Forecast | H125: 167
A126: 2014 | B126: 6 | C126: J. Lennon | D126: POT001 | E126: PA01 | F126: Actual | G126: 2014-6-J. Lennon-POT001-PA01-Actual | H126: 307
A127: 2014 | B127: 10 | C127: M.Mills | D127: PRD002 | E127: CA01 | F127: Actual | G127: 2014-10-M.Mills-PRD002-CA01-Actual | H127: 398
A128: 2015 | B128: 8 | C128: J. Lennon | D128: DFG001 | E128: CA01 | F128: Forecast | G128: 2015-8-J. Lennon-DFG001-CA01-Forecast | H128: 105
A129: 2014 | B129: 6 | C129: J. Lennon | D129: ASL003 | E129: LA01 | F129: Forecast | G129: 2014-6-J. Lennon-ASL003-LA01-Forecast | H129: 132
A130: 2014 | B130: 3 | C130: M.Mills | D130: ASL001 | E130: LA01 | F130: Actual | G130: 2014-3-M.Mills-ASL001-LA01-Actual | H130: 60
A131: 2016 | B131: 2 | C131: R. Star | D131: ASL001 | E131: NC01 | F131: Forecast | G131: =A131&"-"&B131&"-"&C131&"-"&D131&"-"&E131&"-"&F131 -> 2016-2-R. Star-ASL001-NC01-Forecast | H131: 202
A132: 2015 | B132: 2 | C132: S. Crow | D132: ASL001 | E132: AL01 | F132: Actual | G132: 2015-2-S. Crow-ASL001-AL01-Actual | H132: 140
A133: 2014 | B133: 9 | C133: J. Lennon | D133: PRD002 | E133: NC01 | F133: Forecast | G133: 2014-9-J. Lennon-PRD002-NC01-Forecast | H133: 570
A134: 2016 | B134: 9 | C134: J. McVie | D134: POT001 | E134: SD01 | F134: Actual | G134: 2016-9-J. McVie-POT001-SD01-Actual | H134: 80
A135: 2015 | B135: 8 | C135: M.Mills | D135: ASL002 | E135: MN01 | F135: Forecast | G135: 2015-8-M.Mills-ASL002-MN01-Forecast | H135: 168
A136: 2015 | B136: 3 | C136: C. Underwood | D136: POT002 | E136: AL01 | F136: Forecast | G136: 2015-3-C. Underwood-POT002-AL01-Forecast | H136: 421
A137: 2014 | B137: 4 | C137: P. Buck | D137: ASL001 | E137: CA01 | F137: Forecast | G137: 2014-4-P. Buck-ASL001-CA01-Forecast | H137: 68
A138: 2016 | B138: 7 | C138: R. Star | D138: ASL003 | E138: MN01 | F138: Forecast | G138: 2016-7-R. Star-ASL003-MN01-Forecast | H138: 303
A139: 2016 | B139: 9 | C139: R. Star | D139: ASL002 | E139: LA01 | F139: Actual | G139: 2016-9-R. Star-ASL002-LA01-Actual | H139: 115
A140: 2015 | B140: 9 | C140: M.Mills | D140: PRD002 | E140: VA01 | F140: Actual | G140: 2015-9-M.Mills-PRD002-VA01-Actual | H140: 409
A141: 2014 | B141: 5 | C141: M. Stipe | D141: DFG001 | E141: LA01 | F141: Actual | G141: 2014-5-M. Stipe-DFG001-LA01-Actual | H141: 51
A142: 2015 | B142: 8 | C142: J. Lennon | D142: PRD002 | E142: MN01 | F142: Actual | G142: 2015-8-J. Lennon-PRD002-MN01-Actual | H142: 396
A143: 2015 | B143: 2 | C143: B. Shelton | D143: ASL003 | E143: CA01 | F143: Actual | G143: 2015-2-B. Shelton-ASL003-CA01-Actual | H143: 303
A144: 2015 | B144: 5 | C144: R. Star | D144: ASL002 | E144: PA01 | F144: Actual | G144: 2015-5-R. Star-ASL002-PA01-Actual | H144: 265
A145: 2015 | B145: 10 | C145: B. Paisley | D145: POT002 | E145: AK01 | F145: Forecast | G145: 2015-10-B. Paisley-POT002-AK01-Forecast | H145: 156
A146: 2014 | B146: 11 | C146: B. Shelton | D146: PRD001 | E146: MN01 | F146: Forecast | G146: 2014-11-B. Shelton-PRD001-MN01-Forecast | H146: 187
A147: 2015 | B147: 4 | C147: M.Mills | D147: PRD002 | E147: SD01 | F147: Actual | G147: 2015-4-M.Mills-PRD002-SD01-Actual | H147: 157
A148: 2015 | B148: 6 | C148: J. McVie | D148: JKL001 | E148: SD01 | F148: Actual | G148: 2015-6-J. McVie-JKL001-SD01-Actual | H148: 81
A149: 2016 | B149: 3 | C149: R. Star | D149: ASL003 | E149: MN01 | F149: Actual | G149: 2016-3-R. Star-ASL003-MN01-Actual | H149: 126
A150: 2015 | B150: 10 | C150: C. Underwood | D150: JKL001 | E150: CA01 | F150: Actual | G150: 2015-10-C. Underwood-JKL001-CA01-Actual | H150: 157
A151: 2015 | B151: 8 | C151: J. Lennon | D151: POT001 | E151: AL01 | F151: Actual | G151: 2015-8-J. Lennon-POT001-AL01-Actual | H151: 559
A152: 2016 | B152: 11 | C152: R. Star | D152: POT001 | E152: LA01 | F152: Actual | G152: 2016-11-R. Star-POT001-LA01-Actual | H152: 244
A153: 2014 | B153: 3 | C153: P. Buck | D153: POT002 | E153: PA01 | F153: Actual | G153: 2014-3-P. Buck-POT002-PA01-Actual | H153: 127
A154: 2015 | B154: 6 | C154: P. Buck | D154: PRD001 | E154: MN01 | F154: Actual | G154: 2015-6-P. Buck-PRD001-MN01-Actual | H154: 544
A155: 2016 | B155: 8 | C155: M.Mills | D155: ASL001 | E155: LA01 | F155: Actual | G155: 2016-8-M.Mills-ASL001-LA01-Actual | H155: 287
A156: 2014 | B156: 6 | C156: J. Lennon | D156: PRD002 | E156: PA01 | F156: Actual | G156: 2014-6-J. Lennon-PRD002-PA01-Actual | H156: 237
A157: 2014 | B157: 4 | C157: C. Underwood | D157: ASL001 | E157: SD01 | F157: Forecast | G157: 2014-4-C. Underwood-ASL001-SD01-Forecast | H157: 77
A158: 2016 | B158: 5 | C158: S. Crow | D158: POT002 | E158: AL01 | F158: Forecast | G158: 2016-5-S. Crow-POT002-AL01-Forecast | H158: 227
A159: 2015 | B159: 8 | C159: M.Mills | D159: ASL002 | E159: SD01 | F159: Forecast | G159: 2015-8-M.Mills-ASL002-SD01-Forecast | H159: 262
A160: 2016 | B160: 7 | C160: C. Underwood | D160: ASL003 | E160: NC01 | F160: Forecast | G160: 2016-7-C. Underwood-ASL003-NC01-Forecast | H160: 244
A161: 2016 | B161: 5 | C161: B. Shelton | D161: DFG001 | E161: SD01 | F161: Actual | G161: 2016-5-B. Shelton-DFG001-SD01-Actual | H161: 179
A162: 2016 | B162: 1 | C162: M. Stipe | D162: POT001 | E162: AL01 | F162: Forecast | G162: 2016-1-M. Stipe-POT001-AL01-Forecast | H162: 230
A163: 2015 | B163: 4 | C163: B. Paisley | D163: ASL003 | E163: PA01 | F163: Forecast | G163: 2015-4-B. Paisley-ASL003-PA01-Forecast | H163: 179
A164: 2014 | B164: 7 | C164: B. Paisley | D164: ASL002 | E164: MN01 | F164: Forecast | G164: 2014-7-B. Paisley-ASL002-MN01-Forecast | H164: 372
A165: 2014 | B165: 5 | C165: C. Underwood | D165: POT001 | E165: SD01 | F165: Actual | G165: 2014-5-C. Underwood-POT001-SD01-Actual | H165: 148
A166: 2016 | B166: 8 | C166: P. Buck | D166: POT001 | E166: SD01 | F166: Forecast | G166: 2016-8-P. Buck-POT001-SD01-Forecast | H166: 316
A167: 2015 | B167: 3 | C167: P. Buck | D167: POT002 | E167: AK01 | F167: Forecast | G167: 2015-3-P. Buck-POT002-AK01-Forecast | H167: 357
A168: 2014 | B168: 1 | C168: C. Underwood | D168: JKL001 | E168: LA01 | F168: Actual | G168: 2014-1-C. Underwood-JKL001-LA01-Actual | H168: 73
A169: 2015 | B169: 8 | C169: J. Lennon | D169: ASL003 | E169: PA01 | F169: Actual | G169: 2015-8-J. Lennon-ASL003-PA01-Actual | H169: 429
A170: 2015 | B170: 8 | C170: P. Buck | D170: ASL003 | E170: AK01 | F170: Actual | G170: 2015-8-P. Buck-ASL003-AK01-Actual | H170: 316
A171: 2015 | B171: 2 | C171: R. Star | D171: ASL003 | E171: AL01 | F171: Actual | G171: 2015-2-R. Star-ASL003-AL01-Actual | H171: 301
A172: 2015 | B172: 8 | C172: M.Mills | D172: ASL003 | E172: MN01 | F172: Actual | G172: 2015-8-M.Mills-ASL003-MN01-Actual | H172: 421
A173: 2014 | B173: 4 | C173: B. Shelton | D173: PRD002 | E173: PA01 | F173: Actual | G173: 2014-4-B. Shelton-PRD002-PA01-Actual | H173: 72
A174: 2014 | B174: 7 | C174: S. Crow | D174: JKL001 | E174: SD01 | F174: Actual | G174: 2014-7-S. Crow-JKL001-SD01-Actual | H174: 49
A175: 2015 | B175: 5 | C175: R. Star | D175: ASL002 | E175: AL01 | F175: Actual | G175: 2015-5-R. Star-ASL002-AL01-Actual | H175: 357
A176: 2015 | B176: 2 | C176: J. Lennon | D176: DFG001 | E176: PA01 | F176: Actual | G176: 2015-2-J. Lennon-DFG001-PA01-Actual | H176: 182
A177: 2015 | B177: 4 | C177: S. Crow | D177: DFG001 | E177: AL01 | F177: Forecast | G177: 2015-4-S. Crow-DFG001-AL01-Forecast | H177: 182
A178: 2015 | B178: 7 | C178: M.Mills | D178: ASL003 | E178: MN01 | F178: Actual | G178: 2015-7-M.Mills-ASL003-MN01-Actual | H178: 281
A179: 2014 | B179: 3 | C179: C. Underwood | D179: PRD001 | E179: AK01 | F179: Forecast | G179: 2014-3-C. Underwood-PRD001-AK01-Forecast | H179: 348
A180: 2015 | B180: 11 | C180: S. Crow | D180: POT001 | E180: LA01 | F180: Forecast | G180: 2015-11-S. Crow-POT001-LA01-Forecast | H180: 249
A181: 2016 | B181: 10 | C181: M. Stipe | D181: ASL002 | E181: SD01 | F181: Actual | G181: 2016-10-M. Stipe-ASL002-SD01-Actual | H181: 102
A182: 2014 | B182: 4 | C182: B. Shelton | D182: POT001 | E182: AK01 | F182: Actual | G182: 2014-4-B. Shelton-POT001-AK01-Actual | H182: 162
A183: 2014 | B183: 5 | C183: P. Buck | D183: POT001 | E183: SD01 | F183: Actual | G183: 2014-5-P. Buck-POT001-SD01-Actual | H183: 156
A184: 2015 | B184: 8 | C184: B. Paisley | D184: PRD002 | E184: AL01 | F184: Forecast | G184: 2015-8-B. Paisley-PRD002-AL01-Forecast | H184: 260
A185: 2014 | B185: 2 | C185: B. Paisley | D185: ASL002 | E185: VA01 | F185: Forecast | G185: 2014-2-B. Paisley-ASL002-VA01-Forecast | H185: 102
A186: 2014 | B186: 3 | C186: M.Mills | D186: POT001 | E186: LA01 | F186: Actual | G186: 2014-3-M.Mills-POT001-LA01-Actual | H186: 305
A187: 2014 | B187: 10 | C187: M. Stipe | D187: ASL002 | E187: AL01 | F187: Actual | G187: 2014-10-M. Stipe-ASL002-AL01-Actual | H187: 156
A188: 2014 | B188: 7 | C188: J. Lennon | D188: JKL001 | E188: AL01 | F188: Forecast | G188: 2014-7-J. Lennon-JKL001-AL01-Forecast | H188: 89
A189: 2015 | B189: 8 | C189: P. Buck | D189: ASL003 | E189: PA01 | F189: Forecast | G189: 2015-8-P. Buck-ASL003-PA01-Forecast | H189: 302
A190: 2015 | B190: 8 | C190: P. Buck | D190: POT002 | E190: LA01 | F190: Forecast | G190: 2015-8-P. Buck-POT002-LA01-Forecast | H190: 554
A191: 2015 | B191: 8 | C191: R. Star | D191: ASL002 | E191: AK01 | F191: Forecast | G191: 2015-8-R. Star-ASL002-AK01-Forecast | H191: 194
A192: 2015 | B192: 4 | C192: P. Buck | D192: POT001 | E192: CA01 | F192: Actual | G192: 2015-4-P. Buck-POT001-CA01-Actual | H192: 682
A193: 2016 | B193: 3 | C193: J. Lennon | D193: PRD001 | E193: SD01 | F193: Forecast | G193: 2016-3-J. Lennon-PRD001-SD01-Forecast | H193: 181
A194: 2016 | B194: 10 | C194: R. Star | D194: PRD002 | E194: AL01 | F194: Actual | G194: 2016-10-R. Star-PRD002-AL01-Actual | H194: 227
A195: 2016 | B195: 8 | C195: M.Mills | D195: ASL003 | E195: AL01 | F195: Actual | G195: =A195&"-"&B195&"-"&C195&"-"&D195&"-"&E195&"-"&F195 -> 2016-8-M.Mills-ASL003-AL01-Actual | H195: 174
A196: 2015 | B196: 2 | C196: J. McVie | D196: PRD001 | E196: CA01 | F196: Actual | G196: 2015-2-J. McVie-PRD001-CA01-Actual | H196: 454
A197: 2016 | B197: 2 | C197: M.Mills | D197: ASL003 | E197: AK01 | F197: Actual | G197: 2016-2-M.Mills-ASL003-AK01-Actual | H197: 235
A198: 2015 | B198: 3 | C198: M.Mills | D198: DFG001 | E198: LA01 | F198: Forecast | G198: 2015-3-M.Mills-DFG001-LA01-Forecast | H198: 243
A199: 2016 | B199: 5 | C199: M.Mills | D199: PRD001 | E199: VA01 | F199: Forecast | G199: 2016-5-M.Mills-PRD001-VA01-Forecast | H199: 367
A200: 2016 | B200: 5 | C200: R. Star | D200: POT001 | E200: LA01 | F200: Forecast | G200: 2016-5-R. Star-POT001-LA01-Forecast | H200: 564
... 4300 more rows
